Workbook

Sheet Contacts
A1: 2016 ACCOUNTING SPREADSHEET ECCV, ACWWA, and United
B3: Case No. 12CW073, 11CW280, 10CW312, 10CW313, 11CW285, 09CW283. 10CW306, 84CW090, 88CW264(B), 2002CW105-A, 02CW403, 02CW404 and 03CW442 - 2015 SWSP Accounting Spreadsheet
B8: East Cherry Creek Valley Water and Sanitation District
B9: Dave Kaunisto
B10: phone: (303) 693-3800
B12: Arapahoe County Water and Wastewater Authority
B13: Steve Witter
B14: phone: (303) 790-4830
B16: United Water and Sanitation District
B17: Andrew Daminao
B18: phone: (303) 785-3581
B20: DiNatale Water Consultants
B21: Brian Macpherson
B22: phone: (303) 709-7044
B24: Farmer's Reservoir and Irrigation Company
B25: Scott Edgar
B26: phone: (303) 659-7373

Sheet Control Sheet
A1: Accounting Control Variables
A2: Input data in yellow highlighted cells only. If yellow cells contain a formula, at the end of the accounting year, copy and paste the data for the year that just ended as values and remove the yellow shading.
A3: Sheets that require input have purple tabs.
A4: Accounting is administrated from 12 am to 12 am and the most senior call of the day will be used for the entire day.
A5: Year NHF Accounting Started | D5: 1995
A6: Current Accounting Year | D6: 2016
A7: Year Case 02CW404 and 03CW442 Accounting Started | D7: 2011
A8: Capacities | G8: Month | H8: No. of Days
A9: Max Rate of Diversion at United No. 1 | D9: 100 | E9: cfs | G9: Apr | H9: 30
A10: Max Rate of Diversion at United No. 2 | D10: 24 | E10: cfs | G10: Aug | H10: 31
A11: Max Rate of Diversion at United No. 3 | D11: 100 | E11: cfs | G11: Dec | H11: 31
A12: Div Capacity at United No. 4 | D12: 11.58 | E12: cfs | G12: Feb | H12: =IF(MOD(D6+1,4)=0,29,28) -> 28
A13: Milliken Reservoir Intake (Jay Thomas Ditch) | D13: 100 | E13: cfs | G13: Jan | H13: 31
A14: Beebe Pipeline Capacity | D14: 50 | E14: cfs | G14: Jul | H14: 31
A15: Burlington/FRICO HID share of Beebe Pipeline Capacity | D15: =0.5*D14 -> 25 | E15: cfs | G15: Jun | H15: 30
G16: Mar | H16: 31
A17: United Reservoir #3 Capacity (non-jurisdictional) | D17: 3180 | E17: AF | G17: May | H17: 31
A18: United Reservoir #3 Capacity (jurisdictional) | D18: 4611 | E18: AF | G18: Nov | H18: 30
G19: Oct | H19: 31
G20: Sep | H20: 30
A21: Div Capacity at Platte Valley Canal | D21: 350 | E21: cfs
A22: Div Capacity at Burlington Headgate | D22: 900 | E22: cfs
A23: Metro Pumping Plant | D23: 105 | E23: cfs
A25: Barr Lake Canal Characteristics
A27: Canal | B27: Length (ft) | C27: Canal Width (ft) | D27: Surface Area (ac) | E27: Capacity (cfs)
A28: Speer I | B28: 96440 | C28: 20 | D28: =(C28*B28)/43560 -> 44.27915519 | E28: 150
A29: West Burlington | B29: 48050 | C29: 10 | D29: 11.03076217 | E29: 20
A30: East Burlington | B30: 47870 | C30: 10 | D30: 10.98943985 | E30: 45
A31: Neres | B31: 89000 | C31: 20 | D31: 40.86317723 | E31: 120
A32: Bowles Seep | B32: 39310 | C32: 10 | D32: 9.024334252 | E32: 30
A33: East Neres | B33: 104860 | C33: 10 | D33: 24.07254362 | E33: 40
A35: 70 Ranch Canal Characteristics
A37: Canal | B37: Length (ft) | C37: Canal Width (ft) | D37: Surface Area (ac)
A38: Canal 11b to 8c | B38: 4850 | C38: 10 | D38: =(C38*B38)/43560 -> 1.113406795
A39: Canal 8a to 4/5 | B39: 6700 | C39: 10 | D39: =(C39*B39)/43560 -> 1.538108356
A40: Canal 8a to 9a | B40: 10670 | C40: 15 | D40: =(C40*B40)/43560 -> 3.674242424
A42: Barr Lake Evaporation Rates (From Operational Study Developed in Connection with Case No. 02CW105A): These values are used for the Projection Tool.
B43: Gross Evaporation | C43: Precipitation | D43: Net Evap
B44: Inches Per | C44: Inches Per | D44: Inches Per | E44: Percent
A45: Month | B45: Month | C45: Month | D45: Month | E45: Per Month
A46: Jan | B46: 0 | C46: 0.44 | D46: =IF(B46-C46<0,0,B46-C46) -> 0 | E46: =D46/$D$58 -> 0
A47: Feb | B47: 0 | C47: 0.37 | D47: =IF(B47-C47<0,0,B47-C47) -> 0 | E47: =D47/$D$58 -> 0
A48: Mar | B48: 2.48 | C48: 1.15 | D48: 1.33 | E48: 0.04763610315
A49: Apr | B49: 4.05 | C49: 1.76 | D49: 2.29 | E49: 0.08202005731
A50: May | B50: 5.4 | C50: 2.29 | D50: 3.11 | E50: 0.1113896848
A51: Jun | B51: 6.53 | C51: 1.63 | D51: 4.9 | E51: 0.1755014327
A52: Jul | B52: 6.75 | C52: 1.58 | D52: 5.17 | E52: 0.1851719198
A53: Aug | B53: 6.08 | C53: 1.75 | D53: 4.33 | E53: 0.1550859599
A54: Sep | B54: 4.5 | C54: 0.99 | D54: 3.51 | E54: 0.1257163324
A55: Oct | B55: 3.15 | C55: 0.89 | D55: 2.26 | E55: 0.08094555874
A56: Nov | B56: 1.8 | C56: 0.78 | D56: 1.02 | E56: 0.03653295129
A57: Dec | B57: 0 | C57: 0.52 | D57: 0 | E57: 0
A58: Total | B58: =SUM(B46:B57) -> 40.74 | C58: =SUM(C46:C57) -> 14.15 | D58: =SUM(D46:D57) -> 27.92 | E58: =SUM(E46:E57) -> 1
A61: Facility | B61: WDID
A62: Residential Well No. 1 | B62: 0107656
A63: Residential Well No. 2 | B63: 0107657
A64: Peterson Well No. 1 | B64: 0107968
A65: Peterson Well No. 2 | B65: 0107969
A66: NFC-W1 | B66: 0109961
A67: NFC-W2 | B67: 0109962
A68: NFC-W3 | B68: 0109963
A69: NFC-W4 | B69: 0109964
A70: Lower Latham Aug Station | B70: 0102917
A71: Illinois Ditch Aug Station | B71: 0102907
A72: Illinois Ditch Irrigation Pump No. 1 | B72: 0107520
A73: Illinois Ditch Irrigation Pump No. 2 | B73: 0109719
A74: Barr Lake | B74: 0203837
A75: United No. 1 | B75: 0100587
A76: United No. 2, Well #1 | B76: 0110707
A77: United No. 2, Well #3 | B77: 0110708
A78: United No. 2, Well #4 | B78: 0110709
A79: United No. 3 | B79: 0201511
A80: United No. 6 | B80: Not Yet Constructed
A81: Milton Lake | B81: 0203876
A82: Speer Canal | B82: 0200916
A83: Bowles Seep Canal | B83: 0200918
A84: E. Burlington Canal | B84: 0200920
A85: W. Burlington Canal | B85: 0200917
A86: Neres Canal | B86: 0200921
A87: E. Neres Canal | B87: 0200919
A88: Moser | B88: 0202058
A89: Milliken Reservoir | B89: 0203388
A90: Tu Pit | B90: 0202070
A91: Mile High Lakes | B91: Not Yet Constructed
A92: Bromley Lane | B92: Not Yet Constructed
A93: Schupman | B93: Not Yet Constructed
A94: Pettinger East | B94: Not Yet Constructed
A95: Pettinger West | B95: Not Yet Constructed
A96: Artese | B96: Not Yet Constructed
A97: Dechant | B97: Not Yet Constructed
A98: Carlin | B98: Not Yet Constructed
A99: Klug | B99: Not Yet Constructed
A100: Sater | B100: Not Yet Constructed
A101: Riverside Pond No. 1 | B101: 0102048
A102: Riverside Pond No. 2 | B102: 0102069
A103: Recharge Pond 4/5 | B103: Not Yet Constructed
A104: Recharge Pond 8a | B104: Not Yet Constructed
A105: Recharge Pond 8b | B105: Not Yet Constructed
A106: Recharge Pond 8c | B106: Not Yet Constructed
A107: Recharge Pond 9a | B107: Not Yet Constructed
A108: Recharge Pond 11a | B108: Not Yet Constructed
A109: Recharge Pond 11b | B109: Not Yet Constructed
A110: Recharge Canal 8a to 9a | B110: Not Yet Constructed
A111: Recharge Canal 11b to 8c | B111: Not Yet Constructed
A112: Recharge Canal 8a to 4/5 | B112: Not Yet Constructed
A113: ECCV Well No. P-2
A114: ECCV Well No. P-3
A115: ECCV Well No. P-4
A116: ECCV Well No. P-5
A117: ECCV Well No. P-6 | B117: 0210020
A118: ECCV Well No. P-8 | B118: 0209886
A119: ECCV Well No. P-11 | B119: 0209885
A120: ECCV Well No. P-12 | B120: 0209882
A121: ECCV Well No. P-13 | B121: 0209884
A122: ECCV Well No. P-18
A123: ECCV Well No. E-7 | B123: 0210019
A124: ECCV Well No. P-15
A125: ECCV Well No. E-1 | B125: Not Yet Constructed | C125: 0210385
A126: ECCV Well No. P-14 | B126: Not Yet Constructed | C126: 0210386
A127: ECCV Well No. P-19 | B127: Not Yet Constructed | C127: 0210387
A128: ECCV Well No. P-20 | B128: Not Yet Constructed | C128: 0210388
A129: ECCV Well No. P-21 | B129: Not Yet Constructed | C129: 0210389

Sheet ECCV Daily Replacement Summary
A1: 2016 Accounting - Case 02CW404,03CW442, and 10CW306
A2: Year | B2: ='Control Sheet'!D6 -> 2016 | AS2: REPLACEMENT SUMMARY FOR SOUTH PLATTE RIVER REACH 5 (BELOW BIJOU CANAL) | BW2: REPLACEMENT SUMMARY FOR SOUTH PLATTE RIVER REACH 4 (EMPIRE CANAL TO BIJOU CANAL) | DI2: REPLACEMENT SUMMARY FOR CACHE LA POUDRE RIVER (CONNECTED TO REACH 3) | EV2: REPLACEMENT SUMMARY FOR SOUTH PLATTE RIVER REACH 3 (LOWER LATHAM CANAL TO EMPIRE CANAL) | GB2: REPLACEMENT SUMMARY FOR SOUTH PLATTE RIVER REACH 2 (WESTERN MUTUAL DITCH TO LOWER LATHAM CANAL) | IK2: REPLACEMENT SUMMARY FOR SOUTH PLATTE RIVER REACH 1 (ABOVE WESTERN MUTUAL DITCH) | JP2: REPLACEMENT SUMMARY FOR BEEBE DRAW ABOVE MILTON | LB2: REPLACEMENT SUMMARY FOR BEEBE DRAW BELOW MILTON | LM2: REPLACEMENT SUMMARY FOR BOX ELDER CREEK
MO3: SOUTH PLATTE RIVER EXCHANGES | RF3: Used to Check Releases on Reservoir Sheets
C4: District 2 Call Information | K4: District 1 & 64 Call Information | S4: 70 Ranch Diversions and Well Pumping | AG4: 2003 One Time Diversion Right | AI4: Replacement Summary For Riverside | AN4: Replacement Summary for South Platte River Reach 5 | BW4: Replacement Summary for South Platte River Reach 4 | DI4: Replacement Summary for Cache La Poudre River | EV4: Replacement Summary for South Platte River Reach 3 | GB4: Replacement Summary for South Platte River Reach 2 | IK4: Replacement Summary for South Platte River Reach 1 | JP4: Replacement Summary for Beebe Draw Above Milton | LB4: Replacement Summary for Beebe Draw below Milton | LM4: Replacement Summary for Box Elder Ck | LT4: OVERALL REPLACEMENT SUMMARY | MJ4: Minimum Rates of Flow | MO4: MAXIMUM EXCHANGE RATE FROM BEAVER CREEK=12.2 CFS | MS4: MAXIMUM EXCHANGE RATE FROM FT. MORGAN CANAL=12.2 CFS | NF4: MAXIMUM EXCHANGE RATE FROM WELDON VALLEY CANAL= 14.2 CFS | NR4: MAXIMUM EXCHANGE RATE FROM 70 RANCH EXCHANGE QUANTIFICATION POINT= 11.0 CFS | OD4: MAXIMUM EXCHANGE RATE FROM SOUTH PLATTE AND CACHE LA POUDRE CONFLUENCE=5.2 CFS | OR4: MAXIMUM EXCHANGE RATE FROM WESTERN MUTUAL DITCH=5.5 CFS | PB4: MAXIMUM EXCHANGE RATE FROM MILLIKEN RESERVOIR OUTLET STRUCTURE=260.0 CFS | PK4: MAXIMUM EXCHANGE RATE FROM SOUTH PLATTE AND ST VRAIN CONFLUENCE=50 CFS | PO4: MAXIMUM EXCHANGE RATE FROM ST VRAIN PIPELINE OUTLET EXCHANGE QUANTIFICATION POINT= 50 CFS | PT4: MAXIMUM EXCHANGE RATE FROM FARMERS INDEPENDENT DITCH=1.5 CFS | QF4: AGGREGATE OF EXCHANGES | QJ4: Retiming of ECCV's Surplus Beebe Draw Recharge Accretions | QW4: Retiming of FRICO's Surplus Beebe Draw Recharge Accretions | RF4: Reservoir Replacement Release Summary
A5: Month | B5: Day | C5: Primary River Call Name (Structure Calling) | D5: Primary River Call Appropriation Date | E5: Primary River Call Location | F5: Primary River Call Admin Number | G5: Secondary River Call Name (Structure Calling) | H5: Secondary River Call Appropriation Date | I5: Secondary River Call Location | J5: Secondary River Call Admin Number | K5: Primary River Call Name (Structure Calling) | L5: Primary River Call Appropriation Date | M5: Primary River Call Location | N5: Primary River Call Admin Number | O5: Secondary River Call Name (Structure Calling) | P5: Secondary River Call Appropriation Date | Q5: Secondary River Call Location | R5: Secondary River Call Admin Number | S5: Surplus CU Water Available for Diversion by Exchange at United No. 1 | T5: United No. 1 Diversion of C.U. Water by Exchange | U5: United No. 1 Diversion of the 2003 Right | V5: Other Water Diverted at United No. 1 | W5: Source of Other Water | X5: United No. 1 Total Diversion | Y5: NFC-W1, W3 and W4 Pumping | Z5: 88CW264(B) Pumping, Peterson Well Nos. 1 and 2, Residential Well Nos.1 and 2, Illinois Irrigation Pump No.1 and 2 | AA5: Surplus C.U. Water in SPR-Reaches 4 and 5 Available for Diversion at United No. 2 | AB5: United Diversion Facility No. 2 Well Pumping of ECCV C.U. Water | AC5: United Diversion Facility No. 2 Well Pumping of the 2003 Right | AD5: Other Water Pumped at United No. 2 | AE5: Source of Other Water | AF5: Total Pumping | AG5: Total Diversion of the 2003 One Time Diversion Right | AH5: Maximum Total Rate of Diversion | AI5: NFC Well Depletions to Riverside | AJ5: Other Approved Water to Replace NFC Well Depletions to Riverside | AK5: Source of Other Water | AL5: ECCV 70 Ranch Recharge Accretions to Riverside | AM5: Remaining Requirement to Riverside | AN5: OOP NFC Well Depletions | AO5: Leased Credits from Riverside Irrigation District | AP5: Other Approved Water used to Replace NFC Well Depletions in SPR Reach 5 | AQ5: Source of Other Water | AR5: Weldon Valley RF Obligation | AS5: ECCV's Riverside Recharge Accretions in SPR Reach 5 | AT5: Weldon Valley Recharge Accretions in SPR Reach 5 | AU5: ECCV 70 Ranch Recharge Accretions to SPR Reach 5 | AV5: ECCV Weldon Valley Ditch Delivery Measured at ACWWA Aug Station | AW5: ECCV Weldon Valley Ditch Delivery Measured at Weldon Aug Station (Tail) | AX5: Weldon Valley Ditch CU Credit | AY5: ECCV's Weldon Valley Aug Station Delivery Used to Meet RF Obligations | AZ5: ECCV's Riverside Recharge Accrtns used to Replace Obligation in SPR Reach 5 | BA5: Weldon Valley Recharge Accrtns used to Replace Obligation in SPR Reach 5 | BB5: 70 Ranch Recharge Accrtns used to Replace Obligation in SPR Reach 5 | BC5: Transit Loss on Riverside and 70 Ranch Recharge Accretions Used for Replacement | BD5: United Res #3 Release to Satisfy Requirement in SPR Reach 5 | BE5: Transit Loss on United Res Release | BF5: Milliken Release to Satisfy Requirement in SPR Reach 5 | BG5: Transit Loss on Milliken Release | BH5: Other Approved Water used to Replace Requirement in SPR Reach 5 | BI5: Source of Other Water | BJ5: Is Jackson or Ft. Morgan Canal the Calling Right and Drying up the River (Yes or No) | BK5: Is Bijou Canal the Calling Right and Drying up the River (Yes or No) | BL5: Available Bypassed at Bijou, Jackson or Ft. Morgan | BM5: Requested Bypassed at Bijou, Jackson or Ft. Morgan | BN5: Actual Amount Bypassed at Bijou, Jackson or Ft. Morgan | BO5: Source of Water Bypassed at Bijou, Jackson or Ft. Morgan | BP5: Riverside and 70 Ranch Accrtns used to Replace Obligation in SPR Reach 4 | BQ5: 70 Ranch Recharge Accrtns in SPR Reach 5 used to Replace Obligation in SPR Reach 4 | BR5: Weldon Valley CU in SPR Reach 5 used to Replace Obligation in SPR Reach 4 | BS5: Riverside Accrtns Used to Augment OOP Storage under 2003 Right in Milton | BT5: Recharge Accrtns in SPR 5 Used to Augment OOP Storage under 2003 Right in Milton | BU5: Obligation in SPR Reach 5 | BV5: Surplus CU in SPR Reach 5 Available for Upstream Replacement and/or Exchange | BW5: OOP NFC Well Depletions | BX5: OOP 88CW264(B) Pumping, Peterson Well Nos. 1 and 2, Residential Well Nos.1 and 2, Illinois Irrigation Pump No.1 and 2 | BY5: United's Total OOP Stream Depletion due to Pumping | BZ5: Leased Credits from Riverside Irrigation District | CA5: Other Approved Water used to Replace NFC & Peterson Well Obligation in SPR Reach 4 | CB5: Source of Other Approved Water | CC5: OOP United Diversion Facility No. 2 Depletions | CD5: ECCV's Total OOP Stream Depletion due to Pumping | CE5: Return Flow Obligation Associated with 70 Ranch Water Rights (Lower Latham and Illinois) | CF5: ECCV's Total OOP Replacement Requirement to SPR Reach 4 | CG5: ECCV's 70 Ranch Recharge Accretions to SPR Reach 4 | CH5: Lower Latham Delivery Measured at ECCV Aug Station | CI5: Lower Latham CU Credit | CJ5: ECCV's Lower Latham Aug Station Delivery Used to Meet RF Obligations | CK5: Illinois Ditch Delivery Measured at ECCV Aug Station | CL5: Illinois Ditch CU Credit | CM5: Hardin Ditch CU Credit | CN5: Other Approved Water used to Replace Obligation in SPR Reach 4 | CO5: Source of Other Approved Water | CP5: Total Consumptive Use Credit in SPR Reach 4 | CQ5: Consumptive Use Credit Used to Satisfy ECCV's Obligation in SPR Reach 4 | CR5: Consumptive Use Credit Used to Replace Longmont obligation | CS5: Transit loss from SPR Reach 4 to Longmont Obligation | CT5: Recharge Accrtns used to Replace ECCV's Obligation in SPR Reach 4 | CU5: Consumptive Use Credit Used to Augment OOP Storage under 2003 Right in Milton | CV5: Recharge Accrtns Used to Augment OOP Storage under 2003 Right in Milton | CW5: Remaining Requirement in SPR Reach 4 | CX5: Riverside Accrtns used to Replace Obligation in SPR Reach 4 | CY5: Recharge Accrtns in SPR Reach 5 used to Replace Obligation in SPR Reach 4 | CZ5: Weldon Valley Accrtns used to Replace Obligation in SPR Reach 4 | DA5: NFC Well Pumping Delivered to the South Platte for Replacement | DB5: United Res #3 Release to Satisfy Remaining Requirement in SPR Reach 4 | DC5: Transit Loss on United Res Release | DD5: ECCV LIRFs to Replace Remaining RF Obligation to SPR Reach 4 | DE5: Transit Loss on ECCV's Toll Gate Creek LIRFs | DF5: Milliken Release to Satisfy Remaining Requirement in SPR Reach 4 | DG5: Transit Loss on Milliken Release | DH5: Surplus CU in SPR Reach 4 Available for Upstream Replacement and/or Exchange | DI5: New Cache RF Obligation abv Greeley No. 3 | DJ5: New Cache Delivery Measured at John Law Aug Station | DK5: Transit Loss on John Law Release to CLP | DL5: Other Approved Water used to Replace Obligation abv Greeley No. 3 | DM5: Source of Other Approved Water | DN5: Is the Greeley No. 3 drying up the river (Yes or No) | DO5: Is there a live stream for the John Law Seep (Yes or No) | DP5: Net Effect Above Greeley No. 3 | DQ5: New Cache Delivery from the John Law Aug Station available above Ogilvy | DR5: Transit Loss on John Law Release to Ogilvy | DS5: New Cache RF Obligation abv Ogilvy Ditch | DT5: GIC RF Obligation abv the Ogilvy Ditch | DU5: Total RF Obligation | DV5: New Cache Delivery from the John Law Aug Station used | DW5: ECCV's GIC Delivery Measured at F Street Release Structure | DX5: Transit Loss on F Street Release to Ogilvy | DY5: ECCV's GIC Delivery Measured at 23rd Avenue Release Structure | DZ5: Transit Loss on 23rd Ave Release to Ogilvy | EA5: SerFer Pit Release | EB5: Transit Loss on SerFer Pit Release to Ogilvy Ditch | EC5: Other Approved Water used to Replace Obligation abv the Ogilvy Ditch | ED5: Source of Other Approved Water | EE5: Is the Ogilvy Ditch drying up the river (Yes or No) | EF5: Net Effect between GIC and Ogilvy Ditch | EG5: New Cache RF Obligation that can be met by SPR 3 | EH5: GIC RF Obligation below the Ogilvy Ditch | EI5: CU above Ogilvy available to SPR | EJ5: Transit Loss on CU above Ogilvy to SPR | EK5: Is there a live stream for Sand Creek (Yes or No) | EL5: New Cache Delivery Measured at Upper Sand Creek Aug Station | EM5: Transit Loss on Upper Sand Creek Releases to SPR | EN5: New Cache Delivery Measured at Lower Sand Creek Aug Station | EO5: Transit Loss on Lower Sand Creek Releases to SPR | EP5: ECCV's GIC Delivery Measured at 16th Street Release Structure | EQ5: Transit Loss on 16th Street Releases to SPR | ER5: Net Effect on CLP | ES5: Total GIC Delivery at all Structures | ET5: Total Greeley No. 3 Portion of GIC Delivery | EU5: Total Fossil Creek Portion of GIC Delivery | EV5: OOP Historic RF Obligation to SPR Reach 3 | EW5: GIC RF Obligation above Highland Ditch | EX5: CLP RF Obligation to SPR Reach 3 | EY5: Total RF Obligation | EZ5: Is there a call between Lower Latham and Bijou that is drying up the river (Yes or No) | FA5: Available Bypassed at the Lower Latham | FB5: Requested Bypassed at Lower Latham | FC5: Actual Amount Bypassed at Lower Latham | FD5: Source of Water Bypassed at Lower Latham | FE5: 70 Ranch CU Water in SPR Reach 4 Substituted to Replace RF Obligation to SPR Reach 3 | FF5: 70 Ranch CU Water in SPR Reach 5 Substituted to Replace RF Obligation to SPR Reach 3 | FG5: United Res #3 Release to Replace Remaining RF Obligation to SPR Reach 3 | FH5: Transit Loss on United #3 Release | FI5: ECCV LIRFs to Replace Remaining RF Obligation to SPR Reach 3 | FJ5: Transit Loss on ECCV's Toll Gate Creek LIRFs | FK5: Milliken Res Release to Replace Remaining RF Obligation to SPR Reach 3 | FL5: Transit Loss on Milliken Release | FM5: Other Approved Water used to Replace Obligation in SPR Reach 3 | FN5: Source of Other Approved Water | FO5: CLP Excess CU to SPR Reach 3 | FP5: Is there a live stream for Lone Tree Creek (Yes or No) | FQ5: New Cache Delivery Measured at Lone Tree Creek Aug Station | FR5: Transit Loss on Lone Tree Creek Releases to SPR | FS5: Is there a live stream for Crow Creek (Yes or No) | FT5: New Cache Delivery Measured at Upper Crow Creek Aug Station | FU5: Transit Loss on Upper Crow Creek Releases to SPR | FV5: New Cache Delivery Measured at Lower Crow Creek Aug Station | FW5: Transit Loss on Lower Crow Creek Releases to SPR | FX5: Obligation in SPR Reach 3 | FY5: Surplus CU in SPR Reach 3 Available for Replacement and/or Exchange | FZ5: ECCV's Surplus Consumable Water in SPR Reach 4 | GA5: ECCV's Surplus Consumable Water in SPR Reach 5 | GB5: OOP Barr Share Historic RF Obligation to SPR Reach 2 | GC5: FIDCO RF Obligation to SPR Reach 2 | GD5: Western RF Obligation to Reach 2 | GE5: Total RF Obligation | GF5: FIDCO Lower Aug Station deliveries for replacement of RF obligation | GG5: FIDCO Middle Aug Station deliveries for replacement of RF Obiligation | GH5: FIDCO Upper Aug Station deliveries for replacement of RF Obiligation | GI5: Transit Loss on FIDCO Upper Aug Station Delivery for replacement of RF Obligation | GJ5: Haren Pond Recharge Accretions in SPR Reach 2 | GK5: Haren Pond Recharge Accrtns used to Replace Obligation in SPR Reach 2 | GL5: Haren Recharge Accretions Used to Augment Well Depletions abv Milton | GM5: Is there a call between the Western and Bijou that is drying up the river (Yes or No) | GN5: Is the Western (Jay Thomas) the Calling Right and Drying up the River (Yes or No) | GO5: Is the Union or Godfrey the Calling Right (Yes or No) | GP5: Available Bypassed at Western | GQ5: Requested Bypassed at Western | GR5: Actual Amount Bypassed at Western | GS5: Source of Water Bypassed at Western | GT5: 70 Ranch CU Water in SPR-Reach 4 Substituted to Replace RF Obligation to SPR Reach 2 | GU5: 70 Ranch CU Water in SPR-Reach 5 Substituted to Replace RF Obligation to SPR Reach 2 | GV5: Remaining Historic RF Obligation to SPR Reach 2 | GW5: United Res #3 Release to Replace Remaining RF Obligation to SPR Reach 2 | GX5: Transit Loss on United #3 Release | GY5: ECCV LIRFs to Replace Remaining RF Obligation to SPR Reach 2 | GZ5: Transit Loss on ECCV's Toll Gate Creek LIRFs | HA5: Milliken Res Release to Replace RF Obligations | HB5: Milliken Res Release to Replace RF Obligation to SPR Reach 2 | HC5: Transit Loss on Milliken Release | HD5: Other Approved Water used to Replace Obligation in SPR Reach 2 | HE5: Source of Other Approved Water | HF5: Remaining Historic RF Obligation to SPR Reach 2 | HG5: Western Ditch Delivery Measured at Aug Station | HH5: Western CU Credit | HI5: FIDCO Delivery Measured at Lower Aug Station | HJ5: FIDCO CU Credit from Lower Aug Station | HK5: FIDCO Delivery Measured at Middle Aug Station | HL5: FIDCO CU Credit from Middle Aug Station | HM5: FIDCO CU from Lower Aug Station used to Replace Obligation to Beebe abv Milton | HN5: Western CU used to Replace Obligation to Beebe abv Milton | HO5: FIDCO CU from Lower Aug Station used to Replace Longmont Obligation | HP5: Transit loss from FIDCO Lower Aug Station to Longmont Obligation | HQ5: Western CU used to Replace Longmont Obligation | HR5: Milliken Release used to Replace Longmont Obligation | HS5: Transit Loss on Milliken Release | HT5: Western CU Available for Exchange to Milliken and United | HU5: Western CU Exchanged to Milliken Res | HV5: Western CU Exchanged to United Res | HW5: FIDCO Lower Aug Station CU Available for Exchange to Milliken and United | HX5: FIDCO SPR Reach 2 CU Exchanged to Milliken | HY5: FIDCO SPR Reach 2 CU Exchanged to United Res | HZ5: CU Water from SPR Reach 5 Available for Exchange to Milliken | IA5: CU Water from SPR Reach 5 Exchanged to Milliken Res | IB5: CU Water from SPR Reach 4 Available for Exchange to Milliken | IC5: CU Water from SPR Reach 4 Exchanged to Milliken Res | ID5: FIDCO CU Diverted to Milliken Res | IE5: ECCV Toll Gate Creek LIRFs to Milliken Res | IF5: Transit Loss on ECCV's Toll Gate Creek LIRFs to Milliken Res | IG5: Total ECCV Diversion to Milliken Res of CU Water | IH5: ECCV's Surplus Consumable Water in SPR Reach 2 | II5: ECCV's Surplus Consumable Water in SPR Reach 4 | IJ5: ECCV's Surplus Consumable Water in SPR Reach 5 | IK5: OOP Barr Share Historic RF Obligation to SPR Reach 1 | IL5: FIDCO Delivery Measured at Upper Aug Station | IM5: FIDCO CU Credit from Upper Aug Station | IN5: FIDCO CU Used for Barr RF | IO5: Is there a call between the Farmers Independent and Bijou that is drying up the river (Yes or No) | IP5: CU Water in SPR-Reach 4 Substituted to Replace RF Obligation to SPR Reach 1 | IQ5: CU Water in SPR-Reach 5 Substituted to Replace RF Obligation to SPR Reach 1 | IR5: CU Water in SPR-Reach 2 Substituted to Replace RF Obligation to SPR Reach 1 | IS5: Remaining Historic RF Obligation to SPR Reach 1 | IT5: ECCV United Res #3 Release to Replace RF Obligations | IU5: United Res #3 Release to Replace Remaining RF Obligation to SPR Reach 1 | IV5: Transit Loss on United Res Release | IW5: Milliken Release to Replace Remaining RF Obligation to SPR Reach 1 | IX5: ECCV's 03CW200 Toll Gate LIRFs | IY5: Transit Loss on ECCV's Toll Gate Creek LIRFs from Sand Crk Abv Burlington gage to South Platte River | IZ5: ECCV LIRFs to Replace Remaining RF Obligation to SPR Reach 1 | JA5: Transit Loss on ECCV's Toll Gate Creek LIRFs | JB5: Other Approved Water used to Replace Obligation in SPR Reach 1 | JC5: Source of Other Approved Water | JD5: Remaining Requirement in SPR Reach 1 | JE5: CU Water from SPR Reach 5 Available for Exchange to United Res | JF5: CU Water from SPR Reach 5 Exchanged to United Res | JG5: CU Water from SPR Reach 4 Available for Exchange to United Res | JH5: CU Water from SPR Reach 4 Exchanged to United Res | JI5: Western CU Water from SPR Reach 2 Exchanged to United Res | JJ5: FIDCO CU Water from SPR Reach 2 Exchanged to United Res | JK5: ECCV Toll Gate Creek LIRFs to United Res | JL5: Transit Loss on ECCV's Toll Gate Creek LIRFs to United Res | JM5: Total ECCV Diversion to United Res of CU Water | JN5: ECCV's Surplus Consumable Water in SPR Reach 4 | JO5: ECCV's Surplus Consumable Water in SPR Reach 5 | JP5: OOP ECCV Well Depletion to Beebe abv Milton | JQ5: OOP Historic RF Obligation to Beebe abv Milton | JR5: Total Ditch Loss Obligation for ECCV's Changed Barr Shares | JS5: ECCV Recharge Accretions to Beebe above Milton Lake | JT5: 84CW090 Recharge Accretions to Beebe above Milton Lake | JU5: Lochbuie 84CW090 Accretions used for Replacement to Beebe above Milton Lake | JV5: ECCV's Share Allocation of 84CW090 Accretions | JW5: ECCV Recharge Accretions Used to Augment Well Depletions abv Milton | JX5: ECCV's 84CW090 Accretions Used to Augment Well Depletions abv Milton | JY5: Is there a call on Beebe Draw or SPR between Powell Spillway and Bijou Canal that is drying up the river (Yes or No) | JZ5: Milton Lake Net Loss Based on Mass Balance | KA5: CU Water in SPR-Reach 4 Substituted to Replace RF Obligation abv Milton | KB5: CU Water in SPR-Reach 4 Used to Augment Well Depletions abv Milton | KC5: CU Water in SPR-Reach 5 Substituted to Replace RF Obligation abv Milton | KD5: CU Water in SPR-Reach 5 Used to Augment Well Depletions abv Milton | KE5: CU Water in SPR-Reach 3 Substituted to Replace RF Obligation abv Milton | KF5: CU Water in SPR-Reach 3 Used to Augment Well Depletions abv Milton | KG5: Remaining Well Depletion to Beebe abv Milton | KH5: Remaining Historic RF Obligation to Beebe abv Milton | KI5: Barr Release to Replace Well Depletion to Beebe abv Milton | KJ5: Transit Loss on Barr Release | KK5: Barr Release to Replace RF Obligation to Beebe abv Milton | KL5: Barr Release to Replace Ditch Loss Obligation to Beebe abv Milton | KM5: Milton Bookover to Replace Well Depletion to Beebe abv Milton | KN5: FIDCO CU from Lower Aug Station Substituted to Replace RF Obligation abv Milton | KO5: FIDCO CU from Lower Aug Station Used to Augment Well Depletions abv Milton | KP5: Western CU in SPR-Reach 2 Substituted to Replace RF Obligation abv Milton | KQ5: Western CU in SPR-Reach 2 Used to Augment Well Depletions abv Milton | KR5: Haren Recharge Accretions in SPR- Reach 2 Used to Augment Well Depletions abv Milton | KS5: ECCV's Milliken Release to Replace Remaining Obligation to abv Milton | KT5: Transit Loss on Milliken Res Release | KU5: ECCV's Other Approved Water used to Replace Obligation above Milton | KV5: Source of ECCV's Other Approved Water | KW5: Remaining Obligation to Beebe abv Milton | KX5: ECCV's Surplus Recharge Accretions to Beebe above Milton Lake | KY5: ECCV's Surplus 84CW090 Recharge Accretions to Beebe above Milton Lake | KZ5: ECCV's Surplus Consumable Water in SPR-Reach 4 | LA5: ECCV's Surplus Consumable Water in SPR-Reach 5 | LB5: OOP Historic RF Obligation to Beebe blw Milton | LC5: Is there a call on Beebe Draw blw Milton or SPR btwn Powell Spillway and Bijou Canal drying up the river (Yes or No) | LD5: 70 Ranch CU Water in SPR Reach 4 Substituted to Replace RF Obligation blw Milton | LE5: 70 Ranch CU Water in SPR Reach 5 Substituted to Replace RF Obligation blw Milton | LF5: Remaining Historic RF Obligation to Beebe blw Milton | LG5: Milton Release to meet RF Obligation to Beebe blw Milton | LH5: Transit Loss on Milton Release | LI5: Other Approved Water used to Replace Obligation below Milton | LJ5: Source of Other Approved Water | LK5: ECCV's Surplus Consumable Water in SPR-Reach 4 | LL5: ECCV's Surplus Consumable Water in SPR-Reach 5 | LM5: OOP Historic RF Obligation to Box Elder Creek | LN5: ECCV Recharge Accretions to Box Elder Creek | LO5: ECCV Recharge Accretions Used to Augment Box Elder Creek Obligation | LP5: Milton Release to meet RF Obligation to Box Elder Ck | LQ5: Transit Loss on Milton Release | LR5: Other Approved Water used to Replace Obligation to Box Elder | LS5: Source of Other Approved Water | LT5: Total Out of Priority Replacement Requirement | LU5: Total Replacement to Beebe abv Milton | LV5: Total Replacement to Beebe blw Milton | LW5: Total Replacement to Box Elder Ck | LX5: Total Replacement to SPR-Reach 1 | LY5: Total Replacement to SPR-Reach 2 | LZ5: Total Replacement to SPR-Reach 3 | MA5: Total Replacement to CLP | MB5: Total Replacement to SPR-Reach 4 | MC5: Total Replacement to SPR-Reach 5 | MD5: Total Replacement | ME5: Total Remaining Replacement Requirement | MF5: ECCV's Surplus Recharge Accretions in Beebe abv Milton | MG5: ECCV's Surplus Consumable Water in SPR-Reach 4 | MH5: ECCV's Surplus Consumable Water in SPR-Reach 5 | MJ5: Minimum Flow within Reach 5 | MK5: Minimum Flow within Reach 4 | ML5: Minimum Flow within Reach 3 | MM5: Minimum Flow within Reach 2 | MN5: Minimum Flow within Reach 1 | MO5: Measured flow at Beaver Creek | MP5: Exchange from Beaver Creek to Ft. Morgan Headgate | MQ5: Total Exchanged from Beaver Creek under 12/29/2011 Appropriation Date | MR5: Source of Substitute Supply Used for Exchanges from Beaver Creek | MS5: Measured flow at all Ft. Morgan Canal Aug Stations | MT5: Exchange from all Ft. Morgan Canal Aug Stations to Ft Morgan Canal Headgate | MU5: Exchange from all Ft. Morgan Canal Aug Stations to United Div Facility No. 1 | MV5: Total exchange from all Ft. Morgan Canal Aug Stations to either Milliken Res Diversion | MW5: Exchange from all Ft. Morgan Canal Aug Stations to St Vrain Pipeline | MX5: Exchange from all Ft. Morgan Canal Aug Stations to Jay Thomas Ditch | MY5: Exchange from all Ft. Morgan Canal Aug Stations to Platte Valley Canal | MZ5: Exchange from all Ft. Morgan Canal Aug Stations to United Div Facility No. 3 | NA5: Exchange from all Ft. Morgan Canal Aug Stations to Burlington Canal | NB5: Total Exchanged from all Ft. Morgan Canal Aug Stations under 12/31/2003 Appropriation Date | NC5: Total Exchanged from all Ft. Morgan Canal Aug Stations under 5/31/2007 Appropriation Date | ND5: Total Exchanged from all Ft. Morgan Canal Aug Stations under 12/29/2011 Appropriation Date | NE5: Source of Substitute Supply Used for Exchanges from all Ft. Morgan Canal Aug Stations | NF5: Measured flow at all Weldon Valley Canal Aug Stations | NG5: Exchange from all Weldon Valley Canal Aug Stations to United Div Facility No. 1 | NH5: Exchange from all Weldon Valley Canal Aug Stations to either Milliken Res Diversion | NI5: Exchange from all Weldon Valley Canal Aug Stations to St Vrain Pipeline | NJ5: Exchange from all Weldon Valley Canal Aug Stations to Jay Thomas Ditch | NK5: Exchange from all Weldon Valley Canal Aug Stations to Platte Valley Canal | NL5: Exchange from all Weldon Valley Canal Aug Stations to United Div Facility No. 3 | NM5: Exchange from all Weldon Valley Canal Aug Stations to Burlington Canal | NN5: Total Exchanged from all Weldon Valley Aug Stations under 12/31/2003 Appropriation Date | NO5: Total Exchanged from all Weldon Valley Aug Stations under 5/31/2007 Appropriation Date | NP5: Total Exchanged from all Weldon Valley Aug Stations under 12/29/2011 Appropriation Date | NQ5: Source of Substitute Supply Used for Exchanges from Weldon Valley Canal | NR5: ECCV's Surplus Consumable Water in SPR-Reaches 4 and 5 Available for Exchanges from 70 Ranch | NS5: Exchange from 70 Ranch Exchange Quantification Point to United Div Facility No. 1 | NT5: Exchange from 70 Ranch Exchange Quantification Point to either Milliken Res Diversion | NU5: Exchange from 70 Ranch Exchange Quantification Point to St Vrain Pipeline | NV5: Exchange from 70 Ranch Exchange Quantification Point to Jay Thomas Ditch | NW5: Exchange from 70 Ranch Exchange Quantification Point to Platte Valley Canal | NX5: Exchange from 70 Ranch Exchange Quantification Point to United Div Facility No. 3 | NY5: Exchange from 70 Ranch Exchange Quantification Point to Burlington Canal | NZ5: Total Exchanged from 70 Ranch under 12/31/2003 Appropriation Date | OA5: Total Exchanged from 70 Ranch under 5/31/2007 Appropriation Date | OB5: Total Exchanged from 70 Ranch under 12/29/2011 Appropriation Date | OC5: Source of Substitute Supply Used for Exchanges from 70 Ranch | OD5: Amount Available at South Platte and Cache la Poudre Confluence for Exchange | OE5: Amount Available at Sand Creek Aug Station for Exchange | OF5: Amount Available at Lone Tree Creek Aug Station for Exchange | OG5: Amount Available at Crow Creek Aug Station for Exchange | OH5: Total exchange from all Cache la Poudre Rights on the South Platte to either Milliken Res Diversion | OI5: Exchange from all Cache la Poudre Rights on the South Platte to St Vrain Pipeline | OJ5: Exchange from all Cache la Poudre Rights on the South Platte to Jay Thomas Ditch | OK5: Exchange from all Cache la Poudre Rights on the South Platte to Platte Valley Canal | OL5: Exchange from all Cache la Poudre Rights on the South Platte to United Div Facility No. 3 | OM5: Exchange from all Cache la Poudre Rights on the South Platte to Burlington Canal | ON5: Total Exchanged from all Cache la Poudre Rights on the South Platte under 12/31/2003 Appropriation Date | OO5: Total Exchanged from all Cache la Poudre Rights on the South Platte under 5/31/2007 Appropriation Date | OP5: Total Exchanged from all Cache la Poudre Rights on the South Platte under 12/29/2011 Appropriation Date | OQ5: Source of Substitute Supply Used for Exchanges from all Cache la Poudre Rights on the South Platte | OR5: Measured flow at Western Mutual Ditch Aug Station | OS5: Total exchange from downstream and mid Western Mutual Ditch Aug Station to either Milliken Res Diversion | OT5: Exchange from downstream and mid Western Mutual Ditch Aug Station to St Vrain Pipeline (United Div Facility No. 5) | OU5: Exchange from all Western Mutual Ditch Aug Station to Platte Valley Canal | OV5: Exchange from all Western Mutual Ditch Aug Station to United Div Facility No. 3 | OW5: Exchange from all Western Mutual Ditch Aug Station to Burlington Canal | OX5: Total Exchanged from Western Mutual under 12/31/2003 Appropriation Date | OY5: Total Exchanged from Western Mutual under 5/31/2007 Appropriation Date | OZ5: Total Exchanged from Western Mutual under 12/29/2011 Appropriation Date | PA5: Source of Substitute Supply Used for Exchanges from Western Mutual Ditch Aug Station | PB5: Total Measured flow at all Milliken Res Outlet Structures | PC5: Exchange from all Milliken Res Outlet Structures to St Vrain Pipeline | PD5: Exchange from all Milliken Res Outlet Structures to Platte Valley Canal | PE5: Exchange from all Milliken Res Outlet Structures to United Div Facility No. 3 | PF5: Exchange from all Milliken Res Outlet Structures to Burlington Canal | PG5: Total Exchanged from Milliken Res Outlets under 12/31/2003 Appropriation Date | PH5: Total Exchanged from Milliken Res Outlets under 5/31/2007 Appropriation Date | PI5: Total Exchanged from Milliken Res Outlets under 12/29/2011 Appropriation Date | PJ5: Source of Substitute Supply Used for Exchanges from all Milliken Res Outlet Structures | PK5: Amount Available at South Platte and St Vrain Confluence for Exchange | PL5: Exchange from Confluence of South Platte and St Vrain Rivers to St Vrain Pipeline | PM5: Total Exchanged from Confluence of South Platte and St Vrain Rivers to St Vrain Pipeline under 12/29/2011 Appropriation Date | PN5: Source of Substitute Supply Used for Exchanges from South Platte and St Vrain Confluence | PO5: Measured flow at St. Vrain Pipeline Outlet | PP5: Exchange from St. Vrain Pipeline to United Div Facility No. 3 | PQ5: Exchange from St. Vrain Pipeline to Burlington Canal | PR5: Total Exchanged from the St Vrain Pipeline under 12/29/2011 Appropriation Date | PS5: Source of Substitute Supply Used for Exchanges from St. Vrain Pipeline | PT5: Measured flow at Farmers Independent Ditch Lower Aug Station | PU5: Exchange from Farmers Independent Lower Aug Station to St Vrain Pipeline | PV5: Exchange from Farmers Independent Ditch Lower Aug Station to Platte Valley Canal | PW5: Exchange from Farmers Independent Ditch Lower Aug Station to United Div Facility No. 3 | PX5: Exchange from Farmers Independent Ditch Lower Aug Station to Burlington Canal | PY5: Total Exchanged from Farmers Independent Lower Aug Station under 12/31/2003 Appropriation Date | PZ5: Total Exchanged from Farmers Independent Lower Aug Station under 5/31/2007 Appropriation Date | QA5: Total Exchanged from Farmers Independent Lower Aug Station under 12/29/2011 Appropriation Date | QB5: Source of Substitute Supply Used for Exchanges from Farmers Independent Ditch Lower Aug Station | QC5: Total Exchanged under 12/31/2003 Appropriation Date, Decree 02CW404 | QD5: Total Exchanged under 5/31/2007 Appropriation Date, Decree 11CW285 | QE5: Total Exchanged under 12/29/2011 Appropriation Date, Decree 11CW285 | QF5: Total Aggregate Rate of Exchange | QG5: Cumulative Total | QH5: Maximum Allowable Total Aggregate Rate of Exchange | QJ5: Surplus ECCV Beebe Recharge Accretions abv Milton | QK5: Surplus Recharge Accretions Delivered to Milton Lake | QL5: Surplus ECCV Beebe Recharge Accretions Diverted to Bowles Seep | QM5: Surplus ECCV Beebe Recharge Accretions Diverted to East Neres | QN5: Surplus ECCV Beebe Recharge Accretions Diverted to Speer | QO5: Surplus ECCV Beebe Recharge Accretions Diverted to West Burl. | QP5: Surplus ECCV Beebe Recharge Accretions Diverted to East Burl. | QQ5: Surplus ECCV Beebe Recharge Accretions Diverted to Neres | QR5: Surplus ECCV Recharge Accretions Diverted to the Tu Site | QS5: Surplus ECCV Recharge Accretions Diverted to the Mile High Lakes Site | QT5: Surplus ECCV Recharge Accretions Diverted to the Bromley Site | QU5: Surplus ECCV Recharge Accretions Diverted to the Schupman Site | QV5: Surplus ECCV Recharge Accretions Diverted to the Moser Site | QW5: Surplus ECCV Recharge Accretions Diverted to the Pettinger East Site | QX5: Surplus ECCV Recharge Accretions Diverted to the Pettinger West Site | QY5: Surplus ECCV Recharge Accretions Diverted to the Artese Site | QZ5: Surplus ECCV Recharge Accretions Diverted to the Dechant Site | RA5: Surplus ECCV Recharge Accretions Diverted to Carlin Site | RB5: Surplus ECCV Recharge Accretions Diverted to the Klug Site | RC5: Surplus ECCV Recharge Accretions Diverted to the Sater Site | RD5: Check on Diversion of Surplus Recharge Accretions (must be >=0) | RF5: Release from Barr Lake for Replacement | RG5: Release from Milton Lake for Replacement | RI5: Days in the Month
S6: WDID # 0100587 | T6: WDID # 0100587 | U6: WDID # 0100587 | V6: WDID # 0100587 | X6: WDID # 0100587 | Y6: WDID # 0109961, 0109962, 0109963, 0109964 | Z6: WDID # 0107968, 0107969, 0107656, 0107657, 0107520, 0109719 | AA6: WDID # 0110707, 0110708, 0110709 | AB6: WDID # 0110707, 0110708, 0110709 | AC6: WDID # 0110707, 0110708, 0110709 | AD6: WDID # 0110707, 0110708, 0110709 | AV6: WDID # 0102909 | AW6: WDID # 0102900 | BD6: WDID # 0201511 | BF6: WDID # 0203388 | BL6: WDID # 0100507, 0100503, 0100514 | BM6: WDID # 0100507, 0100503, 0100514 | BN6: WDID # 0100507, 0100503, 0100514 | BO6: WDID # 0100507, 0100503, 0100514 | CH6: WDID # 0102917 | CK6: WDID # 0102907 | DB6: WDID # 0201511 | DF6: WDID # 0203388 | DJ6: WDID # 0300771 | DW6: WDID # 0302320 | DY6: WDID # 0302318 | EL6: WDID # | EN6: WDID # 0302902 | EP6: WDID # 0302319 | FA6: WDID # 0102917 | FB6: WDID # 0102917 | FC6: WDID # 0102917 | FG6: WDID # 0201511 | FK6: WDID # 0203388 | FQ6: WDID # 0102932 | FT6: WDID # | FV6: WDID # 0102911 | GF6: WDID # 0202909 | GG6: WDID # | GH6: WDID # 0202908 | GP6: WDID # 0200825 | GQ6: WDID # 0200825 | GR6: WDID # 0200825 | GW6: WDID # 0201511 | HA6: WDID # 0203388 | HB6: WDID # 0203388 | HG6: WDID # 0201023 | HI6: WDID # 0202909 | HK6: WDID # | IL6: WDID # 0202908 | IT6: WDID # 0201511 | IU6: WDID # 0201511
S7: cfs | T7: cfs | U7: cfs | V7: cfs | W7: cfs | X7: cfs | Y7: cfs | Z7: cfs | AA7: cfs | AB7: cfs | AC7: cfs | AD7: cfs | AE7: cfs | AF7: cfs | AG7: cfs | AH7: cfs | AI7: cfs | AJ7: cfs | AK7: cfs | AL7: cfs | AM7: cfs | AN7: cfs | AO7: cfs | AP7: cfs | AQ7: cfs | AR7: cfs | AS7: cfs | AT7: cfs | AU7: cfs | AV7: cfs | AW7: cfs | AX7: cfs | AY7: cfs | AZ7: cfs | BA7: cfs | BB7: cfs | BC7: cfs | BD7: cfs | BE7: cfs | BF7: cfs | BG7: cfs | BH7: cfs | BJ7: cfs | BK7: cfs | BL7: cfs | BM7: cfs | BN7: cfs | BO7: cfs | BP7: cfs | BQ7: cfs | BR7: cfs | BS7: cfs | BT7: cfs | BU7: cfs | BV7: cfs | BW7: cfs | BX7: cfs | BY7: cfs | BZ7: cfs | CA7: cfs | CB7: cfs | CC7: cfs | CD7: cfs | CE7: cfs | CF7: cfs | CG7: cfs | CH7: cfs | CI7: cfs | CJ7: cfs | CK7: cfs | CL7: cfs | CM7: cfs | CN7: cfs | CO7: cfs | CP7: cfs | CQ7: cfs | CR7: cfs | CS7: cfs | CT7: cfs | CU7: cfs | CV7: cfs | CW7: cfs | CX7: cfs | CY7: cfs | CZ7: cfs | DA7: cfs | DB7: cfs | DC7: cfs | DD7: cfs | DE7: cfs | DF7: cfs | DG7: cfs | DH7: cfs | DI7: cfs | DJ7: cfs | DK7: cfs | DL7: cfs | DP7: cfs | DQ7: cfs | DR7: cfs | DS7: cfs | DT7: cfs | DU7: cfs | DV7: cfs | DW7: cfs | DX7: cfs | DY7: cfs | DZ7: cfs | EA7: cfs | EB7: cfs | EC7: cfs | EF7: cfs | EG7: cfs | EH7: cfs | EI7: cfs | EJ7: cfs | EL7: cfs | EM7: cfs | EN7: cfs | EO7: cfs | EP7: cfs | EQ7: cfs | ER7: cfs | ES7: cfs | ET7: cfs | EU7: cfs | EV7: cfs | EW7: cfs | EX7: cfs | EY7: cfs | FA7: cfs | FB7: cfs | FC7: cfs | FE7: cfs | FF7: cfs | FG7: cfs | FH7: cfs | FI7: cfs | FJ7: cfs | FK7: cfs | FL7: cfs | FM7: cfs | FO7: cfs | FQ7: cfs | FR7: cfs | FT7: cfs | FU7: cfs | FV7: cfs | FW7: cfs | FX7: cfs | FY7: cfs | FZ7: cfs | GA7: cfs | GB7: cfs | GC7: cfs | GD7: cfs | GE7: cfs | GF7: cfs | GG7: cfs | GH7: cfs | GI7: cfs | GJ7: cfs | GK7: cfs | GL7: cfs | GP7: cfs | GQ7: cfs | GR7: cfs | GT7: cfs | GU7: cfs | GV7: cfs | GW7: cfs | GX7: cfs | GY7: cfs | GZ7: cfs | HA7: cfs | HB7: cfs | HC7: cfs | HD7: cfs | HF7: cfs | HG7: cfs | HH7: cfs | HI7: cfs | HJ7: cfs | HK7: cfs | HL7: cfs | HM7: cfs | HN7: cfs | HO7: cfs | HP7: cfs | HQ7: cfs | HR7: cfs | HS7: cfs | HT7: cfs | HU7: cfs | HV7: cfs | HW7: cfs | HX7: cfs | HY7: cfs | HZ7: cfs | IA7: cfs | IB7: cfs | IC7: cfs | ID7: cfs | IE7: cfs | IF7: cfs | IG7: cfs | IH7: cfs | II7: cfs | IJ7: cfs | IK7: cfs | IL7: cfs | IM7: cfs | IN7: cfs | IP7: cfs | IQ7: cfs | IR7: cfs | IS7: cfs | IT7: cfs | IU7: cfs | IV7: cfs | IW7: cfs | IX7: cfs | IY7: cfs | IZ7: cfs | JA7: cfs | JB7: cfs | JC7: cfs | JD7: cfs | JE7: cfs | JF7: cfs | JG7: cfs | JH7: cfs | JI7: cfs | JJ7: cfs | JK7: cfs | JL7: cfs | JM7: cfs | JN7: cfs | JO7: cfs | JP7: cfs | JQ7: cfs | JR7: cfs | JS7: cfs | JT7: cfs | JU7: cfs | JV7: cfs | JW7: cfs | JX7: cfs | JZ7: cfs | KA7: cfs | KB7: cfs | KC7: cfs | KD7: cfs | KE7: cfs | KF7: cfs | KG7: cfs | KH7: cfs | KI7: cfs | KJ7: cfs | KK7: cfs | KL7: cfs | KM7: cfs | KN7: cfs | KO7: cfs | KP7: cfs | KQ7: cfs | KR7: cfs | KS7: cfs | KT7: cfs | KU7: cfs | KV7: cfs | KW7: cfs | KX7: cfs | KY7: cfs | KZ7: cfs | LA7: cfs | LB7: cfs | LD7: cfs | LE7: cfs | LF7: cfs | LG7: cfs | LH7: cfs | LI7: cfs | LJ7: cfs | LK7: cfs | LL7: cfs | LM7: cfs | LN7: cfs | LO7: cfs | LP7: cfs | LQ7: cfs | LR7: cfs | LT7: cfs | LU7: cfs | LV7: cfs | LW7: cfs | LX7: cfs | LY7: cfs | LZ7: cfs | MA7: cfs | MB7: cfs | MC7: cfs | MD7: cfs | ME7: cfs | MF7: cfs | MG7: cfs | MH7: cfs | MO7: cfs | MP7: cfs | MQ7: cfs | MS7: cfs | MT7: cfs | MU7: cfs | MV7: cfs | MW7: cfs | MX7: cfs | MY7: cfs | MZ7: cfs | NA7: cfs | NB7: cfs | NC7: cfs | ND7: cfs | NG7: cfs | NH7: cfs | NI7: cfs | NJ7: cfs | NK7: cfs | NL7: cfs | NM7: cfs | NN7: cfs | NO7: cfs | NP7: cfs | NR7: cfs | NS7: cfs | NT7: cfs | NU7: cfs | NV7: cfs | NW7: cfs | NX7: cfs | NY7: cfs | NZ7: cfs | OA7: cfs | OB7: cfs | OH7: cfs | OI7: cfs | OJ7: cfs | OK7: cfs | OL7: cfs | OM7: cfs | ON7: cfs | OO7: cfs | OP7: cfs | OS7: cfs | OT7: cfs | OU7: cfs | OV7: cfs | OW7: cfs | OX7: cfs | OY7: cfs | OZ7: cfs | PC7: cfs | PD7: cfs | PE7: cfs | PF7: cfs | PG7: cfs | PH7: cfs | PI7: cfs | PL7: cfs | PM7: cfs | PO7: cfs | PP7: cfs | PQ7: cfs | PU7: cfs | PV7: cfs | PW7: cfs | PX7: cfs | PY7: cfs | PZ7: cfs | QA7: cfs | QC7: cfs | QD7: cfs | QE7: cfs | QF7: cfs | QH7: cfs | QJ7: cfs | QK7: cfs | QL7: cfs | QM7: cfs | QN7: cfs | QO7: cfs | QP7: cfs | QQ7: cfs | QR7: cfs | QS7: cfs | QT7: cfs | QU7: cfs | QV7: cfs | QW7: cfs | QX7: cfs | QY7: cfs | QZ7: cfs | RA7: cfs | RB7: cfs | RC7: cfs | RD7: cfs | RF7: cfs | RG7: cfs
C8: 1 | D8: =C8+1 -> 2 | E8: 3 | F8: 4 | G8: 5 | H8: 6 | I8: 7 | J8: 8 | K8: 9 | L8: 10 | M8: 11 | N8: 12 | O8: 13 | P8: 14 | Q8: 15 | R8: 16 | S8: 17 | T8: 18 | U8: 19 | V8: 20 | W8: 21 | X8: 22 | Y8: =X8+1 -> 23 | Z8: 24 | AA8: 25 | AB8: 26 | AC8: 27 | AD8: 28 | AE8: 29 | AF8: 30 | AG8: 31 | AH8: 32 | AI8: 33 | AJ8: =AI8+1 -> 34 | AK8: 35 | AL8: 36 | AM8: 37 | AN8: 38 | AO8: =AN8+1 -> 39 | AP8: =AO8+1 -> 40 | AQ8: 41 | AR8: 42 | AS8: 43 | AT8: 44 | AU8: 45 | AV8: 46 | AW8: =AV8+1 -> 47 | AX8: =AW8+1 -> 48 | AY8: =AX8+1 -> 49 | AZ8: =AY8+1 -> 50 | BA8: 51 | BB8: 52 | BC8: 53 | BD8: 54 | BE8: 55 | BF8: 56 | BG8: 57 | BH8: 58 | BI8: 59 | BJ8: =BI8+1 -> 60 | BK8: =BJ8+1 -> 61 | BL8: 62 | BM8: 63 | BN8: 64 | BO8: 65 | BP8: 66 | BQ8: 67 | BR8: 68 | BS8: 69 | BT8: 70 | BU8: 71 | BV8: =BU8+1 -> 72 | BW8: 73 | BX8: 74 | BY8: 75 | BZ8: 76 | CA8: 77 | CB8: 78 | CC8: 79 | CD8: 80 | CE8: 81 | CF8: 82 | CG8: =CF8+1 -> 83 | CH8: 84 | CI8: 85 | CJ8: =CI8+1 -> 86 | CK8: =CJ8+1 -> 87 | CL8: 88 | CM8: 89 | CN8: 90 | CO8: 91 | CP8: 92 | CQ8: 93 | CR8: =CQ8+1 -> 94 | CS8: =CR8+1 -> 95 | CT8: =CS8+1 -> 96 | CU8: 97 | CV8: 98 | CW8: 99 | CX8: 100 | CY8: 101 | CZ8: 102 | DA8: 103 | DB8: 104 | DC8: 105 | DD8: =DC8+1 -> 106 | DE8: =DD8+1 -> 107 | DF8: =DE8+1 -> 108 | DG8: 109 | DH8: 110 | DI8: =DH8+1 -> 111 | DJ8: =DI8+1 -> 112 | DK8: =DJ8+1 -> 113 | DL8: 114 | DM8: 115 | DN8: 116 | DO8: 117 | DP8: 118 | DQ8: 119 | DR8: =DQ8+1 -> 120 | DS8: 121 | DT8: 122 | DU8: 123 | DV8: 124 | DW8: 125 | DX8: 126 | DY8: 127 | DZ8: 128 | EA8: =DZ8+1 -> 129 | EB8: =EA8+1 -> 130 | EC8: =EB8+1 -> 131 | ED8: 132 | EE8: 133 | EF8: =EE8+1 -> 134 | EG8: =EF8+1 -> 135 | EH8: 136 | EI8: =EH8+1 -> 137 | EJ8: =EI8+1 -> 138 | EK8: =EJ8+1 -> 139 | EL8: =EK8+1 -> 140 | EM8: 141 | EN8: 142 | EO8: 143 | EP8: 144 | EQ8: 145 | ER8: =EQ8+1 -> 146 | ES8: =ER8+1 -> 147 | ET8: =ES8+1 -> 148 | EU8: =ET8+1 -> 149 | EV8: =EU8+1 -> 150 | EW8: =EV8+1 -> 151 | EX8: 152 | EY8: =EX8+1 -> 153 | EZ8: 154 | FA8: 155 | FB8: 156 | FC8: 157 | FD8: 158 | FE8: 159 | FF8: 160 | FG8: 161 | FH8: 162 | FI8: =FH8+1 -> 163 | FJ8: =FI8+1 -> 164 | FK8: =FJ8+1 -> 165 | FL8: 166 | FM8: 167 | FN8: 168 | FO8: 169 | FP8: 170 | FQ8: =FP8+1 -> 171 | FR8: 172 | FS8: 173 | FT8: 174 | FU8: 175 | FV8: 176 | FW8: 177 | FX8: 178 | FY8: =FX8+1 -> 179 | FZ8: 180 | GA8: 181 | GB8: 182 | GC8: 183 | GD8: 184 | GE8: 185 | GF8: =GE8+1 -> 186 | GG8: =GF8+1 -> 187 | GH8: =GG8+1 -> 188 | GI8: =GH8+1 -> 189 | GJ8: =GI8+1 -> 190 | GK8: =GJ8+1 -> 191 | GL8: =GK8+1 -> 192 | GM8: =GL8+1 -> 193 | GN8: 194 | GO8: =GN8+1 -> 195 | GP8: =GO8+1 -> 196 | GQ8: 197 | GR8: 198 | GS8: 199 | GT8: 200 | GU8: 201 | GV8: 202 | GW8: 203 | GX8: 204 | GY8: =GX8+1 -> 205 | GZ8: =GY8+1 -> 206 | HA8: =GZ8+1 -> 207 | HB8: 208 | HC8: =HB8+1 -> 209 | HD8: 210 | HE8: 211 | HF8: 212 | HG8: 213 | HH8: 214 | HI8: 215 | HJ8: 216 | HK8: =HJ8+1 -> 217 | HL8: =HK8+1 -> 218 | HM8: =HL8+1 -> 219 | HN8: 220 | HO8: 221 | HP8: 222 | HQ8: =HP8+1 -> 223 | HR8: =HQ8+1 -> 224 | HS8: =HR8+1 -> 225 | HT8: =HS8+1 -> 226 | HU8: 227 | HV8: 228 | HW8: 229 | HX8: =HW8+1 -> 230 | HY8: 231 | HZ8: 232 | IA8: 233 | IB8: 234 | IC8: 235 | ID8: 236 | IE8: =ID8+1 -> 237 | IF8: =IE8+1 -> 238 | IG8: =IF8+1 -> 239 | IH8: 240 | II8: 241 | IJ8: 242 | IK8: 243 | IL8: =IK8+1 -> 244 | IM8: =IL8+1 -> 245 | IN8: =IM8+1 -> 246 | IO8: =IN8+1 -> 247 | IP8: 248 | IQ8: 249 | IR8: 250 | IS8: =IR8+1 -> 251 | IT8: =IS8+1 -> 252 | IU8: 253 | IV8: =IU8+1 -> 254 | IW8: 255 | IX8: =IW8+1 -> 256 | IY8: =IX8+1 -> 257 | IZ8: 258 | JA8: =IZ8+1 -> 259 | JB8: 260 | JC8: 261 | JD8: 262 | JE8: 263 | JF8: =JE8+1 -> 264 | JG8: 265 | JH8: 266 | JI8: 267 | JJ8: 268 | JK8: =JJ8+1 -> 269 | JL8: =JK8+1 -> 270 | JM8: =JL8+1 -> 271 | JN8: 272 | JO8: 273 | JP8: 274 | JQ8: 275 | JR8: 276 | JS8: 277 | JT8: 278 | JU8: 279 | JV8: 280 | JW8: 281 | JX8: 282 | JY8: 283 | JZ8: 284 | KA8: 285 | KB8: 286 | KC8: 287 | KD8: 288 | KE8: =KD8+1 -> 289 | KF8: =KE8+1 -> 290 | KG8: =KF8+1 -> 291 | KH8: =KG8+1 -> 292 | KI8: 293 | KJ8: 294 | KK8: =KJ8+1 -> 295 | KL8: =KK8+1 -> 296 | KM8: =KL8+1 -> 297 | KN8: =KM8+1 -> 298 | KO8: 299 | KP8: 300 | KQ8: 301 | KR8: =KQ8+1 -> 302 | KS8: 303 | KT8: 304 | KU8: 305 | KV8: 306 | KW8: 307 | KX8: 308 | KY8: 309 | KZ8: 310 | LA8: 311 | LB8: 312 | LC8: 313 | LD8: 314 | LE8: 315 | LF8: 316 | LG8: 317 | LH8: 318 | LI8: 319 | LJ8: 320 | LK8: 321 | LL8: 322 | LM8: 323 | LN8: =LM8+1 -> 324 | LO8: 325 | LP8: 326 | LQ8: 327 | LR8: 328 | LS8: 329 | LT8: 330 | LU8: 331 | LV8: 332 | LW8: 333 | LX8: 334 | LY8: 335 | LZ8: 336 | MA8: 337 | MB8: 338 | MC8: 339 | MD8: 340 | ME8: 341 | MF8: 342 | MG8: 343 | MH8: 344 | MJ8: =MH8+1 -> 345 | MK8: =MJ8+1 -> 346 | ML8: 347 | MM8: 348 | MN8: 349 | MO8: 350 | MP8: 351 | MQ8: 352 | MR8: 353 | MS8: =MR8+1 -> 354 | MT8: 355 | MU8: 356 | MV8: 357 | MW8: 358 | MX8: 359 | MY8: 360 | MZ8: 361 | NA8: 362 | NB8: 363 | NC8: 364 | ND8: 365 | NE8: 366 | NF8: 367 | NG8: 368 | NH8: 369 | NI8: 370 | NJ8: 371 | NK8: 372 | NL8: 373 | NM8: 374 | NN8: 375 | NO8: 376 | NP8: 377 | NQ8: 378 | NR8: 379 | NS8: =NR8+1 -> 380 | NT8: 381 | NU8: 382 | NV8: =NU8+1 -> 383 | NW8: 384 | NX8: 385 | NY8: 386 | NZ8: 387 | OA8: 388 | OB8: 389 | OC8: =OB8+1 -> 390 | OD8: =OC8+1 -> 391 | OE8: =OD8+1 -> 392 | OF8: 393 | OG8: 394 | OH8: 395 | OI8: 396 | OJ8: 397 | OK8: 398 | OL8: 399 | OM8: 400 | ON8: 401 | OO8: =ON8+1 -> 402 | OP8: 403 | OQ8: =OP8+1 -> 404 | OR8: 405 | OS8: 406 | OT8: 407 | OU8: 408 | OV8: 409 | OW8: 410 | OX8: 411 | OY8: 412 | OZ8: 413 | PA8: =OZ8+1 -> 414 | PB8: 415 | PC8: 416 | PD8: 417 | PE8: 418 | PF8: 419 | PG8: 420 | PH8: 421 | PI8: 422 | PJ8: =PI8+1 -> 423 | PK8: =PJ8+1 -> 424 | PL8: =PK8+1 -> 425 | PM8: 426 | PN8: =PM8+1 -> 427 | PO8: 428 | PP8: 429 | PQ8: 430 | PR8: 431 | PS8: =PR8+1 -> 432 | PT8: 433 | PU8: 434 | PV8: 435 | PW8: 436 | PX8: 437 | PY8: 438 | PZ8: 439 | QA8: 440 | QB8: =QA8+1 -> 441 | QC8: 442 | QD8: 443 | QE8: 444 | QF8: 445 | QG8: 446 | QH8: 447 | QJ8: =QH8+1 -> 448 | QK8: =QJ8+1 -> 449 | QL8: 450 | QM8: 451 | QN8: 452 | QO8: 453 | QP8: 454 | QQ8: 455 | QR8: 456 | QS8: 457 | QT8: 458 | QU8: 459 | QV8: 460 | QW8: 461 | QX8: 462 | QY8: 463 | QZ8: 464 | RA8: 465 | RB8: 466 | RC8: 467 | RD8: 468 | RF8: =RD8+1 -> 469 | RG8: =RF8+1 -> 470
A9: Apr | B9: =DATE($B$2,4,1) -> 2016-04-01 | C9: Free River | F9: 99999.99999 | K9: Free River | N9: 99999.99999 | S9: =NR9 -> 1.517494523 | T9: 0 | U9: =X9-T9-V9 -> 0 | V9: 0 | X9: 0 | Y9: =('NFC Well Pumping'!$L7+'NFC Well Pumping'!$L44+'NFC Well Pumping'!$L80)/1.9835 -> 0 | Z9: ='88CW264(B) Pumping'!$E7/1.9835+'88CW264(B) Pumping'!$E43/1.9835+'88CW264(B) Pumping'!E83/1.9835+'88CW264(B) Pumping'!E119/1.9835+'88CW264(B) Pumping'!E159/1.9835+'88CW264(B) Pumping'!E195/1.9835 -> 0.01157311677 | AA9: =$MG9+$MH9 -> 1.517494523 | AB9: =('United No. 2 Well Pumping'!G8+'United No. 2 Well Pumping'!G44+'United No. 2 Well Pumping'!G80)/1.9835 -> 0 | AC9: =('United No. 2 Well Pumping'!F8+'United No. 2 Well Pumping'!F44+'United No. 2 Well Pumping'!F80)/1.9835 -> 0 | AD9: 0 | AF9: =Y9+Z9+AB9+AC9+AD9 -> 0.01157311677 | AG9: =U9+AC9+'United Res'!AA171+'United Res'!AQ171+'Milliken Res'!I159 -> 0 | AH9: 100 | AI9: =-(IF($N9=99999.99999,0,VLOOKUP($B9,'NFC Well Dplns-URF'!B$7:$AB$306,27))/$RI9/1.9835) -> 0 | AJ9: 0 | AL9: =(VLOOKUP($B9,'ECCV 70R Pond Acrtns'!$B$7:$AI$1206,34)+VLOOKUP($B9,'2003 70R Pond Acrtns'!$B$7:$AI$1206,34)+VLOOKUP($B9,'ECCV 70R Canal Acrtns'!$B$7:$AI$1206,27)+VLOOKUP($B9,'2003 70R Canal Acrtns'!$B$7:$AI$1206,27))/$RI9/1.9835 -> 0 | AM9: =IF(AL9<(-AI9)-AJ9,AI9+AJ9+AL9,0) -> 0 | AN9: =-(IF($N9=99999.99999,0,VLOOKUP($B9,'NFC Well Dplns-SDF'!$B$7:$Z$306,25)+VLOOKUP($B9,'NFC Well Dplns-URF'!B$7:$AB$306,20))/$RI9/1.9835) -> 0 | AO9: =IF(AN9<0,2.073/$RI9/1.9835,0) -> 0 | AP9: 0 | AR9: =IF(N9<99999.99999,-((AV9+AW9)*'Weldon Credit'!$Z$38+(INDEX('Weldon Credit'!$V$75:$AH$102,MATCH($B$2,'Weldon Credit'!$V$75:$V$102,0),MATCH(A9,'Weldon Credit'!$V$75:$AH$75,0))/RI9)/1.9835),0) -> 0 | AS9: =0.4*(INDEX('Riverside Pond Accrtns'!$B$6:$M$36,MATCH($B$2,'Riverside Pond Accrtns'!$A$6:$A$36,0),MATCH('ECCV Daily Replacement Summary'!A9,'Riverside Pond Accrtns'!$B$5:$M$5,0))/RI9)/1.9835 -> 1.238887488 | AT9: =(44/640)*(INDEX('Weldon Valley Accrtns (02CW377)'!$B$6:$M$30,MATCH($B$2,'Weldon Valley Accrtns (02CW377)'!$A$6:$A$30,0),MATCH(A9,'Weldon Valley Accrtns (02CW377)'!$B$5:$M$5,0))/RI9)/1.9835 -> 0.2508459373 | AU9: =(VLOOKUP($B9,'ECCV 70R Pond Acrtns'!$B$7:$AI$1206,25)+VLOOKUP($B9,'ECCV 70R Canal Acrtns'!$B$7:$AI$1206,20)+VLOOKUP($B9,'2003 70R Pond Acrtns'!$B$7:$AI$1206,25)+VLOOKUP($B9,'2003 70R Canal Acrtns'!$B$7:$AI$1206,20))/$RI9/1.9835 -> 0 | AV9: ='Joint Aug Station Deliveries'!G9 -> 0 | AW9: ='Joint Aug Station Deliveries'!J9 -> 0 | AX9: =IF(AV9+AW9>0,AV9+AW9-AY9,0) -> 0 | AY9: =MIN(-AR9,AV9+AW9) -> 0 | AZ9: =MIN(-($AR9+AY9)/(1-0.5/100*'Distances for Transit Losses'!$C$71),AS9-AS9*0.5/100*'Distances for Transit Losses'!$C$71) -> 0 | BA9: =MAX(0,MIN(-($AR9+AY9+AZ9),AT9)) -> 0 | BB9: =MAX(0,MIN(-($AR9+AY9+AZ9+BA9),AU9-AU9*0.5/100*'Distances for Transit Losses'!$C$71)) -> 0 | BC9: =-((AZ9+BB9)*(0.5/100*'Distances for Transit Losses'!$C$71)) -> 0 | BD9: =IF(AND(JF9-JG9-FQ9-DL9>0,IW9="no"),MIN(-(AR9+AY9+AZ9+BA9+BB9+BC9)/(1-0.5/100*'Distances for Transit Losses'!$C$93),JF9-JG9-FQ9-DL9),0) -> 0 | BE9: =--BD9*0.5/100*'Distances for Transit Losses'!C$93 -> 0 | BF9: =IF(AND(HA9-HB9-IW9-FK9-KS9-DF9>0,EZ9="no"),MIN(-(AR9+SUM(AY9:BE9))/(1-0.5/100*'Distances for Transit Losses'!$C$99),HA9-HB9-IW9-FK9-KS9-DF9),0) -> 0 | BG9: =--BF9*0.5/100*'Distances for Transit Losses'!$C$95 -> 0 | BH9: 0 | BJ9: no | BK9: no | BL9: 0 | BM9: 0 | BN9: 0 | BP9: =IF($BK9="No",MIN(-CW9,AS9-AZ9/(1-0.5/100*'Distances for Transit Losses'!$C$71)),0) -> 0 | BQ9: =IF($BK9="No",MIN(-CW9+BP9,AU9-BB9/(1-0.5/100*'Distances for Transit Losses'!$C$71)),0) -> 0 | BR9: =IF(AND($BJ9="No",$BK9="No"),MIN(CW9+BP9+BQ9,AX9),0) -> 0 | BS9: 0 | BT9: 0 | BU9: =AN9+AO9+AR9+AS9+AT9+AU9+AV9+AW9 -> 1.489733426 | BV9: =AN9+AO9+AR9+AS9+AT9+AU9+AV9+AW9-SUM(BP9:BT9) -> 1.489733426 | BW9: =-(IF($N9=99999.99999,0,VLOOKUP($B9,'NFC Well Dplns-SDF'!$B$7:$Z$306,16)+VLOOKUP($B9,'NFC Well Dplns-URF'!$B$7:$AB$306,13))/$RI9/1.9835) -> 0 | BX9: =-(IF($N9>=99999,0,'88CW264(B) Pumping'!$E7/1.9835)+IF($N9>=99999,0,'88CW264(B) Pumping'!$E43/1.9835)+IF($N9>=99999,0,'88CW264(B) Pumping'!$E83/1.9835)+IF($N9>=99999,0,'88CW264(B) Pumping'!$E119/1.9835)+IF($N9>=51134.50919,0,'88CW264(B) Pumping'!$E159/1.9835)+IF($N9>=53406,0,'88CW264(B) Pumping'!$E195/1.9835)) -> 0 | BY9: =BX9+BW9 -> 0 | BZ9: =IF(BW9<0,31.836/$RI9/1.9835,0) -> 0 | CA9: =-BY9-BZ9 -> 0 | CC9: =-(IF($N9=99999.99999,0,VLOOKUP($B9,'United No. 2 Dplns'!$B$7:$X$676,13)/1.9835)) -> 0 | CD9: =CC9+(-(INDEX('Pre 1995 Net Accretions'!$B$6:$M$105,MATCH($B$2,'Pre 1995 Net Accretions'!$A$6:$A$105,0),MATCH($A9,'Pre 1995 Net Accretions'!$B$5:$M$5,0))/$RI9/1.9835)) -> 0.02852709711 | CE9: =-(IF(N9<99999.99999,(INDEX('70 Ranch RF Obligation'!$B$6:$M$30,MATCH($B$2,'70 Ranch RF Obligation'!$A$6:$A$30,0),MATCH('ECCV Daily Replacement Summary'!A9,'70 Ranch RF Obligation'!$B$5:$M$5,0))/RI9)/1.9835,0))-CH9*(1-'L. Latham Credit'!$E$37) -> 0 | CF9: =MIN(0,CE9+CD9) -> 0 | CG9: =(VLOOKUP($B9,'ECCV 70R Pond Acrtns'!$B$7:$AI$1206,16)+VLOOKUP($B9,'ECCV 70R Canal Acrtns'!$B$7:$AI$1206,13)+VLOOKUP($B9,'2003 70R Pond Acrtns'!$B$7:$AI$1206,16)+VLOOKUP($B9,'2003 70R Canal Acrtns'!$B$7:$AI$1206,13))/$RI9/1.9835 -> 0 | CH9: 0 | CI9: =IF(CH9>0,CH9-CJ9,0) -> 0 | CJ9: =MAX(0,MIN(-CF9,CH9)) -> 0 | CK9: 0 | CL9: 0 | CM9: 0 | CN9: 0 | CP9: =MAX(0,CD9)+CI9+CL9+CM9+CN9 -> 0.02852709711 | CQ9: =MAX(0,MIN(-(CF9+CJ9),CP9)) -> 0 | CR9: 0 | CS9: =-CR9*0.5/100*'Distances for Transit Losses'!$C$46 -> 0 | CT9: =MAX(0,MIN(CG9,-(CF9+CJ9+CQ9))) -> 0 | CU9: 0 | CV9: 0 | CW9: =BY9+BZ9+CA9+CF9+CJ9+CQ9+CT9 -> 0 | CX9: =BP9 -> 0 | CY9: =BQ9 -> 0 | CZ9: =BR9 -> 0 | DA9: =('NFC Well Pumping'!I7+'NFC Well Pumping'!I44+'NFC Well Pumping'!I80)/1.9835 -> 0 | DB9: =IF(AND(IT9-IU9-FG9>0,IO9="no"),MIN(-SUM(CW9:DA9)/(1-0.5/100*'Distances for Transit Losses'!$C$97),IT9-IU9-FG9),0) -> 0 | DC9: =-DB9*0.5/100*'Distances for Transit Losses'!C$97 -> 0 | DD9: 0 | DE9: =--DD9*0.5/100*'Distances for Transit Losses'!$C$121 -> 0 | DF9: =IF(AND(HA9-HB9-IW9-FK9-KS9>0,EZ9="no"),MIN(-SUM(CW9:DE9)/(1-0.5/100*'Distances for Transit Losses'!$C$99),HA9-HB9-IW9-FK9-KS9),0) -> 0 | DG9: =--DF9*0.5/100*'Distances for Transit Losses'!$C$99 -> 0 | DH9: =CG9+CP9-CQ9-CR9+CS9-SUM(CT9:CV9) -> 0.02852709711 | DI9: 0 | DJ9: ='Joint Aug Station Deliveries'!M9 -> 0 | DK9: =-(DJ9*0.5/100*'Distances for Transit Losses'!$C$206) -> 0 | DL9: 0 | DN9: no | DP9: =DI9+IF(DO9="Yes",DJ9,0)+DK9+DL9 -> 0 | DQ9: =MAX(IF(AND(DN9="No",DO9="Yes"),DI9+DJ9+DK9,0),0) -> 0 | DR9: =-(DQ9*0.5/100*'Distances for Transit Losses'!$C$208) -> 0 | DS9: 0 | DT9: =-0.25*(INDEX('GIC Credit'!$B$77:$M$104,MATCH($B$2,'GIC Credit'!$A$77:$A$104,0),MATCH($A9,'GIC Credit'!$B$77:$M$77,0))/$RI9/1.9835+ET9*'GIC Credit'!$Z$35+EU9*'GIC Credit'!$AO$35) -> -0.0001915 | DU9: =DS9+DT9 -> -0.0001915 | DV9: =MIN(-DU9,DQ9+DR9) -> 0 | DW9: ='Joint Aug Station Deliveries'!BD9 -> 0 | DX9: =-(DW9*0.5/100*'Distances for Transit Losses'!$C$234) -> 0 | DY9: ='Joint Aug Station Deliveries'!BE9 -> 0 | DZ9: =-(DY9*0.5/100*'Distances for Transit Losses'!$C$236) -> 0 | EA9: 0 | EB9: =-(EA9*0.5/100*'Distances for Transit Losses'!$C$228) -> 0 | EC9: 0 | EE9: no | EF9: =SUM(DU9:EC9) -> -0.0001915 | EG9: =-(IF($N9<99999.99999,(INDEX('New Cache Credit'!$W$74:$AH$99,MATCH($B$2,'New Cache Credit'!$V$74:$V$99,0),MATCH($A9,'New Cache Credit'!$W$74:$AH$74,0))/$RI9)/1.9835,0))-DI9-DS9 -> 0 | EH9: =-0.39*(INDEX('GIC Credit'!$B$77:$M$104,MATCH($B$2,'GIC Credit'!$A$77:$A$104,0),MATCH($A9,'GIC Credit'!$B$77:$M$77,0))/$RI9/1.9835+ET9*'GIC Credit'!$Z$35+EU9*'GIC Credit'!$AO$35) -> -0.00029874 | EI9: =MAX(IF(AND(EE9="No",EF9>0),EF9,0),0) -> 0 | EJ9: =-(EI9*0.5/100*('Distances for Transit Losses'!$C$210+'Distances for Transit Losses'!$C$216)) -> 0 | EL9: =IF(EK9="yes",'Joint Aug Station Deliveries'!T9,0) -> 0 | EM9: =-(EL9*0.5/100*('Distances for Transit Losses'!$C$212+'Distances for Transit Losses'!$C$214+'Distances for Transit Losses'!$C$216)) -> 0 | EN9: =IF(EK9="Yes",'Joint Aug Station Deliveries'!W9,0) -> 0 | EO9: =-(EN9*0.5/100*('Distances for Transit Losses'!$C$214+'Distances for Transit Losses'!$C$216)) -> 0 | EP9: ='Joint Aug Station Deliveries'!BF9 -> 0 | EQ9: =-(EP9*0.5/100*'Distances for Transit Losses'!$C$220) -> 0 | ER9: =MIN(0,EF9)+SUM(EG9:EJ9)+SUM(EL9:EQ9) -> -0.00049024 | ES9: =DW9+DY9+EP9 -> 0 | ET9: ='Joint Aug Station Deliveries'!BH9 -> 0 | EU9: ='Joint Aug Station Deliveries'!BI9 -> 0 | EV9: =-(IF(N9<99999.99999,INDEX('Hist RF to SPR'!$AF$6:$AQ$30,MATCH($B$2,'Hist RF to SPR'!$AE$6:$AE$30,0),MATCH($A9,'Hist RF to SPR'!$AF$5:$AQ$5,0))/RI9/1.9835,0)) -> 0 | EW9: =-0.36*(INDEX('GIC Credit'!$B$77:$M$104,MATCH($B$2,'GIC Credit'!$A$77:$A$104,0),MATCH($A9,'GIC Credit'!$B$77:$M$77,0))/$RI9/1.9835+ET9*'GIC Credit'!$Z$35+EU9*'GIC Credit'!$AO$35) -> -0.00027576 | EX9: =IF(AND(ER9<0,EE9="no"),ER9,0) -> -0.00049024 | EY9: =SUM(EV9:EX9) -> -0.000766 | EZ9: no | FA9: 0 | FB9: 0 | FC9: 0 | FE9: =IF(AND(EZ9="No",LK9>0),MIN(-EY9,LK9),0) -> 0.000766 | FF9: =IF(AND(EZ9="No",$BK9="No"),MIN(-(EY9+FE9),LL9),0) -> 0 | FG9: =IF(AND(IT9-IU9-GW9>0,IO9="no"),MIN(-(EY9+FE9+FF9)/(1-0.5/100*'Distances for Transit Losses'!$C$101),IT9-IU9-GW9),0) -> 0 | FH9: =-FG9*0.5/100*'Distances for Transit Losses'!$C$101 -> 0 | FI9: 0 | FJ9: =-FI9*0.5/100*'Distances for Transit Losses'!$C$119 -> 0 | FK9: =IF(AND(HA9-HB9-IW9>0,GM9="no"),MIN(-(EY9+FE9+FF9+FG9+FH9+FI9+FJ9)/(1-0.5/100*'Distances for Transit Losses'!$C$103),HA9-HB9-IW9),0) -> 0 | FL9: =-FK9*0.5/100*'Distances for Transit Losses'!$C$109 -> 0 | FM9: =-(EY9+FE9+FF9+FG9-FH9+FK9-FL9) -> 0 | FO9: =IF(ER9>0,ER9,0) -> 0 | FQ9: =IF(AND(FP9="no",('Joint Aug Station Deliveries'!$AD9)*1.9835>'New Cache Credit'!$BY$35,('Joint Aug Station Deliveries'!$AD9)*1.9835>'New Cache Credit'!$CH$35),0,'Joint Aug Station Deliveries'!V9) -> 0 | FR9: =-(FQ9*0.5/100*'Distances for Transit Losses'!$C$202) -> 0 | FT9: =IF(AND(FS9="no",('Joint Aug Station Deliveries'!$AD9)*1.9835>'New Cache Credit'!$BY$35,('Joint Aug Station Deliveries'!$AD9)*1.9835>'New Cache Credit'!$CH$35),0,'Joint Aug Station Deliveries'!Y9) -> 0 | FU9: =-(FT9*0.5/100*'Distances for Transit Losses'!$C$194) -> 0 | FV9: =IF(AND(FS9="no",('Joint Aug Station Deliveries'!$AD9)*1.9835>'New Cache Credit'!$BY$35,('Joint Aug Station Deliveries'!$AD9)*1.9835>'New Cache Credit'!$CH$35),0,'Joint Aug Station Deliveries'!AB9) -> 0 | FW9: =-(FV9*0.5/100*'Distances for Transit Losses'!$C$200) -> 0 | FX9: =EY9+SUM(FE9:FM9)+FO9+FQ9+FR9+SUM(FT9:FW9) -> 0 | FY9: =IF(FX9>0,FX9,0) -> 0 | FZ9: =LK9-FE9 -> 0.02776109711 | GA9: =LL9-FF9 -> 1.489733426 | GB9: =-(IF(N9<99999.99999,INDEX('Hist RF to SPR'!$Q$6:$AB$30,MATCH($B$2,'Hist RF to SPR'!$P$6:$P$30,0),MATCH($A9,'Hist RF to SPR'!$Q$5:$AB$5,0))/RI9/1.9835,0)) -> 0 | GC9: =-(IF(OR($N9<99999.99999,E9="Lower Latham",I9="Lower Latham",E9="Highland",I9="Highland",E9="Plum",I9="Plum"),(INDEX('FIDCO Credit'!$Y$44:$AJ$70,MATCH($B$2,'FIDCO Credit'!$X$44:$X$70,0),MATCH($A9,'FIDCO Credit'!$Y$43:$AJ$43,0))/$RI9)/1.9835,0)) -> 0 | GD9: =-(IF(OR($N9<99999.99999,E9="Lower Latham",I9="Lower Latham",E9="Highland",I9="Highland",E9="Plum",I9="Plum"),(INDEX('Western Credit'!$W$76:$AH$102,MATCH($B$2,'Western Credit'!$V$76:$V$102,0),MATCH($A9,'Western Credit'!$W$75:$AH$75,0))/$RI9)/1.9835,0)) -> 0 | GE9: =SUM(GB9:GD9) -> 0 | GF9: =MIN(-GC9,HI9) -> 0 | GG9: =IF(GO9="yes",0,MIN(-GC9-GF9,HK9)) -> 0 | GH9: =IF(AND(GN9="no",GO9="no"),MIN(-(GC9-GF9-GG9)/(1-0.5/100*'Distances for Transit Losses'!$C$89),IL9),0) -> 0 | GI9: =-GH9*0.5/100*'Distances for Transit Losses'!$C$89 -> 0 | GJ9: =VLOOKUP($B9,'ECCV Haren Pond S.P. Acrtns'!$B$7:$G$306,6)/$RI9/1.9835 -> 1.36770332 | GK9: =MIN(-GE9-GF9-GG9-GH9,GJ9) -> 0 | GL9: =KR9 -> 0 | GM9: no | GN9: no | GO9: no | GP9: 0 | GQ9: 0 | GR9: 0 | GT9: =IF($GM9="No",MIN(-GE9-GK9,FZ9),0) -> 0 | GU9: =IF(AND(GM9="No",$BK9="No"),MIN(-(GE9+GK9+GT9),GA9),0) -> 0 | GV9: =GE9+GK9+GT9+GU9 -> 0 | GW9: =IF(AND(IT9-IU9>0,IO9="no"),MIN(-GV9/(1-0.5/100*'Distances for Transit Losses'!$C$105),IT9-IU9),0) -> 0 | GX9: =-GW9*0.5/100*'Distances for Transit Losses'!$C$105 -> 0 | GY9: =IF(AND(IX9+IY9-IZ9-JK9>0,IO9="no"),MIN((-GV9-(GW9+GX9))/(1-0.5/100*'Distances for Transit Losses'!$C$107),IX9+IY9-IZ9-JK9),0) -> 0 | GZ9: =-GY9*0.5/100*'Distances for Transit Losses'!$C$107 -> 0 | HA9: 0 | HB9: =IF(HA9>0,MIN(-(GV9+GW9+GX9+GY9+GZ9)/(1-0.5/100*'Distances for Transit Losses'!$C$109),HA9),0) -> 0 | HC9: =-HB9*0.5/100*'Distances for Transit Losses'!$C$109 -> 0 | HD9: 0 | HF9: =MIN(0,SUM(GV9:GZ9)+SUM(HB9:HD9)) -> 0 | HG9: ='Joint Aug Station Deliveries'!AQ9 -> 0 | HH9: =HG9*'Western Credit'!$Z$38 -> 0 | HI9: ='Joint Aug Station Deliveries'!AH9 -> 0 | HJ9: =IF(AND(HI9>0,SUM($HI$9:HI9,$HK$9:HK9,$IL$9:IL9)*1.9835<OFFSET('FIDCO Credit'!$X$35,0,MATCH($A9,'FIDCO Credit'!$Y$5:$AJ$5,0))),HI9-GF9,0) -> 0 | HK9: ='Joint Aug Station Deliveries'!AK9 -> 0 | HL9: =IF(AND(HK9>0,SUM($HI$9:HI9,$HK$9:HK9,$IL$9:IL9)*1.9835<OFFSET('FIDCO Credit'!$X$35,0,MATCH($A9,'FIDCO Credit'!$Y$5:$AJ$5,0))),HK9-GG9,0) -> 0 | HM9: =MAX(0,(KN9+KO9))/(1-0.5/100*'Distances for Transit Losses'!$C$77) -> 0 | HN9: =MAX(0,(KP9+KQ9)/(1-0.5/100*'Distances for Transit Losses'!$C$73)) -> 0 | HO9: 0 | HP9: =-HO9*0.5/100*'Distances for Transit Losses'!$C$79 -> 0 | HQ9: 0 | HR9: 0 | HS9: =-HR9*0.5/100*'Distances for Transit Losses'!$C$34 -> 0 | HT9: =IF($GN9="No",HH9-HN9-HQ9,0) -> 0 | HU9: 0 | HV9: 0 | HW9: =IF($GN9="No",HJ9-HM9-HO9,0) -> 0 | HX9: 0 | HY9: 0 | HZ9: =IF(AND($GM9="No",$BK9="No"),$JO9,0) -> 1.489733426 | IA9: 0 | IB9: =IF(GM9="No",$JN9,0) -> 0.02776109711 | IC9: 0 | ID9: 0 | IE9: 0 | IF9: =-IE9*0.5/100*'Distances for Transit Losses'!$C$117 -> 0 | IG9: =HU9+HX9+IA9+SUM(IC9:IF9) -> 0 | IH9: =GJ9-GK9-GL9+HH9+HJ9-SUM(HM9:HQ9)-HU9-HV9-HX9-HY9 -> 1.36770332 | II9: =FZ9-GT9 -> 0.02776109711 | IJ9: =GA9-GU9 -> 1.489733426 | IK9: =-(IF(F9<99999.99999,INDEX('Hist RF to SPR'!$B$6:$M$30,MATCH($B$2,'Hist RF to SPR'!$A$6:$A$30,0),MATCH($A9,'Hist RF to SPR'!$B$5:$M$5,0))/RI9/1.9835,0)) -> 0 | IL9: ='Joint Aug Station Deliveries'!AN9 -> 0 | IM9: =IF(AND(IL9>0,SUM($HI$9:HI9,$HK$9:HK9,$IL$9:IL9)*1.9835<OFFSET('FIDCO Credit'!$X$35,0,MATCH($A9,'FIDCO Credit'!$Y$5:$AJ$5,0))),IL9-GH9,0) -> 0 | IN9: =MIN(-IK9,IM9) -> 0 | IO9: no | IP9: =IF($IO9="No",MIN(-(IK9+IN9),II9),0) -> 0 | IQ9: =IF(AND(IO9="No",$BK9="No"),MIN(-(IK9+IN9+IP9),IJ9),0) -> 0 | IR9: =IF(AND($GN9="No"),MIN(-(IK9+IN9+IP9+IQ9),IH9),0) -> 0 | IS9: =IK9+IP9+IQ9+IR9 -> 0 | IT9: 0 | IU9: =IF(IT9>0,MIN(-IS9/(1-0.5/100*'Distances for Transit Losses'!$C$111),IT9),0) -> 0 | IV9: =-IU9*0.5/100*'Distances for Transit Losses'!$C$111 -> 0 | IW9: =IF(AND(HA9-HB9>0,IO9="no"),MIN(-(IS9+IU9+IV9),HA9-HB9),0) -> 0 | IX9: 0 | IY9: =-IX9*0.5/100*'Distances for Transit Losses'!$C$66 -> 0 | IZ9: =IF((IX9+IY9)>0,MIN((-IS9-(IU9-IV9)-IW9)/(1-0.5/100*'Distances for Transit Losses'!$C$113),(IX9+IY9)),0) -> 0 | JA9: =-IZ9*0.5/100*'Distances for Transit Losses'!$C$113 -> 0 | JB9: 0 | JD9: =IS9+IU9+IV9+IW9+IZ9+JA9+JB9 -> 0 | JE9: =IF(AND($IO9="No",$BK9="No"),$JO9-IA9,0) -> 1.489733426 | JF9: 0 | JG9: =IF(IO9="No",$JN9-IC9,0) -> 0.02776109711 | JH9: 0 | JI9: =HV9 -> 0 | JJ9: =HY9 -> 0 | JK9: 0 | JL9: =-JK9*0.5/100*'Distances for Transit Losses'!$C$115 -> 0 | JM9: =JF9+JH9+JI9+JJ9+JK9+JL9 -> 0 | JN9: =II9-IP9 -> 0.02776109711 | JO9: =IJ9-IQ9 -> 1.489733426 | JP9: =-(IF(N9<99999.99999,(VLOOKUP(B9,'ECCV Upper Dpln'!$B$7:$BD$306,55))/RI9/1.9835,0)) -> 0 | JQ9: =-(IF(N9<99999.99999,INDEX('Hist RF abv Milton'!$B$6:$M$30,MATCH($B$2,'Hist RF abv Milton'!$A$6:$A$30,0),MATCH($A9,'Hist RF abv Milton'!$B$5:$M$5,0))/RI9/1.9835,0)) -> 0 | JR9: 0 | JS9: =(VLOOKUP($B9,'ECCV Beebe Pond Acrtns'!$B$7:$BI$1206,41)+VLOOKUP($B9,'ECCV Canal Acrtns'!$B$7:$AL$1206,22)+VLOOKUP($B9,'2003 Beebe Pond Acrtns'!$B$7:$BI$1206,41)+VLOOKUP($B9,'2003 Canal Acrtns'!$B$7:$AL$1206,22))/$RI9/1.9835 -> 1.000835946 | JT9: 0 | JU9: 0 | JV9: 0 | JW9: =MIN(JS9,-JP9) -> 0 | JX9: =MIN($JV9,-($JP9+$JW9)) -> 0 | JY9: no | JZ9: 0 | KA9: =IF($JY9="No",IF($JZ9>0,0,MIN(-JQ9,DH9)),0) -> 0 | KB9: =IF($JY9="No",IF($JZ9>0,0,MIN(-(JP9+JW9+JX9),DH9-KA9)),0) -> 0 | KC9: =IF(AND(JY9="No",$BK9="No"),IF($JZ9>0,0,MIN(-(JQ9+KA9),BV9)),0) -> 0 | KD9: =IF(AND(JY9="No",$BK9="No"),IF($JZ9>0,0,MIN(-(JP9+JW9+JX9+KB9),$BV9-KC9)),0) -> 0 | KE9: =IF($JY9="No",IF($JZ9>0,0,MIN(-(JQ9+KA9+KC9),FY9)),0) -> 0 | KF9: =IF($JY9="No",IF($JZ9>0,0,MIN(-(JP9+JW9+JX9+KB9+KD9),FY9-KE9)),0) -> 0 | KG9: =JP9+JW9+JX9+KB9+KD9+KF9 -> 0 | KH9: =JQ9+KA9+KC9+KE9 -> 0 | KI9: 0 | KJ9: =-(KI9*0.5/100*'Distances for Transit Losses'!$C$6) -> 0 | KK9: 0 | KL9: 0 | KM9: 0 | KN9: =IF(AND(E9<>"Lower Latham",I9<>"Lower Latham"),MIN(-(KH9+KK9),HJ9-HJ9*0.5/100*'Distances for Transit Losses'!$C$77),0) -> 0 | KO9: =IF(AND(E9<>"Lower Latham",I9<>"Lower Latham"),MAX(0,MIN(-(KG9+KI9+KJ9+KM9),HJ9-HJ9*0.5/100*'Distances for Transit Losses'!$C$77-KN9/(1-0.5/100*'Distances for Transit Losses'!$C$77))),0) -> 0 | KP9: =MIN(-(KH9+KK9+KN9),HH9-HH9*0.5/100*'Distances for Transit Losses'!$C$73) -> 0 | KQ9: =MAX(0,MIN(-(KG9+KI9+KJ9+KO9),HH9-HH9*0.5/100*'Distances for Transit Losses'!$C$73-KP9/(1-0.5/100*'Distances for Transit Losses'!$C$73))) -> 0 | KR9: =IF(EZ9="no",MIN(-(MIN(0,KG9+KI9+KJ9+KO9+KQ9)),(GJ9-GK9)-(GJ9-GK9)*0.5/100*'Distances for Transit Losses'!$C$73),0) -> 0 | KS9: =MAX(0,IF(AND(HA9-HB9-IW9-FK9>0,EZ9="no"),MIN(-(KG9+KI9+KJ9+KM9+KO9+KQ9+KR9)/(1-0.5/100*'Distances for Transit Losses'!$C$83),HA9-HB9-IW9-FK9),0)) -> 0 | KT9: =-KS9*0.5/100*'Distances for Transit Losses'!$C$83 -> 0 | KU9: 0 | KW9: =SUM(JP9:JR9)+JW9+JX9+SUM(KA9:KF9)+SUM(KI9:KU9) -> 0 | KX9: =JS9-JW9 -> 1.000835946 | KY9: =JV9-JX9 -> 0 | KZ9: =DH9-KA9-KB9 -> 0.02852709711 | LA9: =BV9-KC9-KD9 -> 1.489733426 | LB9: =-(IF(N9<99999.99999,INDEX('Hist RF blw Milton'!$B$6:$M$30,MATCH($B$2,'Hist RF blw Milton'!$A$6:$A$30,0),MATCH($A9,'Hist RF blw Milton'!$B$5:$M$5,0))/RI9/1.9835,0)) -> 0 | LC9: no | LD9: =IF($LC9="No",MIN(-LB9,$KZ9),0) -> 0 | LE9: =IF(AND(LC9="No",$BK9="No"),MIN(-(LB9+LD9),$LA9),0) -> 0 | LF9: =LB9+LD9+LE9 -> 0 | LG9: =-(LF9+LI9) -> 0 | LH9: 0 | LI9: 0 | LK9: =IF(KZ9-LD9<0,0,KZ9-LD9) -> 0.02852709711 | LL9: =LA9-LE9 -> 1.489733426 | LM9: =-(IF(N9<99999.99999,INDEX('Hist RF to Box Elder'!$B$6:$M$30,MATCH($B$2,'Hist RF to Box Elder'!$A$6:$A$30,0),MATCH($A9,'Hist RF to Box Elder'!$B$5:$M$5,0))/RI9/1.9835,0)) -> 0 | LN9: =(VLOOKUP($B9,'ECCV Beebe Pond Acrtns'!$B$7:$BI$1206,54)+VLOOKUP($B9,'ECCV Canal Acrtns'!$B$7:$AL$1206,34)+VLOOKUP($B9,'2003 Beebe Pond Acrtns'!$B$7:$BI$1206,54)+VLOOKUP($B9,'2003 Canal Acrtns'!$B$7:$AL$1206,34)+VLOOKUP($B9,'84CW090 Beebe Pond Acrtns'!$B$7:$BI$1206,55)+VLOOKUP($B9,'84CW090 Canal Acrtns'!$B$7:$AL$1206,34))/$RI9/1.9835 -> 0.09630223027 | LO9: =MIN(-LM9,LN9) -> 0 | LP9: =IF(LM9+LO9+LR9=0,0,-(LM9+LN9+LR9)) -> 0 | LQ9: 0 | LR9: 0 | LT9: =AN9+AR9+BY9+CF9+DI9+DS9+DT9+EY9+JP9+JQ9+GE9+IK9+LB9+LM9 -> -0.0009575 | LU9: =JW9+JX9+SUM(KA9:KF9)+SUM(KI9:KU9) -> 0 | LV9: =LD9+LE9+LG9+LH9+LI9 -> 0 | LW9: =LO9+LP9+LQ9+LR9 -> 0 | LX9: =IN9+IP9+IQ9+IR9+IU9+IV9+IW9+IZ9+JA9+JB9 -> 0 | LY9: =GF9+GG9+GH9+GK9+GT9+GU9+GW9+GX9+GY9+GZ9+SUM(HB9:HD9) -> 0 | LZ9: =SUM(FE9:FM9)+FQ9+FR9+SUM(FT9:FW9) -> 0.000766 | MA9: =SUM(DJ9:DL9)+SUM(DW9:EC9)+SUM(EL9:EQ9) -> 0 | MB9: =BZ9+CA9+CJ9+CQ9+CT9+SUM(CX9:DG9) -> 0 | MC9: =AO9+AP9+SUM(AY9:BH9) -> 0 | MD9: =SUM(LU9:MC9) -> 0.000766 | ME9: =LT9+MD9 -> -0.0001915 | MF9: =KX9+KY9 -> 1.000835946 | MG9: =JG9-JH9 -> 0.02776109711 | MH9: =JE9-JF9 -> 1.489733426 | MO9: 0 | MP9: 0 | MQ9: 0 | MS9: 0 | MT9: 0 | MU9: 0 | MV9: 0 | MW9: 0 | MX9: 0 | MY9: 0 | MZ9: 0 | NA9: 0 | NB9: 0 | NC9: 0 | ND9: 0 | NF9: =AV9+AW9 -> 0 | NG9: 0 | NH9: 0 | NI9: 0 | NJ9: 0 | NK9: 0 | NL9: 0 | NM9: 0 | NN9: 0 | NO9: 0 | NP9: 0 | NR9: =MG9+MH9-AB9 -> 1.517494523 | NS9: 0 | NT9: 0 | NU9: 0 | NV9: 0 | NW9: 0 | NX9: 0 | NY9: 0 | NZ9: 0 | OA9: 0 | OB9: 0 | OH9: 0 | OI9: 0 | OJ9: 0 | OK9: 0 | OL9: 0 | OM9: 0 | ON9: 0 | OO9: 0 | OP9: 0 | OR9: =HG9 -> 0 | OS9: 0 | OT9: 0 | OU9: 0 | OV9: 0 | OW9: 0 | OX9: 0 | OY9: 0 | OZ9: 0 | PC9: 0 | PD9: 0 | PE9: 0 | PF9: 0 | PG9: 0 | PH9: 0 | PI9: 0 | PL9: 0 | PM9: 0 | PP9: 0 | PQ9: 0 | PR9: 0 | PU9: 0 | PV9: 0 | PW9: 0 | PX9: 0 | PY9: =SUM(PU9:PX9) -> 0 | PZ9: 0 | QA9: 0 | QC9: =NZ9+NN9+NB9+ON9+OX9+PG9+PY9 -> 0 | QD9: =OA9+NO9+NC9+OO9+OY9+PH9+PZ9 -> 0 | QE9: =OB9+NP9+MQ9+ND9+OP9+OZ9+PI9+PM9+PR9+QA9 -> 0 | QF9: =MP9+SUM(NS9:NY9)+SUM(NG9:NM9)+SUM(MT9:NA9)+SUM(OH9:OM9)+SUM(OS9:OW9)+SUM(PC9:PF9)+SUM(PU9:PX9) -> 0 | QG9: =IF(QF9*1.9835>8706,"Exceeded Annual Maximum",QF9*1.9835) -> 0 | QH9: 309.6 | QJ9: =MF9 -> 1.000835946 | QK9: 0 | QL9: 0 | QM9: 0 | QN9: 0 | QO9: 0 | QP9: 0 | QQ9: 0 | QR9: 0 | QS9: 0 | QT9: 0 | QU9: 0 | QV9: 0 | QW9: 0 | QX9: 0 | QY9: 0 | QZ9: 0 | RA9: 0 | RB9: 0 | RC9: 0 | RD9: =QJ9-SUM(QK9:RC9) -> 1.000835946 | RF9: =KI9+KK9+KL9 -> 0 | RG9: =LP9+LG9 -> 0 | RI9: =VLOOKUP(A9,'Control Sheet'!$G$9:$H$20,2) -> 30
A10: Apr | B10: =B9+1 -> 2016-04-02 | C10: Free River | F10: 99999.99999 | K10: Free River | N10: 99999.99999 | S10: =NR10 -> 1.517494523 | T10: 0 | U10: 0 | V10: 0 | X10: 0 | Y10: =('NFC Well Pumping'!$L8+'NFC Well Pumping'!$L45+'NFC Well Pumping'!$L81)/1.9835 -> 0 | Z10: ='88CW264(B) Pumping'!$E8/1.9835+'88CW264(B) Pumping'!$E44/1.9835+'88CW264(B) Pumping'!E84/1.9835+'88CW264(B) Pumping'!E120/1.9835+'88CW264(B) Pumping'!E160/1.9835+'88CW264(B) Pumping'!E196/1.9835 -> 0.01157311677 | AA10: =$MG10+$MH10 -> 1.517494523 | AB10: =('United No. 2 Well Pumping'!G9+'United No. 2 Well Pumping'!G45+'United No. 2 Well Pumping'!G81)/1.9835 -> 0 | AC10: =('United No. 2 Well Pumping'!F9+'United No. 2 Well Pumping'!F45+'United No. 2 Well Pumping'!F81)/1.9835 -> 0 | AD10: 0 | AF10: =Y10+Z10+AB10+AC10+AD10 -> 0.01157311677 | AG10: =U10+AC10+'United Res'!AA172+'United Res'!AQ172+'Milliken Res'!I160 -> 0 | AH10: 100 | AI10: =-(IF($N10=99999.99999,0,VLOOKUP($B10,'NFC Well Dplns-URF'!B$7:$AB$306,27))/$RI10/1.9835) -> 0 | AJ10: 0 | AL10: =(VLOOKUP($B10,'ECCV 70R Pond Acrtns'!$B$7:$AI$1206,34)+VLOOKUP($B10,'2003 70R Pond Acrtns'!$B$7:$AI$1206,34)+VLOOKUP($B10,'ECCV 70R Canal Acrtns'!$B$7:$AI$1206,27)+VLOOKUP($B10,'2003 70R Canal Acrtns'!$B$7:$AI$1206,27))/$RI10/1.9835 -> 0 | AM10: 0 | AN10: =-(IF($N10=99999.99999,0,VLOOKUP($B10,'NFC Well Dplns-SDF'!$B$7:$Z$306,25)+VLOOKUP($B10,'NFC Well Dplns-URF'!B$7:$AB$306,20))/$RI10/1.9835) -> 0 | AO10: 0 | AP10: 0 | AR10: =IF(N10<99999.99999,-((AV10+AW10)*'Weldon Credit'!$Z$38+(INDEX('Weldon Credit'!$V$75:$AH$102,MATCH($B$2,'Weldon Credit'!$V$75:$V$102,0),MATCH(A10,'Weldon Credit'!$V$75:$AH$75,0))/RI10)/1.9835),0) -> 0 | AS10: =0.4*(INDEX('Riverside Pond Accrtns'!$B$6:$M$36,MATCH($B$2,'Riverside Pond Accrtns'!$A$6:$A$36,0),MATCH('ECCV Daily Replacement Summary'!A10,'Riverside Pond Accrtns'!$B$5:$M$5,0))/RI10)/1.9835 -> 1.238887488 | AT10: =(44/640)*(INDEX('Weldon Valley Accrtns (02CW377)'!$B$6:$M$30,MATCH($B$2,'Weldon Valley Accrtns (02CW377)'!$A$6:$A$30,0),MATCH(A10,'Weldon Valley Accrtns (02CW377)'!$B$5:$M$5,0))/RI10)/1.9835 -> 0.2508459373 | AU10: =(VLOOKUP($B10,'ECCV 70R Pond Acrtns'!$B$7:$AI$1206,25)+VLOOKUP($B10,'ECCV 70R Canal Acrtns'!$B$7:$AI$1206,20)+VLOOKUP($B10,'2003 70R Pond Acrtns'!$B$7:$AI$1206,25)+VLOOKUP($B10,'2003 70R Canal Acrtns'!$B$7:$AI$1206,20))/$RI10/1.9835 -> 0 | AV10: ='Joint Aug Station Deliveries'!G10 -> 0 | AW10: ='Joint Aug Station Deliveries'!J10 -> 0 | AX10: =IF(AV10+AW10>0,AV10+AW10-AY10,0) -> 0 | AY10: =MIN(-AR10,AV10+AW10) -> 0 | AZ10: =MIN(-($AR10+AY10)/(1-0.5/100*'Distances for Transit Losses'!$C$71),AS10-AS10*0.5/100*'Distances for Transit Losses'!$C$71) -> 0 | BA10: =MAX(0,MIN(-($AR10+AY10+AZ10),AT10)) -> 0 | BB10: =MAX(0,MIN(-($AR10+AY10+AZ10+BA10),AU10-AU10*0.5/100*'Distances for Transit Losses'!$C$71)) -> 0 | BC10: =-((AZ10+BB10)*(0.5/100*'Distances for Transit Losses'!$C$71)) -> 0 | BD10: =IF(AND(JF10-JG10-FQ10-DL10>0,IW10="no"),MIN(-(AR10+AY10+AZ10+BA10+BB10+BC10)/(1-0.5/100*'Distances for Transit Losses'!$C$93),JF10-JG10-FQ10-DL10),0) -> 0 | BE10: =--BD10*0.5/100*'Distances for Transit Losses'!C$93 -> 0 | BF10: =IF(AND(HA10-HB10-IW10-FK10-KS10-DF10>0,EZ10="no"),MIN(-(AR10+SUM(AY10:BE10))/(1-0.5/100*'Distances for Transit Losses'!$C$99),HA10-HB10-IW10-FK10-KS10-DF10),0) -> 0 | BG10: =--BF10*0.5/100*'Distances for Transit Losses'!$C$95 -> 0 | BH10: 0 | BJ10: no | BK10: no | BL10: 0 | BM10: 0 | BN10: 0 | BP10: =IF($BK10="No",MIN(-CW10,AS10-AZ10/(1-0.5/100*'Distances for Transit Losses'!$C$71)),0) -> 0 | BQ10: =IF($BK10="No",MIN(-CW10+BP10,AU10-BB10/(1-0.5/100*'Distances for Transit Losses'!$C$71)),0) -> 0 | BR10: =IF(AND($BJ10="No",$BK10="No"),MIN(CW10+BP10+BQ10,AX10),0) -> 0 | BS10: 0 | BT10: 0 | BU10: =AN10+AO10+AR10+AS10+AT10+AU10+AV10+AW10 -> 1.489733426 | BV10: =AN10+AO10+AR10+AS10+AT10+AU10+AV10+AW10-SUM(BP10:BT10) -> 1.489733426 | BW10: =-(IF($N10=99999.99999,0,VLOOKUP($B10,'NFC Well Dplns-SDF'!$B$7:$Z$306,16)+VLOOKUP($B10,'NFC Well Dplns-URF'!$B$7:$AB$306,13))/$RI10/1.9835) -> 0 | BX10: =-(IF($N10>=99999,0,'88CW264(B) Pumping'!$E8/1.9835)+IF($N10>=99999,0,'88CW264(B) Pumping'!$E44/1.9835)+IF($N10>=99999,0,'88CW264(B) Pumping'!$E84/1.9835)+IF($N10>=99999,0,'88CW264(B) Pumping'!$E120/1.9835)+IF($N10>=51134.50919,0,'88CW264(B) Pumping'!$E160/1.9835)+IF($N10>=53406,0,'88CW264(B) Pumping'!$E196/1.9835)) -> 0 | BY10: 0 | BZ10: 0 | CA10: 0 | CC10: =-(IF($N10=99999.99999,0,VLOOKUP($B10,'United No. 2 Dplns'!$B$7:$X$676,13)/1.9835)) -> 0 | CD10: =CC10+(-(INDEX('Pre 1995 Net Accretions'!$B$6:$M$105,MATCH($B$2,'Pre 1995 Net Accretions'!$A$6:$A$105,0),MATCH($A10,'Pre 1995 Net Accretions'!$B$5:$M$5,0))/$RI10/1.9835)) -> 0.02852709711 | CE10: =-(IF(N10<99999.99999,(INDEX('70 Ranch RF Obligation'!$B$6:$M$30,MATCH($B$2,'70 Ranch RF Obligation'!$A$6:$A$30,0),MATCH('ECCV Daily Replacement Summary'!A10,'70 Ranch RF Obligation'!$B$5:$M$5,0))/RI10)/1.9835,0))-CH10*(1-'L. Latham Credit'!$E$37) -> 0 | CF10: =MIN(0,CE10+CD10) -> 0 | CG10: =(VLOOKUP($B10,'ECCV 70R Pond Acrtns'!$B$7:$AI$1206,16)+VLOOKUP($B10,'ECCV 70R Canal Acrtns'!$B$7:$AI$1206,13)+VLOOKUP($B10,'2003 70R Pond Acrtns'!$B$7:$AI$1206,16)+VLOOKUP($B10,'2003 70R Canal Acrtns'!$B$7:$AI$1206,13))/$RI10/1.9835 -> 0 | CH10: 0 | CI10: =IF(CH10>0,CH10-CJ10,0) -> 0 | CJ10: =MAX(0,MIN(-CF10,CH10)) -> 0 | CK10: 0 | CL10: 0 | CM10: 0 | CN10: 0 | CP10: =MAX(0,CD10)+CI10+CL10+CM10+CN10 -> 0.02852709711 | CQ10: =MAX(0,MIN(-(CF10+CJ10),CP10)) -> 0 | CR10: 0 | CS10: =-CR10*0.5/100*'Distances for Transit Losses'!$C$46 -> 0 | CT10: =MAX(0,MIN(CG10,-(CF10+CJ10+CQ10))) -> 0 | CU10: 0 | CV10: 0 | CW10: =BY10+BZ10+CA10+CF10+CJ10+CQ10+CT10 -> 0 | CX10: 0 | CY10: 0 | CZ10: 0 | DA10: =('NFC Well Pumping'!I8+'NFC Well Pumping'!I45+'NFC Well Pumping'!I81)/1.9835 -> 0 | DB10: =IF(AND(IT10-IU10-FG10>0,IO10="no"),MIN(-SUM(CW10:DA10)/(1-0.5/100*'Distances for Transit Losses'!$C$97),IT10-IU10-FG10),0) -> 0 | DC10: =-DB10*0.5/100*'Distances for Transit Losses'!C$97 -> 0 | DD10: 0 | DE10: =--DD10*0.5/100*'Distances for Transit Losses'!$C$121 -> 0 | DF10: =IF(AND(HA10-HB10-IW10-FK10-KS10>0,EZ10="no"),MIN(-SUM(CW10:DE10)/(1-0.5/100*'Distances for Transit Losses'!$C$99),HA10-HB10-IW10-FK10-KS10),0) -> 0 | DG10: =--DF10*0.5/100*'Distances for Transit Losses'!$C$99 -> 0 | DH10: =CG10+CP10-CQ10-CR10+CS10-SUM(CT10:CV10) -> 0.02852709711 | DI10: 0 | DJ10: ='Joint Aug Station Deliveries'!M10 -> 0 | DK10: =-(DJ10*0.5/100*'Distances for Transit Losses'!$C$206) -> 0 | DL10: 0 | DN10: no | DP10: =DI10+IF(DO10="Yes",DJ10,0)+DK10+DL10 -> 0 | DQ10: =MAX(IF(AND(DN10="No",DO10="Yes"),DI10+DJ10+DK10,0),0) -> 0 | DR10: =-(DQ10*0.5/100*'Distances for Transit Losses'!$C$208) -> 0 | DS10: 0 | DT10: =-0.25*(INDEX('GIC Credit'!$B$77:$M$104,MATCH($B$2,'GIC Credit'!$A$77:$A$104,0),MATCH($A10,'GIC Credit'!$B$77:$M$77,0))/$RI10/1.9835+ET10*'GIC Credit'!$Z$35+EU10*'GIC Credit'!$AO$35) -> -0.0001915 | DU10: =DS10+DT10 -> -0.0001915 | DV10: =MIN(-DU10,DQ10+DR10) -> 0 | DW10: ='Joint Aug Station Deliveries'!BD10 -> 0 | DX10: =-(DW10*0.5/100*'Distances for Transit Losses'!$C$234) -> 0 | DY10: ='Joint Aug Station Deliveries'!BE10 -> 0 | DZ10: =-(DY10*0.5/100*'Distances for Transit Losses'!$C$236) -> 0 | EA10: 0 | EB10: =-(EA10*0.5/100*'Distances for Transit Losses'!$C$228) -> 0 | EC10: 0 | EE10: no | EF10: -0.0001915 | EG10: =-(IF($N10<99999.99999,(INDEX('New Cache Credit'!$W$74:$AH$99,MATCH($B$2,'New Cache Credit'!$V$74:$V$99,0),MATCH($A10,'New Cache Credit'!$W$74:$AH$74,0))/$RI10)/1.9835,0))-DI10-DS10 -> 0 | EH10: =-0.39*(INDEX('GIC Credit'!$B$77:$M$104,MATCH($B$2,'GIC Credit'!$A$77:$A$104,0),MATCH($A10,'GIC Credit'!$B$77:$M$77,0))/$RI10/1.9835+ET10*'GIC Credit'!$Z$35+EU10*'GIC Credit'!$AO$35) -> -0.00029874 | EI10: =MAX(IF(AND(EE10="No",EF10>0),EF10,0),0) -> 0 | EJ10: =-(EI10*0.5/100*('Distances for Transit Losses'!$C$210+'Distances for Transit Losses'!$C$216)) -> 0 | EL10: =IF(EK10="yes",'Joint Aug Station Deliveries'!T10,0) -> 0 | EM10: =-(EL10*0.5/100*('Distances for Transit Losses'!$C$212+'Distances for Transit Losses'!$C$214+'Distances for Transit Losses'!$C$216)) -> 0 | EN10: =IF(EK10="Yes",'Joint Aug Station Deliveries'!W10,0) -> 0 | EO10: =-(EN10*0.5/100*('Distances for Transit Losses'!$C$214+'Distances for Transit Losses'!$C$216)) -> 0 | EP10: ='Joint Aug Station Deliveries'!BF10 -> 0 | EQ10: =-(EP10*0.5/100*'Distances for Transit Losses'!$C$220) -> 0 | ER10: =MIN(0,EF10)+SUM(EG10:EJ10)+SUM(EL10:EQ10) -> -0.00049024 | ES10: 0 | ET10: ='Joint Aug Station Deliveries'!BH10 -> 0 | EU10: ='Joint Aug Station Deliveries'!BI10 -> 0 | EV10: =-(IF(N10<99999.99999,INDEX('Hist RF to SPR'!$AF$6:$AQ$30,MATCH($B$2,'Hist RF to SPR'!$AE$6:$AE$30,0),MATCH($A10,'Hist RF to SPR'!$AF$5:$AQ$5,0))/RI10/1.9835,0)) -> 0 | EW10: =-0.36*(INDEX('GIC Credit'!$B$77:$M$104,MATCH($B$2,'GIC Credit'!$A$77:$A$104,0),MATCH($A10,'GIC Credit'!$B$77:$M$77,0))/$RI10/1.9835+ET10*'GIC Credit'!$Z$35+EU10*'GIC Credit'!$AO$35) -> -0.00027576 | EX10: =IF(AND(ER10<0,EE10="no"),ER10,0) -> -0.00049024 | EY10: -0.000766 | EZ10: no | FA10: 0 | FB10: 0 | FC10: 0 | FE10: 0.000766 | FF10: 0 | FG10: =IF(AND(IT10-IU10-GW10>0,IO10="no"),MIN(-(EY10+FE10+FF10)/(1-0.5/100*'Distances for Transit Losses'!$C$101),IT10-IU10-GW10),0) -> 0 | FH10: =-FG10*0.5/100*'Distances for Transit Losses'!$C$101 -> 0 | FI10: 0 | FJ10: =-FI10*0.5/100*'Distances for Transit Losses'!$C$119 -> 0 | FK10: =IF(AND(HA10-HB10-IW10>0,GM10="no"),MIN(-(EY10+FE10+FF10+FG10+FH10+FI10+FJ10)/(1-0.5/100*'Distances for Transit Losses'!$C$103),HA10-HB10-IW10),0) -> 0 | FL10: =-FK10*0.5/100*'Distances for Transit Losses'!$C$109 -> 0 | FM10: 0 | FO10: =IF(ER10>0,ER10,0) -> 0 | FQ10: =IF(AND(FP9="no",(SUM('Joint Aug Station Deliveries'!$AD$9:'Joint Aug Station Deliveries'!$AD9)+'Joint Aug Station Deliveries'!$AD10)*1.9835>'New Cache Credit'!$BY$35,(SUM('Joint Aug Station Deliveries'!$AD$9:'Joint Aug Station Deliveries'!$AD9)+'Joint Aug Station Deliveries'!$AD10)*1.9835>'New Cache Credit'!$CH$35),0,'Joint Aug Station Deliveries'!V10) -> 0 | FR10: =-(FQ10*0.5/100*'Distances for Transit Losses'!$C$202) -> 0 | FT10: =IF(AND(FS9="no",(SUM('Joint Aug Station Deliveries'!$AD$9:'Joint Aug Station Deliveries'!$AD9)+'Joint Aug Station Deliveries'!$AD10)*1.9835>'New Cache Credit'!$BY$35,(SUM('Joint Aug Station Deliveries'!$AD$9:'Joint Aug Station Deliveries'!$AD9)+'Joint Aug Station Deliveries'!$AD10)*1.9835>'New Cache Credit'!$CH$35),0,'Joint Aug Station Deliveries'!Y10) -> 0 | FU10: =-(FT10*0.5/100*'Distances for Transit Losses'!$C$194) -> 0 | FV10: =IF(AND(FS9="no",(SUM('Joint Aug Station Deliveries'!$AD$9:'Joint Aug Station Deliveries'!$AD9)+'Joint Aug Station Deliveries'!$AD10)*1.9835>'New Cache Credit'!$BY$35,(SUM('Joint Aug Station Deliveries'!$AD$9:'Joint Aug Station Deliveries'!$AD9)+'Joint Aug Station Deliveries'!$AD10)*1.9835>'New Cache Credit'!$CH$35),0,'Joint Aug Station Deliveries'!AB10) -> 0 | FW10: =-(FV10*0.5/100*'Distances for Transit Losses'!$C$200) -> 0 | FX10: =EY10+SUM(FE10:FM10)+FO10+FQ10+FR10+SUM(FT10:FW10) -> 0 | FY10: 0 | FZ10: =IF(LK10>EV10,LK10-FE10,0) -> 0.02776109711 | GA10: =LL10-FF10 -> 1.489733426 | GB10: =-(IF(N10<99999.99999,INDEX('Hist RF to SPR'!$Q$6:$AB$30,MATCH($B$2,'Hist RF to SPR'!$P$6:$P$30,0),MATCH($A10,'Hist RF to SPR'!$Q$5:$AB$5,0))/RI10/1.9835,0)) -> 0 | GC10: =-(IF(OR($N10<99999.99999,E10="Lower Latham",I10="Lower Latham",E10="Highland",I10="Highland",E10="Plum",I10="Plum"),(INDEX('FIDCO Credit'!$Y$44:$AJ$70,MATCH($B$2,'FIDCO Credit'!$X$44:$X$70,0),MATCH($A10,'FIDCO Credit'!$Y$43:$AJ$43,0))/$RI10)/1.9835,0)) -> 0 | GD10: =-(IF(OR($N10<99999.99999,E10="Lower Latham",I10="Lower Latham",E10="Highland",I10="Highland",E10="Plum",I10="Plum"),(INDEX('Western Credit'!$W$76:$AH$102,MATCH($B$2,'Western Credit'!$V$76:$V$102,0),MATCH($A10,'Western Credit'!$W$75:$AH$75,0))/$RI10)/1.9835,0)) -> 0 | GE10: 0 | GF10: 0 | GG10: =IF(GO10="yes",0,MIN(-GC10-GF10,HK10)) -> 0 | GH10: =IF(AND(GN10="no",GO10="no"),MIN(-(GC10-GF10-GG10)/(1-0.5/100*'Distances for Transit Losses'!$C$89),IL10),0) -> 0 | GI10: =-GH10*0.5/100*'Distances for Transit Losses'!$C$89 -> 0 | GJ10: =VLOOKUP($B10,'ECCV Haren Pond S.P. Acrtns'!$B$7:$G$306,6)/$RI10/1.9835 -> 1.36770332 | GK10: =MIN(-GE10-GF10-GG10-GH10,GJ10) -> 0 | GL10: =KR10 -> 0 | GM10: no | GN10: no | GO10: no | GP10: 0 | GQ10: 0 | GR10: 0 | GT10: =IF($GM10="No",MIN(-GE10-GK10,FZ10),0) -> 0 | GU10: =IF(AND(GM10="No",$BK10="No"),MIN(-(GE10+GK10+GT10),GA10),0) -> 0 | GV10: =GE10+GK10+GT10+GU10 -> 0 | GW10: =IF(AND(IT10-IU10>0,IO10="no"),MIN(-GV10/(1-0.5/100*'Distances for Transit Losses'!$C$105),IT10-IU10),0) -> 0 | GX10: =-GW10*0.5/100*'Distances for Transit Losses'!$C$105 -> 0 | GY10: =IF(AND(IX10+IY10-IZ10-JK10>0,IO10="no"),MIN((-GV10-(GW10+GX10))/(1-0.5/100*'Distances for Transit Losses'!$C$107),IX10+IY10-IZ10-JK10),0) -> 0 | GZ10: =-GY10*0.5/100*'Distances for Transit Losses'!$C$107 -> 0 | HA10: 0 | HB10: =IF(HA10>0,MIN(-(GV10+GW10+GX10+GY10+GZ10)/(1-0.5/100*'Distances for Transit Losses'!$C$109),HA10),0) -> 0 | HC10: =-HB10*0.5/100*'Distances for Transit Losses'!$C$109 -> 0 | HD10: 0 | HF10: =MIN(0,SUM(GV10:GZ10)+SUM(HB10:HD10)) -> 0 | HG10: ='Joint Aug Station Deliveries'!AQ10 -> 0 | HH10: =HG10*'Western Credit'!$Z$38 -> 0 | HI10: ='Joint Aug Station Deliveries'!AH10 -> 0 | HJ10: =IF(AND(HI10>0,SUM($HI$9:HI10,$HK$9:HK10,$IL$9:IL10)*1.9835<OFFSET('FIDCO Credit'!$X$35,0,MATCH($A10,'FIDCO Credit'!$Y$5:$AJ$5,0))),HI10-GF10,0) -> 0 | HK10: ='Joint Aug Station Deliveries'!AK10 -> 0 | HL10: =IF(AND(HK10>0,SUM($HI$9:HI10,$HK$9:HK10,$IL$9:IL10)*1.9835<OFFSET('FIDCO Credit'!$X$35,0,MATCH($A10,'FIDCO Credit'!$Y$5:$AJ$5,0))),HK10-GG10,0) -> 0 | HM10: =MAX(0,(KN10+KO10))/(1-0.5/100*'Distances for Transit Losses'!$C$77) -> 0 | HN10: =MAX(0,(KP10+KQ10)/(1-0.5/100*'Distances for Transit Losses'!$C$73)) -> 0 | HO10: 0 | HP10: =-HO10*0.5/100*'Distances for Transit Losses'!$C$79 -> 0 | HQ10: 0 | HR10: 0 | HS10: =-HR10*0.5/100*'Distances for Transit Losses'!$C$34 -> 0 | HT10: 0 | HU10: 0 | HV10: 0 | HW10: 0 | HX10: 0 | HY10: 0 | HZ10: =IF(AND($GM10="No",$BK10="No"),JO10,0) -> 1.489733426 | IA10: 0 | IB10: =IF(GM10="No",JN10,0) -> 0.02776109711 | IC10: 0 | ID10: 0 | IE10: 0 | IF10: =-IE10*0.5/100*'Distances for Transit Losses'!$C$117 -> 0 | IG10: =HU10+HX10+IA10+SUM(IC10:IF10) -> 0 | IH10: 1.36770332 | II10: 0.02776109711 | IJ10: 1.489733426 | IK10: =-(IF(F10<99999.99999,INDEX('Hist RF to SPR'!$B$6:$M$30,MATCH($B$2,'Hist RF to SPR'!$A$6:$A$30,0),MATCH($A10,'Hist RF to SPR'!$B$5:$M$5,0))/RI10/1.9835,0)) -> 0 | IL10: ='Joint Aug Station Deliveries'!AN10 -> 0 | IM10: =IF(AND(IL10>0,SUM($HI$9:HI10,$HK$9:HK10,$IL$9:IL10)*1.9835<OFFSET('FIDCO Credit'!$X$35,0,MATCH($A10,'FIDCO Credit'!$Y$5:$AJ$5,0))),IL10-GH10,0) -> 0 | IN10: =MIN(-IK10,IM10) -> 0 | IO10: no | IP10: =IF($IO10="No",MIN(-(IK10+IN10),II10),0) -> 0 | IQ10: =IF(AND(IO10="No",$BK10="No"),MIN(-(IK10+IN10+IP10),IJ10),0) -> 0 | IR10: =IF(AND($GN10="No"),MIN(-(IK10+IN10+IP10+IQ10),IH10),0) -> 0 | IS10: 0 | IT10: 0 | IU10: =IF(IT10>0,MIN(-IS10/(1-0.5/100*'Distances for Transit Losses'!$C$111),IT10),0) -> 0 | IV10: =-IU10*0.5/100*'Distances for Transit Losses'!$C$111 -> 0 | IW10: 0 | IX10: 0 | IY10: =-IX10*0.5/100*'Distances for Transit Losses'!$C$66 -> 0 | IZ10: =IF((IX10+IY10)>0,MIN((-IS10-(IU10-IV10)-IW10)/(1-0.5/100*'Distances for Transit Losses'!$C$113),(IX10+IY10)),0) -> 0 | JA10: =-IZ10*0.5/100*'Distances for Transit Losses'!$C$113 -> 0 | JB10: 0 | JD10: =IS10+IU10+IV10+IW10+IZ10+JA10+JB10 -> 0 | JE10: 1.489733426 | JF10: 0 | JG10: 0.02776109711 | JH10: 0 | JI10: 0 | JJ10: 0 | JK10: 0 | JL10: =-JK10*0.5/100*'Distances for Transit Losses'!$C$115 -> 0 | JM10: =JF10+JH10+JI10+JJ10+JK10+JL10 -> 0 | JN10: 0.02776109711 | JO10: 1.489733426 | JP10: =-(IF(N10<99999.99999,(VLOOKUP(B10,'ECCV Upper Dpln'!$B$7:$BD$306,55))/RI10/1.9835,0)) -> 0 | JQ10: =-(IF(N10<99999.99999,INDEX('Hist RF abv Milton'!$B$6:$M$30,MATCH($B$2,'Hist RF abv Milton'!$A$6:$A$30,0),MATCH($A10,'Hist RF abv Milton'!$B$5:$M$5,0))/RI10/1.9835,0)) -> 0 | JR10: 0 | JS10: =(VLOOKUP($B10,'ECCV Beebe Pond Acrtns'!$B$7:$BI$1206,41)+VLOOKUP($B10,'ECCV Canal Acrtns'!$B$7:$AL$1206,22)+VLOOKUP($B10,'2003 Beebe Pond Acrtns'!$B$7:$BI$1206,41)+VLOOKUP($B10,'2003 Canal Acrtns'!$B$7:$AL$1206,22))/$RI10/1.9835 -> 1.000835946 | JT10: 0 | JU10: 0 | JV10: 0 | JW10: 0 | JX10: =MIN($JV10,-($JP10+$JW10)) -> 0 | JY10: no | JZ10: 0 | KA10: 0 | KB10: 0 | KC10: 0 | KD10: =IF(AND(JY10="No",$BK10="No"),IF($JZ10>0,0,MIN(-(JP10+JW10+JX10+KB10),$BV10-KC10)),0) -> 0 | KE10: =IF($JY10="No",IF($JZ10>0,0,MIN(-(JQ10+KA10+KC10),FY10)),0) -> 0 | KF10: =IF($JY10="No",IF($JZ10>0,0,MIN(-(JP10+JW10+JX10+KB10+KD10),FY10-KE10)),0) -> 0 | KG10: =JP10+JW10+JX10+KB10+KD10+KF10 -> 0 | KH10: =JQ10+KA10+KC10+KE10 -> 0 | KI10: 0 | KJ10: =-(KI10*0.5/100*'Distances for Transit Losses'!$C$6) -> 0 | KK10: 0 | KL10: 0 | KM10: 0 | KN10: =IF(AND(E10<>"Lower Latham",I10<>"Lower Latham"),MIN(-(KH10+KK10),HJ10-HJ10*0.5/100*'Distances for Transit Losses'!$C$77),0) -> 0 | KO10: =IF(AND(E10<>"Lower Latham",I10<>"Lower Latham"),MAX(0,MIN(-(KG10+KI10+KJ10+KM10),HJ10-HJ10*0.5/100*'Distances for Transit Losses'!$C$77-KN10/(1-0.5/100*'Distances for Transit Losses'!$C$77))),0) -> 0 | KP10: =MIN(-(KH10+KN10),HH10-HH10*0.5/100*'Distances for Transit Losses'!$C$73) -> 0 | KQ10: =MAX(0,MIN(-(KG10+KI10+KJ10+KO10),HH10-HH10*0.5/100*'Distances for Transit Losses'!$C$73-KP10/(1-0.5/100*'Distances for Transit Losses'!$C$73))) -> 0 | KR10: =IF(EZ10="no",MIN(-(MIN(0,KG10+KI10+KJ10+KO10+KQ10)),(GJ10-GK10)-(GJ10-GK10)*0.5/100*'Distances for Transit Losses'!$C$73),0) -> 0 | KS10: =MAX(0,IF(AND(HA10-HB10-IW10-FK10>0,EZ10="no"),MIN(-(KG10+KI10+KJ10+KM10+KO10+KQ10+KR10)/(1-0.5/100*'Distances for Transit Losses'!$C$83),HA10-HB10-IW10-FK10),0)) -> 0 | KT10: =-KS10*0.5/100*'Distances for Transit Losses'!$C$83 -> 0 | KU10: 0 | KW10: =SUM(JP10:JR10)+JW10+JX10+SUM(KA10:KF10)+SUM(KI10:KU10) -> 0 | KX10: 1.000835946 | KY10: 0 | KZ10: 0.02852709711 | LA10: 1.489733426 | LB10: =-(IF(N10<99999.99999,INDEX('Hist RF blw Milton'!$B$6:$M$30,MATCH($B$2,'Hist RF blw Milton'!$A$6:$A$30,0),MATCH($A10,'Hist RF blw Milton'!$B$5:$M$5,0))/RI10/1.9835,0)) -> 0 | LC10: no | LD10: =IF($LC10="No",MIN(-LB10,$KZ10),0) -> 0 | LE10: 0 | LF10: 0 | LG10: 0 | LH10: 0 | LI10: 0 | LK10: 0.02852709711 | LL10: 1.489733426 | LM10: =-(IF(N10<99999.99999,INDEX('Hist RF to Box Elder'!$B$6:$M$30,MATCH($B$2,'Hist RF to Box Elder'!$A$6:$A$30,0),MATCH($A10,'Hist RF to Box Elder'!$B$5:$M$5,0))/RI10/1.9835,0)) -> 0 | LN10: =(VLOOKUP($B10,'ECCV Beebe Pond Acrtns'!$B$7:$BI$1206,54)+VLOOKUP($B10,'ECCV Canal Acrtns'!$B$7:$AL$1206,34)+VLOOKUP($B10,'2003 Beebe Pond Acrtns'!$B$7:$BI$1206,54)+VLOOKUP($B10,'2003 Canal Acrtns'!$B$7:$AL$1206,34)+VLOOKUP($B10,'84CW090 Beebe Pond Acrtns'!$B$7:$BI$1206,55)+VLOOKUP($B10,'84CW090 Canal Acrtns'!$B$7:$AL$1206,34))/$RI10/1.9835 -> 0.09630223027 | LO10: 0 | LP10: 0 | LQ10: 0 | LR10: 0 | LT10: -0.0009575 | LU10: =JW10+JX10+SUM(KA10:KF10)+SUM(KI10:KU10) -> 0 | LV10: 0 | LW10: 0 | LX10: =IN10+IP10+IQ10+IR10+IU10+IV10+IW10+IZ10+JA10+JB10 -> 0 | LY10: =GF10+GG10+GH10+GK10+GT10+GU10+GW10+GX10+GY10+GZ10+SUM(HB10:HD10) -> 0 | LZ10: 0.000766 | MA10: 0 | MB10: 0 | MC10: 0 | MD10: 0.000766 | ME10: -0.0001915 | MF10: =KX10 -> 1.000835946 | MG10: 0.02776109711 | MH10: 1.489733426 | MO10: 0 | MP10: 0 | MQ10: 0 | MS10: 0 | MT10: 0 | MU10: 0 | MV10: 0 | MW10: 0 | MX10: 0 | MY10: 0 | MZ10: 0 | NA10: 0 | NB10: 0 | NC10: 0 | ND10: 0 | NF10: 0 | NG10: 0 | NH10: 0 | NI10: 0 | NJ10: 0 | NK10: 0 | NL10: 0 | NM10: 0 | NN10: 0 | NO10: 0 | NP10: 0 | NR10: 1.517494523 | NS10: 0 | NT10: 0 | NU10: 0 | NV10: 0 | NW10: 0 | NX10: 0 | NY10: 0 | NZ10: 0 | OA10: 0 | OB10: 0 | OH10: 0 | OI10: 0 | OJ10: 0 | OK10: 0 | OL10: 0 | OM10: 0 | ON10: 0 | OO10: 0 | OP10: 0 | OR10: 0 | OS10: 0 | OT10: 0 | OU10: 0 | OV10: 0 | OW10: 0 | OX10: 0 | OY10: 0 | OZ10: 0 | PC10: 0 | PD10: 0 | PE10: 0 | PF10: 0 | PG10: 0 | PH10: 0 | PI10: 0 | PL10: 0 | PM10: 0 | PP10: 0 | PQ10: 0 | PR10: 0 | PU10: 0 | PV10: 0 | PW10: 0 | PX10: 0 | PY10: =SUM(PU10:PX10) -> 0 | PZ10: 0 | QA10: 0 | QC10: 0 | QD10: 0 | QE10: 0 | QF10: =MP10+SUM(NS10:NY10)+SUM(NG10:NM10)+SUM(MT10:NA10)+SUM(OH10:OM10)+SUM(OS10:OW10)+SUM(PC10:PF10)+SUM(PU10:PX10) -> 0 | QG10: =IF(QF10*1.9835>8706,"Exceeded Annual Maximum",QF10*1.9835) -> 0 | QH10: 309.6 | QJ10: 1.000835946 | QK10: 0 | QL10: 0 | QM10: 0 | QN10: 0 | QO10: 0 | QP10: 0 | QQ10: 0 | QR10: 0 | QS10: 0 | QT10: 0 | QU10: 0 | QV10: 0 | QW10: 0 | QX10: 0 | QY10: 0 | QZ10: 0 | RA10: 0 | RB10: 0 | RC10: 0 | RD10: =QJ10-SUM(QK10:RC10) -> 1.000835946 | RF10: 0 | RG10: 0 | RI10: =VLOOKUP(A10,'Control Sheet'!$G$9:$H$20,2) -> 30
A11: Apr | B11: 2016-04-03 | C11: Free River | F11: 99999.99999 | K11: Free River | N11: 99999.99999 | S11: 1.517494523 | T11: 0 | U11: 0 | V11: 0 | X11: 0 | Y11: =('NFC Well Pumping'!$L9+'NFC Well Pumping'!$L46+'NFC Well Pumping'!$L82)/1.9835 -> 0 | Z11: ='88CW264(B) Pumping'!$E9/1.9835+'88CW264(B) Pumping'!$E45/1.9835+'88CW264(B) Pumping'!E85/1.9835+'88CW264(B) Pumping'!E121/1.9835+'88CW264(B) Pumping'!E161/1.9835+'88CW264(B) Pumping'!E197/1.9835 -> 0.01157311677 | AA11: =$MG11+$MH11 -> 1.517494523 | AB11: =('United No. 2 Well Pumping'!G10+'United No. 2 Well Pumping'!G46+'United No. 2 Well Pumping'!G82)/1.9835 -> 0 | AC11: =('United No. 2 Well Pumping'!F10+'United No. 2 Well Pumping'!F46+'United No. 2 Well Pumping'!F82)/1.9835 -> 0 | AD11: 0 | AF11: 0.01157311677 | AG11: =U11+AC11+'United Res'!AA173+'United Res'!AQ173+'Milliken Res'!I161 -> 0 | AH11: 100 | AI11: =-(IF($N11=99999.99999,0,VLOOKUP($B11,'NFC Well Dplns-URF'!B$7:$AB$306,27))/$RI11/1.9835) -> 0 | AJ11: 0 | AL11: =(VLOOKUP($B11,'ECCV 70R Pond Acrtns'!$B$7:$AI$1206,34)+VLOOKUP($B11,'2003 70R Pond Acrtns'!$B$7:$AI$1206,34)+VLOOKUP($B11,'ECCV 70R Canal Acrtns'!$B$7:$AI$1206,27)+VLOOKUP($B11,'2003 70R Canal Acrtns'!$B$7:$AI$1206,27))/$RI11/1.9835 -> 0 | AM11: 0 | AN11: =-(IF($N11=99999.99999,0,VLOOKUP($B11,'NFC Well Dplns-SDF'!$B$7:$Z$306,25)+VLOOKUP($B11,'NFC Well Dplns-URF'!B$7:$AB$306,20))/$RI11/1.9835) -> 0 | AO11: 0 | AP11: 0 | AR11: =IF(N11<99999.99999,-((AV11+AW11)*'Weldon Credit'!$Z$38+(INDEX('Weldon Credit'!$V$75:$AH$102,MATCH($B$2,'Weldon Credit'!$V$75:$V$102,0),MATCH(A11,'Weldon Credit'!$V$75:$AH$75,0))/RI11)/1.9835),0) -> 0 | AS11: =0.4*(INDEX('Riverside Pond Accrtns'!$B$6:$M$36,MATCH($B$2,'Riverside Pond Accrtns'!$A$6:$A$36,0),MATCH('ECCV Daily Replacement Summary'!A11,'Riverside Pond Accrtns'!$B$5:$M$5,0))/RI11)/1.9835 -> 1.238887488 | AT11: =(44/640)*(INDEX('Weldon Valley Accrtns (02CW377)'!$B$6:$M$30,MATCH($B$2,'Weldon Valley Accrtns (02CW377)'!$A$6:$A$30,0),MATCH(A11,'Weldon Valley Accrtns (02CW377)'!$B$5:$M$5,0))/RI11)/1.9835 -> 0.2508459373 | AU11: =(VLOOKUP($B11,'ECCV 70R Pond Acrtns'!$B$7:$AI$1206,25)+VLOOKUP($B11,'ECCV 70R Canal Acrtns'!$B$7:$AI$1206,20)+VLOOKUP($B11,'2003 70R Pond Acrtns'!$B$7:$AI$1206,25)+VLOOKUP($B11,'2003 70R Canal Acrtns'!$B$7:$AI$1206,20))/$RI11/1.9835 -> 0 | AV11: ='Joint Aug Station Deliveries'!G11 -> 0 | AW11: ='Joint Aug Station Deliveries'!J11 -> 0 | AX11: =IF(AV11+AW11>0,AV11+AW11-AY11,0) -> 0 | AY11: =MIN(-AR11,AV11+AW11) -> 0 | AZ11: =MIN(-($AR11+AY11)/(1-0.5/100*'Distances for Transit Losses'!$C$71),AS11-AS11*0.5/100*'Distances for Transit Losses'!$C$71) -> 0 | BA11: =MAX(0,MIN(-($AR11+AY11+AZ11),AT11)) -> 0 | BB11: =MAX(0,MIN(-($AR11+AY11+AZ11+BA11),AU11-AU11*0.5/100*'Distances for Transit Losses'!$C$71)) -> 0 | BC11: =-((AZ11+BB11)*(0.5/100*'Distances for Transit Losses'!$C$71)) -> 0 | BD11: =IF(AND(JF11-JG11-FQ11-DL11>0,IW11="no"),MIN(-(AR11+AY11+AZ11+BA11+BB11+BC11)/(1-0.5/100*'Distances for Transit Losses'!$C$93),JF11-JG11-FQ11-DL11),0) -> 0 | BE11: =--BD11*0.5/100*'Distances for Transit Losses'!C$93 -> 0 | BF11: =IF(AND(HA11-HB11-IW11-FK11-KS11-DF11>0,EZ11="no"),MIN(-(AR11+SUM(AY11:BE11))/(1-0.5/100*'Distances for Transit Losses'!$C$99),HA11-HB11-IW11-FK11-KS11-DF11),0) -> 0 | BG11: =--BF11*0.5/100*'Distances for Transit Losses'!$C$95 -> 0 | BH11: 0 | BJ11: no | BK11: no | BL11: 0 | BM11: 0 | BN11: 0 | BP11: =IF($BK11="No",MIN(-CW11,AS11-AZ11/(1-0.5/100*'Distances for Transit Losses'!$C$71)),0) -> 0 | BQ11: =IF($BK11="No",MIN(-CW11+BP11,AU11-BB11/(1-0.5/100*'Distances for Transit Losses'!$C$71)),0) -> 0 | BR11: 0 | BS11: 0 | BT11: 0 | BU11: =AN11+AO11+AR11+AS11+AT11+AU11+AV11+AW11 -> 1.489733426 | BV11: =AN11+AO11+AR11+AS11+AT11+AU11+AV11+AW11-SUM(BP11:BT11) -> 1.489733426 | BW11: =-(IF($N11=99999.99999,0,VLOOKUP($B11,'NFC Well Dplns-SDF'!$B$7:$Z$306,16)+VLOOKUP($B11,'NFC Well Dplns-URF'!$B$7:$AB$306,13))/$RI11/1.9835) -> 0 | BX11: =-(IF($N11>=99999,0,'88CW264(B) Pumping'!$E9/1.9835)+IF($N11>=99999,0,'88CW264(B) Pumping'!$E45/1.9835)+IF($N11>=99999,0,'88CW264(B) Pumping'!$E85/1.9835)+IF($N11>=99999,0,'88CW264(B) Pumping'!$E121/1.9835)+IF($N11>=51134.50919,0,'88CW264(B) Pumping'!$E161/1.9835)+IF($N11>=53406,0,'88CW264(B) Pumping'!$E197/1.9835)) -> 0 | BY11: 0 | BZ11: 0 | CA11: 0 | CC11: =-(IF($N11=99999.99999,0,VLOOKUP($B11,'United No. 2 Dplns'!$B$7:$X$676,13)/1.9835)) -> 0 | CD11: =CC11+(-(INDEX('Pre 1995 Net Accretions'!$B$6:$M$105,MATCH($B$2,'Pre 1995 Net Accretions'!$A$6:$A$105,0),MATCH($A11,'Pre 1995 Net Accretions'!$B$5:$M$5,0))/$RI11/1.9835)) -> 0.02852709711 | CE11: =-(IF(N11<99999.99999,(INDEX('70 Ranch RF Obligation'!$B$6:$M$30,MATCH($B$2,'70 Ranch RF Obligation'!$A$6:$A$30,0),MATCH('ECCV Daily Replacement Summary'!A11,'70 Ranch RF Obligation'!$B$5:$M$5,0))/RI11)/1.9835,0))-CH11*(1-'L. Latham Credit'!$E$37) -> 0 | CF11: 0 | CG11: =(VLOOKUP($B11,'ECCV 70R Pond Acrtns'!$B$7:$AI$1206,16)+VLOOKUP($B11,'ECCV 70R Canal Acrtns'!$B$7:$AI$1206,13)+VLOOKUP($B11,'2003 70R Pond Acrtns'!$B$7:$AI$1206,16)+VLOOKUP($B11,'2003 70R Canal Acrtns'!$B$7:$AI$1206,13))/$RI11/1.9835 -> 0 | CH11: 0 | CI11: 0 | CJ11: 0 | CK11: 0 | CL11: 0 | CM11: 0 | CN11: 0 | CP11: 0.02852709711 | CQ11: 0 | CR11: 0 | CS11: =-CR11*0.5/100*'Distances for Transit Losses'!$C$46 -> 0 | CT11: 0 | CU11: 0 | CV11: 0 | CW11: =BY11+BZ11+CA11+CF11+CJ11+CQ11+CT11 -> 0 | CX11: 0 | CY11: 0 | CZ11: 0 | DA11: =('NFC Well Pumping'!I9+'NFC Well Pumping'!I46+'NFC Well Pumping'!I82)/1.9835 -> 0 | DB11: =IF(AND(IT11-IU11-FG11>0,IO11="no"),MIN(-SUM(CW11:DA11)/(1-0.5/100*'Distances for Transit Losses'!$C$97),IT11-IU11-FG11),0) -> 0 | DC11: =-DB11*0.5/100*'Distances for Transit Losses'!C$97 -> 0 | DD11: 0 | DE11: =--DD11*0.5/100*'Distances for Transit Losses'!$C$121 -> 0 | DF11: =IF(AND(HA11-HB11-IW11-FK11-KS11>0,EZ11="no"),MIN(-SUM(CW11:DE11)/(1-0.5/100*'Distances for Transit Losses'!$C$99),HA11-HB11-IW11-FK11-KS11),0) -> 0 | DG11: =--DF11*0.5/100*'Distances for Transit Losses'!$C$99 -> 0 | DH11: =CG11+CP11-CQ11-CR11+CS11-SUM(CT11:CV11) -> 0.02852709711 | DI11: 0 | DJ11: ='Joint Aug Station Deliveries'!M11 -> 0 | DK11: =-(DJ11*0.5/100*'Distances for Transit Losses'!$C$206) -> 0 | DL11: 0 | DN11: no | DP11: 0 | DQ11: 0 | DR11: =-(DQ11*0.5/100*'Distances for Transit Losses'!$C$208) -> 0 | DS11: 0 | DT11: =-0.25*(INDEX('GIC Credit'!$B$77:$M$104,MATCH($B$2,'GIC Credit'!$A$77:$A$104,0),MATCH($A11,'GIC Credit'!$B$77:$M$77,0))/$RI11/1.9835+ET11*'GIC Credit'!$Z$35+EU11*'GIC Credit'!$AO$35) -> -0.0001915 | DU11: -0.0001915 | DV11: 0 | DW11: ='Joint Aug Station Deliveries'!BD11 -> 0 | DX11: =-(DW11*0.5/100*'Distances for Transit Losses'!$C$234) -> 0 | DY11: ='Joint Aug Station Deliveries'!BE11 -> 0 | DZ11: =-(DY11*0.5/100*'Distances for Transit Losses'!$C$236) -> 0 | EA11: 0 | EB11: =-(EA11*0.5/100*'Distances for Transit Losses'!$C$228) -> 0 | EC11: 0 | EE11: no | EF11: -0.0001915 | EG11: =-(IF($N11<99999.99999,(INDEX('New Cache Credit'!$W$74:$AH$99,MATCH($B$2,'New Cache Credit'!$V$74:$V$99,0),MATCH($A11,'New Cache Credit'!$W$74:$AH$74,0))/$RI11)/1.9835,0))-DI11-DS11 -> 0 | EH11: =-0.39*(INDEX('GIC Credit'!$B$77:$M$104,MATCH($B$2,'GIC Credit'!$A$77:$A$104,0),MATCH($A11,'GIC Credit'!$B$77:$M$77,0))/$RI11/1.9835+ET11*'GIC Credit'!$Z$35+EU11*'GIC Credit'!$AO$35) -> -0.00029874 | EI11: 0 | EJ11: =-(EI11*0.5/100*('Distances for Transit Losses'!$C$210+'Distances for Transit Losses'!$C$216)) -> 0 | EL11: =IF(EK11="yes",'Joint Aug Station Deliveries'!T11,0) -> 0 | EM11: =-(EL11*0.5/100*('Distances for Transit Losses'!$C$212+'Distances for Transit Losses'!$C$214+'Distances for Transit Losses'!$C$216)) -> 0 | EN11: =IF(EK11="Yes",'Joint Aug Station Deliveries'!W11,0) -> 0 | EO11: =-(EN11*0.5/100*('Distances for Transit Losses'!$C$214+'Distances for Transit Losses'!$C$216)) -> 0 | EP11: ='Joint Aug Station Deliveries'!BF11 -> 0 | EQ11: =-(EP11*0.5/100*'Distances for Transit Losses'!$C$220) -> 0 | ER11: -0.00049024 | ES11: 0 | ET11: ='Joint Aug Station Deliveries'!BH11 -> 0 | EU11: ='Joint Aug Station Deliveries'!BI11 -> 0 | EV11: =-(IF(N11<99999.99999,INDEX('Hist RF to SPR'!$AF$6:$AQ$30,MATCH($B$2,'Hist RF to SPR'!$AE$6:$AE$30,0),MATCH($A11,'Hist RF to SPR'!$AF$5:$AQ$5,0))/RI11/1.9835,0)) -> 0 | EW11: =-0.36*(INDEX('GIC Credit'!$B$77:$M$104,MATCH($B$2,'GIC Credit'!$A$77:$A$104,0),MATCH($A11,'GIC Credit'!$B$77:$M$77,0))/$RI11/1.9835+ET11*'GIC Credit'!$Z$35+EU11*'GIC Credit'!$AO$35) -> -0.00027576 | EX11: -0.00049024 | EY11: -0.000766 | EZ11: no | FA11: 0 | FB11: 0 | FC11: 0 | FE11: 0.000766 | FF11: 0 | FG11: =IF(AND(IT11-IU11-GW11>0,IO11="no"),MIN(-(EY11+FE11+FF11)/(1-0.5/100*'Distances for Transit Losses'!$C$101),IT11-IU11-GW11),0) -> 0 | FH11: =-FG11*0.5/100*'Distances for Transit Losses'!$C$101 -> 0 | FI11: 0 | FJ11: =-FI11*0.5/100*'Distances for Transit Losses'!$C$119 -> 0 | FK11: =IF(AND(HA11-HB11-IW11>0,GM11="no"),MIN(-(EY11+FE11+FF11+FG11+FH11+FI11+FJ11)/(1-0.5/100*'Distances for Transit Losses'!$C$103),HA11-HB11-IW11),0) -> 0 | FL11: =-FK11*0.5/100*'Distances for Transit Losses'!$C$109 -> 0 | FM11: 0 | FO11: 0 | FQ11: =IF(AND(FP10="no",(SUM('Joint Aug Station Deliveries'!$AD$9:'Joint Aug Station Deliveries'!$AD10)+'Joint Aug Station Deliveries'!$AD11)*1.9835>'New Cache Credit'!$BY$35,(SUM('Joint Aug Station Deliveries'!$AD$9:'Joint Aug Station Deliveries'!$AD10)+'Joint Aug Station Deliveries'!$AD11)*1.9835>'New Cache Credit'!$CH$35),0,'Joint Aug Station Deliveries'!V11) -> 0 | FR11: =-(FQ11*0.5/100*'Distances for Transit Losses'!$C$202) -> 0 | FT11: =IF(AND(FS10="no",(SUM('Joint Aug Station Deliveries'!$AD$9:'Joint Aug Station Deliveries'!$AD10)+'Joint Aug Station Deliveries'!$AD11)*1.9835>'New Cache Credit'!$BY$35,(SUM('Joint Aug Station Deliveries'!$AD$9:'Joint Aug Station Deliveries'!$AD10)+'Joint Aug Station Deliveries'!$AD11)*1.9835>'New Cache Credit'!$CH$35),0,'Joint Aug Station Deliveries'!Y11) -> 0 | FU11: =-(FT11*0.5/100*'Distances for Transit Losses'!$C$194) -> 0 | FV11: =IF(AND(FS10="no",(SUM('Joint Aug Station Deliveries'!$AD$9:'Joint Aug Station Deliveries'!$AD10)+'Joint Aug Station Deliveries'!$AD11)*1.9835>'New Cache Credit'!$BY$35,(SUM('Joint Aug Station Deliveries'!$AD$9:'Joint Aug Station Deliveries'!$AD10)+'Joint Aug Station Deliveries'!$AD11)*1.9835>'New Cache Credit'!$CH$35),0,'Joint Aug Station Deliveries'!AB11) -> 0 | FW11: =-(FV11*0.5/100*'Distances for Transit Losses'!$C$200) -> 0 | FX11: 0 | FY11: 0 | FZ11: 0.02776109711 | GA11: 1.489733426 | GB11: =-(IF(N11<99999.99999,INDEX('Hist RF to SPR'!$Q$6:$AB$30,MATCH($B$2,'Hist RF to SPR'!$P$6:$P$30,0),MATCH($A11,'Hist RF to SPR'!$Q$5:$AB$5,0))/RI11/1.9835,0)) -> 0 | GC11: =-(IF(OR($N11<99999.99999,E11="Lower Latham",I11="Lower Latham",E11="Highland",I11="Highland",E11="Plum",I11="Plum"),(INDEX('FIDCO Credit'!$Y$44:$AJ$70,MATCH($B$2,'FIDCO Credit'!$X$44:$X$70,0),MATCH($A11,'FIDCO Credit'!$Y$43:$AJ$43,0))/$RI11)/1.9835,0)) -> 0 | GD11: =-(IF(OR($N11<99999.99999,E11="Lower Latham",I11="Lower Latham",E11="Highland",I11="Highland",E11="Plum",I11="Plum"),(INDEX('Western Credit'!$W$76:$AH$102,MATCH($B$2,'Western Credit'!$V$76:$V$102,0),MATCH($A11,'Western Credit'!$W$75:$AH$75,0))/$RI11)/1.9835,0)) -> 0 | GE11: 0 | GF11: 0 | GG11: 0 | GH11: =IF(AND(GN11="no",GO11="no"),MIN(-(GC11-GF11-GG11)/(1-0.5/100*'Distances for Transit Losses'!$C$89),IL11),0) -> 0 | GI11: =-GH11*0.5/100*'Distances for Transit Losses'!$C$89 -> 0 | GJ11: =VLOOKUP($B11,'ECCV Haren Pond S.P. Acrtns'!$B$7:$G$306,6)/$RI11/1.9835 -> 1.36770332 | GK11: 0 | GL11: 0 | GM11: no | GN11: no | GO11: no | GP11: 0 | GQ11: 0 | GR11: 0 | GT11: 0 | GU11: 0 | GV11: 0 | GW11: =IF(AND(IT11-IU11>0,IO11="no"),MIN(-GV11/(1-0.5/100*'Distances for Transit Losses'!$C$105),IT11-IU11),0) -> 0 | GX11: =-GW11*0.5/100*'Distances for Transit Losses'!$C$105 -> 0 | GY11: =IF(AND(IX11+IY11-IZ11-JK11>0,IO11="no"),MIN((-GV11-(GW11+GX11))/(1-0.5/100*'Distances for Transit Losses'!$C$107),IX11+IY11-IZ11-JK11),0) -> 0 | GZ11: =-GY11*0.5/100*'Distances for Transit Losses'!$C$107 -> 0 | HA11: 0 | HB11: =IF(HA11>0,MIN(-(GV11+GW11+GX11+GY11+GZ11)/(1-0.5/100*'Distances for Transit Losses'!$C$109),HA11),0) -> 0 | HC11: =-HB11*0.5/100*'Distances for Transit Losses'!$C$109 -> 0 | HD11: 0 | HF11: 0 | HG11: ='Joint Aug Station Deliveries'!AQ11 -> 0 | HH11: =HG11*'Western Credit'!$Z$38 -> 0 | HI11: ='Joint Aug Station Deliveries'!AH11 -> 0 | HJ11: =IF(AND(HI11>0,SUM($HI$9:HI11,$HK$9:HK11,$IL$9:IL11)*1.9835<OFFSET('FIDCO Credit'!$X$35,0,MATCH($A11,'FIDCO Credit'!$Y$5:$AJ$5,0))),HI11-GF11,0) -> 0 | HK11: ='Joint Aug Station Deliveries'!AK11 -> 0 | HL11: =IF(AND(HK11>0,SUM($HI$9:HI11,$HK$9:HK11,$IL$9:IL11)*1.9835<OFFSET('FIDCO Credit'!$X$35,0,MATCH($A11,'FIDCO Credit'!$Y$5:$AJ$5,0))),HK11-GG11,0) -> 0 | HM11: =MAX(0,(KN11+KO11))/(1-0.5/100*'Distances for Transit Losses'!$C$77) -> 0 | HN11: =MAX(0,(KP11+KQ11)/(1-0.5/100*'Distances for Transit Losses'!$C$73)) -> 0 | HO11: 0 | HP11: =-HO11*0.5/100*'Distances for Transit Losses'!$C$79 -> 0 | HQ11: 0 | HR11: 0 | HS11: =-HR11*0.5/100*'Distances for Transit Losses'!$C$34 -> 0 | HT11: 0 | HU11: 0 | HV11: 0 | HW11: 0 | HX11: 0 | HY11: 0 | HZ11: 1.489733426 | IA11: 0 | IB11: 0.02776109711 | IC11: 0 | ID11: 0 | IE11: 0 | IF11: =-IE11*0.5/100*'Distances for Transit Losses'!$C$117 -> 0 | IG11: 0 | IH11: 1.36770332 | II11: 0.02776109711 | IJ11: 1.489733426 | IK11: =-(IF(F11<99999.99999,INDEX('Hist RF to SPR'!$B$6:$M$30,MATCH($B$2,'Hist RF to SPR'!$A$6:$A$30,0),MATCH($A11,'Hist RF to SPR'!$B$5:$M$5,0))/RI11/1.9835,0)) -> 0 | IL11: ='Joint Aug Station Deliveries'!AN11 -> 0 | IM11: =IF(AND(IL11>0,SUM($HI$9:HI11,$HK$9:HK11,$IL$9:IL11)*1.9835<OFFSET('FIDCO Credit'!$X$35,0,MATCH($A11,'FIDCO Credit'!$Y$5:$AJ$5,0))),IL11-GH11,0) -> 0 | IN11: 0 | IO11: no | IP11: 0 | IQ11: 0 | IR11: 0 | IS11: 0 | IT11: 0 | IU11: =IF(IT11>0,MIN(-IS11/(1-0.5/100*'Distances for Transit Losses'!$C$111),IT11),0) -> 0 | IV11: =-IU11*0.5/100*'Distances for Transit Losses'!$C$111 -> 0 | IW11: 0 | IX11: 0 | IY11: =-IX11*0.5/100*'Distances for Transit Losses'!$C$66 -> 0 | IZ11: =IF((IX11+IY11)>0,MIN((-IS11-(IU11-IV11)-IW11)/(1-0.5/100*'Distances for Transit Losses'!$C$113),(IX11+IY11)),0) -> 0 | JA11: =-IZ11*0.5/100*'Distances for Transit Losses'!$C$113 -> 0 | JB11: 0 | JD11: 0 | JE11: 1.489733426 | JF11: 0 | JG11: 0.02776109711 | JH11: 0 | JI11: 0 | JJ11: 0 | JK11: 0 | JL11: =-JK11*0.5/100*'Distances for Transit Losses'!$C$115 -> 0 | JM11: =JF11+JH11+JI11+JJ11+JK11+JL11 -> 0 | JN11: 0.02776109711 | JO11: 1.489733426 | JP11: =-(IF(N11<99999.99999,(VLOOKUP(B11,'ECCV Upper Dpln'!$B$7:$BD$306,55))/RI11/1.9835,0)) -> 0 | JQ11: =-(IF(N11<99999.99999,INDEX('Hist RF abv Milton'!$B$6:$M$30,MATCH($B$2,'Hist RF abv Milton'!$A$6:$A$30,0),MATCH($A11,'Hist RF abv Milton'!$B$5:$M$5,0))/RI11/1.9835,0)) -> 0 | JR11: 0 | JS11: =(VLOOKUP($B11,'ECCV Beebe Pond Acrtns'!$B$7:$BI$1206,41)+VLOOKUP($B11,'ECCV Canal Acrtns'!$B$7:$AL$1206,22)+VLOOKUP($B11,'2003 Beebe Pond Acrtns'!$B$7:$BI$1206,41)+VLOOKUP($B11,'2003 Canal Acrtns'!$B$7:$AL$1206,22))/$RI11/1.9835 -> 1.000835946 | JT11: 0 | JU11: 0 | JV11: 0 | JW11: 0 | JX11: 0 | JY11: no | JZ11: 0 | KA11: 0 | KB11: 0 | KC11: 0 | KD11: 0 | KE11: 0 | KF11: 0 | KG11: 0 | KH11: 0 | KI11: 0 | KJ11: =-(KI11*0.5/100*'Distances for Transit Losses'!$C$6) -> 0 | KK11: 0 | KL11: 0 | KM11: 0 | KN11: =IF(AND(E11<>"Lower Latham",I11<>"Lower Latham"),MIN(-(KH11+KK11),HJ11-HJ11*0.5/100*'Distances for Transit Losses'!$C$77),0) -> 0 | KO11: =IF(AND(E11<>"Lower Latham",I11<>"Lower Latham"),MAX(0,MIN(-(KG11+KI11+KJ11+KM11),HJ11-HJ11*0.5/100*'Distances for Transit Losses'!$C$77-KN11/(1-0.5/100*'Distances for Transit Losses'!$C$77))),0) -> 0 | KP11: =MIN(-(KH11+KN11),HH11-HH11*0.5/100*'Distances for Transit Losses'!$C$73) -> 0 | KQ11: =MAX(0,MIN(-(KG11+KI11+KJ11+KO11),HH11-HH11*0.5/100*'Distances for Transit Losses'!$C$73-KP11/(1-0.5/100*'Distances for Transit Losses'!$C$73))) -> 0 | KR11: =IF(EZ11="no",MIN(-(MIN(0,KG11+KI11+KJ11+KO11+KQ11)),(GJ11-GK11)-(GJ11-GK11)*0.5/100*'Distances for Transit Losses'!$C$73),0) -> 0 | KS11: =MAX(0,IF(AND(HA11-HB11-IW11-FK11>0,EZ11="no"),MIN(-(KG11+KI11+KJ11+KM11+KO11+KQ11+KR11)/(1-0.5/100*'Distances for Transit Losses'!$C$83),HA11-HB11-IW11-FK11),0)) -> 0 | KT11: =-KS11*0.5/100*'Distances for Transit Losses'!$C$83 -> 0 | KU11: 0 | KW11: 0 | KX11: 1.000835946 | KY11: 0 | KZ11: 0.02852709711 | LA11: 1.489733426 | LB11: =-(IF(N11<99999.99999,INDEX('Hist RF blw Milton'!$B$6:$M$30,MATCH($B$2,'Hist RF blw Milton'!$A$6:$A$30,0),MATCH($A11,'Hist RF blw Milton'!$B$5:$M$5,0))/RI11/1.9835,0)) -> 0 | LC11: no | LD11: 0 | LE11: 0 | LF11: 0 | LG11: 0 | LH11: 0 | LI11: 0 | LK11: 0.02852709711 | LL11: 1.489733426 | LM11: =-(IF(N11<99999.99999,INDEX('Hist RF to Box Elder'!$B$6:$M$30,MATCH($B$2,'Hist RF to Box Elder'!$A$6:$A$30,0),MATCH($A11,'Hist RF to Box Elder'!$B$5:$M$5,0))/RI11/1.9835,0)) -> 0 | LN11: =(VLOOKUP($B11,'ECCV Beebe Pond Acrtns'!$B$7:$BI$1206,54)+VLOOKUP($B11,'ECCV Canal Acrtns'!$B$7:$AL$1206,34)+VLOOKUP($B11,'2003 Beebe Pond Acrtns'!$B$7:$BI$1206,54)+VLOOKUP($B11,'2003 Canal Acrtns'!$B$7:$AL$1206,34)+VLOOKUP($B11,'84CW090 Beebe Pond Acrtns'!$B$7:$BI$1206,55)+VLOOKUP($B11,'84CW090 Canal Acrtns'!$B$7:$AL$1206,34))/$RI11/1.9835 -> 0.09630223027 | LO11: 0 | LP11: 0 | LQ11: 0 | LR11: 0 | LT11: -0.0009575 | LU11: 0 | LV11: 0 | LW11: 0 | LX11: 0 | LY11: 0 | LZ11: 0.000766 | MA11: 0 | MB11: 0 | MC11: 0 | MD11: 0.000766 | ME11: -0.0001915 | MF11: 1.000835946 | MG11: 0.02776109711 | MH11: 1.489733426 | MO11: 0 | MP11: 0 | MQ11: 0 | MS11: 0 | MT11: 0 | MU11: 0 | MV11: 0 | MW11: 0 | MX11: 0 | MY11: 0 | MZ11: 0 | NA11: 0 | NB11: 0 | NC11: 0 | ND11: 0 | NF11: 0 | NG11: 0 | NH11: 0 | NI11: 0 | NJ11: 0 | NK11: 0 | NL11: 0 | NM11: 0 | NN11: 0 | NO11: 0 | NP11: 0 | NR11: 1.517494523 | NS11: 0 | NT11: 0 | NU11: 0 | NV11: 0 | NW11: 0 | NX11: 0 | NY11: 0 | NZ11: 0 | OA11: 0 | OB11: 0 | OH11: 0 | OI11: 0 | OJ11: 0 | OK11: 0 | OL11: 0 | OM11: 0 | ON11: 0 | OO11: 0 | OP11: 0 | OR11: 0 | OS11: 0 | OT11: 0 | OU11: 0 | OV11: 0 | OW11: 0 | OX11: 0 | OY11: 0 | OZ11: 0 | PC11: 0 | PD11: 0 | PE11: 0 | PF11: 0 | PG11: 0 | PH11: 0 | PI11: 0 | PL11: 0 | PM11: 0 | PP11: 0 | PQ11: 0 | PR11: 0 | PU11: 0 | PV11: 0 | PW11: 0 | PX11: 0 | PY11: 0 | PZ11: 0 | QA11: 0 | QC11: 0 | QD11: 0 | QE11: 0 | QF11: =MP11+SUM(NS11:NY11)+SUM(NG11:NM11)+SUM(MT11:NA11)+SUM(OH11:OM11)+SUM(OS11:OW11)+SUM(PC11:PF11)+SUM(PU11:PX11) -> 0 | QG11: 0 | QH11: 309.6 | QJ11: 1.000835946 | QK11: 0 | QL11: 0 | QM11: 0 | QN11: 0 | QO11: 0 | QP11: 0 | QQ11: 0 | QR11: 0 | QS11: 0 | QT11: 0 | QU11: 0 | QV11: 0 | QW11: 0 | QX11: 0 | QY11: 0 | QZ11: 0 | RA11: 0 | RB11: 0 | RC11: 0 | RD11: =QJ11-SUM(QK11:RC11) -> 1.000835946 | RF11: 0 | RG11: 0 | RI11: =VLOOKUP(A11,'Control Sheet'!$G$9:$H$20,2) -> 30
A12: Apr | B12: 2016-04-04 | C12: Free River | F12: 99999.99999 | K12: Free River | N12: 99999.99999 | S12: 1.517494523 | T12: 0 | U12: 0 | V12: 0 | X12: 0 | Y12: =('NFC Well Pumping'!$L10+'NFC Well Pumping'!$L47+'NFC Well Pumping'!$L83)/1.9835 -> 0 | Z12: ='88CW264(B) Pumping'!$E10/1.9835+'88CW264(B) Pumping'!$E46/1.9835+'88CW264(B) Pumping'!E86/1.9835+'88CW264(B) Pumping'!E122/1.9835+'88CW264(B) Pumping'!E162/1.9835+'88CW264(B) Pumping'!E198/1.9835 -> 0.01157311677 | AA12: 1.517494523 | AB12: =('United No. 2 Well Pumping'!G11+'United No. 2 Well Pumping'!G47+'United No. 2 Well Pumping'!G83)/1.9835 -> 0 | AC12: =('United No. 2 Well Pumping'!F11+'United No. 2 Well Pumping'!F47+'United No. 2 Well Pumping'!F83)/1.9835 -> 0 | AD12: 0 | AF12: 0.01157311677 | AG12: =U12+AC12+'United Res'!AA174+'United Res'!AQ174+'Milliken Res'!I162 -> 0 | AH12: 100 | AI12: =-(IF($N12=99999.99999,0,VLOOKUP($B12,'NFC Well Dplns-URF'!B$7:$AB$306,27))/$RI12/1.9835) -> 0 | AJ12: 0 | AL12: =(VLOOKUP($B12,'ECCV 70R Pond Acrtns'!$B$7:$AI$1206,34)+VLOOKUP($B12,'2003 70R Pond Acrtns'!$B$7:$AI$1206,34)+VLOOKUP($B12,'ECCV 70R Canal Acrtns'!$B$7:$AI$1206,27)+VLOOKUP($B12,'2003 70R Canal Acrtns'!$B$7:$AI$1206,27))/$RI12/1.9835 -> 0 | AM12: 0 | AN12: =-(IF($N12=99999.99999,0,VLOOKUP($B12,'NFC Well Dplns-SDF'!$B$7:$Z$306,25)+VLOOKUP($B12,'NFC Well Dplns-URF'!B$7:$AB$306,20))/$RI12/1.9835) -> 0 | AO12: 0 | AP12: 0 | AR12: =IF(N12<99999.99999,-((AV12+AW12)*'Weldon Credit'!$Z$38+(INDEX('Weldon Credit'!$V$75:$AH$102,MATCH($B$2,'Weldon Credit'!$V$75:$V$102,0),MATCH(A12,'Weldon Credit'!$V$75:$AH$75,0))/RI12)/1.9835),0) -> 0 | AS12: =0.4*(INDEX('Riverside Pond Accrtns'!$B$6:$M$36,MATCH($B$2,'Riverside Pond Accrtns'!$A$6:$A$36,0),MATCH('ECCV Daily Replacement Summary'!A12,'Riverside Pond Accrtns'!$B$5:$M$5,0))/RI12)/1.9835 -> 1.238887488 | AT12: =(44/640)*(INDEX('Weldon Valley Accrtns (02CW377)'!$B$6:$M$30,MATCH($B$2,'Weldon Valley Accrtns (02CW377)'!$A$6:$A$30,0),MATCH(A12,'Weldon Valley Accrtns (02CW377)'!$B$5:$M$5,0))/RI12)/1.9835 -> 0.2508459373 | AU12: =(VLOOKUP($B12,'ECCV 70R Pond Acrtns'!$B$7:$AI$1206,25)+VLOOKUP($B12,'ECCV 70R Canal Acrtns'!$B$7:$AI$1206,20)+VLOOKUP($B12,'2003 70R Pond Acrtns'!$B$7:$AI$1206,25)+VLOOKUP($B12,'2003 70R Canal Acrtns'!$B$7:$AI$1206,20))/$RI12/1.9835 -> 0 | AV12: ='Joint Aug Station Deliveries'!G12 -> 0 | AW12: ='Joint Aug Station Deliveries'!J12 -> 0 | AX12: 0 | AY12: 0 | AZ12: =MIN(-($AR12+AY12)/(1-0.5/100*'Distances for Transit Losses'!$C$71),AS12-AS12*0.5/100*'Distances for Transit Losses'!$C$71) -> 0 | BA12: 0 | BB12: =MAX(0,MIN(-($AR12+AY12+AZ12+BA12),AU12-AU12*0.5/100*'Distances for Transit Losses'!$C$71)) -> 0 | BC12: =-((AZ12+BB12)*(0.5/100*'Distances for Transit Losses'!$C$71)) -> 0 | BD12: =IF(AND(JF12-JG12-FQ12-DL12>0,IW12="no"),MIN(-(AR12+AY12+AZ12+BA12+BB12+BC12)/(1-0.5/100*'Distances for Transit Losses'!$C$93),JF12-JG12-FQ12-DL12),0) -> 0 | BE12: =--BD12*0.5/100*'Distances for Transit Losses'!C$93 -> 0 | BF12: =IF(AND(HA12-HB12-IW12-FK12-KS12-DF12>0,EZ12="no"),MIN(-(AR12+SUM(AY12:BE12))/(1-0.5/100*'Distances for Transit Losses'!$C$99),HA12-HB12-IW12-FK12-KS12-DF12),0) -> 0 | BG12: =--BF12*0.5/100*'Distances for Transit Losses'!$C$95 -> 0 | BH12: 0 | BJ12: no | BK12: no | BL12: 0 | BM12: 0 | BN12: 0 | BP12: =IF($BK12="No",MIN(-CW12,AS12-AZ12/(1-0.5/100*'Distances for Transit Losses'!$C$71)),0) -> 0 | BQ12: =IF($BK12="No",MIN(-CW12+BP12,AU12-BB12/(1-0.5/100*'Distances for Transit Losses'!$C$71)),0) -> 0 | BR12: 0 | BS12: 0 | BT12: 0 | BU12: 1.489733426 | BV12: 1.489733426 | BW12: =-(IF($N12=99999.99999,0,VLOOKUP($B12,'NFC Well Dplns-SDF'!$B$7:$Z$306,16)+VLOOKUP($B12,'NFC Well Dplns-URF'!$B$7:$AB$306,13))/$RI12/1.9835) -> 0 | BX12: =-(IF($N12>=99999,0,'88CW264(B) Pumping'!$E10/1.9835)+IF($N12>=99999,0,'88CW264(B) Pumping'!$E46/1.9835)+IF($N12>=99999,0,'88CW264(B) Pumping'!$E86/1.9835)+IF($N12>=99999,0,'88CW264(B) Pumping'!$E122/1.9835)+IF($N12>=51134.50919,0,'88CW264(B) Pumping'!$E162/1.9835)+IF($N12>=53406,0,'88CW264(B) Pumping'!$E198/1.9835)) -> 0 | BY12: 0 | BZ12: 0 | CA12: 0 | CC12: =-(IF($N12=99999.99999,0,VLOOKUP($B12,'United No. 2 Dplns'!$B$7:$X$676,13)/1.9835)) -> 0 | CD12: =CC12+(-(INDEX('Pre 1995 Net Accretions'!$B$6:$M$105,MATCH($B$2,'Pre 1995 Net Accretions'!$A$6:$A$105,0),MATCH($A12,'Pre 1995 Net Accretions'!$B$5:$M$5,0))/$RI12/1.9835)) -> 0.02852709711 | CE12: =-(IF(N12<99999.99999,(INDEX('70 Ranch RF Obligation'!$B$6:$M$30,MATCH($B$2,'70 Ranch RF Obligation'!$A$6:$A$30,0),MATCH('ECCV Daily Replacement Summary'!A12,'70 Ranch RF Obligation'!$B$5:$M$5,0))/RI12)/1.9835,0))-CH12*(1-'L. Latham Credit'!$E$37) -> 0 | CF12: 0 | CG12: =(VLOOKUP($B12,'ECCV 70R Pond Acrtns'!$B$7:$AI$1206,16)+VLOOKUP($B12,'ECCV 70R Canal Acrtns'!$B$7:$AI$1206,13)+VLOOKUP($B12,'2003 70R Pond Acrtns'!$B$7:$AI$1206,16)+VLOOKUP($B12,'2003 70R Canal Acrtns'!$B$7:$AI$1206,13))/$RI12/1.9835 -> 0 | CH12: 0 | CI12: 0 | CJ12: 0 | CK12: 0 | CL12: 0 | CM12: 0 | CN12: 0 | CP12: 0.02852709711 | CQ12: 0 | CR12: 0 | CS12: =-CR12*0.5/100*'Distances for Transit Losses'!$C$46 -> 0 | CT12: 0 | CU12: 0 | CV12: 0 | CW12: 0 | CX12: 0 | CY12: 0 | CZ12: 0 | DA12: =('NFC Well Pumping'!I10+'NFC Well Pumping'!I47+'NFC Well Pumping'!I83)/1.9835 -> 0 | DB12: =IF(AND(IT12-IU12-FG12>0,IO12="no"),MIN(-SUM(CW12:DA12)/(1-0.5/100*'Distances for Transit Losses'!$C$97),IT12-IU12-FG12),0) -> 0 | DC12: =-DB12*0.5/100*'Distances for Transit Losses'!C$97 -> 0 | DD12: 0 | DE12: =--DD12*0.5/100*'Distances for Transit Losses'!$C$121 -> 0 | DF12: =IF(AND(HA12-HB12-IW12-FK12-KS12>0,EZ12="no"),MIN(-SUM(CW12:DE12)/(1-0.5/100*'Distances for Transit Losses'!$C$99),HA12-HB12-IW12-FK12-KS12),0) -> 0 | DG12: =--DF12*0.5/100*'Distances for Transit Losses'!$C$99 -> 0 | DH12: 0.02852709711 | DI12: 0 | DJ12: ='Joint Aug Station Deliveries'!M12 -> 0 | DK12: =-(DJ12*0.5/100*'Distances for Transit Losses'!$C$206) -> 0 | DL12: 0 | DN12: no | DP12: 0 | DQ12: 0 | DR12: =-(DQ12*0.5/100*'Distances for Transit Losses'!$C$208) -> 0 | DS12: 0 | DT12: =-0.25*(INDEX('GIC Credit'!$B$77:$M$104,MATCH($B$2,'GIC Credit'!$A$77:$A$104,0),MATCH($A12,'GIC Credit'!$B$77:$M$77,0))/$RI12/1.9835+ET12*'GIC Credit'!$Z$35+EU12*'GIC Credit'!$AO$35) -> -0.0001915 | DU12: -0.0001915 | DV12: 0 | DW12: ='Joint Aug Station Deliveries'!BD12 -> 0 | DX12: =-(DW12*0.5/100*'Distances for Transit Losses'!$C$234) -> 0 | DY12: ='Joint Aug Station Deliveries'!BE12 -> 0 | DZ12: =-(DY12*0.5/100*'Distances for Transit Losses'!$C$236) -> 0 | EA12: 0 | EB12: =-(EA12*0.5/100*'Distances for Transit Losses'!$C$228) -> 0 | EC12: 0 | EE12: no | EF12: -0.0001915 | EG12: =-(IF($N12<99999.99999,(INDEX('New Cache Credit'!$W$74:$AH$99,MATCH($B$2,'New Cache Credit'!$V$74:$V$99,0),MATCH($A12,'New Cache Credit'!$W$74:$AH$74,0))/$RI12)/1.9835,0))-DI12-DS12 -> 0 | EH12: =-0.39*(INDEX('GIC Credit'!$B$77:$M$104,MATCH($B$2,'GIC Credit'!$A$77:$A$104,0),MATCH($A12,'GIC Credit'!$B$77:$M$77,0))/$RI12/1.9835+ET12*'GIC Credit'!$Z$35+EU12*'GIC Credit'!$AO$35) -> -0.00029874 | EI12: 0 | EJ12: =-(EI12*0.5/100*('Distances for Transit Losses'!$C$210+'Distances for Transit Losses'!$C$216)) -> 0 | EL12: =IF(EK12="yes",'Joint Aug Station Deliveries'!T12,0) -> 0 | EM12: =-(EL12*0.5/100*('Distances for Transit Losses'!$C$212+'Distances for Transit Losses'!$C$214+'Distances for Transit Losses'!$C$216)) -> 0 | EN12: =IF(EK12="Yes",'Joint Aug Station Deliveries'!W12,0) -> 0 | EO12: =-(EN12*0.5/100*('Distances for Transit Losses'!$C$214+'Distances for Transit Losses'!$C$216)) -> 0 | EP12: ='Joint Aug Station Deliveries'!BF12 -> 0 | EQ12: =-(EP12*0.5/100*'Distances for Transit Losses'!$C$220) -> 0 | ER12: -0.00049024 | ES12: 0 | ET12: ='Joint Aug Station Deliveries'!BH12 -> 0 | EU12: ='Joint Aug Station Deliveries'!BI12 -> 0 | EV12: =-(IF(N12<99999.99999,INDEX('Hist RF to SPR'!$AF$6:$AQ$30,MATCH($B$2,'Hist RF to SPR'!$AE$6:$AE$30,0),MATCH($A12,'Hist RF to SPR'!$AF$5:$AQ$5,0))/RI12/1.9835,0)) -> 0 | EW12: =-0.36*(INDEX('GIC Credit'!$B$77:$M$104,MATCH($B$2,'GIC Credit'!$A$77:$A$104,0),MATCH($A12,'GIC Credit'!$B$77:$M$77,0))/$RI12/1.9835+ET12*'GIC Credit'!$Z$35+EU12*'GIC Credit'!$AO$35) -> -0.00027576 | EX12: -0.00049024 | EY12: -0.000766 | EZ12: no | FA12: 0 | FB12: 0 | FC12: 0 | FE12: 0.000766 | FF12: 0 | FG12: =IF(AND(IT12-IU12-GW12>0,IO12="no"),MIN(-(EY12+FE12+FF12)/(1-0.5/100*'Distances for Transit Losses'!$C$101),IT12-IU12-GW12),0) -> 0 | FH12: =-FG12*0.5/100*'Distances for Transit Losses'!$C$101 -> 0 | FI12: 0 | FJ12: =-FI12*0.5/100*'Distances for Transit Losses'!$C$119 -> 0 | FK12: =IF(AND(HA12-HB12-IW12>0,GM12="no"),MIN(-(EY12+FE12+FF12+FG12+FH12+FI12+FJ12)/(1-0.5/100*'Distances for Transit Losses'!$C$103),HA12-HB12-IW12),0) -> 0 | FL12: =-FK12*0.5/100*'Distances for Transit Losses'!$C$109 -> 0 | FM12: 0 | FO12: 0 | FQ12: =IF(AND(FP11="no",(SUM('Joint Aug Station Deliveries'!$AD$9:'Joint Aug Station Deliveries'!$AD11)+'Joint Aug Station Deliveries'!$AD12)*1.9835>'New Cache Credit'!$BY$35,(SUM('Joint Aug Station Deliveries'!$AD$9:'Joint Aug Station Deliveries'!$AD11)+'Joint Aug Station Deliveries'!$AD12)*1.9835>'New Cache Credit'!$CH$35),0,'Joint Aug Station Deliveries'!V12) -> 0 | FR12: =-(FQ12*0.5/100*'Distances for Transit Losses'!$C$202) -> 0 | FT12: =IF(AND(FS11="no",(SUM('Joint Aug Station Deliveries'!$AD$9:'Joint Aug Station Deliveries'!$AD11)+'Joint Aug Station Deliveries'!$AD12)*1.9835>'New Cache Credit'!$BY$35,(SUM('Joint Aug Station Deliveries'!$AD$9:'Joint Aug Station Deliveries'!$AD11)+'Joint Aug Station Deliveries'!$AD12)*1.9835>'New Cache Credit'!$CH$35),0,'Joint Aug Station Deliveries'!Y12) -> 0 | FU12: =-(FT12*0.5/100*'Distances for Transit Losses'!$C$194) -> 0 | FV12: =IF(AND(FS11="no",(SUM('Joint Aug Station Deliveries'!$AD$9:'Joint Aug Station Deliveries'!$AD11)+'Joint Aug Station Deliveries'!$AD12)*1.9835>'New Cache Credit'!$BY$35,(SUM('Joint Aug Station Deliveries'!$AD$9:'Joint Aug Station Deliveries'!$AD11)+'Joint Aug Station Deliveries'!$AD12)*1.9835>'New Cache Credit'!$CH$35),0,'Joint Aug Station Deliveries'!AB12) -> 0 | FW12: =-(FV12*0.5/100*'Distances for Transit Losses'!$C$200) -> 0 | FX12: 0 | FY12: 0 | FZ12: 0.02776109711 | GA12: 1.489733426 | GB12: =-(IF(N12<99999.99999,INDEX('Hist RF to SPR'!$Q$6:$AB$30,MATCH($B$2,'Hist RF to SPR'!$P$6:$P$30,0),MATCH($A12,'Hist RF to SPR'!$Q$5:$AB$5,0))/RI12/1.9835,0)) -> 0 | GC12: =-(IF(OR($N12<99999.99999,E12="Lower Latham",I12="Lower Latham",E12="Highland",I12="Highland",E12="Plum",I12="Plum"),(INDEX('FIDCO Credit'!$Y$44:$AJ$70,MATCH($B$2,'FIDCO Credit'!$X$44:$X$70,0),MATCH($A12,'FIDCO Credit'!$Y$43:$AJ$43,0))/$RI12)/1.9835,0)) -> 0 | GD12: =-(IF(OR($N12<99999.99999,E12="Lower Latham",I12="Lower Latham",E12="Highland",I12="Highland",E12="Plum",I12="Plum"),(INDEX('Western Credit'!$W$76:$AH$102,MATCH($B$2,'Western Credit'!$V$76:$V$102,0),MATCH($A12,'Western Credit'!$W$75:$AH$75,0))/$RI12)/1.9835,0)) -> 0 | GE12: 0 | GF12: 0 | GG12: 0 | GH12: =IF(AND(GN12="no",GO12="no"),MIN(-(GC12-GF12-GG12)/(1-0.5/100*'Distances for Transit Losses'!$C$89),IL12),0) -> 0 | GI12: =-GH12*0.5/100*'Distances for Transit Losses'!$C$89 -> 0 | GJ12: =VLOOKUP($B12,'ECCV Haren Pond S.P. Acrtns'!$B$7:$G$306,6)/$RI12/1.9835 -> 1.36770332 | GK12: 0 | GL12: 0 | GM12: no | GN12: no | GO12: no | GP12: 0 | GQ12: 0 | GR12: 0 | GT12: 0 | GU12: 0 | GV12: 0 | GW12: =IF(AND(IT12-IU12>0,IO12="no"),MIN(-GV12/(1-0.5/100*'Distances for Transit Losses'!$C$105),IT12-IU12),0) -> 0 | GX12: =-GW12*0.5/100*'Distances for Transit Losses'!$C$105 -> 0 | GY12: =IF(AND(IX12+IY12-IZ12-JK12>0,IO12="no"),MIN((-GV12-(GW12+GX12))/(1-0.5/100*'Distances for Transit Losses'!$C$107),IX12+IY12-IZ12-JK12),0) -> 0 | GZ12: =-GY12*0.5/100*'Distances for Transit Losses'!$C$107 -> 0 | HA12: 0 | HB12: =IF(HA12>0,MIN(-(GV12+GW12+GX12+GY12+GZ12)/(1-0.5/100*'Distances for Transit Losses'!$C$109),HA12),0) -> 0 | HC12: =-HB12*0.5/100*'Distances for Transit Losses'!$C$109 -> 0 | HD12: 0 | HF12: 0 | HG12: ='Joint Aug Station Deliveries'!AQ12 -> 0 | HH12: =HG12*'Western Credit'!$Z$38 -> 0 | HI12: ='Joint Aug Station Deliveries'!AH12 -> 0 | HJ12: =IF(AND(HI12>0,SUM($HI$9:HI12,$HK$9:HK12,$IL$9:IL12)*1.9835<OFFSET('FIDCO Credit'!$X$35,0,MATCH($A12,'FIDCO Credit'!$Y$5:$AJ$5,0))),HI12-GF12,0) -> 0 | HK12: ='Joint Aug Station Deliveries'!AK12 -> 0 | HL12: =IF(AND(HK12>0,SUM($HI$9:HI12,$HK$9:HK12,$IL$9:IL12)*1.9835<OFFSET('FIDCO Credit'!$X$35,0,MATCH($A12,'FIDCO Credit'!$Y$5:$AJ$5,0))),HK12-GG12,0) -> 0 | HM12: =MAX(0,(KN12+KO12))/(1-0.5/100*'Distances for Transit Losses'!$C$77) -> 0 | HN12: =MAX(0,(KP12+KQ12)/(1-0.5/100*'Distances for Transit Losses'!$C$73)) -> 0 | HO12: 0 | HP12: =-HO12*0.5/100*'Distances for Transit Losses'!$C$79 -> 0 | HQ12: 0 | HR12: 0 | HS12: =-HR12*0.5/100*'Distances for Transit Losses'!$C$34 -> 0 | HT12: 0 | HU12: 0 | HV12: 0 | HW12: 0 | HX12: 0 | HY12: 0 | HZ12: 1.489733426 | IA12: 0 | IB12: 0.02776109711 | IC12: 0 | ID12: 0 | IE12: 0 | IF12: =-IE12*0.5/100*'Distances for Transit Losses'!$C$117 -> 0 | IG12: 0 | IH12: 1.36770332 | II12: 0.02776109711 | IJ12: 1.489733426 | IK12: =-(IF(F12<99999.99999,INDEX('Hist RF to SPR'!$B$6:$M$30,MATCH($B$2,'Hist RF to SPR'!$A$6:$A$30,0),MATCH($A12,'Hist RF to SPR'!$B$5:$M$5,0))/RI12/1.9835,0)) -> 0 | IL12: ='Joint Aug Station Deliveries'!AN12 -> 0 | IM12: =IF(AND(IL12>0,SUM($HI$9:HI12,$HK$9:HK12,$IL$9:IL12)*1.9835<OFFSET('FIDCO Credit'!$X$35,0,MATCH($A12,'FIDCO Credit'!$Y$5:$AJ$5,0))),IL12-GH12,0) -> 0 | IN12: 0 | IO12: no | IP12: 0 | IQ12: 0 | IR12: 0 | IS12: 0 | IT12: 0 | IU12: =IF(IT12>0,MIN(-IS12/(1-0.5/100*'Distances for Transit Losses'!$C$111),IT12),0) -> 0 | IV12: =-IU12*0.5/100*'Distances for Transit Losses'!$C$111 -> 0 | IW12: 0 | IX12: 0 | IY12: =-IX12*0.5/100*'Distances for Transit Losses'!$C$66 -> 0 | IZ12: =IF((IX12+IY12)>0,MIN((-IS12-(IU12-IV12)-IW12)/(1-0.5/100*'Distances for Transit Losses'!$C$113),(IX12+IY12)),0) -> 0 | JA12: =-IZ12*0.5/100*'Distances for Transit Losses'!$C$113 -> 0 | JB12: 0 | JD12: 0 | JE12: 1.489733426 | JF12: 0 | JG12: 0.02776109711 | JH12: 0 | JI12: 0 | JJ12: 0 | JK12: 0 | JL12: =-JK12*0.5/100*'Distances for Transit Losses'!$C$115 -> 0 | JM12: 0 | JN12: 0.02776109711 | JO12: 1.489733426 | JP12: =-(IF(N12<99999.99999,(VLOOKUP(B12,'ECCV Upper Dpln'!$B$7:$BD$306,55))/RI12/1.9835,0)) -> 0 | JQ12: =-(IF(N12<99999.99999,INDEX('Hist RF abv Milton'!$B$6:$M$30,MATCH($B$2,'Hist RF abv Milton'!$A$6:$A$30,0),MATCH($A12,'Hist RF abv Milton'!$B$5:$M$5,0))/RI12/1.9835,0)) -> 0 | JR12: 0 | JS12: =(VLOOKUP($B12,'ECCV Beebe Pond Acrtns'!$B$7:$BI$1206,41)+VLOOKUP($B12,'ECCV Canal Acrtns'!$B$7:$AL$1206,22)+VLOOKUP($B12,'2003 Beebe Pond Acrtns'!$B$7:$BI$1206,41)+VLOOKUP($B12,'2003 Canal Acrtns'!$B$7:$AL$1206,22))/$RI12/1.9835 -> 1.000835946 | JT12: 0 | JU12: 0 | JV12: 0 | JW12: 0 | JX12: 0 | JY12: no | JZ12: 0 | KA12: 0 | KB12: 0 | KC12: 0 | KD12: 0 | KE12: 0 | KF12: 0 | KG12: 0 | KH12: 0 | KI12: 0 | KJ12: =-(KI12*0.5/100*'Distances for Transit Losses'!$C$6) -> 0 | KK12: 0 | KL12: 0 | KM12: 0 | KN12: =IF(AND(E12<>"Lower Latham",I12<>"Lower Latham"),MIN(-(KH12+KK12),HJ12-HJ12*0.5/100*'Distances for Transit Losses'!$C$77),0) -> 0 | KO12: =IF(AND(E12<>"Lower Latham",I12<>"Lower Latham"),MAX(0,MIN(-(KG12+KI12+KJ12+KM12),HJ12-HJ12*0.5/100*'Distances for Transit Losses'!$C$77-KN12/(1-0.5/100*'Distances for Transit Losses'!$C$77))),0) -> 0 | KP12: =MIN(-(KH12+KN12),HH12-HH12*0.5/100*'Distances for Transit Losses'!$C$73) -> 0 | KQ12: =MAX(0,MIN(-(KG12+KI12+KJ12+KO12),HH12-HH12*0.5/100*'Distances for Transit Losses'!$C$73-KP12/(1-0.5/100*'Distances for Transit Losses'!$C$73))) -> 0 | KR12: =IF(EZ12="no",MIN(-(MIN(0,KG12+KI12+KJ12+KO12+KQ12)),(GJ12-GK12)-(GJ12-GK12)*0.5/100*'Distances for Transit Losses'!$C$73),0) -> 0 | KS12: =MAX(0,IF(AND(HA12-HB12-IW12-FK12>0,EZ12="no"),MIN(-(KG12+KI12+KJ12+KM12+KO12+KQ12+KR12)/(1-0.5/100*'Distances for Transit Losses'!$C$83),HA12-HB12-IW12-FK12),0)) -> 0 | KT12: =-KS12*0.5/100*'Distances for Transit Losses'!$C$83 -> 0 | KU12: 0 | KW12: 0 | KX12: 1.000835946 | KY12: 0 | KZ12: 0.02852709711 | LA12: 1.489733426 | LB12: =-(IF(N12<99999.99999,INDEX('Hist RF blw Milton'!$B$6:$M$30,MATCH($B$2,'Hist RF blw Milton'!$A$6:$A$30,0),MATCH($A12,'Hist RF blw Milton'!$B$5:$M$5,0))/RI12/1.9835,0)) -> 0 | LC12: no | LD12: 0 | LE12: 0 | LF12: 0 | LG12: 0 | LH12: 0 | LI12: 0 | LK12: 0.02852709711 | LL12: 1.489733426 | LM12: =-(IF(N12<99999.99999,INDEX('Hist RF to Box Elder'!$B$6:$M$30,MATCH($B$2,'Hist RF to Box Elder'!$A$6:$A$30,0),MATCH($A12,'Hist RF to Box Elder'!$B$5:$M$5,0))/RI12/1.9835,0)) -> 0 | LN12: =(VLOOKUP($B12,'ECCV Beebe Pond Acrtns'!$B$7:$BI$1206,54)+VLOOKUP($B12,'ECCV Canal Acrtns'!$B$7:$AL$1206,34)+VLOOKUP($B12,'2003 Beebe Pond Acrtns'!$B$7:$BI$1206,54)+VLOOKUP($B12,'2003 Canal Acrtns'!$B$7:$AL$1206,34)+VLOOKUP($B12,'84CW090 Beebe Pond Acrtns'!$B$7:$BI$1206,55)+VLOOKUP($B12,'84CW090 Canal Acrtns'!$B$7:$AL$1206,34))/$RI12/1.9835 -> 0.09630223027 | LO12: 0 | LP12: 0 | LQ12: 0 | LR12: 0 | LT12: -0.0009575 | LU12: 0 | LV12: 0 | LW12: 0 | LX12: 0 | LY12: 0 | LZ12: 0.000766 | MA12: 0 | MB12: 0 | MC12: 0 | MD12: 0.000766 | ME12: -0.0001915 | MF12: 1.000835946 | MG12: 0.02776109711 | MH12: 1.489733426 | MO12: 0 | MP12: 0 | MQ12: 0 | MS12: 0 | MT12: 0 | MU12: 0 | MV12: 0 | MW12: 0 | MX12: 0 | MY12: 0 | MZ12: 0 | NA12: 0 | NB12: 0 | NC12: 0 | ND12: 0 | NF12: 0 | NG12: 0 | NH12: 0 | NI12: 0 | NJ12: 0 | NK12: 0 | NL12: 0 | NM12: 0 | NN12: 0 | NO12: 0 | NP12: 0 | NR12: 1.517494523 | NS12: 0 | NT12: 0 | NU12: 0 | NV12: 0 | NW12: 0 | NX12: 0 | NY12: 0 | NZ12: 0 | OA12: 0 | OB12: 0 | OH12: 0 | OI12: 0 | OJ12: 0 | OK12: 0 | OL12: 0 | OM12: 0 | ON12: 0 | OO12: 0 | OP12: 0 | OR12: 0 | OS12: 0 | OT12: 0 | OU12: 0 | OV12: 0 | OW12: 0 | OX12: 0 | OY12: 0 | OZ12: 0 | PC12: 0 | PD12: 0 | PE12: 0 | PF12: 0 | PG12: 0 | PH12: 0 | PI12: 0 | PL12: 0 | PM12: 0 | PP12: 0 | PQ12: 0 | PR12: 0 | PU12: 0 | PV12: 0 | PW12: 0 | PX12: 0 | PY12: 0 | PZ12: 0 | QA12: 0 | QC12: 0 | QD12: 0 | QE12: 0 | QF12: 0 | QG12: 0 | QH12: 309.6 | QJ12: 1.000835946 | QK12: 0 | QL12: 0 | QM12: 0 | QN12: 0 | QO12: 0 | QP12: 0 | QQ12: 0 | QR12: 0 | QS12: 0 | QT12: 0 | QU12: 0 | QV12: 0 | QW12: 0 | QX12: 0 | QY12: 0 | QZ12: 0 | RA12: 0 | RB12: 0 | RC12: 0 | RD12: 1.000835946 | RF12: 0 | RG12: 0 | RI12: =VLOOKUP(A12,'Control Sheet'!$G$9:$H$20,2) -> 30
A13: Apr | B13: 2016-04-05 | C13: Free River | F13: 99999.99999 | K13: Free River | N13: 99999.99999 | S13: 1.517494523 | T13: 0 | U13: 0 | V13: 0 | X13: 0 | Y13: =('NFC Well Pumping'!$L11+'NFC Well Pumping'!$L48+'NFC Well Pumping'!$L84)/1.9835 -> 0 | Z13: ='88CW264(B) Pumping'!$E11/1.9835+'88CW264(B) Pumping'!$E47/1.9835+'88CW264(B) Pumping'!E87/1.9835+'88CW264(B) Pumping'!E123/1.9835+'88CW264(B) Pumping'!E163/1.9835+'88CW264(B) Pumping'!E199/1.9835 -> 0.01157311677 | AA13: 1.517494523 | AB13: =('United No. 2 Well Pumping'!G12+'United No. 2 Well Pumping'!G48+'United No. 2 Well Pumping'!G84)/1.9835 -> 0 | AC13: =('United No. 2 Well Pumping'!F12+'United No. 2 Well Pumping'!F48+'United No. 2 Well Pumping'!F84)/1.9835 -> 0 | AD13: 0 | AF13: 0.01157311677 | AG13: =U13+AC13+'United Res'!AA175+'United Res'!AQ175+'Milliken Res'!I163 -> 0 | AH13: 100 | AI13: =-(IF($N13=99999.99999,0,VLOOKUP($B13,'NFC Well Dplns-URF'!B$7:$AB$306,27))/$RI13/1.9835) -> 0 | AJ13: 0 | AL13: =(VLOOKUP($B13,'ECCV 70R Pond Acrtns'!$B$7:$AI$1206,34)+VLOOKUP($B13,'2003 70R Pond Acrtns'!$B$7:$AI$1206,34)+VLOOKUP($B13,'ECCV 70R Canal Acrtns'!$B$7:$AI$1206,27)+VLOOKUP($B13,'2003 70R Canal Acrtns'!$B$7:$AI$1206,27))/$RI13/1.9835 -> 0 | AM13: 0 | AN13: =-(IF($N13=99999.99999,0,VLOOKUP($B13,'NFC Well Dplns-SDF'!$B$7:$Z$306,25)+VLOOKUP($B13,'NFC Well Dplns-URF'!B$7:$AB$306,20))/$RI13/1.9835) -> 0 | AO13: 0 | AP13: 0 | AR13: =IF(N13<99999.99999,-((AV13+AW13)*'Weldon Credit'!$Z$38+(INDEX('Weldon Credit'!$V$75:$AH$102,MATCH($B$2,'Weldon Credit'!$V$75:$V$102,0),MATCH(A13,'Weldon Credit'!$V$75:$AH$75,0))/RI13)/1.9835),0) -> 0 | AS13: =0.4*(INDEX('Riverside Pond Accrtns'!$B$6:$M$36,MATCH($B$2,'Riverside Pond Accrtns'!$A$6:$A$36,0),MATCH('ECCV Daily Replacement Summary'!A13,'Riverside Pond Accrtns'!$B$5:$M$5,0))/RI13)/1.9835 -> 1.238887488 | AT13: =(44/640)*(INDEX('Weldon Valley Accrtns (02CW377)'!$B$6:$M$30,MATCH($B$2,'Weldon Valley Accrtns (02CW377)'!$A$6:$A$30,0),MATCH(A13,'Weldon Valley Accrtns (02CW377)'!$B$5:$M$5,0))/RI13)/1.9835 -> 0.2508459373 | AU13: =(VLOOKUP($B13,'ECCV 70R Pond Acrtns'!$B$7:$AI$1206,25)+VLOOKUP($B13,'ECCV 70R Canal Acrtns'!$B$7:$AI$1206,20)+VLOOKUP($B13,'2003 70R Pond Acrtns'!$B$7:$AI$1206,25)+VLOOKUP($B13,'2003 70R Canal Acrtns'!$B$7:$AI$1206,20))/$RI13/1.9835 -> 0 | AV13: ='Joint Aug Station Deliveries'!G13 -> 0 | AW13: ='Joint Aug Station Deliveries'!J13 -> 0 | AX13: 0 | AY13: 0 | AZ13: =MIN(-($AR13+AY13)/(1-0.5/100*'Distances for Transit Losses'!$C$71),AS13-AS13*0.5/100*'Distances for Transit Losses'!$C$71) -> 0 | BA13: 0 | BB13: =MAX(0,MIN(-($AR13+AY13+AZ13+BA13),AU13-AU13*0.5/100*'Distances for Transit Losses'!$C$71)) -> 0 | BC13: =-((AZ13+BB13)*(0.5/100*'Distances for Transit Losses'!$C$71)) -> 0 | BD13: =IF(AND(JF13-JG13-FQ13-DL13>0,IW13="no"),MIN(-(AR13+AY13+AZ13+BA13+BB13+BC13)/(1-0.5/100*'Distances for Transit Losses'!$C$93),JF13-JG13-FQ13-DL13),0) -> 0 | BE13: =--BD13*0.5/100*'Distances for Transit Losses'!C$93 -> 0 | BF13: =IF(AND(HA13-HB13-IW13-FK13-KS13-DF13>0,EZ13="no"),MIN(-(AR13+SUM(AY13:BE13))/(1-0.5/100*'Distances for Transit Losses'!$C$99),HA13-HB13-IW13-FK13-KS13-DF13),0) -> 0 | BG13: =--BF13*0.5/100*'Distances for Transit Losses'!$C$95 -> 0 | BH13: 0 | BJ13: no | BK13: no | BL13: 0 | BM13: 0 | BN13: 0 | BP13: =IF($BK13="No",MIN(-CW13,AS13-AZ13/(1-0.5/100*'Distances for Transit Losses'!$C$71)),0) -> 0 | BQ13: =IF($BK13="No",MIN(-CW13+BP13,AU13-BB13/(1-0.5/100*'Distances for Transit Losses'!$C$71)),0) -> 0 | BR13: 0 | BS13: 0 | BT13: 0 | BU13: 1.489733426 | BV13: 1.489733426 | BW13: =-(IF($N13=99999.99999,0,VLOOKUP($B13,'NFC Well Dplns-SDF'!$B$7:$Z$306,16)+VLOOKUP($B13,'NFC Well Dplns-URF'!$B$7:$AB$306,13))/$RI13/1.9835) -> 0 | BX13: =-(IF($N13>=99999,0,'88CW264(B) Pumping'!$E11/1.9835)+IF($N13>=99999,0,'88CW264(B) Pumping'!$E47/1.9835)+IF($N13>=99999,0,'88CW264(B) Pumping'!$E87/1.9835)+IF($N13>=99999,0,'88CW264(B) Pumping'!$E123/1.9835)+IF($N13>=51134.50919,0,'88CW264(B) Pumping'!$E163/1.9835)+IF($N13>=53406,0,'88CW264(B) Pumping'!$E199/1.9835)) -> 0 | BY13: 0 | BZ13: 0 | CA13: 0 | CC13: =-(IF($N13=99999.99999,0,VLOOKUP($B13,'United No. 2 Dplns'!$B$7:$X$676,13)/1.9835)) -> 0 | CD13: =CC13+(-(INDEX('Pre 1995 Net Accretions'!$B$6:$M$105,MATCH($B$2,'Pre 1995 Net Accretions'!$A$6:$A$105,0),MATCH($A13,'Pre 1995 Net Accretions'!$B$5:$M$5,0))/$RI13/1.9835)) -> 0.02852709711 | CE13: =-(IF(N13<99999.99999,(INDEX('70 Ranch RF Obligation'!$B$6:$M$30,MATCH($B$2,'70 Ranch RF Obligation'!$A$6:$A$30,0),MATCH('ECCV Daily Replacement Summary'!A13,'70 Ranch RF Obligation'!$B$5:$M$5,0))/RI13)/1.9835,0))-CH13*(1-'L. Latham Credit'!$E$37) -> 0 | CF13: 0 | CG13: =(VLOOKUP($B13,'ECCV 70R Pond Acrtns'!$B$7:$AI$1206,16)+VLOOKUP($B13,'ECCV 70R Canal Acrtns'!$B$7:$AI$1206,13)+VLOOKUP($B13,'2003 70R Pond Acrtns'!$B$7:$AI$1206,16)+VLOOKUP($B13,'2003 70R Canal Acrtns'!$B$7:$AI$1206,13))/$RI13/1.9835 -> 0 | CH13: 0 | CI13: 0 | CJ13: 0 | CK13: 0 | CL13: 0 | CM13: 0 | CN13: 0 | CP13: 0.02852709711 | CQ13: 0 | CR13: 0 | CS13: =-CR13*0.5/100*'Distances for Transit Losses'!$C$46 -> 0 | CT13: 0 | CU13: 0 | CV13: 0 | CW13: 0 | CX13: 0 | CY13: 0 | CZ13: 0 | DA13: =('NFC Well Pumping'!I11+'NFC Well Pumping'!I48+'NFC Well Pumping'!I84)/1.9835 -> 0 | DB13: =IF(AND(IT13-IU13-FG13>0,IO13="no"),MIN(-SUM(CW13:DA13)/(1-0.5/100*'Distances for Transit Losses'!$C$97),IT13-IU13-FG13),0) -> 0 | DC13: =-DB13*0.5/100*'Distances for Transit Losses'!C$97 -> 0 | DD13: 0 | DE13: =--DD13*0.5/100*'Distances for Transit Losses'!$C$121 -> 0 | DF13: =IF(AND(HA13-HB13-IW13-FK13-KS13>0,EZ13="no"),MIN(-SUM(CW13:DE13)/(1-0.5/100*'Distances for Transit Losses'!$C$99),HA13-HB13-IW13-FK13-KS13),0) -> 0 | DG13: =--DF13*0.5/100*'Distances for Transit Losses'!$C$99 -> 0 | DH13: 0.02852709711 | DI13: 0 | DJ13: ='Joint Aug Station Deliveries'!M13 -> 0 | DK13: =-(DJ13*0.5/100*'Distances for Transit Losses'!$C$206) -> 0 | DL13: 0 | DN13: no | DP13: 0 | DQ13: 0 | DR13: =-(DQ13*0.5/100*'Distances for Transit Losses'!$C$208) -> 0 | DS13: 0 | DT13: =-0.25*(INDEX('GIC Credit'!$B$77:$M$104,MATCH($B$2,'GIC Credit'!$A$77:$A$104,0),MATCH($A13,'GIC Credit'!$B$77:$M$77,0))/$RI13/1.9835+ET13*'GIC Credit'!$Z$35+EU13*'GIC Credit'!$AO$35) -> -0.0001915 | DU13: -0.0001915 | DV13: 0 | DW13: ='Joint Aug Station Deliveries'!BD13 -> 0 | DX13: =-(DW13*0.5/100*'Distances for Transit Losses'!$C$234) -> 0 | DY13: ='Joint Aug Station Deliveries'!BE13 -> 0 | DZ13: =-(DY13*0.5/100*'Distances for Transit Losses'!$C$236) -> 0 | EA13: 0 | EB13: =-(EA13*0.5/100*'Distances for Transit Losses'!$C$228) -> 0 | EC13: 0 | EE13: no | EF13: -0.0001915 | EG13: =-(IF($N13<99999.99999,(INDEX('New Cache Credit'!$W$74:$AH$99,MATCH($B$2,'New Cache Credit'!$V$74:$V$99,0),MATCH($A13,'New Cache Credit'!$W$74:$AH$74,0))/$RI13)/1.9835,0))-DI13-DS13 -> 0 | EH13: =-0.39*(INDEX('GIC Credit'!$B$77:$M$104,MATCH($B$2,'GIC Credit'!$A$77:$A$104,0),MATCH($A13,'GIC Credit'!$B$77:$M$77,0))/$RI13/1.9835+ET13*'GIC Credit'!$Z$35+EU13*'GIC Credit'!$AO$35) -> -0.00029874 | EI13: 0 | EJ13: =-(EI13*0.5/100*('Distances for Transit Losses'!$C$210+'Distances for Transit Losses'!$C$216)) -> 0 | EL13: =IF(EK13="yes",'Joint Aug Station Deliveries'!T13,0) -> 0 | EM13: =-(EL13*0.5/100*('Distances for Transit Losses'!$C$212+'Distances for Transit Losses'!$C$214+'Distances for Transit Losses'!$C$216)) -> 0 | EN13: =IF(EK13="Yes",'Joint Aug Station Deliveries'!W13,0) -> 0 | EO13: =-(EN13*0.5/100*('Distances for Transit Losses'!$C$214+'Distances for Transit Losses'!$C$216)) -> 0 | EP13: ='Joint Aug Station Deliveries'!BF13 -> 0 | EQ13: =-(EP13*0.5/100*'Distances for Transit Losses'!$C$220) -> 0 | ER13: -0.00049024 | ES13: 0 | ET13: ='Joint Aug Station Deliveries'!BH13 -> 0 | EU13: ='Joint Aug Station Deliveries'!BI13 -> 0 | EV13: =-(IF(N13<99999.99999,INDEX('Hist RF to SPR'!$AF$6:$AQ$30,MATCH($B$2,'Hist RF to SPR'!$AE$6:$AE$30,0),MATCH($A13,'Hist RF to SPR'!$AF$5:$AQ$5,0))/RI13/1.9835,0)) -> 0 | EW13: =-0.36*(INDEX('GIC Credit'!$B$77:$M$104,MATCH($B$2,'GIC Credit'!$A$77:$A$104,0),MATCH($A13,'GIC Credit'!$B$77:$M$77,0))/$RI13/1.9835+ET13*'GIC Credit'!$Z$35+EU13*'GIC Credit'!$AO$35) -> -0.00027576 | EX13: -0.00049024 | EY13: -0.000766 | EZ13: no | FA13: 0 | FB13: 0 | FC13: 0 | FE13: 0.000766 | FF13: 0 | FG13: =IF(AND(IT13-IU13-GW13>0,IO13="no"),MIN(-(EY13+FE13+FF13)/(1-0.5/100*'Distances for Transit Losses'!$C$101),IT13-IU13-GW13),0) -> 0 | FH13: =-FG13*0.5/100*'Distances for Transit Losses'!$C$101 -> 0 | FI13: 0 | FJ13: =-FI13*0.5/100*'Distances for Transit Losses'!$C$119 -> 0 | FK13: =IF(AND(HA13-HB13-IW13>0,GM13="no"),MIN(-(EY13+FE13+FF13+FG13+FH13+FI13+FJ13)/(1-0.5/100*'Distances for Transit Losses'!$C$103),HA13-HB13-IW13),0) -> 0 | FL13: =-FK13*0.5/100*'Distances for Transit Losses'!$C$109 -> 0 | FM13: 0 | FO13: 0 | FQ13: =IF(AND(FP12="no",(SUM('Joint Aug Station Deliveries'!$AD$9:'Joint Aug Station Deliveries'!$AD12)+'Joint Aug Station Deliveries'!$AD13)*1.9835>'New Cache Credit'!$BY$35,(SUM('Joint Aug Station Deliveries'!$AD$9:'Joint Aug Station Deliveries'!$AD12)+'Joint Aug Station Deliveries'!$AD13)*1.9835>'New Cache Credit'!$CH$35),0,'Joint Aug Station Deliveries'!V13) -> 0 | FR13: =-(FQ13*0.5/100*'Distances for Transit Losses'!$C$202) -> 0 | FT13: =IF(AND(FS12="no",(SUM('Joint Aug Station Deliveries'!$AD$9:'Joint Aug Station Deliveries'!$AD12)+'Joint Aug Station Deliveries'!$AD13)*1.9835>'New Cache Credit'!$BY$35,(SUM('Joint Aug Station Deliveries'!$AD$9:'Joint Aug Station Deliveries'!$AD12)+'Joint Aug Station Deliveries'!$AD13)*1.9835>'New Cache Credit'!$CH$35),0,'Joint Aug Station Deliveries'!Y13) -> 0 | FU13: =-(FT13*0.5/100*'Distances for Transit Losses'!$C$194) -> 0 | FV13: =IF(AND(FS12="no",(SUM('Joint Aug Station Deliveries'!$AD$9:'Joint Aug Station Deliveries'!$AD12)+'Joint Aug Station Deliveries'!$AD13)*1.9835>'New Cache Credit'!$BY$35,(SUM('Joint Aug Station Deliveries'!$AD$9:'Joint Aug Station Deliveries'!$AD12)+'Joint Aug Station Deliveries'!$AD13)*1.9835>'New Cache Credit'!$CH$35),0,'Joint Aug Station Deliveries'!AB13) -> 0 | FW13: =-(FV13*0.5/100*'Distances for Transit Losses'!$C$200) -> 0 | FX13: 0 | FY13: 0 | FZ13: 0.02776109711 | GA13: 1.489733426 | GB13: =-(IF(N13<99999.99999,INDEX('Hist RF to SPR'!$Q$6:$AB$30,MATCH($B$2,'Hist RF to SPR'!$P$6:$P$30,0),MATCH($A13,'Hist RF to SPR'!$Q$5:$AB$5,0))/RI13/1.9835,0)) -> 0 | GC13: =-(IF(OR($N13<99999.99999,E13="Lower Latham",I13="Lower Latham",E13="Highland",I13="Highland",E13="Plum",I13="Plum"),(INDEX('FIDCO Credit'!$Y$44:$AJ$70,MATCH($B$2,'FIDCO Credit'!$X$44:$X$70,0),MATCH($A13,'FIDCO Credit'!$Y$43:$AJ$43,0))/$RI13)/1.9835,0)) -> 0 | GD13: =-(IF(OR($N13<99999.99999,E13="Lower Latham",I13="Lower Latham",E13="Highland",I13="Highland",E13="Plum",I13="Plum"),(INDEX('Western Credit'!$W$76:$AH$102,MATCH($B$2,'Western Credit'!$V$76:$V$102,0),MATCH($A13,'Western Credit'!$W$75:$AH$75,0))/$RI13)/1.9835,0)) -> 0 | GE13: 0 | GF13: 0 | GG13: 0 | GH13: =IF(AND(GN13="no",GO13="no"),MIN(-(GC13-GF13-GG13)/(1-0.5/100*'Distances for Transit Losses'!$C$89),IL13),0) -> 0 | GI13: =-GH13*0.5/100*'Distances for Transit Losses'!$C$89 -> 0 | GJ13: =VLOOKUP($B13,'ECCV Haren Pond S.P. Acrtns'!$B$7:$G$306,6)/$RI13/1.9835 -> 1.36770332 | GK13: 0 | GL13: 0 | GM13: no | GN13: no | GO13: no | GP13: 0 | GQ13: 0 | GR13: 0 | GT13: 0 | GU13: 0 | GV13: 0 | GW13: =IF(AND(IT13-IU13>0,IO13="no"),MIN(-GV13/(1-0.5/100*'Distances for Transit Losses'!$C$105),IT13-IU13),0) -> 0 | GX13: =-GW13*0.5/100*'Distances for Transit Losses'!$C$105 -> 0 | GY13: =IF(AND(IX13+IY13-IZ13-JK13>0,IO13="no"),MIN((-GV13-(GW13+GX13))/(1-0.5/100*'Distances for Transit Losses'!$C$107),IX13+IY13-IZ13-JK13),0) -> 0 | GZ13: =-GY13*0.5/100*'Distances for Transit Losses'!$C$107 -> 0 | HA13: 0 | HB13: =IF(HA13>0,MIN(-(GV13+GW13+GX13+GY13+GZ13)/(1-0.5/100*'Distances for Transit Losses'!$C$109),HA13),0) -> 0 | HC13: =-HB13*0.5/100*'Distances for Transit Losses'!$C$109 -> 0 | HD13: 0 | HF13: 0 | HG13: ='Joint Aug Station Deliveries'!AQ13 -> 0 | HH13: =HG13*'Western Credit'!$Z$38 -> 0 | HI13: ='Joint Aug Station Deliveries'!AH13 -> 0 | HJ13: =IF(AND(HI13>0,SUM($HI$9:HI13,$HK$9:HK13,$IL$9:IL13)*1.9835<OFFSET('FIDCO Credit'!$X$35,0,MATCH($A13,'FIDCO Credit'!$Y$5:$AJ$5,0))),HI13-GF13,0) -> 0 | HK13: ='Joint Aug Station Deliveries'!AK13 -> 0 | HL13: =IF(AND(HK13>0,SUM($HI$9:HI13,$HK$9:HK13,$IL$9:IL13)*1.9835<OFFSET('FIDCO Credit'!$X$35,0,MATCH($A13,'FIDCO Credit'!$Y$5:$AJ$5,0))),HK13-GG13,0) -> 0 | HM13: =MAX(0,(KN13+KO13))/(1-0.5/100*'Distances for Transit Losses'!$C$77) -> 0 | HN13: =MAX(0,(KP13+KQ13)/(1-0.5/100*'Distances for Transit Losses'!$C$73)) -> 0 | HO13: 0 | HP13: =-HO13*0.5/100*'Distances for Transit Losses'!$C$79 -> 0 | HQ13: 0 | HR13: 0 | HS13: =-HR13*0.5/100*'Distances for Transit Losses'!$C$34 -> 0 | HT13: 0 | HU13: 0 | HV13: 0 | HW13: 0 | HX13: 0 | HY13: 0 | HZ13: 1.489733426 | IA13: 0 | IB13: 0.02776109711 | IC13: 0 | ID13: 0 | IE13: 0 | IF13: =-IE13*0.5/100*'Distances for Transit Losses'!$C$117 -> 0 | IG13: 0 | IH13: 1.36770332 | II13: 0.02776109711 | IJ13: 1.489733426 | IK13: =-(IF(F13<99999.99999,INDEX('Hist RF to SPR'!$B$6:$M$30,MATCH($B$2,'Hist RF to SPR'!$A$6:$A$30,0),MATCH($A13,'Hist RF to SPR'!$B$5:$M$5,0))/RI13/1.9835,0)) -> 0 | IL13: ='Joint Aug Station Deliveries'!AN13 -> 1 | IM13: =IF(AND(IL13>0,SUM($HI$9:HI13,$HK$9:HK13,$IL$9:IL13)*1.9835<OFFSET('FIDCO Credit'!$X$35,0,MATCH($A13,'FIDCO Credit'!$Y$5:$AJ$5,0))),IL13-GH13,0) -> 1 | IN13: 0 | IO13: no | IP13: 0 | IQ13: 0 | IR13: 0 | IS13: 0 | IT13: 0 | IU13: =IF(IT13>0,MIN(-IS13/(1-0.5/100*'Distances for Transit Losses'!$C$111),IT13),0) -> 0 | IV13: =-IU13*0.5/100*'Distances for Transit Losses'!$C$111 -> 0 | IW13: 0 | IX13: 0 | IY13: =-IX13*0.5/100*'Distances for Transit Losses'!$C$66 -> 0 | IZ13: =IF((IX13+IY13)>0,MIN((-IS13-(IU13-IV13)-IW13)/(1-0.5/100*'Distances for Transit Losses'!$C$113),(IX13+IY13)),0) -> 0 | JA13: =-IZ13*0.5/100*'Distances for Transit Losses'!$C$113 -> 0 | JB13: 0 | JD13: 0 | JE13: 1.489733426 | JF13: 0 | JG13: 0.02776109711 | JH13: 0 | JI13: 0 | JJ13: 0 | JK13: 0 | JL13: =-JK13*0.5/100*'Distances for Transit Losses'!$C$115 -> 0 | JM13: 0 | JN13: 0.02776109711 | JO13: 1.489733426 | JP13: =-(IF(N13<99999.99999,(VLOOKUP(B13,'ECCV Upper Dpln'!$B$7:$BD$306,55))/RI13/1.9835,0)) -> 0 | JQ13: =-(IF(N13<99999.99999,INDEX('Hist RF abv Milton'!$B$6:$M$30,MATCH($B$2,'Hist RF abv Milton'!$A$6:$A$30,0),MATCH($A13,'Hist RF abv Milton'!$B$5:$M$5,0))/RI13/1.9835,0)) -> 0 | JR13: 0 | JS13: =(VLOOKUP($B13,'ECCV Beebe Pond Acrtns'!$B$7:$BI$1206,41)+VLOOKUP($B13,'ECCV Canal Acrtns'!$B$7:$AL$1206,22)+VLOOKUP($B13,'2003 Beebe Pond Acrtns'!$B$7:$BI$1206,41)+VLOOKUP($B13,'2003 Canal Acrtns'!$B$7:$AL$1206,22))/$RI13/1.9835 -> 1.000835946 | JT13: 0 | JU13: 0 | JV13: 0 | JW13: 0 | JX13: 0 | JY13: no | JZ13: 0 | KA13: 0 | KB13: 0 | KC13: 0 | KD13: 0 | KE13: 0 | KF13: 0 | KG13: 0 | KH13: 0 | KI13: 0 | KJ13: =-(KI13*0.5/100*'Distances for Transit Losses'!$C$6) -> 0 | KK13: 0 | KL13: 0 | KM13: 0 | KN13: =IF(AND(E13<>"Lower Latham",I13<>"Lower Latham"),MIN(-(KH13+KK13),HJ13-HJ13*0.5/100*'Distances for Transit Losses'!$C$77),0) -> 0 | KO13: =IF(AND(E13<>"Lower Latham",I13<>"Lower Latham"),MAX(0,MIN(-(KG13+KI13+KJ13+KM13),HJ13-HJ13*0.5/100*'Distances for Transit Losses'!$C$77-KN13/(1-0.5/100*'Distances for Transit Losses'!$C$77))),0) -> 0 | KP13: =MIN(-(KH13+KN13),HH13-HH13*0.5/100*'Distances for Transit Losses'!$C$73) -> 0 | KQ13: =MAX(0,MIN(-(KG13+KI13+KJ13+KO13),HH13-HH13*0.5/100*'Distances for Transit Losses'!$C$73-KP13/(1-0.5/100*'Distances for Transit Losses'!$C$73))) -> 0 | KR13: =IF(EZ13="no",MIN(-(MIN(0,KG13+KI13+KJ13+KO13+KQ13)),(GJ13-GK13)-(GJ13-GK13)*0.5/100*'Distances for Transit Losses'!$C$73),0) -> 0 | KS13: =MAX(0,IF(AND(HA13-HB13-IW13-FK13>0,EZ13="no"),MIN(-(KG13+KI13+KJ13+KM13+KO13+KQ13+KR13)/(1-0.5/100*'Distances for Transit Losses'!$C$83),HA13-HB13-IW13-FK13),0)) -> 0 | KT13: =-KS13*0.5/100*'Distances for Transit Losses'!$C$83 -> 0 | KU13: 0 | KW13: 0 | KX13: 1.000835946 | KY13: 0 | KZ13: 0.02852709711 | LA13: 1.489733426 | LB13: =-(IF(N13<99999.99999,INDEX('Hist RF blw Milton'!$B$6:$M$30,MATCH($B$2,'Hist RF blw Milton'!$A$6:$A$30,0),MATCH($A13,'Hist RF blw Milton'!$B$5:$M$5,0))/RI13/1.9835,0)) -> 0 | LC13: no | LD13: 0 | LE13: 0 | LF13: 0 | LG13: 0 | LH13: 0 | LI13: 0 | LK13: 0.02852709711 | LL13: 1.489733426 | LM13: =-(IF(N13<99999.99999,INDEX('Hist RF to Box Elder'!$B$6:$M$30,MATCH($B$2,'Hist RF to Box Elder'!$A$6:$A$30,0),MATCH($A13,'Hist RF to Box Elder'!$B$5:$M$5,0))/RI13/1.9835,0)) -> 0 | LN13: =(VLOOKUP($B13,'ECCV Beebe Pond Acrtns'!$B$7:$BI$1206,54)+VLOOKUP($B13,'ECCV Canal Acrtns'!$B$7:$AL$1206,34)+VLOOKUP($B13,'2003 Beebe Pond Acrtns'!$B$7:$BI$1206,54)+VLOOKUP($B13,'2003 Canal Acrtns'!$B$7:$AL$1206,34)+VLOOKUP($B13,'84CW090 Beebe Pond Acrtns'!$B$7:$BI$1206,55)+VLOOKUP($B13,'84CW090 Canal Acrtns'!$B$7:$AL$1206,34))/$RI13/1.9835 -> 0.09630223027 | LO13: 0 | LP13: 0 | LQ13: 0 | LR13: 0 | LT13: -0.0009575 | LU13: 0 | LV13: 0 | LW13: 0 | LX13: 0 | LY13: 0 | LZ13: 0.000766 | MA13: 0 | MB13: 0 | MC13: 0 | MD13: 0.000766 | ME13: -0.0001915 | MF13: 1.000835946 | MG13: 0.02776109711 | MH13: 1.489733426 | MO13: 0 | MP13: 0 | MQ13: 0 | MS13: 0 | MT13: 0 | MU13: 0 | MV13: 0 | MW13: 0 | MX13: 0 | MY13: 0 | MZ13: 0 | NA13: 0 | NB13: 0 | NC13: 0 | ND13: 0 | NF13: 0 | NG13: 0 | NH13: 0 | NI13: 0 | NJ13: 0 | NK13: 0 | NL13: 0 | NM13: 0 | NN13: 0 | NO13: 0 | NP13: 0 | NR13: 1.517494523 | NS13: 0 | NT13: 0 | NU13: 0 | NV13: 0 | NW13: 0 | NX13: 0 | NY13: 0 | NZ13: 0 | OA13: 0 | OB13: 0 | OH13: 0 | OI13: 0 | OJ13: 0 | OK13: 0 | OL13: 0 | OM13: 0 | ON13: 0 | OO13: 0 | OP13: 0 | OR13: 0 | OS13: 0 | OT13: 0 | OU13: 0 | OV13: 0 | OW13: 0 | OX13: 0 | OY13: 0 | OZ13: 0 | PC13: 0 | PD13: 0 | PE13: 0 | PF13: 0 | PG13: 0 | PH13: 0 | PI13: 0 | PL13: 0 | PM13: 0 | PP13: 0 | PQ13: 0 | PR13: 0 | PU13: 0 | PV13: 0 | PW13: 0 | PX13: 0 | PY13: 0 | PZ13: 0 | QA13: 0 | QC13: 0 | QD13: 0 | QE13: 0 | QF13: 0 | QG13: 0 | QH13: 309.6 | QJ13: 1.000835946 | QK13: 0 | QL13: 0 | QM13: 0 | QN13: 0 | QO13: 0 | QP13: 0 | QQ13: 0 | QR13: 0 | QS13: 0 | QT13: 0 | QU13: 0 | QV13: 0 | QW13: 0 | QX13: 0 | QY13: 0 | QZ13: 0 | RA13: 0 | RB13: 0 | RC13: 0 | RD13: 1.000835946 | RF13: 0 | RG13: 0 | RI13: =VLOOKUP(A13,'Control Sheet'!$G$9:$H$20,2) -> 30
A14: Apr | B14: 2016-04-06 | C14: Free River | F14: 99999.99999 | K14: Free River | N14: 99999.99999 | S14: 1.517494523 | T14: 0 | U14: 0 | V14: 0 | X14: 0 | Y14: =('NFC Well Pumping'!$L12+'NFC Well Pumping'!$L49+'NFC Well Pumping'!$L85)/1.9835 -> 0 | Z14: ='88CW264(B) Pumping'!$E12/1.9835+'88CW264(B) Pumping'!$E48/1.9835+'88CW264(B) Pumping'!E88/1.9835+'88CW264(B) Pumping'!E124/1.9835+'88CW264(B) Pumping'!E164/1.9835+'88CW264(B) Pumping'!E200/1.9835 -> 0.01157311677 | AA14: 1.517494523 | AB14: =('United No. 2 Well Pumping'!G13+'United No. 2 Well Pumping'!G49+'United No. 2 Well Pumping'!G85)/1.9835 -> 0 | AC14: =('United No. 2 Well Pumping'!F13+'United No. 2 Well Pumping'!F49+'United No. 2 Well Pumping'!F85)/1.9835 -> 0 | AD14: 0 | AF14: 0.01157311677 | AG14: =U14+AC14+'United Res'!AA176+'United Res'!AQ176+'Milliken Res'!I164 -> 0 | AH14: 100 | AI14: =-(IF($N14=99999.99999,0,VLOOKUP($B14,'NFC Well Dplns-URF'!B$7:$AB$306,27))/$RI14/1.9835) -> 0 | AJ14: 0 | AL14: =(VLOOKUP($B14,'ECCV 70R Pond Acrtns'!$B$7:$AI$1206,34)+VLOOKUP($B14,'2003 70R Pond Acrtns'!$B$7:$AI$1206,34)+VLOOKUP($B14,'ECCV 70R Canal Acrtns'!$B$7:$AI$1206,27)+VLOOKUP($B14,'2003 70R Canal Acrtns'!$B$7:$AI$1206,27))/$RI14/1.9835 -> 0 | AM14: 0 | AN14: =-(IF($N14=99999.99999,0,VLOOKUP($B14,'NFC Well Dplns-SDF'!$B$7:$Z$306,25)+VLOOKUP($B14,'NFC Well Dplns-URF'!B$7:$AB$306,20))/$RI14/1.9835) -> 0 | AO14: 0 | AP14: 0 | AR14: =IF(N14<99999.99999,-((AV14+AW14)*'Weldon Credit'!$Z$38+(INDEX('Weldon Credit'!$V$75:$AH$102,MATCH($B$2,'Weldon Credit'!$V$75:$V$102,0),MATCH(A14,'Weldon Credit'!$V$75:$AH$75,0))/RI14)/1.9835),0) -> 0 | AS14: =0.4*(INDEX('Riverside Pond Accrtns'!$B$6:$M$36,MATCH($B$2,'Riverside Pond Accrtns'!$A$6:$A$36,0),MATCH('ECCV Daily Replacement Summary'!A14,'Riverside Pond Accrtns'!$B$5:$M$5,0))/RI14)/1.9835 -> 1.238887488 | AT14: =(44/640)*(INDEX('Weldon Valley Accrtns (02CW377)'!$B$6:$M$30,MATCH($B$2,'Weldon Valley Accrtns (02CW377)'!$A$6:$A$30,0),MATCH(A14,'Weldon Valley Accrtns (02CW377)'!$B$5:$M$5,0))/RI14)/1.9835 -> 0.2508459373 | AU14: =(VLOOKUP($B14,'ECCV 70R Pond Acrtns'!$B$7:$AI$1206,25)+VLOOKUP($B14,'ECCV 70R Canal Acrtns'!$B$7:$AI$1206,20)+VLOOKUP($B14,'2003 70R Pond Acrtns'!$B$7:$AI$1206,25)+VLOOKUP($B14,'2003 70R Canal Acrtns'!$B$7:$AI$1206,20))/$RI14/1.9835 -> 0 | AV14: ='Joint Aug Station Deliveries'!G14 -> 0 | AW14: ='Joint Aug Station Deliveries'!J14 -> 0 | AX14: 0 | AY14: 0 | AZ14: =MIN(-($AR14+AY14)/(1-0.5/100*'Distances for Transit Losses'!$C$71),AS14-AS14*0.5/100*'Distances for Transit Losses'!$C$71) -> 0 | BA14: 0 | BB14: =MAX(0,MIN(-($AR14+AY14+AZ14+BA14),AU14-AU14*0.5/100*'Distances for Transit Losses'!$C$71)) -> 0 | BC14: =-((AZ14+BB14)*(0.5/100*'Distances for Transit Losses'!$C$71)) -> 0 | BD14: =IF(AND(JF14-JG14-FQ14-DL14>0,IW14="no"),MIN(-(AR14+AY14+AZ14+BA14+BB14+BC14)/(1-0.5/100*'Distances for Transit Losses'!$C$93),JF14-JG14-FQ14-DL14),0) -> 0 | BE14: =--BD14*0.5/100*'Distances for Transit Losses'!C$93 -> 0 | BF14: =IF(AND(HA14-HB14-IW14-FK14-KS14-DF14>0,EZ14="no"),MIN(-(AR14+SUM(AY14:BE14))/(1-0.5/100*'Distances for Transit Losses'!$C$99),HA14-HB14-IW14-FK14-KS14-DF14),0) -> 0 | BG14: =--BF14*0.5/100*'Distances for Transit Losses'!$C$95 -> 0 | BH14: 0 | BJ14: no | BK14: no | BL14: 0 | BM14: 0 | BN14: 0 | BP14: =IF($BK14="No",MIN(-CW14,AS14-AZ14/(1-0.5/100*'Distances for Transit Losses'!$C$71)),0) -> 0 | BQ14: =IF($BK14="No",MIN(-CW14+BP14,AU14-BB14/(1-0.5/100*'Distances for Transit Losses'!$C$71)),0) -> 0 | BR14: 0 | BS14: 0 | BT14: 0 | BU14: 1.489733426 | BV14: 1.489733426 | BW14: =-(IF($N14=99999.99999,0,VLOOKUP($B14,'NFC Well Dplns-SDF'!$B$7:$Z$306,16)+VLOOKUP($B14,'NFC Well Dplns-URF'!$B$7:$AB$306,13))/$RI14/1.9835) -> 0 | BX14: =-(IF($N14>=99999,0,'88CW264(B) Pumping'!$E12/1.9835)+IF($N14>=99999,0,'88CW264(B) Pumping'!$E48/1.9835)+IF($N14>=99999,0,'88CW264(B) Pumping'!$E88/1.9835)+IF($N14>=99999,0,'88CW264(B) Pumping'!$E124/1.9835)+IF($N14>=51134.50919,0,'88CW264(B) Pumping'!$E164/1.9835)+IF($N14>=53406,0,'88CW264(B) Pumping'!$E200/1.9835)) -> 0 | BY14: 0 | BZ14: 0 | CA14: 0 | CC14: =-(IF($N14=99999.99999,0,VLOOKUP($B14,'United No. 2 Dplns'!$B$7:$X$676,13)/1.9835)) -> 0 | CD14: =CC14+(-(INDEX('Pre 1995 Net Accretions'!$B$6:$M$105,MATCH($B$2,'Pre 1995 Net Accretions'!$A$6:$A$105,0),MATCH($A14,'Pre 1995 Net Accretions'!$B$5:$M$5,0))/$RI14/1.9835)) -> 0.02852709711 | CE14: =-(IF(N14<99999.99999,(INDEX('70 Ranch RF Obligation'!$B$6:$M$30,MATCH($B$2,'70 Ranch RF Obligation'!$A$6:$A$30,0),MATCH('ECCV Daily Replacement Summary'!A14,'70 Ranch RF Obligation'!$B$5:$M$5,0))/RI14)/1.9835,0))-CH14*(1-'L. Latham Credit'!$E$37) -> 0 | CF14: 0 | CG14: =(VLOOKUP($B14,'ECCV 70R Pond Acrtns'!$B$7:$AI$1206,16)+VLOOKUP($B14,'ECCV 70R Canal Acrtns'!$B$7:$AI$1206,13)+VLOOKUP($B14,'2003 70R Pond Acrtns'!$B$7:$AI$1206,16)+VLOOKUP($B14,'2003 70R Canal Acrtns'!$B$7:$AI$1206,13))/$RI14/1.9835 -> 0 | CH14: 0 | CI14: 0 | CJ14: 0 | CK14: 0 | CL14: 0 | CM14: 0 | CN14: 0 | CP14: 0.02852709711 | CQ14: 0 | CR14: 0 | CS14: =-CR14*0.5/100*'Distances for Transit Losses'!$C$46 -> 0 | CT14: 0 | CU14: 0 | CV14: 0 | CW14: 0 | CX14: 0 | CY14: 0 | CZ14: 0 | DA14: =('NFC Well Pumping'!I12+'NFC Well Pumping'!I49+'NFC Well Pumping'!I85)/1.9835 -> 0 | DB14: =IF(AND(IT14-IU14-FG14>0,IO14="no"),MIN(-SUM(CW14:DA14)/(1-0.5/100*'Distances for Transit Losses'!$C$97),IT14-IU14-FG14),0) -> 0 | DC14: =-DB14*0.5/100*'Distances for Transit Losses'!C$97 -> 0 | DD14: 0 | DE14: =--DD14*0.5/100*'Distances for Transit Losses'!$C$121 -> 0 | DF14: =IF(AND(HA14-HB14-IW14-FK14-KS14>0,EZ14="no"),MIN(-SUM(CW14:DE14)/(1-0.5/100*'Distances for Transit Losses'!$C$99),HA14-HB14-IW14-FK14-KS14),0) -> 0 | DG14: =--DF14*0.5/100*'Distances for Transit Losses'!$C$99 -> 0 | DH14: 0.02852709711 | DI14: 0 | DJ14: ='Joint Aug Station Deliveries'!M14 -> 0 | DK14: =-(DJ14*0.5/100*'Distances for Transit Losses'!$C$206) -> 0 | DL14: 0 | DN14: no | DP14: 0 | DQ14: 0 | DR14: =-(DQ14*0.5/100*'Distances for Transit Losses'!$C$208) -> 0 | DS14: 0 | DT14: =-0.25*(INDEX('GIC Credit'!$B$77:$M$104,MATCH($B$2,'GIC Credit'!$A$77:$A$104,0),MATCH($A14,'GIC Credit'!$B$77:$M$77,0))/$RI14/1.9835+ET14*'GIC Credit'!$Z$35+EU14*'GIC Credit'!$AO$35) -> -0.0001915 | DU14: -0.0001915 | DV14: 0 | DW14: ='Joint Aug Station Deliveries'!BD14 -> 0 | DX14: =-(DW14*0.5/100*'Distances for Transit Losses'!$C$234) -> 0 | DY14: ='Joint Aug Station Deliveries'!BE14 -> 0 | DZ14: =-(DY14*0.5/100*'Distances for Transit Losses'!$C$236) -> 0 | EA14: 0 | EB14: =-(EA14*0.5/100*'Distances for Transit Losses'!$C$228) -> 0 | EC14: 0 | EE14: no | EF14: -0.0001915 | EG14: =-(IF($N14<99999.99999,(INDEX('New Cache Credit'!$W$74:$AH$99,MATCH($B$2,'New Cache Credit'!$V$74:$V$99,0),MATCH($A14,'New Cache Credit'!$W$74:$AH$74,0))/$RI14)/1.9835,0))-DI14-DS14 -> 0 | EH14: =-0.39*(INDEX('GIC Credit'!$B$77:$M$104,MATCH($B$2,'GIC Credit'!$A$77:$A$104,0),MATCH($A14,'GIC Credit'!$B$77:$M$77,0))/$RI14/1.9835+ET14*'GIC Credit'!$Z$35+EU14*'GIC Credit'!$AO$35) -> -0.00029874 | EI14: 0 | EJ14: =-(EI14*0.5/100*('Distances for Transit Losses'!$C$210+'Distances for Transit Losses'!$C$216)) -> 0 | EL14: =IF(EK14="yes",'Joint Aug Station Deliveries'!T14,0) -> 0 | EM14: =-(EL14*0.5/100*('Distances for Transit Losses'!$C$212+'Distances for Transit Losses'!$C$214+'Distances for Transit Losses'!$C$216)) -> 0 | EN14: =IF(EK14="Yes",'Joint Aug Station Deliveries'!W14,0) -> 0 | EO14: =-(EN14*0.5/100*('Distances for Transit Losses'!$C$214+'Distances for Transit Losses'!$C$216)) -> 0 | EP14: ='Joint Aug Station Deliveries'!BF14 -> 0 | EQ14: =-(EP14*0.5/100*'Distances for Transit Losses'!$C$220) -> 0 | ER14: -0.00049024 | ES14: 0 | ET14: ='Joint Aug Station Deliveries'!BH14 -> 0 | EU14: ='Joint Aug Station Deliveries'!BI14 -> 0 | EV14: =-(IF(N14<99999.99999,INDEX('Hist RF to SPR'!$AF$6:$AQ$30,MATCH($B$2,'Hist RF to SPR'!$AE$6:$AE$30,0),MATCH($A14,'Hist RF to SPR'!$AF$5:$AQ$5,0))/RI14/1.9835,0)) -> 0 | EW14: =-0.36*(INDEX('GIC Credit'!$B$77:$M$104,MATCH($B$2,'GIC Credit'!$A$77:$A$104,0),MATCH($A14,'GIC Credit'!$B$77:$M$77,0))/$RI14/1.9835+ET14*'GIC Credit'!$Z$35+EU14*'GIC Credit'!$AO$35) -> -0.00027576 | EX14: -0.00049024 | EY14: -0.000766 | EZ14: no | FA14: 0 | FB14: 0 | FC14: 0 | FE14: 0.000766 | FF14: 0 | FG14: =IF(AND(IT14-IU14-GW14>0,IO14="no"),MIN(-(EY14+FE14+FF14)/(1-0.5/100*'Distances for Transit Losses'!$C$101),IT14-IU14-GW14),0) -> 0 | FH14: =-FG14*0.5/100*'Distances for Transit Losses'!$C$101 -> 0 | FI14: 0 | FJ14: =-FI14*0.5/100*'Distances for Transit Losses'!$C$119 -> 0 | FK14: =IF(AND(HA14-HB14-IW14>0,GM14="no"),MIN(-(EY14+FE14+FF14+FG14+FH14+FI14+FJ14)/(1-0.5/100*'Distances for Transit Losses'!$C$103),HA14-HB14-IW14),0) -> 0 | FL14: =-FK14*0.5/100*'Distances for Transit Losses'!$C$109 -> 0 | FM14: 0 | FO14: 0 | FQ14: =IF(AND(FP13="no",(SUM('Joint Aug Station Deliveries'!$AD$9:'Joint Aug Station Deliveries'!$AD13)+'Joint Aug Station Deliveries'!$AD14)*1.9835>'New Cache Credit'!$BY$35,(SUM('Joint Aug Station Deliveries'!$AD$9:'Joint Aug Station Deliveries'!$AD13)+'Joint Aug Station Deliveries'!$AD14)*1.9835>'New Cache Credit'!$CH$35),0,'Joint Aug Station Deliveries'!V14) -> 0 | FR14: =-(FQ14*0.5/100*'Distances for Transit Losses'!$C$202) -> 0 | FT14: =IF(AND(FS13="no",(SUM('Joint Aug Station Deliveries'!$AD$9:'Joint Aug Station Deliveries'!$AD13)+'Joint Aug Station Deliveries'!$AD14)*1.9835>'New Cache Credit'!$BY$35,(SUM('Joint Aug Station Deliveries'!$AD$9:'Joint Aug Station Deliveries'!$AD13)+'Joint Aug Station Deliveries'!$AD14)*1.9835>'New Cache Credit'!$CH$35),0,'Joint Aug Station Deliveries'!Y14) -> 0 | FU14: =-(FT14*0.5/100*'Distances for Transit Losses'!$C$194) -> 0 | FV14: =IF(AND(FS13="no",(SUM('Joint Aug Station Deliveries'!$AD$9:'Joint Aug Station Deliveries'!$AD13)+'Joint Aug Station Deliveries'!$AD14)*1.9835>'New Cache Credit'!$BY$35,(SUM('Joint Aug Station Deliveries'!$AD$9:'Joint Aug Station Deliveries'!$AD13)+'Joint Aug Station Deliveries'!$AD14)*1.9835>'New Cache Credit'!$CH$35),0,'Joint Aug Station Deliveries'!AB14) -> 0 | FW14: =-(FV14*0.5/100*'Distances for Transit Losses'!$C$200) -> 0 | FX14: 0 | FY14: 0 | FZ14: 0.02776109711 | GA14: 1.489733426 | GB14: =-(IF(N14<99999.99999,INDEX('Hist RF to SPR'!$Q$6:$AB$30,MATCH($B$2,'Hist RF to SPR'!$P$6:$P$30,0),MATCH($A14,'Hist RF to SPR'!$Q$5:$AB$5,0))/RI14/1.9835,0)) -> 0 | GC14: =-(IF(OR($N14<99999.99999,E14="Lower Latham",I14="Lower Latham",E14="Highland",I14="Highland",E14="Plum",I14="Plum"),(INDEX('FIDCO Credit'!$Y$44:$AJ$70,MATCH($B$2,'FIDCO Credit'!$X$44:$X$70,0),MATCH($A14,'FIDCO Credit'!$Y$43:$AJ$43,0))/$RI14)/1.9835,0)) -> 0 | GD14: =-(IF(OR($N14<99999.99999,E14="Lower Latham",I14="Lower Latham",E14="Highland",I14="Highland",E14="Plum",I14="Plum"),(INDEX('Western Credit'!$W$76:$AH$102,MATCH($B$2,'Western Credit'!$V$76:$V$102,0),MATCH($A14,'Western Credit'!$W$75:$AH$75,0))/$RI14)/1.9835,0)) -> 0 | GE14: 0 | GF14: 0 | GG14: 0 | GH14: =IF(AND(GN14="no",GO14="no"),MIN(-(GC14-GF14-GG14)/(1-0.5/100*'Distances for Transit Losses'!$C$89),IL14),0) -> 0 | GI14: =-GH14*0.5/100*'Distances for Transit Losses'!$C$89 -> 0 | GJ14: =VLOOKUP($B14,'ECCV Haren Pond S.P. Acrtns'!$B$7:$G$306,6)/$RI14/1.9835 -> 1.36770332 | GK14: 0 | GL14: 0 | GM14: no | GN14: no | GO14: no | GP14: 0 | GQ14: 0 | GR14: 0 | GT14: 0 | GU14: 0 | GV14: 0 | GW14: =IF(AND(IT14-IU14>0,IO14="no"),MIN(-GV14/(1-0.5/100*'Distances for Transit Losses'!$C$105),IT14-IU14),0) -> 0 | GX14: =-GW14*0.5/100*'Distances for Transit Losses'!$C$105 -> 0 | GY14: =IF(AND(IX14+IY14-IZ14-JK14>0,IO14="no"),MIN((-GV14-(GW14+GX14))/(1-0.5/100*'Distances for Transit Losses'!$C$107),IX14+IY14-IZ14-JK14),0) -> 0 | GZ14: =-GY14*0.5/100*'Distances for Transit Losses'!$C$107 -> 0 | HA14: 0 | HB14: =IF(HA14>0,MIN(-(GV14+GW14+GX14+GY14+GZ14)/(1-0.5/100*'Distances for Transit Losses'!$C$109),HA14),0) -> 0 | HC14: =-HB14*0.5/100*'Distances for Transit Losses'!$C$109 -> 0 | HD14: 0 | HF14: 0 | HG14: ='Joint Aug Station Deliveries'!AQ14 -> 0 | HH14: =HG14*'Western Credit'!$Z$38 -> 0 | HI14: ='Joint Aug Station Deliveries'!AH14 -> 0 | HJ14: =IF(AND(HI14>0,SUM($HI$9:HI14,$HK$9:HK14,$IL$9:IL14)*1.9835<OFFSET('FIDCO Credit'!$X$35,0,MATCH($A14,'FIDCO Credit'!$Y$5:$AJ$5,0))),HI14-GF14,0) -> 0 | HK14: ='Joint Aug Station Deliveries'!AK14 -> 0 | HL14: =IF(AND(HK14>0,SUM($HI$9:HI14,$HK$9:HK14,$IL$9:IL14)*1.9835<OFFSET('FIDCO Credit'!$X$35,0,MATCH($A14,'FIDCO Credit'!$Y$5:$AJ$5,0))),HK14-GG14,0) -> 0 | HM14: =MAX(0,(KN14+KO14))/(1-0.5/100*'Distances for Transit Losses'!$C$77) -> 0 | HN14: =MAX(0,(KP14+KQ14)/(1-0.5/100*'Distances for Transit Losses'!$C$73)) -> 0 | HO14: 0 | HP14: =-HO14*0.5/100*'Distances for Transit Losses'!$C$79 -> 0 | HQ14: 0 | HR14: 0 | HS14: =-HR14*0.5/100*'Distances for Transit Losses'!$C$34 -> 0 | HT14: 0 | HU14: 0 | HV14: 0 | HW14: 0 | HX14: 0 | HY14: 0 | HZ14: 1.489733426 | IA14: 0 | IB14: 0.02776109711 | IC14: 0 | ID14: 0 | IE14: 0 | IF14: =-IE14*0.5/100*'Distances for Transit Losses'!$C$117 -> 0 | IG14: 0 | IH14: 1.36770332 | II14: 0.02776109711 | IJ14: 1.489733426 | IK14: =-(IF(F14<99999.99999,INDEX('Hist RF to SPR'!$B$6:$M$30,MATCH($B$2,'Hist RF to SPR'!$A$6:$A$30,0),MATCH($A14,'Hist RF to SPR'!$B$5:$M$5,0))/RI14/1.9835,0)) -> 0 | IL14: ='Joint Aug Station Deliveries'!AN14 -> 1 | IM14: =IF(AND(IL14>0,SUM($HI$9:HI14,$HK$9:HK14,$IL$9:IL14)*1.9835<OFFSET('FIDCO Credit'!$X$35,0,MATCH($A14,'FIDCO Credit'!$Y$5:$AJ$5,0))),IL14-GH14,0) -> 1 | IN14: 0 | IO14: no | IP14: 0 | IQ14: 0 | IR14: 0 | IS14: 0 | IT14: 0 | IU14: =IF(IT14>0,MIN(-IS14/(1-0.5/100*'Distances for Transit Losses'!$C$111),IT14),0) -> 0 | IV14: =-IU14*0.5/100*'Distances for Transit Losses'!$C$111 -> 0 | IW14: 0 | IX14: 0 | IY14: =-IX14*0.5/100*'Distances for Transit Losses'!$C$66 -> 0 | IZ14: =IF((IX14+IY14)>0,MIN((-IS14-(IU14-IV14)-IW14)/(1-0.5/100*'Distances for Transit Losses'!$C$113),(IX14+IY14)),0) -> 0 | JA14: =-IZ14*0.5/100*'Distances for Transit Losses'!$C$113 -> 0 | JB14: 0 | JD14: 0 | JE14: 1.489733426 | JF14: 0 | JG14: 0.02776109711 | JH14: 0 | JI14: 0 | JJ14: 0 | JK14: 0 | JL14: =-JK14*0.5/100*'Distances for Transit Losses'!$C$115 -> 0 | JM14: 0 | JN14: 0.02776109711 | JO14: 1.489733426 | JP14: =-(IF(N14<99999.99999,(VLOOKUP(B14,'ECCV Upper Dpln'!$B$7:$BD$306,55))/RI14/1.9835,0)) -> 0 | JQ14: =-(IF(N14<99999.99999,INDEX('Hist RF abv Milton'!$B$6:$M$30,MATCH($B$2,'Hist RF abv Milton'!$A$6:$A$30,0),MATCH($A14,'Hist RF abv Milton'!$B$5:$M$5,0))/RI14/1.9835,0)) -> 0 | JR14: 0 | JS14: =(VLOOKUP($B14,'ECCV Beebe Pond Acrtns'!$B$7:$BI$1206,41)+VLOOKUP($B14,'ECCV Canal Acrtns'!$B$7:$AL$1206,22)+VLOOKUP($B14,'2003 Beebe Pond Acrtns'!$B$7:$BI$1206,41)+VLOOKUP($B14,'2003 Canal Acrtns'!$B$7:$AL$1206,22))/$RI14/1.9835 -> 1.000835946 | JT14: 0 | JU14: 0 | JV14: 0 | JW14: 0 | JX14: 0 | JY14: no | JZ14: 0 | KA14: 0 | KB14: 0 | KC14: 0 | KD14: 0 | KE14: 0 | KF14: 0 | KG14: 0 | KH14: 0 | KI14: 0 | KJ14: =-(KI14*0.5/100*'Distances for Transit Losses'!$C$6) -> 0 | KK14: 0 | KL14: 0 | KM14: 0 | KN14: =IF(AND(E14<>"Lower Latham",I14<>"Lower Latham"),MIN(-(KH14+KK14),HJ14-HJ14*0.5/100*'Distances for Transit Losses'!$C$77),0) -> 0 | KO14: =IF(AND(E14<>"Lower Latham",I14<>"Lower Latham"),MAX(0,MIN(-(KG14+KI14+KJ14+KM14),HJ14-HJ14*0.5/100*'Distances for Transit Losses'!$C$77-KN14/(1-0.5/100*'Distances for Transit Losses'!$C$77))),0) -> 0 | KP14: =MIN(-(KH14+KN14),HH14-HH14*0.5/100*'Distances for Transit Losses'!$C$73) -> 0 | KQ14: =MAX(0,MIN(-(KG14+KI14+KJ14+KO14),HH14-HH14*0.5/100*'Distances for Transit Losses'!$C$73-KP14/(1-0.5/100*'Distances for Transit Losses'!$C$73))) -> 0 | KR14: =IF(EZ14="no",MIN(-(MIN(0,KG14+KI14+KJ14+KO14+KQ14)),(GJ14-GK14)-(GJ14-GK14)*0.5/100*'Distances for Transit Losses'!$C$73),0) -> 0 | KS14: =MAX(0,IF(AND(HA14-HB14-IW14-FK14>0,EZ14="no"),MIN(-(KG14+KI14+KJ14+KM14+KO14+KQ14+KR14)/(1-0.5/100*'Distances for Transit Losses'!$C$83),HA14-HB14-IW14-FK14),0)) -> 0 | KT14: =-KS14*0.5/100*'Distances for Transit Losses'!$C$83 -> 0 | KU14: 0 | KW14: 0 | KX14: 1.000835946 | KY14: 0 | KZ14: 0.02852709711 | LA14: 1.489733426 | LB14: =-(IF(N14<99999.99999,INDEX('Hist RF blw Milton'!$B$6:$M$30,MATCH($B$2,'Hist RF blw Milton'!$A$6:$A$30,0),MATCH($A14,'Hist RF blw Milton'!$B$5:$M$5,0))/RI14/1.9835,0)) -> 0 | LC14: no | LD14: 0 | LE14: 0 | LF14: 0 | LG14: 0 | LH14: 0 | LI14: 0 | LK14: 0.02852709711 | LL14: 1.489733426 | LM14: =-(IF(N14<99999.99999,INDEX('Hist RF to Box Elder'!$B$6:$M$30,MATCH($B$2,'Hist RF to Box Elder'!$A$6:$A$30,0),MATCH($A14,'Hist RF to Box Elder'!$B$5:$M$5,0))/RI14/1.9835,0)) -> 0 | LN14: =(VLOOKUP($B14,'ECCV Beebe Pond Acrtns'!$B$7:$BI$1206,54)+VLOOKUP($B14,'ECCV Canal Acrtns'!$B$7:$AL$1206,34)+VLOOKUP($B14,'2003 Beebe Pond Acrtns'!$B$7:$BI$1206,54)+VLOOKUP($B14,'2003 Canal Acrtns'!$B$7:$AL$1206,34)+VLOOKUP($B14,'84CW090 Beebe Pond Acrtns'!$B$7:$BI$1206,55)+VLOOKUP($B14,'84CW090 Canal Acrtns'!$B$7:$AL$1206,34))/$RI14/1.9835 -> 0.09630223027 | LO14: 0 | LP14: 0 | LQ14: 0 | LR14: 0 | LT14: -0.0009575 | LU14: 0 | LV14: 0 | LW14: 0 | LX14: 0 | LY14: 0 | LZ14: 0.000766 | MA14: 0 | MB14: 0 | MC14: 0 | MD14: 0.000766 | ME14: -0.0001915 | MF14: 1.000835946 | MG14: 0.02776109711 | MH14: 1.489733426 | MO14: 0 | MP14: 0 | MQ14: 0 | MS14: 0 | MT14: 0 | MU14: 0 | MV14: 0 | MW14: 0 | MX14: 0 | MY14: 0 | MZ14: 0 | NA14: 0 | NB14: 0 | NC14: 0 | ND14: 0 | NF14: 0 | NG14: 0 | NH14: 0 | NI14: 0 | NJ14: 0 | NK14: 0 | NL14: 0 | NM14: 0 | NN14: 0 | NO14: 0 | NP14: 0 | NR14: 1.517494523 | NS14: 0 | NT14: 0 | NU14: 0 | NV14: 0 | NW14: 0 | NX14: 0 | NY14: 0 | NZ14: 0 | OA14: 0 | OB14: 0 | OH14: 0 | OI14: 0 | OJ14: 0 | OK14: 0 | OL14: 0 | OM14: 0 | ON14: 0 | OO14: 0 | OP14: 0 | OR14: 0 | OS14: 0 | OT14: 0 | OU14: 0 | OV14: 0 | OW14: 0 | OX14: 0 | OY14: 0 | OZ14: 0 | PC14: 0 | PD14: 0 | PE14: 0 | PF14: 0 | PG14: 0 | PH14: 0 | PI14: 0 | PL14: 0 | PM14: 0 | PP14: 0 | PQ14: 0 | PR14: 0 | PU14: 0 | PV14: 0 | PW14: 0 | PX14: 0 | PY14: 0 | PZ14: 0 | QA14: 0 | QC14: 0 | QD14: 0 | QE14: 0 | QF14: 0 | QG14: 0 | QH14: 309.6 | QJ14: 1.000835946 | QK14: 0 | QL14: 0 | QM14: 0 | QN14: 0 | QO14: 0 | QP14: 0 | QQ14: 0 | QR14: 0 | QS14: 0 | QT14: 0 | QU14: 0 | QV14: 0 | QW14: 0 | QX14: 0 | QY14: 0 | QZ14: 0 | RA14: 0 | RB14: 0 | RC14: 0 | RD14: 1.000835946 | RF14: 0 | RG14: 0 | RI14: =VLOOKUP(A14,'Control Sheet'!$G$9:$H$20,2) -> 30
A15: Apr | B15: 2016-04-07 | C15: Free River | F15: 99999.99999 | K15: Free River | N15: 99999.99999 | S15: 1.517494523 | T15: 0 | U15: 0 | V15: 0 | X15: 0 | Y15: =('NFC Well Pumping'!$L13+'NFC Well Pumping'!$L50+'NFC Well Pumping'!$L86)/1.9835 -> 0 | Z15: ='88CW264(B) Pumping'!$E13/1.9835+'88CW264(B) Pumping'!$E49/1.9835+'88CW264(B) Pumping'!E89/1.9835+'88CW264(B) Pumping'!E125/1.9835+'88CW264(B) Pumping'!E165/1.9835+'88CW264(B) Pumping'!E201/1.9835 -> 0.01157311677 | AA15: 1.517494523 | AB15: =('United No. 2 Well Pumping'!G14+'United No. 2 Well Pumping'!G50+'United No. 2 Well Pumping'!G86)/1.9835 -> 0 | AC15: =('United No. 2 Well Pumping'!F14+'United No. 2 Well Pumping'!F50+'United No. 2 Well Pumping'!F86)/1.9835 -> 0 | AD15: 0 | AF15: 0.01157311677 | AG15: =U15+AC15+'United Res'!AA177+'United Res'!AQ177+'Milliken Res'!I165 -> 0 | AH15: 100 | AI15: =-(IF($N15=99999.99999,0,VLOOKUP($B15,'NFC Well Dplns-URF'!B$7:$AB$306,27))/$RI15/1.9835) -> 0 | AJ15: 0 | AL15: =(VLOOKUP($B15,'ECCV 70R Pond Acrtns'!$B$7:$AI$1206,34)+VLOOKUP($B15,'2003 70R Pond Acrtns'!$B$7:$AI$1206,34)+VLOOKUP($B15,'ECCV 70R Canal Acrtns'!$B$7:$AI$1206,27)+VLOOKUP($B15,'2003 70R Canal Acrtns'!$B$7:$AI$1206,27))/$RI15/1.9835 -> 0 | AM15: 0 | AN15: =-(IF($N15=99999.99999,0,VLOOKUP($B15,'NFC Well Dplns-SDF'!$B$7:$Z$306,25)+VLOOKUP($B15,'NFC Well Dplns-URF'!B$7:$AB$306,20))/$RI15/1.9835) -> 0 | AO15: 0 | AP15: 0 | AR15: =IF(N15<99999.99999,-((AV15+AW15)*'Weldon Credit'!$Z$38+(INDEX('Weldon Credit'!$V$75:$AH$102,MATCH($B$2,'Weldon Credit'!$V$75:$V$102,0),MATCH(A15,'Weldon Credit'!$V$75:$AH$75,0))/RI15)/1.9835),0) -> 0 | AS15: =0.4*(INDEX('Riverside Pond Accrtns'!$B$6:$M$36,MATCH($B$2,'Riverside Pond Accrtns'!$A$6:$A$36,0),MATCH('ECCV Daily Replacement Summary'!A15,'Riverside Pond Accrtns'!$B$5:$M$5,0))/RI15)/1.9835 -> 1.238887488 | AT15: =(44/640)*(INDEX('Weldon Valley Accrtns (02CW377)'!$B$6:$M$30,MATCH($B$2,'Weldon Valley Accrtns (02CW377)'!$A$6:$A$30,0),MATCH(A15,'Weldon Valley Accrtns (02CW377)'!$B$5:$M$5,0))/RI15)/1.9835 -> 0.2508459373 | AU15: =(VLOOKUP($B15,'ECCV 70R Pond Acrtns'!$B$7:$AI$1206,25)+VLOOKUP($B15,'ECCV 70R Canal Acrtns'!$B$7:$AI$1206,20)+VLOOKUP($B15,'2003 70R Pond Acrtns'!$B$7:$AI$1206,25)+VLOOKUP($B15,'2003 70R Canal Acrtns'!$B$7:$AI$1206,20))/$RI15/1.9835 -> 0 | AV15: ='Joint Aug Station Deliveries'!G15 -> 0 | AW15: ='Joint Aug Station Deliveries'!J15 -> 0 | AX15: 0 | AY15: 0 | AZ15: =MIN(-($AR15+AY15)/(1-0.5/100*'Distances for Transit Losses'!$C$71),AS15-AS15*0.5/100*'Distances for Transit Losses'!$C$71) -> 0 | BA15: 0 | BB15: =MAX(0,MIN(-($AR15+AY15+AZ15+BA15),AU15-AU15*0.5/100*'Distances for Transit Losses'!$C$71)) -> 0 | BC15: =-((AZ15+BB15)*(0.5/100*'Distances for Transit Losses'!$C$71)) -> 0 | BD15: =IF(AND(JF15-JG15-FQ15-DL15>0,IW15="no"),MIN(-(AR15+AY15+AZ15+BA15+BB15+BC15)/(1-0.5/100*'Distances for Transit Losses'!$C$93),JF15-JG15-FQ15-DL15),0) -> 0 | BE15: =--BD15*0.5/100*'Distances for Transit Losses'!C$93 -> 0 | BF15: =IF(AND(HA15-HB15-IW15-FK15-KS15-DF15>0,EZ15="no"),MIN(-(AR15+SUM(AY15:BE15))/(1-0.5/100*'Distances for Transit Losses'!$C$99),HA15-HB15-IW15-FK15-KS15-DF15),0) -> 0 | BG15: =--BF15*0.5/100*'Distances for Transit Losses'!$C$95 -> 0 | BH15: 0 | BJ15: no | BK15: no | BL15: 0 | BM15: 0 | BN15: 0 | BP15: =IF($BK15="No",MIN(-CW15,AS15-AZ15/(1-0.5/100*'Distances for Transit Losses'!$C$71)),0) -> 0 | BQ15: =IF($BK15="No",MIN(-CW15+BP15,AU15-BB15/(1-0.5/100*'Distances for Transit Losses'!$C$71)),0) -> 0 | BR15: 0 | BS15: 0 | BT15: 0 | BU15: 1.489733426 | BV15: 1.489733426 | BW15: =-(IF($N15=99999.99999,0,VLOOKUP($B15,'NFC Well Dplns-SDF'!$B$7:$Z$306,16)+VLOOKUP($B15,'NFC Well Dplns-URF'!$B$7:$AB$306,13))/$RI15/1.9835) -> 0 | BX15: =-(IF($N15>=99999,0,'88CW264(B) Pumping'!$E13/1.9835)+IF($N15>=99999,0,'88CW264(B) Pumping'!$E49/1.9835)+IF($N15>=99999,0,'88CW264(B) Pumping'!$E89/1.9835)+IF($N15>=99999,0,'88CW264(B) Pumping'!$E125/1.9835)+IF($N15>=51134.50919,0,'88CW264(B) Pumping'!$E165/1.9835)+IF($N15>=53406,0,'88CW264(B) Pumping'!$E201/1.9835)) -> 0 | BY15: 0 | BZ15: 0 | CA15: 0 | CC15: =-(IF($N15=99999.99999,0,VLOOKUP($B15,'United No. 2 Dplns'!$B$7:$X$676,13)/1.9835)) -> 0 | CD15: =CC15+(-(INDEX('Pre 1995 Net Accretions'!$B$6:$M$105,MATCH($B$2,'Pre 1995 Net Accretions'!$A$6:$A$105,0),MATCH($A15,'Pre 1995 Net Accretions'!$B$5:$M$5,0))/$RI15/1.9835)) -> 0.02852709711 | CE15: =-(IF(N15<99999.99999,(INDEX('70 Ranch RF Obligation'!$B$6:$M$30,MATCH($B$2,'70 Ranch RF Obligation'!$A$6:$A$30,0),MATCH('ECCV Daily Replacement Summary'!A15,'70 Ranch RF Obligation'!$B$5:$M$5,0))/RI15)/1.9835,0))-CH15*(1-'L. Latham Credit'!$E$37) -> 0 | CF15: 0 | CG15: =(VLOOKUP($B15,'ECCV 70R Pond Acrtns'!$B$7:$AI$1206,16)+VLOOKUP($B15,'ECCV 70R Canal Acrtns'!$B$7:$AI$1206,13)+VLOOKUP($B15,'2003 70R Pond Acrtns'!$B$7:$AI$1206,16)+VLOOKUP($B15,'2003 70R Canal Acrtns'!$B$7:$AI$1206,13))/$RI15/1.9835 -> 0 | CH15: 0 | CI15: 0 | CJ15: 0 | CK15: 0 | CL15: 0 | CM15: 0 | CN15: 0 | CP15: 0.02852709711 | CQ15: 0 | CR15: 0 | CS15: =-CR15*0.5/100*'Distances for Transit Losses'!$C$46 -> 0 | CT15: 0 | CU15: 0 | CV15: 0 | CW15: 0 | CX15: 0 | CY15: 0 | CZ15: 0 | DA15: =('NFC Well Pumping'!I13+'NFC Well Pumping'!I50+'NFC Well Pumping'!I86)/1.9835 -> 0 | DB15: =IF(AND(IT15-IU15-FG15>0,IO15="no"),MIN(-SUM(CW15:DA15)/(1-0.5/100*'Distances for Transit Losses'!$C$97),IT15-IU15-FG15),0) -> 0 | DC15: =-DB15*0.5/100*'Distances for Transit Losses'!C$97 -> 0 | DD15: 0 | DE15: =--DD15*0.5/100*'Distances for Transit Losses'!$C$121 -> 0 | DF15: =IF(AND(HA15-HB15-IW15-FK15-KS15>0,EZ15="no"),MIN(-SUM(CW15:DE15)/(1-0.5/100*'Distances for Transit Losses'!$C$99),HA15-HB15-IW15-FK15-KS15),0) -> 0 | DG15: =--DF15*0.5/100*'Distances for Transit Losses'!$C$99 -> 0 | DH15: 0.02852709711 | DI15: 0 | DJ15: ='Joint Aug Station Deliveries'!M15 -> 0 | DK15: =-(DJ15*0.5/100*'Distances for Transit Losses'!$C$206) -> 0 | DL15: 0 | DN15: no | DP15: 0 | DQ15: 0 | DR15: =-(DQ15*0.5/100*'Distances for Transit Losses'!$C$208) -> 0 | DS15: 0 | DT15: =-0.25*(INDEX('GIC Credit'!$B$77:$M$104,MATCH($B$2,'GIC Credit'!$A$77:$A$104,0),MATCH($A15,'GIC Credit'!$B$77:$M$77,0))/$RI15/1.9835+ET15*'GIC Credit'!$Z$35+EU15*'GIC Credit'!$AO$35) -> -0.0001915 | DU15: -0.0001915 | DV15: 0 | DW15: ='Joint Aug Station Deliveries'!BD15 -> 0 | DX15: =-(DW15*0.5/100*'Distances for Transit Losses'!$C$234) -> 0 | DY15: ='Joint Aug Station Deliveries'!BE15 -> 0 | DZ15: =-(DY15*0.5/100*'Distances for Transit Losses'!$C$236) -> 0 | EA15: 0 | EB15: =-(EA15*0.5/100*'Distances for Transit Losses'!$C$228) -> 0 | EC15: 0 | EE15: no | EF15: -0.0001915 | EG15: =-(IF($N15<99999.99999,(INDEX('New Cache Credit'!$W$74:$AH$99,MATCH($B$2,'New Cache Credit'!$V$74:$V$99,0),MATCH($A15,'New Cache Credit'!$W$74:$AH$74,0))/$RI15)/1.9835,0))-DI15-DS15 -> 0 | EH15: =-0.39*(INDEX('GIC Credit'!$B$77:$M$104,MATCH($B$2,'GIC Credit'!$A$77:$A$104,0),MATCH($A15,'GIC Credit'!$B$77:$M$77,0))/$RI15/1.9835+ET15*'GIC Credit'!$Z$35+EU15*'GIC Credit'!$AO$35) -> -0.00029874 | EI15: 0 | EJ15: =-(EI15*0.5/100*('Distances for Transit Losses'!$C$210+'Distances for Transit Losses'!$C$216)) -> 0 | EL15: =IF(EK15="yes",'Joint Aug Station Deliveries'!T15,0) -> 0 | EM15: =-(EL15*0.5/100*('Distances for Transit Losses'!$C$212+'Distances for Transit Losses'!$C$214+'Distances for Transit Losses'!$C$216)) -> 0 | EN15: =IF(EK15="Yes",'Joint Aug Station Deliveries'!W15,0) -> 0 | EO15: =-(EN15*0.5/100*('Distances for Transit Losses'!$C$214+'Distances for Transit Losses'!$C$216)) -> 0 | EP15: ='Joint Aug Station Deliveries'!BF15 -> 0 | EQ15: =-(EP15*0.5/100*'Distances for Transit Losses'!$C$220) -> 0 | ER15: -0.00049024 | ES15: 0 | ET15: ='Joint Aug Station Deliveries'!BH15 -> 0 | EU15: ='Joint Aug Station Deliveries'!BI15 -> 0 | EV15: =-(IF(N15<99999.99999,INDEX('Hist RF to SPR'!$AF$6:$AQ$30,MATCH($B$2,'Hist RF to SPR'!$AE$6:$AE$30,0),MATCH($A15,'Hist RF to SPR'!$AF$5:$AQ$5,0))/RI15/1.9835,0)) -> 0 | EW15: =-0.36*(INDEX('GIC Credit'!$B$77:$M$104,MATCH($B$2,'GIC Credit'!$A$77:$A$104,0),MATCH($A15,'GIC Credit'!$B$77:$M$77,0))/$RI15/1.9835+ET15*'GIC Credit'!$Z$35+EU15*'GIC Credit'!$AO$35) -> -0.00027576 | EX15: -0.00049024 | EY15: -0.000766 | EZ15: no | FA15: 0 | FB15: 0 | FC15: 0 | FE15: 0.000766 | FF15: 0 | FG15: =IF(AND(IT15-IU15-GW15>0,IO15="no"),MIN(-(EY15+FE15+FF15)/(1-0.5/100*'Distances for Transit Losses'!$C$101),IT15-IU15-GW15),0) -> 0 | FH15: =-FG15*0.5/100*'Distances for Transit Losses'!$C$101 -> 0 | FI15: 0 | FJ15: =-FI15*0.5/100*'Distances for Transit Losses'!$C$119 -> 0 | FK15: =IF(AND(HA15-HB15-IW15>0,GM15="no"),MIN(-(EY15+FE15+FF15+FG15+FH15+FI15+FJ15)/(1-0.5/100*'Distances for Transit Losses'!$C$103),HA15-HB15-IW15),0) -> 0 | FL15: =-FK15*0.5/100*'Distances for Transit Losses'!$C$109 -> 0 | FM15: 0 | FO15: 0 | FQ15: =IF(AND(FP14="no",(SUM('Joint Aug Station Deliveries'!$AD$9:'Joint Aug Station Deliveries'!$AD14)+'Joint Aug Station Deliveries'!$AD15)*1.9835>'New Cache Credit'!$BY$35,(SUM('Joint Aug Station Deliveries'!$AD$9:'Joint Aug Station Deliveries'!$AD14)+'Joint Aug Station Deliveries'!$AD15)*1.9835>'New Cache Credit'!$CH$35),0,'Joint Aug Station Deliveries'!V15) -> 0 | FR15: =-(FQ15*0.5/100*'Distances for Transit Losses'!$C$202) -> 0 | FT15: =IF(AND(FS14="no",(SUM('Joint Aug Station Deliveries'!$AD$9:'Joint Aug Station Deliveries'!$AD14)+'Joint Aug Station Deliveries'!$AD15)*1.9835>'New Cache Credit'!$BY$35,(SUM('Joint Aug Station Deliveries'!$AD$9:'Joint Aug Station Deliveries'!$AD14)+'Joint Aug Station Deliveries'!$AD15)*1.9835>'New Cache Credit'!$CH$35),0,'Joint Aug Station Deliveries'!Y15) -> 0 | FU15: =-(FT15*0.5/100*'Distances for Transit Losses'!$C$194) -> 0 | FV15: =IF(AND(FS14="no",(SUM('Joint Aug Station Deliveries'!$AD$9:'Joint Aug Station Deliveries'!$AD14)+'Joint Aug Station Deliveries'!$AD15)*1.9835>'New Cache Credit'!$BY$35,(SUM('Joint Aug Station Deliveries'!$AD$9:'Joint Aug Station Deliveries'!$AD14)+'Joint Aug Station Deliveries'!$AD15)*1.9835>'New Cache Credit'!$CH$35),0,'Joint Aug Station Deliveries'!AB15) -> 0 | FW15: =-(FV15*0.5/100*'Distances for Transit Losses'!$C$200) -> 0 | FX15: 0 | FY15: 0 | FZ15: 0.02776109711 | GA15: 1.489733426 | GB15: =-(IF(N15<99999.99999,INDEX('Hist RF to SPR'!$Q$6:$AB$30,MATCH($B$2,'Hist RF to SPR'!$P$6:$P$30,0),MATCH($A15,'Hist RF to SPR'!$Q$5:$AB$5,0))/RI15/1.9835,0)) -> 0 | GC15: =-(IF(OR($N15<99999.99999,E15="Lower Latham",I15="Lower Latham",E15="Highland",I15="Highland",E15="Plum",I15="Plum"),(INDEX('FIDCO Credit'!$Y$44:$AJ$70,MATCH($B$2,'FIDCO Credit'!$X$44:$X$70,0),MATCH($A15,'FIDCO Credit'!$Y$43:$AJ$43,0))/$RI15)/1.9835,0)) -> 0 | GD15: =-(IF(OR($N15<99999.99999,E15="Lower Latham",I15="Lower Latham",E15="Highland",I15="Highland",E15="Plum",I15="Plum"),(INDEX('Western Credit'!$W$76:$AH$102,MATCH($B$2,'Western Credit'!$V$76:$V$102,0),MATCH($A15,'Western Credit'!$W$75:$AH$75,0))/$RI15)/1.9835,0)) -> 0 | GE15: 0 | GF15: 0 | GG15: 0 | GH15: =IF(AND(GN15="no",GO15="no"),MIN(-(GC15-GF15-GG15)/(1-0.5/100*'Distances for Transit Losses'!$C$89),IL15),0) -> 0 | GI15: =-GH15*0.5/100*'Distances for Transit Losses'!$C$89 -> 0 | GJ15: =VLOOKUP($B15,'ECCV Haren Pond S.P. Acrtns'!$B$7:$G$306,6)/$RI15/1.9835 -> 1.36770332 | GK15: 0 | GL15: 0 | GM15: no | GN15: no | GO15: no | GP15: 0 | GQ15: 0 | GR15: 0 | GT15: 0 | GU15: 0 | GV15: 0 | GW15: =IF(AND(IT15-IU15>0,IO15="no"),MIN(-GV15/(1-0.5/100*'Distances for Transit Losses'!$C$105),IT15-IU15),0) -> 0 | GX15: =-GW15*0.5/100*'Distances for Transit Losses'!$C$105 -> 0 | GY15: =IF(AND(IX15+IY15-IZ15-JK15>0,IO15="no"),MIN((-GV15-(GW15+GX15))/(1-0.5/100*'Distances for Transit Losses'!$C$107),IX15+IY15-IZ15-JK15),0) -> 0 | GZ15: =-GY15*0.5/100*'Distances for Transit Losses'!$C$107 -> 0 | HA15: 0 | HB15: =IF(HA15>0,MIN(-(GV15+GW15+GX15+GY15+GZ15)/(1-0.5/100*'Distances for Transit Losses'!$C$109),HA15),0) -> 0 | HC15: =-HB15*0.5/100*'Distances for Transit Losses'!$C$109 -> 0 | HD15: 0 | HF15: 0 | HG15: ='Joint Aug Station Deliveries'!AQ15 -> 0 | HH15: =HG15*'Western Credit'!$Z$38 -> 0 | HI15: ='Joint Aug Station Deliveries'!AH15 -> 0 | HJ15: =IF(AND(HI15>0,SUM($HI$9:HI15,$HK$9:HK15,$IL$9:IL15)*1.9835<OFFSET('FIDCO Credit'!$X$35,0,MATCH($A15,'FIDCO Credit'!$Y$5:$AJ$5,0))),HI15-GF15,0) -> 0 | HK15: ='Joint Aug Station Deliveries'!AK15 -> 0 | HL15: =IF(AND(HK15>0,SUM($HI$9:HI15,$HK$9:HK15,$IL$9:IL15)*1.9835<OFFSET('FIDCO Credit'!$X$35,0,MATCH($A15,'FIDCO Credit'!$Y$5:$AJ$5,0))),HK15-GG15,0) -> 0 | HM15: =MAX(0,(KN15+KO15))/(1-0.5/100*'Distances for Transit Losses'!$C$77) -> 0 | HN15: =MAX(0,(KP15+KQ15)/(1-0.5/100*'Distances for Transit Losses'!$C$73)) -> 0 | HO15: 0 | HP15: =-HO15*0.5/100*'Distances for Transit Losses'!$C$79 -> 0 | HQ15: 0 | HR15: 0 | HS15: =-HR15*0.5/100*'Distances for Transit Losses'!$C$34 -> 0 | HT15: 0 | HU15: 0 | HV15: 0 | HW15: 0 | HX15: 0 | HY15: 0 | HZ15: 1.489733426 | IA15: 0 | IB15: 0.02776109711 | IC15: 0 | ID15: 0 | IE15: 0 | IF15: =-IE15*0.5/100*'Distances for Transit Losses'!$C$117 -> 0 | IG15: 0 | IH15: 1.36770332 | II15: 0.02776109711 | IJ15: 1.489733426 | IK15: =-(IF(F15<99999.99999,INDEX('Hist RF to SPR'!$B$6:$M$30,MATCH($B$2,'Hist RF to SPR'!$A$6:$A$30,0),MATCH($A15,'Hist RF to SPR'!$B$5:$M$5,0))/RI15/1.9835,0)) -> 0 | IL15: ='Joint Aug Station Deliveries'!AN15 -> 1 | IM15: =IF(AND(IL15>0,SUM($HI$9:HI15,$HK$9:HK15,$IL$9:IL15)*1.9835<OFFSET('FIDCO Credit'!$X$35,0,MATCH($A15,'FIDCO Credit'!$Y$5:$AJ$5,0))),IL15-GH15,0) -> 1 | IN15: 0 | IO15: no | IP15: 0 | IQ15: 0 | IR15: 0 | IS15: 0 | IT15: 0 | IU15: =IF(IT15>0,MIN(-IS15/(1-0.5/100*'Distances for Transit Losses'!$C$111),IT15),0) -> 0 | IV15: =-IU15*0.5/100*'Distances for Transit Losses'!$C$111 -> 0 | IW15: 0 | IX15: 0 | IY15: =-IX15*0.5/100*'Distances for Transit Losses'!$C$66 -> 0 | IZ15: =IF((IX15+IY15)>0,MIN((-IS15-(IU15-IV15)-IW15)/(1-0.5/100*'Distances for Transit Losses'!$C$113),(IX15+IY15)),0) -> 0 | JA15: =-IZ15*0.5/100*'Distances for Transit Losses'!$C$113 -> 0 | JB15: 0 | JD15: 0 | JE15: 1.489733426 | JF15: 0 | JG15: 0.02776109711 | JH15: 0 | JI15: 0 | JJ15: 0 | JK15: 0 | JL15: =-JK15*0.5/100*'Distances for Transit Losses'!$C$115 -> 0 | JM15: 0 | JN15: 0.02776109711 | JO15: 1.489733426 | JP15: =-(IF(N15<99999.99999,(VLOOKUP(B15,'ECCV Upper Dpln'!$B$7:$BD$306,55))/RI15/1.9835,0)) -> 0 | JQ15: =-(IF(N15<99999.99999,INDEX('Hist RF abv Milton'!$B$6:$M$30,MATCH($B$2,'Hist RF abv Milton'!$A$6:$A$30,0),MATCH($A15,'Hist RF abv Milton'!$B$5:$M$5,0))/RI15/1.9835,0)) -> 0 | JR15: 0 | JS15: =(VLOOKUP($B15,'ECCV Beebe Pond Acrtns'!$B$7:$BI$1206,41)+VLOOKUP($B15,'ECCV Canal Acrtns'!$B$7:$AL$1206,22)+VLOOKUP($B15,'2003 Beebe Pond Acrtns'!$B$7:$BI$1206,41)+VLOOKUP($B15,'2003 Canal Acrtns'!$B$7:$AL$1206,22))/$RI15/1.9835 -> 1.000835946 | JT15: 0 | JU15: 0 | JV15: 0 | JW15: 0 | JX15: 0 | JY15: no | JZ15: 0 | KA15: 0 | KB15: 0 | KC15: 0 | KD15: 0 | KE15: 0 | KF15: 0 | KG15: 0 | KH15: 0 | KI15: 0 | KJ15: =-(KI15*0.5/100*'Distances for Transit Losses'!$C$6) -> 0 | KK15: 0 | KL15: 0 | KM15: 0 | KN15: =IF(AND(E15<>"Lower Latham",I15<>"Lower Latham"),MIN(-(KH15+KK15),HJ15-HJ15*0.5/100*'Distances for Transit Losses'!$C$77),0) -> 0 | KO15: =IF(AND(E15<>"Lower Latham",I15<>"Lower Latham"),MAX(0,MIN(-(KG15+KI15+KJ15+KM15),HJ15-HJ15*0.5/100*'Distances for Transit Losses'!$C$77-KN15/(1-0.5/100*'Distances for Transit Losses'!$C$77))),0) -> 0 | KP15: =MIN(-(KH15+KN15),HH15-HH15*0.5/100*'Distances for Transit Losses'!$C$73) -> 0 | KQ15: =MAX(0,MIN(-(KG15+KI15+KJ15+KO15),HH15-HH15*0.5/100*'Distances for Transit Losses'!$C$73-KP15/(1-0.5/100*'Distances for Transit Losses'!$C$73))) -> 0 | KR15: =IF(EZ15="no",MIN(-(MIN(0,KG15+KI15+KJ15+KO15+KQ15)),(GJ15-GK15)-(GJ15-GK15)*0.5/100*'Distances for Transit Losses'!$C$73),0) -> 0 | KS15: =MAX(0,IF(AND(HA15-HB15-IW15-FK15>0,EZ15="no"),MIN(-(KG15+KI15+KJ15+KM15+KO15+KQ15+KR15)/(1-0.5/100*'Distances for Transit Losses'!$C$83),HA15-HB15-IW15-FK15),0)) -> 0 | KT15: =-KS15*0.5/100*'Distances for Transit Losses'!$C$83 -> 0 | KU15: 0 | KW15: 0 | KX15: 1.000835946 | KY15: 0 | KZ15: 0.02852709711 | LA15: 1.489733426 | LB15: =-(IF(N15<99999.99999,INDEX('Hist RF blw Milton'!$B$6:$M$30,MATCH($B$2,'Hist RF blw Milton'!$A$6:$A$30,0),MATCH($A15,'Hist RF blw Milton'!$B$5:$M$5,0))/RI15/1.9835,0)) -> 0 | LC15: no | LD15: 0 | LE15: 0 | LF15: 0 | LG15: 0 | LH15: 0 | LI15: 0 | LK15: 0.02852709711 | LL15: 1.489733426 | LM15: =-(IF(N15<99999.99999,INDEX('Hist RF to Box Elder'!$B$6:$M$30,MATCH($B$2,'Hist RF to Box Elder'!$A$6:$A$30,0),MATCH($A15,'Hist RF to Box Elder'!$B$5:$M$5,0))/RI15/1.9835,0)) -> 0 | LN15: =(VLOOKUP($B15,'ECCV Beebe Pond Acrtns'!$B$7:$BI$1206,54)+VLOOKUP($B15,'ECCV Canal Acrtns'!$B$7:$AL$1206,34)+VLOOKUP($B15,'2003 Beebe Pond Acrtns'!$B$7:$BI$1206,54)+VLOOKUP($B15,'2003 Canal Acrtns'!$B$7:$AL$1206,34)+VLOOKUP($B15,'84CW090 Beebe Pond Acrtns'!$B$7:$BI$1206,55)+VLOOKUP($B15,'84CW090 Canal Acrtns'!$B$7:$AL$1206,34))/$RI15/1.9835 -> 0.09630223027 | LO15: 0 | LP15: 0 | LQ15: 0 | LR15: 0 | LT15: -0.0009575 | LU15: 0 | LV15: 0 | LW15: 0 | LX15: 0 | LY15: 0 | LZ15: 0.000766 | MA15: 0 | MB15: 0 | MC15: 0 | MD15: 0.000766 | ME15: -0.0001915 | MF15: 1.000835946 | MG15: 0.02776109711 | MH15: 1.489733426 | MO15: 0 | MP15: 0 | MQ15: 0 | MS15: 0 | MT15: 0 | MU15: 0 | MV15: 0 | MW15: 0 | MX15: 0 | MY15: 0 | MZ15: 0 | NA15: 0 | NB15: 0 | NC15: 0 | ND15: 0 | NF15: 0 | NG15: 0 | NH15: 0 | NI15: 0 | NJ15: 0 | NK15: 0 | NL15: 0 | NM15: 0 | NN15: 0 | NO15: 0 | NP15: 0 | NR15: 1.517494523 | NS15: 0 | NT15: 0 | NU15: 0 | NV15: 0 | NW15: 0 | NX15: 0 | NY15: 0 | NZ15: 0 | OA15: 0 | OB15: 0 | OH15: 0 | OI15: 0 | OJ15: 0 | OK15: 0 | OL15: 0 | OM15: 0 | ON15: 0 | OO15: 0 | OP15: 0 | OR15: 0 | OS15: 0 | OT15: 0 | OU15: 0 | OV15: 0 | OW15: 0 | OX15: 0 | OY15: 0 | OZ15: 0 | PC15: 0 | PD15: 0 | PE15: 0 | PF15: 0 | PG15: 0 | PH15: 0 | PI15: 0 | PL15: 0 | PM15: 0 | PP15: 0 | PQ15: 0 | PR15: 0 | PU15: 0 | PV15: 0 | PW15: 0 | PX15: 0 | PY15: 0 | PZ15: 0 | QA15: 0 | QC15: 0 | QD15: 0 | QE15: 0 | QF15: 0 | QG15: 0 | QH15: 309.6 | QJ15: 1.000835946 | QK15: 0 | QL15: 0 | QM15: 0 | QN15: 0 | QO15: 0 | QP15: 0 | QQ15: 0 | QR15: 0 | QS15: 0 | QT15: 0 | QU15: 0 | QV15: 0 | QW15: 0 | QX15: 0 | QY15: 0 | QZ15: 0 | RA15: 0 | RB15: 0 | RC15: 0 | RD15: 1.000835946 | RF15: 0 | RG15: 0 | RI15: =VLOOKUP(A15,'Control Sheet'!$G$9:$H$20,2) -> 30
A16: Apr | B16: 2016-04-08 | C16: Free River | F16: 99999.99999 | K16: Free River | N16: 99999.99999 | S16: 1.517494523 | T16: 0 | U16: 0 | V16: 0 | X16: 0 | Y16: =('NFC Well Pumping'!$L14+'NFC Well Pumping'!$L51+'NFC Well Pumping'!$L87)/1.9835 -> 0 | Z16: ='88CW264(B) Pumping'!$E14/1.9835+'88CW264(B) Pumping'!$E50/1.9835+'88CW264(B) Pumping'!E90/1.9835+'88CW264(B) Pumping'!E126/1.9835+'88CW264(B) Pumping'!E166/1.9835+'88CW264(B) Pumping'!E202/1.9835 -> 0.01157311677 | AA16: 1.517494523 | AB16: =('United No. 2 Well Pumping'!G15+'United No. 2 Well Pumping'!G51+'United No. 2 Well Pumping'!G87)/1.9835 -> 0 | AC16: =('United No. 2 Well Pumping'!F15+'United No. 2 Well Pumping'!F51+'United No. 2 Well Pumping'!F87)/1.9835 -> 0 | AD16: 0 | AF16: 0.01157311677 | AG16: =U16+AC16+'United Res'!AA178+'United Res'!AQ178+'Milliken Res'!I166 -> 0 | AH16: 100 | AI16: =-(IF($N16=99999.99999,0,VLOOKUP($B16,'NFC Well Dplns-URF'!B$7:$AB$306,27))/$RI16/1.9835) -> 0 | AJ16: 0 | AL16: =(VLOOKUP($B16,'ECCV 70R Pond Acrtns'!$B$7:$AI$1206,34)+VLOOKUP($B16,'2003 70R Pond Acrtns'!$B$7:$AI$1206,34)+VLOOKUP($B16,'ECCV 70R Canal Acrtns'!$B$7:$AI$1206,27)+VLOOKUP($B16,'2003 70R Canal Acrtns'!$B$7:$AI$1206,27))/$RI16/1.9835 -> 0 | AM16: 0 | AN16: =-(IF($N16=99999.99999,0,VLOOKUP($B16,'NFC Well Dplns-SDF'!$B$7:$Z$306,25)+VLOOKUP($B16,'NFC Well Dplns-URF'!B$7:$AB$306,20))/$RI16/1.9835) -> 0 | AO16: 0 | AP16: 0 | AR16: =IF(N16<99999.99999,-((AV16+AW16)*'Weldon Credit'!$Z$38+(INDEX('Weldon Credit'!$V$75:$AH$102,MATCH($B$2,'Weldon Credit'!$V$75:$V$102,0),MATCH(A16,'Weldon Credit'!$V$75:$AH$75,0))/RI16)/1.9835),0) -> 0 | AS16: =0.4*(INDEX('Riverside Pond Accrtns'!$B$6:$M$36,MATCH($B$2,'Riverside Pond Accrtns'!$A$6:$A$36,0),MATCH('ECCV Daily Replacement Summary'!A16,'Riverside Pond Accrtns'!$B$5:$M$5,0))/RI16)/1.9835 -> 1.238887488 | AT16: =(44/640)*(INDEX('Weldon Valley Accrtns (02CW377)'!$B$6:$M$30,MATCH($B$2,'Weldon Valley Accrtns (02CW377)'!$A$6:$A$30,0),MATCH(A16,'Weldon Valley Accrtns (02CW377)'!$B$5:$M$5,0))/RI16)/1.9835 -> 0.2508459373 | AU16: =(VLOOKUP($B16,'ECCV 70R Pond Acrtns'!$B$7:$AI$1206,25)+VLOOKUP($B16,'ECCV 70R Canal Acrtns'!$B$7:$AI$1206,20)+VLOOKUP($B16,'2003 70R Pond Acrtns'!$B$7:$AI$1206,25)+VLOOKUP($B16,'2003 70R Canal Acrtns'!$B$7:$AI$1206,20))/$RI16/1.9835 -> 0 | AV16: ='Joint Aug Station Deliveries'!G16 -> 0 | AW16: ='Joint Aug Station Deliveries'!J16 -> 0 | AX16: 0 | AY16: 0 | AZ16: =MIN(-($AR16+AY16)/(1-0.5/100*'Distances for Transit Losses'!$C$71),AS16-AS16*0.5/100*'Distances for Transit Losses'!$C$71) -> 0 | BA16: 0 | BB16: =MAX(0,MIN(-($AR16+AY16+AZ16+BA16),AU16-AU16*0.5/100*'Distances for Transit Losses'!$C$71)) -> 0 | BC16: =-((AZ16+BB16)*(0.5/100*'Distances for Transit Losses'!$C$71)) -> 0 | BD16: =IF(AND(JF16-JG16-FQ16-DL16>0,IW16="no"),MIN(-(AR16+AY16+AZ16+BA16+BB16+BC16)/(1-0.5/100*'Distances for Transit Losses'!$C$93),JF16-JG16-FQ16-DL16),0) -> 0 | BE16: =--BD16*0.5/100*'Distances for Transit Losses'!C$93 -> 0 | BF16: =IF(AND(HA16-HB16-IW16-FK16-KS16-DF16>0,EZ16="no"),MIN(-(AR16+SUM(AY16:BE16))/(1-0.5/100*'Distances for Transit Losses'!$C$99),HA16-HB16-IW16-FK16-KS16-DF16),0) -> 0 | BG16: =--BF16*0.5/100*'Distances for Transit Losses'!$C$95 -> 0 | BH16: 0 | BJ16: no | BK16: no | BL16: 0 | BM16: 0 | BN16: 0 | BP16: =IF($BK16="No",MIN(-CW16,AS16-AZ16/(1-0.5/100*'Distances for Transit Losses'!$C$71)),0) -> 0 | BQ16: =IF($BK16="No",MIN(-CW16+BP16,AU16-BB16/(1-0.5/100*'Distances for Transit Losses'!$C$71)),0) -> 0 | BR16: 0 | BS16: 0 | BT16: 0 | BU16: 1.489733426 | BV16: 1.489733426 | BW16: =-(IF($N16=99999.99999,0,VLOOKUP($B16,'NFC Well Dplns-SDF'!$B$7:$Z$306,16)+VLOOKUP($B16,'NFC Well Dplns-URF'!$B$7:$AB$306,13))/$RI16/1.9835) -> 0 | BX16: =-(IF($N16>=99999,0,'88CW264(B) Pumping'!$E14/1.9835)+IF($N16>=99999,0,'88CW264(B) Pumping'!$E50/1.9835)+IF($N16>=99999,0,'88CW264(B) Pumping'!$E90/1.9835)+IF($N16>=99999,0,'88CW264(B) Pumping'!$E126/1.9835)+IF($N16>=51134.50919,0,'88CW264(B) Pumping'!$E166/1.9835)+IF($N16>=53406,0,'88CW264(B) Pumping'!$E202/1.9835)) -> 0 | BY16: 0 | BZ16: 0 | CA16: 0 | CC16: =-(IF($N16=99999.99999,0,VLOOKUP($B16,'United No. 2 Dplns'!$B$7:$X$676,13)/1.9835)) -> 0 | CD16: =CC16+(-(INDEX('Pre 1995 Net Accretions'!$B$6:$M$105,MATCH($B$2,'Pre 1995 Net Accretions'!$A$6:$A$105,0),MATCH($A16,'Pre 1995 Net Accretions'!$B$5:$M$5,0))/$RI16/1.9835)) -> 0.02852709711 | CE16: =-(IF(N16<99999.99999,(INDEX('70 Ranch RF Obligation'!$B$6:$M$30,MATCH($B$2,'70 Ranch RF Obligation'!$A$6:$A$30,0),MATCH('ECCV Daily Replacement Summary'!A16,'70 Ranch RF Obligation'!$B$5:$M$5,0))/RI16)/1.9835,0))-CH16*(1-'L. Latham Credit'!$E$37) -> 0 | CF16: 0 | CG16: =(VLOOKUP($B16,'ECCV 70R Pond Acrtns'!$B$7:$AI$1206,16)+VLOOKUP($B16,'ECCV 70R Canal Acrtns'!$B$7:$AI$1206,13)+VLOOKUP($B16,'2003 70R Pond Acrtns'!$B$7:$AI$1206,16)+VLOOKUP($B16,'2003 70R Canal Acrtns'!$B$7:$AI$1206,13))/$RI16/1.9835 -> 0 | CH16: 0 | CI16: 0 | CJ16: 0 | CK16: 0 | CL16: 0 | CM16: 0 | CN16: 0 | CP16: 0.02852709711 | CQ16: 0 | CR16: 0 | CS16: =-CR16*0.5/100*'Distances for Transit Losses'!$C$46 -> 0 | CT16: 0 | CU16: 0 | CV16: 0 | CW16: 0 | CX16: 0 | CY16: 0 | CZ16: 0 | DA16: =('NFC Well Pumping'!I14+'NFC Well Pumping'!I51+'NFC Well Pumping'!I87)/1.9835 -> 0 | DB16: =IF(AND(IT16-IU16-FG16>0,IO16="no"),MIN(-SUM(CW16:DA16)/(1-0.5/100*'Distances for Transit Losses'!$C$97),IT16-IU16-FG16),0) -> 0 | DC16: =-DB16*0.5/100*'Distances for Transit Losses'!C$97 -> 0 | DD16: 0 | DE16: =--DD16*0.5/100*'Distances for Transit Losses'!$C$121 -> 0 | DF16: =IF(AND(HA16-HB16-IW16-FK16-KS16>0,EZ16="no"),MIN(-SUM(CW16:DE16)/(1-0.5/100*'Distances for Transit Losses'!$C$99),HA16-HB16-IW16-FK16-KS16),0) -> 0 | DG16: =--DF16*0.5/100*'Distances for Transit Losses'!$C$99 -> 0 | DH16: 0.02852709711 | DI16: 0 | DJ16: ='Joint Aug Station Deliveries'!M16 -> 0 | DK16: =-(DJ16*0.5/100*'Distances for Transit Losses'!$C$206) -> 0 | DL16: 0 | DN16: no | DP16: 0 | DQ16: 0 | DR16: =-(DQ16*0.5/100*'Distances for Transit Losses'!$C$208) -> 0 | DS16: 0 | DT16: =-0.25*(INDEX('GIC Credit'!$B$77:$M$104,MATCH($B$2,'GIC Credit'!$A$77:$A$104,0),MATCH($A16,'GIC Credit'!$B$77:$M$77,0))/$RI16/1.9835+ET16*'GIC Credit'!$Z$35+EU16*'GIC Credit'!$AO$35) -> -0.0001915 | DU16: -0.0001915 | DV16: 0 | DW16: ='Joint Aug Station Deliveries'!BD16 -> 0 | DX16: =-(DW16*0.5/100*'Distances for Transit Losses'!$C$234) -> 0 | DY16: ='Joint Aug Station Deliveries'!BE16 -> 0 | DZ16: =-(DY16*0.5/100*'Distances for Transit Losses'!$C$236) -> 0 | EA16: 0 | EB16: =-(EA16*0.5/100*'Distances for Transit Losses'!$C$228) -> 0 | EC16: 0 | EE16: no | EF16: -0.0001915 | EG16: =-(IF($N16<99999.99999,(INDEX('New Cache Credit'!$W$74:$AH$99,MATCH($B$2,'New Cache Credit'!$V$74:$V$99,0),MATCH($A16,'New Cache Credit'!$W$74:$AH$74,0))/$RI16)/1.9835,0))-DI16-DS16 -> 0 | EH16: =-0.39*(INDEX('GIC Credit'!$B$77:$M$104,MATCH($B$2,'GIC Credit'!$A$77:$A$104,0),MATCH($A16,'GIC Credit'!$B$77:$M$77,0))/$RI16/1.9835+ET16*'GIC Credit'!$Z$35+EU16*'GIC Credit'!$AO$35) -> -0.00029874 | EI16: 0 | EJ16: =-(EI16*0.5/100*('Distances for Transit Losses'!$C$210+'Distances for Transit Losses'!$C$216)) -> 0 | EL16: =IF(EK16="yes",'Joint Aug Station Deliveries'!T16,0) -> 0 | EM16: =-(EL16*0.5/100*('Distances for Transit Losses'!$C$212+'Distances for Transit Losses'!$C$214+'Distances for Transit Losses'!$C$216)) -> 0 | EN16: =IF(EK16="Yes",'Joint Aug Station Deliveries'!W16,0) -> 0 | EO16: =-(EN16*0.5/100*('Distances for Transit Losses'!$C$214+'Distances for Transit Losses'!$C$216)) -> 0 | EP16: ='Joint Aug Station Deliveries'!BF16 -> 0 | EQ16: =-(EP16*0.5/100*'Distances for Transit Losses'!$C$220) -> 0 | ER16: -0.00049024 | ES16: 0 | ET16: ='Joint Aug Station Deliveries'!BH16 -> 0 | EU16: ='Joint Aug Station Deliveries'!BI16 -> 0 | EV16: =-(IF(N16<99999.99999,INDEX('Hist RF to SPR'!$AF$6:$AQ$30,MATCH($B$2,'Hist RF to SPR'!$AE$6:$AE$30,0),MATCH($A16,'Hist RF to SPR'!$AF$5:$AQ$5,0))/RI16/1.9835,0)) -> 0 | EW16: =-0.36*(INDEX('GIC Credit'!$B$77:$M$104,MATCH($B$2,'GIC Credit'!$A$77:$A$104,0),MATCH($A16,'GIC Credit'!$B$77:$M$77,0))/$RI16/1.9835+ET16*'GIC Credit'!$Z$35+EU16*'GIC Credit'!$AO$35) -> -0.00027576 | EX16: -0.00049024 | EY16: -0.000766 | EZ16: no | FA16: 0 | FB16: 0 | FC16: 0 | FE16: 0.000766 | FF16: 0 | FG16: =IF(AND(IT16-IU16-GW16>0,IO16="no"),MIN(-(EY16+FE16+FF16)/(1-0.5/100*'Distances for Transit Losses'!$C$101),IT16-IU16-GW16),0) -> 0 | FH16: =-FG16*0.5/100*'Distances for Transit Losses'!$C$101 -> 0 | FI16: 0 | FJ16: =-FI16*0.5/100*'Distances for Transit Losses'!$C$119 -> 0 | FK16: =IF(AND(HA16-HB16-IW16>0,GM16="no"),MIN(-(EY16+FE16+FF16+FG16+FH16+FI16+FJ16)/(1-0.5/100*'Distances for Transit Losses'!$C$103),HA16-HB16-IW16),0) -> 0 | FL16: =-FK16*0.5/100*'Distances for Transit Losses'!$C$109 -> 0 | FM16: 0 | FO16: 0 | FQ16: =IF(AND(FP15="no",(SUM('Joint Aug Station Deliveries'!$AD$9:'Joint Aug Station Deliveries'!$AD15)+'Joint Aug Station Deliveries'!$AD16)*1.9835>'New Cache Credit'!$BY$35,(SUM('Joint Aug Station Deliveries'!$AD$9:'Joint Aug Station Deliveries'!$AD15)+'Joint Aug Station Deliveries'!$AD16)*1.9835>'New Cache Credit'!$CH$35),0,'Joint Aug Station Deliveries'!V16) -> 0 | FR16: =-(FQ16*0.5/100*'Distances for Transit Losses'!$C$202) -> 0 | FT16: =IF(AND(FS15="no",(SUM('Joint Aug Station Deliveries'!$AD$9:'Joint Aug Station Deliveries'!$AD15)+'Joint Aug Station Deliveries'!$AD16)*1.9835>'New Cache Credit'!$BY$35,(SUM('Joint Aug Station Deliveries'!$AD$9:'Joint Aug Station Deliveries'!$AD15)+'Joint Aug Station Deliveries'!$AD16)*1.9835>'New Cache Credit'!$CH$35),0,'Joint Aug Station Deliveries'!Y16) -> 0 | FU16: =-(FT16*0.5/100*'Distances for Transit Losses'!$C$194) -> 0 | FV16: =IF(AND(FS15="no",(SUM('Joint Aug Station Deliveries'!$AD$9:'Joint Aug Station Deliveries'!$AD15)+'Joint Aug Station Deliveries'!$AD16)*1.9835>'New Cache Credit'!$BY$35,(SUM('Joint Aug Station Deliveries'!$AD$9:'Joint Aug Station Deliveries'!$AD15)+'Joint Aug Station Deliveries'!$AD16)*1.9835>'New Cache Credit'!$CH$35),0,'Joint Aug Station Deliveries'!AB16) -> 0 | FW16: =-(FV16*0.5/100*'Distances for Transit Losses'!$C$200) -> 0 | FX16: 0 | FY16: 0 | FZ16: 0.02776109711 | GA16: 1.489733426 | GB16: =-(IF(N16<99999.99999,INDEX('Hist RF to SPR'!$Q$6:$AB$30,MATCH($B$2,'Hist RF to SPR'!$P$6:$P$30,0),MATCH($A16,'Hist RF to SPR'!$Q$5:$AB$5,0))/RI16/1.9835,0)) -> 0 | GC16: =-(IF(OR($N16<99999.99999,E16="Lower Latham",I16="Lower Latham",E16="Highland",I16="Highland",E16="Plum",I16="Plum"),(INDEX('FIDCO Credit'!$Y$44:$AJ$70,MATCH($B$2,'FIDCO Credit'!$X$44:$X$70,0),MATCH($A16,'FIDCO Credit'!$Y$43:$AJ$43,0))/$RI16)/1.9835,0)) -> 0 | GD16: =-(IF(OR($N16<99999.99999,E16="Lower Latham",I16="Lower Latham",E16="Highland",I16="Highland",E16="Plum",I16="Plum"),(INDEX('Western Credit'!$W$76:$AH$102,MATCH($B$2,'Western Credit'!$V$76:$V$102,0),MATCH($A16,'Western Credit'!$W$75:$AH$75,0))/$RI16)/1.9835,0)) -> 0 | GE16: 0 | GF16: 0 | GG16: 0 | GH16: =IF(AND(GN16="no",GO16="no"),MIN(-(GC16-GF16-GG16)/(1-0.5/100*'Distances for Transit Losses'!$C$89),IL16),0) -> 0 | GI16: =-GH16*0.5/100*'Distances for Transit Losses'!$C$89 -> 0 | GJ16: =VLOOKUP($B16,'ECCV Haren Pond S.P. Acrtns'!$B$7:$G$306,6)/$RI16/1.9835 -> 1.36770332 | GK16: 0 | GL16: 0 | GM16: no | GN16: no | GO16: no | GP16: 0 | GQ16: 0 | GR16: 0 | GT16: 0 | GU16: 0 | GV16: 0 | GW16: =IF(AND(IT16-IU16>0,IO16="no"),MIN(-GV16/(1-0.5/100*'Distances for Transit Losses'!$C$105),IT16-IU16),0) -> 0 | GX16: =-GW16*0.5/100*'Distances for Transit Losses'!$C$105 -> 0 | GY16: =IF(AND(IX16+IY16-IZ16-JK16>0,IO16="no"),MIN((-GV16-(GW16+GX16))/(1-0.5/100*'Distances for Transit Losses'!$C$107),IX16+IY16-IZ16-JK16),0) -> 0 | GZ16: =-GY16*0.5/100*'Distances for Transit Losses'!$C$107 -> 0 | HA16: 0 | HB16: =IF(HA16>0,MIN(-(GV16+GW16+GX16+GY16+GZ16)/(1-0.5/100*'Distances for Transit Losses'!$C$109),HA16),0) -> 0 | HC16: =-HB16*0.5/100*'Distances for Transit Losses'!$C$109 -> 0 | HD16: 0 | HF16: 0 | HG16: ='Joint Aug Station Deliveries'!AQ16 -> 0 | HH16: =HG16*'Western Credit'!$Z$38 -> 0 | HI16: ='Joint Aug Station Deliveries'!AH16 -> 0 | HJ16: =IF(AND(HI16>0,SUM($HI$9:HI16,$HK$9:HK16,$IL$9:IL16)*1.9835<OFFSET('FIDCO Credit'!$X$35,0,MATCH($A16,'FIDCO Credit'!$Y$5:$AJ$5,0))),HI16-GF16,0) -> 0 | HK16: ='Joint Aug Station Deliveries'!AK16 -> 0 | HL16: =IF(AND(HK16>0,SUM($HI$9:HI16,$HK$9:HK16,$IL$9:IL16)*1.9835<OFFSET('FIDCO Credit'!$X$35,0,MATCH($A16,'FIDCO Credit'!$Y$5:$AJ$5,0))),HK16-GG16,0) -> 0 | HM16: =MAX(0,(KN16+KO16))/(1-0.5/100*'Distances for Transit Losses'!$C$77) -> 0 | HN16: =MAX(0,(KP16+KQ16)/(1-0.5/100*'Distances for Transit Losses'!$C$73)) -> 0 | HO16: 0 | HP16: =-HO16*0.5/100*'Distances for Transit Losses'!$C$79 -> 0 | HQ16: 0 | HR16: 0 | HS16: =-HR16*0.5/100*'Distances for Transit Losses'!$C$34 -> 0 | HT16: 0 | HU16: 0 | HV16: 0 | HW16: 0 | HX16: 0 | HY16: 0 | HZ16: 1.489733426 | IA16: 0 | IB16: 0.02776109711 | IC16: 0 | ID16: 0 | IE16: 0 | IF16: =-IE16*0.5/100*'Distances for Transit Losses'!$C$117 -> 0 | IG16: 0 | IH16: 1.36770332 | II16: 0.02776109711 | IJ16: 1.489733426 | IK16: =-(IF(F16<99999.99999,INDEX('Hist RF to SPR'!$B$6:$M$30,MATCH($B$2,'Hist RF to SPR'!$A$6:$A$30,0),MATCH($A16,'Hist RF to SPR'!$B$5:$M$5,0))/RI16/1.9835,0)) -> 0 | IL16: ='Joint Aug Station Deliveries'!AN16 -> 1 | IM16: =IF(AND(IL16>0,SUM($HI$9:HI16,$HK$9:HK16,$IL$9:IL16)*1.9835<OFFSET('FIDCO Credit'!$X$35,0,MATCH($A16,'FIDCO Credit'!$Y$5:$AJ$5,0))),IL16-GH16,0) -> 1 | IN16: 0 | IO16: no | IP16: 0 | IQ16: 0 | IR16: 0 | IS16: 0 | IT16: 0 | IU16: =IF(IT16>0,MIN(-IS16/(1-0.5/100*'Distances for Transit Losses'!$C$111),IT16),0) -> 0 | IV16: =-IU16*0.5/100*'Distances for Transit Losses'!$C$111 -> 0 | IW16: 0 | IX16: 0 | IY16: =-IX16*0.5/100*'Distances for Transit Losses'!$C$66 -> 0 | IZ16: =IF((IX16+IY16)>0,MIN((-IS16-(IU16-IV16)-IW16)/(1-0.5/100*'Distances for Transit Losses'!$C$113),(IX16+IY16)),0) -> 0 | JA16: =-IZ16*0.5/100*'Distances for Transit Losses'!$C$113 -> 0 | JB16: 0 | JD16: 0 | JE16: 1.489733426 | JF16: 0 | JG16: 0.02776109711 | JH16: 0 | JI16: 0 | JJ16: 0 | JK16: 0 | JL16: =-JK16*0.5/100*'Distances for Transit Losses'!$C$115 -> 0 | JM16: 0 | JN16: 0.02776109711 | JO16: 1.489733426 | JP16: =-(IF(N16<99999.99999,(VLOOKUP(B16,'ECCV Upper Dpln'!$B$7:$BD$306,55))/RI16/1.9835,0)) -> 0 | JQ16: =-(IF(N16<99999.99999,INDEX('Hist RF abv Milton'!$B$6:$M$30,MATCH($B$2,'Hist RF abv Milton'!$A$6:$A$30,0),MATCH($A16,'Hist RF abv Milton'!$B$5:$M$5,0))/RI16/1.9835,0)) -> 0 | JR16: 0 | JS16: =(VLOOKUP($B16,'ECCV Beebe Pond Acrtns'!$B$7:$BI$1206,41)+VLOOKUP($B16,'ECCV Canal Acrtns'!$B$7:$AL$1206,22)+VLOOKUP($B16,'2003 Beebe Pond Acrtns'!$B$7:$BI$1206,41)+VLOOKUP($B16,'2003 Canal Acrtns'!$B$7:$AL$1206,22))/$RI16/1.9835 -> 1.000835946 | JT16: 0 | JU16: 0 | JV16: 0 | JW16: 0 | JX16: 0 | JY16: no | JZ16: 0 | KA16: 0 | KB16: 0 | KC16: 0 | KD16: 0 | KE16: 0 | KF16: 0 | KG16: 0 | KH16: 0 | KI16: 0 | KJ16: =-(KI16*0.5/100*'Distances for Transit Losses'!$C$6) -> 0 | KK16: 0 | KL16: 0 | KM16: 0 | KN16: =IF(AND(E16<>"Lower Latham",I16<>"Lower Latham"),MIN(-(KH16+KK16),HJ16-HJ16*0.5/100*'Distances for Transit Losses'!$C$77),0) -> 0 | KO16: =IF(AND(E16<>"Lower Latham",I16<>"Lower Latham"),MAX(0,MIN(-(KG16+KI16+KJ16+KM16),HJ16-HJ16*0.5/100*'Distances for Transit Losses'!$C$77-KN16/(1-0.5/100*'Distances for Transit Losses'!$C$77))),0) -> 0 | KP16: =MIN(-(KH16+KN16),HH16-HH16*0.5/100*'Distances for Transit Losses'!$C$73) -> 0 | KQ16: =MAX(0,MIN(-(KG16+KI16+KJ16+KO16),HH16-HH16*0.5/100*'Distances for Transit Losses'!$C$73-KP16/(1-0.5/100*'Distances for Transit Losses'!$C$73))) -> 0 | KR16: =IF(EZ16="no",MIN(-(MIN(0,KG16+KI16+KJ16+KO16+KQ16)),(GJ16-GK16)-(GJ16-GK16)*0.5/100*'Distances for Transit Losses'!$C$73),0) -> 0 | KS16: =MAX(0,IF(AND(HA16-HB16-IW16-FK16>0,EZ16="no"),MIN(-(KG16+KI16+KJ16+KM16+KO16+KQ16+KR16)/(1-0.5/100*'Distances for Transit Losses'!$C$83),HA16-HB16-IW16-FK16),0)) -> 0 | KT16: =-KS16*0.5/100*'Distances for Transit Losses'!$C$83 -> 0 | KU16: 0 | KW16: 0 | KX16: 1.000835946 | KY16: 0 | KZ16: 0.02852709711 | LA16: 1.489733426 | LB16: =-(IF(N16<99999.99999,INDEX('Hist RF blw Milton'!$B$6:$M$30,MATCH($B$2,'Hist RF blw Milton'!$A$6:$A$30,0),MATCH($A16,'Hist RF blw Milton'!$B$5:$M$5,0))/RI16/1.9835,0)) -> 0 | LC16: no | LD16: 0 | LE16: 0 | LF16: 0 | LG16: 0 | LH16: 0 | LI16: 0 | LK16: 0.02852709711 | LL16: 1.489733426 | LM16: =-(IF(N16<99999.99999,INDEX('Hist RF to Box Elder'!$B$6:$M$30,MATCH($B$2,'Hist RF to Box Elder'!$A$6:$A$30,0),MATCH($A16,'Hist RF to Box Elder'!$B$5:$M$5,0))/RI16/1.9835,0)) -> 0 | LN16: =(VLOOKUP($B16,'ECCV Beebe Pond Acrtns'!$B$7:$BI$1206,54)+VLOOKUP($B16,'ECCV Canal Acrtns'!$B$7:$AL$1206,34)+VLOOKUP($B16,'2003 Beebe Pond Acrtns'!$B$7:$BI$1206,54)+VLOOKUP($B16,'2003 Canal Acrtns'!$B$7:$AL$1206,34)+VLOOKUP($B16,'84CW090 Beebe Pond Acrtns'!$B$7:$BI$1206,55)+VLOOKUP($B16,'84CW090 Canal Acrtns'!$B$7:$AL$1206,34))/$RI16/1.9835 -> 0.09630223027 | LO16: 0 | LP16: 0 | LQ16: 0 | LR16: 0 | LT16: -0.0009575 | LU16: 0 | LV16: 0 | LW16: 0 | LX16: 0 | LY16: 0 | LZ16: 0.000766 | MA16: 0 | MB16: 0 | MC16: 0 | MD16: 0.000766 | ME16: -0.0001915 | MF16: 1.000835946 | MG16: 0.02776109711 | MH16: 1.489733426 | MO16: 0 | MP16: 0 | MQ16: 0 | MS16: 0 | MT16: 0 | MU16: 0 | MV16: 0 | MW16: 0 | MX16: 0 | MY16: 0 | MZ16: 0 | NA16: 0 | NB16: 0 | NC16: 0 | ND16: 0 | NF16: 0 | NG16: 0 | NH16: 0 | NI16: 0 | NJ16: 0 | NK16: 0 | NL16: 0 | NM16: 0 | NN16: 0 | NO16: 0 | NP16: 0 | NR16: 1.517494523 | NS16: 0 | NT16: 0 | NU16: 0 | NV16: 0 | NW16: 0 | NX16: 0 | NY16: 0 | NZ16: 0 | OA16: 0 | OB16: 0 | OH16: 0 | OI16: 0 | OJ16: 0 | OK16: 0 | OL16: 0 | OM16: 0 | ON16: 0 | OO16: 0 | OP16: 0 | OR16: 0 | OS16: 0 | OT16: 0 | OU16: 0 | OV16: 0 | OW16: 0 | OX16: 0 | OY16: 0 | OZ16: 0 | PC16: 0 | PD16: 0 | PE16: 0 | PF16: 0 | PG16: 0 | PH16: 0 | PI16: 0 | PL16: 0 | PM16: 0 | PP16: 0 | PQ16: 0 | PR16: 0 | PU16: 0 | PV16: 0 | PW16: 0 | PX16: 0 | PY16: 0 | PZ16: 0 | QA16: 0 | QC16: 0 | QD16: 0 | QE16: 0 | QF16: 0 | QG16: 0 | QH16: 309.6 | QJ16: 1.000835946 | QK16: 0 | QL16: 0 | QM16: 0 | QN16: 0 | QO16: 0 | QP16: 0 | QQ16: 0 | QR16: 0 | QS16: 0 | QT16: 0 | QU16: 0 | QV16: 0 | QW16: 0 | QX16: 0 | QY16: 0 | QZ16: 0 | RA16: 0 | RB16: 0 | RC16: 0 | RD16: 1.000835946 | RF16: 0 | RG16: 0 | RI16: =VLOOKUP(A16,'Control Sheet'!$G$9:$H$20,2) -> 30
A17: Apr | B17: 2016-04-09 | C17: Free River | F17: 99999.99999 | K17: Free River | N17: 99999.99999 | S17: 1.517494523 | T17: 0 | U17: 0 | V17: 0 | X17: 0 | Y17: =('NFC Well Pumping'!$L15+'NFC Well Pumping'!$L52+'NFC Well Pumping'!$L88)/1.9835 -> 0 | Z17: ='88CW264(B) Pumping'!$E15/1.9835+'88CW264(B) Pumping'!$E51/1.9835+'88CW264(B) Pumping'!E91/1.9835+'88CW264(B) Pumping'!E127/1.9835+'88CW264(B) Pumping'!E167/1.9835+'88CW264(B) Pumping'!E203/1.9835 -> 0.01157311677 | AA17: 1.517494523 | AB17: =('United No. 2 Well Pumping'!G16+'United No. 2 Well Pumping'!G52+'United No. 2 Well Pumping'!G88)/1.9835 -> 0 | AC17: =('United No. 2 Well Pumping'!F16+'United No. 2 Well Pumping'!F52+'United No. 2 Well Pumping'!F88)/1.9835 -> 0 | AD17: 0 | AF17: 0.01157311677 | AG17: =U17+AC17+'United Res'!AA179+'United Res'!AQ179+'Milliken Res'!I167 -> 0 | AH17: 100 | AI17: =-(IF($N17=99999.99999,0,VLOOKUP($B17,'NFC Well Dplns-URF'!B$7:$AB$306,27))/$RI17/1.9835) -> 0 | AJ17: 0 | AL17: =(VLOOKUP($B17,'ECCV 70R Pond Acrtns'!$B$7:$AI$1206,34)+VLOOKUP($B17,'2003 70R Pond Acrtns'!$B$7:$AI$1206,34)+VLOOKUP($B17,'ECCV 70R Canal Acrtns'!$B$7:$AI$1206,27)+VLOOKUP($B17,'2003 70R Canal Acrtns'!$B$7:$AI$1206,27))/$RI17/1.9835 -> 0 | AM17: 0 | AN17: =-(IF($N17=99999.99999,0,VLOOKUP($B17,'NFC Well Dplns-SDF'!$B$7:$Z$306,25)+VLOOKUP($B17,'NFC Well Dplns-URF'!B$7:$AB$306,20))/$RI17/1.9835) -> 0 | AO17: 0 | AP17: 0 | AR17: =IF(N17<99999.99999,-((AV17+AW17)*'Weldon Credit'!$Z$38+(INDEX('Weldon Credit'!$V$75:$AH$102,MATCH($B$2,'Weldon Credit'!$V$75:$V$102,0),MATCH(A17,'Weldon Credit'!$V$75:$AH$75,0))/RI17)/1.9835),0) -> 0 | AS17: =0.4*(INDEX('Riverside Pond Accrtns'!$B$6:$M$36,MATCH($B$2,'Riverside Pond Accrtns'!$A$6:$A$36,0),MATCH('ECCV Daily Replacement Summary'!A17,'Riverside Pond Accrtns'!$B$5:$M$5,0))/RI17)/1.9835 -> 1.238887488 | AT17: =(44/640)*(INDEX('Weldon Valley Accrtns (02CW377)'!$B$6:$M$30,MATCH($B$2,'Weldon Valley Accrtns (02CW377)'!$A$6:$A$30,0),MATCH(A17,'Weldon Valley Accrtns (02CW377)'!$B$5:$M$5,0))/RI17)/1.9835 -> 0.2508459373 | AU17: =(VLOOKUP($B17,'ECCV 70R Pond Acrtns'!$B$7:$AI$1206,25)+VLOOKUP($B17,'ECCV 70R Canal Acrtns'!$B$7:$AI$1206,20)+VLOOKUP($B17,'2003 70R Pond Acrtns'!$B$7:$AI$1206,25)+VLOOKUP($B17,'2003 70R Canal Acrtns'!$B$7:$AI$1206,20))/$RI17/1.9835 -> 0 | AV17: ='Joint Aug Station Deliveries'!G17 -> 0 | AW17: ='Joint Aug Station Deliveries'!J17 -> 0 | AX17: 0 | AY17: 0 | AZ17: =MIN(-($AR17+AY17)/(1-0.5/100*'Distances for Transit Losses'!$C$71),AS17-AS17*0.5/100*'Distances for Transit Losses'!$C$71) -> 0 | BA17: 0 | BB17: =MAX(0,MIN(-($AR17+AY17+AZ17+BA17),AU17-AU17*0.5/100*'Distances for Transit Losses'!$C$71)) -> 0 | BC17: =-((AZ17+BB17)*(0.5/100*'Distances for Transit Losses'!$C$71)) -> 0 | BD17: =IF(AND(JF17-JG17-FQ17-DL17>0,IW17="no"),MIN(-(AR17+AY17+AZ17+BA17+BB17+BC17)/(1-0.5/100*'Distances for Transit Losses'!$C$93),JF17-JG17-FQ17-DL17),0) -> 0 | BE17: =--BD17*0.5/100*'Distances for Transit Losses'!C$93 -> 0 | BF17: =IF(AND(HA17-HB17-IW17-FK17-KS17-DF17>0,EZ17="no"),MIN(-(AR17+SUM(AY17:BE17))/(1-0.5/100*'Distances for Transit Losses'!$C$99),HA17-HB17-IW17-FK17-KS17-DF17),0) -> 0 | BG17: =--BF17*0.5/100*'Distances for Transit Losses'!$C$95 -> 0 | BH17: 0 | BJ17: no | BK17: no | BL17: 0 | BM17: 0 | BN17: 0 | BP17: =IF($BK17="No",MIN(-CW17,AS17-AZ17/(1-0.5/100*'Distances for Transit Losses'!$C$71)),0) -> 0 | BQ17: =IF($BK17="No",MIN(-CW17+BP17,AU17-BB17/(1-0.5/100*'Distances for Transit Losses'!$C$71)),0) -> 0 | BR17: 0 | BS17: 0 | BT17: 0 | BU17: 1.489733426 | BV17: 1.489733426 | BW17: =-(IF($N17=99999.99999,0,VLOOKUP($B17,'NFC Well Dplns-SDF'!$B$7:$Z$306,16)+VLOOKUP($B17,'NFC Well Dplns-URF'!$B$7:$AB$306,13))/$RI17/1.9835) -> 0 | BX17: =-(IF($N17>=99999,0,'88CW264(B) Pumping'!$E15/1.9835)+IF($N17>=99999,0,'88CW264(B) Pumping'!$E51/1.9835)+IF($N17>=99999,0,'88CW264(B) Pumping'!$E91/1.9835)+IF($N17>=99999,0,'88CW264(B) Pumping'!$E127/1.9835)+IF($N17>=51134.50919,0,'88CW264(B) Pumping'!$E167/1.9835)+IF($N17>=53406,0,'88CW264(B) Pumping'!$E203/1.9835)) -> 0 | BY17: 0 | BZ17: 0 | CA17: =-BY17-BZ17 -> 0 | CC17: =-(IF($N17=99999.99999,0,VLOOKUP($B17,'United No. 2 Dplns'!$B$7:$X$676,13)/1.9835)) -> 0 | CD17: =CC17+(-(INDEX('Pre 1995 Net Accretions'!$B$6:$M$105,MATCH($B$2,'Pre 1995 Net Accretions'!$A$6:$A$105,0),MATCH($A17,'Pre 1995 Net Accretions'!$B$5:$M$5,0))/$RI17/1.9835)) -> 0.02852709711 | CE17: =-(IF(N17<99999.99999,(INDEX('70 Ranch RF Obligation'!$B$6:$M$30,MATCH($B$2,'70 Ranch RF Obligation'!$A$6:$A$30,0),MATCH('ECCV Daily Replacement Summary'!A17,'70 Ranch RF Obligation'!$B$5:$M$5,0))/RI17)/1.9835,0))-CH17*(1-'L. Latham Credit'!$E$37) -> 0 | CF17: 0 | CG17: =(VLOOKUP($B17,'ECCV 70R Pond Acrtns'!$B$7:$AI$1206,16)+VLOOKUP($B17,'ECCV 70R Canal Acrtns'!$B$7:$AI$1206,13)+VLOOKUP($B17,'2003 70R Pond Acrtns'!$B$7:$AI$1206,16)+VLOOKUP($B17,'2003 70R Canal Acrtns'!$B$7:$AI$1206,13))/$RI17/1.9835 -> 0 | CH17: 0 | CI17: 0 | CJ17: 0 | CK17: 0 | CL17: 0 | CM17: 0 | CN17: 0 | CP17: 0.02852709711 | CQ17: 0 | CR17: 0 | CS17: =-CR17*0.5/100*'Distances for Transit Losses'!$C$46 -> 0 | CT17: 0 | CU17: 0 | CV17: 0 | CW17: 0 | CX17: 0 | CY17: 0 | CZ17: 0 | DA17: =('NFC Well Pumping'!I15+'NFC Well Pumping'!I52+'NFC Well Pumping'!I88)/1.9835 -> 0 | DB17: =IF(AND(IT17-IU17-FG17>0,IO17="no"),MIN(-SUM(CW17:DA17)/(1-0.5/100*'Distances for Transit Losses'!$C$97),IT17-IU17-FG17),0) -> 0 | DC17: =-DB17*0.5/100*'Distances for Transit Losses'!C$97 -> 0 | DD17: 0 | DE17: =--DD17*0.5/100*'Distances for Transit Losses'!$C$121 -> 0 | DF17: =IF(AND(HA17-HB17-IW17-FK17-KS17>0,EZ17="no"),MIN(-SUM(CW17:DE17)/(1-0.5/100*'Distances for Transit Losses'!$C$99),HA17-HB17-IW17-FK17-KS17),0) -> 0 | DG17: =--DF17*0.5/100*'Distances for Transit Losses'!$C$99 -> 0 | DH17: 0.02852709711 | DI17: 0 | DJ17: ='Joint Aug Station Deliveries'!M17 -> 0 | DK17: =-(DJ17*0.5/100*'Distances for Transit Losses'!$C$206) -> 0 | DL17: 0 | DN17: no | DP17: 0 | DQ17: 0 | DR17: =-(DQ17*0.5/100*'Distances for Transit Losses'!$C$208) -> 0 | DS17: 0 | DT17: =-0.25*(INDEX('GIC Credit'!$B$77:$M$104,MATCH($B$2,'GIC Credit'!$A$77:$A$104,0),MATCH($A17,'GIC Credit'!$B$77:$M$77,0))/$RI17/1.9835+ET17*'GIC Credit'!$Z$35+EU17*'GIC Credit'!$AO$35) -> -0.0001915 | DU17: -0.0001915 | DV17: 0 | DW17: ='Joint Aug Station Deliveries'!BD17 -> 0 | DX17: =-(DW17*0.5/100*'Distances for Transit Losses'!$C$234) -> 0 | DY17: ='Joint Aug Station Deliveries'!BE17 -> 0 | DZ17: =-(DY17*0.5/100*'Distances for Transit Losses'!$C$236) -> 0 | EA17: 0 | EB17: =-(EA17*0.5/100*'Distances for Transit Losses'!$C$228) -> 0 | EC17: 0 | EE17: no | EF17: -0.0001915 | EG17: =-(IF($N17<99999.99999,(INDEX('New Cache Credit'!$W$74:$AH$99,MATCH($B$2,'New Cache Credit'!$V$74:$V$99,0),MATCH($A17,'New Cache Credit'!$W$74:$AH$74,0))/$RI17)/1.9835,0))-DI17-DS17 -> 0 | EH17: =-0.39*(INDEX('GIC Credit'!$B$77:$M$104,MATCH($B$2,'GIC Credit'!$A$77:$A$104,0),MATCH($A17,'GIC Credit'!$B$77:$M$77,0))/$RI17/1.9835+ET17*'GIC Credit'!$Z$35+EU17*'GIC Credit'!$AO$35) -> -0.00029874 | EI17: 0 | EJ17: =-(EI17*0.5/100*('Distances for Transit Losses'!$C$210+'Distances for Transit Losses'!$C$216)) -> 0 | EL17: =IF(EK17="yes",'Joint Aug Station Deliveries'!T17,0) -> 0 | EM17: =-(EL17*0.5/100*('Distances for Transit Losses'!$C$212+'Distances for Transit Losses'!$C$214+'Distances for Transit Losses'!$C$216)) -> 0 | EN17: =IF(EK17="Yes",'Joint Aug Station Deliveries'!W17,0) -> 0 | EO17: =-(EN17*0.5/100*('Distances for Transit Losses'!$C$214+'Distances for Transit Losses'!$C$216)) -> 0 | EP17: ='Joint Aug Station Deliveries'!BF17 -> 0 | EQ17: =-(EP17*0.5/100*'Distances for Transit Losses'!$C$220) -> 0 | ER17: -0.00049024 | ES17: 0 | ET17: ='Joint Aug Station Deliveries'!BH17 -> 0 | EU17: ='Joint Aug Station Deliveries'!BI17 -> 0 | EV17: =-(IF(N17<99999.99999,INDEX('Hist RF to SPR'!$AF$6:$AQ$30,MATCH($B$2,'Hist RF to SPR'!$AE$6:$AE$30,0),MATCH($A17,'Hist RF to SPR'!$AF$5:$AQ$5,0))/RI17/1.9835,0)) -> 0 | EW17: =-0.36*(INDEX('GIC Credit'!$B$77:$M$104,MATCH($B$2,'GIC Credit'!$A$77:$A$104,0),MATCH($A17,'GIC Credit'!$B$77:$M$77,0))/$RI17/1.9835+ET17*'GIC Credit'!$Z$35+EU17*'GIC Credit'!$AO$35) -> -0.00027576 | EX17: -0.00049024 | EY17: -0.000766 | EZ17: no | FA17: 0 | FB17: 0 | FC17: 0 | FE17: 0.000766 | FF17: 0 | FG17: =IF(AND(IT17-IU17-GW17>0,IO17="no"),MIN(-(EY17+FE17+FF17)/(1-0.5/100*'Distances for Transit Losses'!$C$101),IT17-IU17-GW17),0) -> 0 | FH17: =-FG17*0.5/100*'Distances for Transit Losses'!$C$101 -> 0 | FI17: 0 | FJ17: =-FI17*0.5/100*'Distances for Transit Losses'!$C$119 -> 0 | FK17: =IF(AND(HA17-HB17-IW17>0,GM17="no"),MIN(-(EY17+FE17+FF17+FG17+FH17+FI17+FJ17)/(1-0.5/100*'Distances for Transit Losses'!$C$103),HA17-HB17-IW17),0) -> 0 | FL17: =-FK17*0.5/100*'Distances for Transit Losses'!$C$109 -> 0 | FM17: =-(EY17+FE17+FF17+FG17-FH17+FK17-FL17) -> 0 | FO17: 0 | FQ17: =IF(AND(FP16="no",(SUM('Joint Aug Station Deliveries'!$AD$9:'Joint Aug Station Deliveries'!$AD16)+'Joint Aug Station Deliveries'!$AD17)*1.9835>'New Cache Credit'!$BY$35,(SUM('Joint Aug Station Deliveries'!$AD$9:'Joint Aug Station Deliveries'!$AD16)+'Joint Aug Station Deliveries'!$AD17)*1.9835>'New Cache Credit'!$CH$35),0,'Joint Aug Station Deliveries'!V17) -> 0 | FR17: =-(FQ17*0.5/100*'Distances for Transit Losses'!$C$202) -> 0 | FT17: =IF(AND(FS16="no",(SUM('Joint Aug Station Deliveries'!$AD$9:'Joint Aug Station Deliveries'!$AD16)+'Joint Aug Station Deliveries'!$AD17)*1.9835>'New Cache Credit'!$BY$35,(SUM('Joint Aug Station Deliveries'!$AD$9:'Joint Aug Station Deliveries'!$AD16)+'Joint Aug Station Deliveries'!$AD17)*1.9835>'New Cache Credit'!$CH$35),0,'Joint Aug Station Deliveries'!Y17) -> 0 | FU17: =-(FT17*0.5/100*'Distances for Transit Losses'!$C$194) -> 0 | FV17: =IF(AND(FS16="no",(SUM('Joint Aug Station Deliveries'!$AD$9:'Joint Aug Station Deliveries'!$AD16)+'Joint Aug Station Deliveries'!$AD17)*1.9835>'New Cache Credit'!$BY$35,(SUM('Joint Aug Station Deliveries'!$AD$9:'Joint Aug Station Deliveries'!$AD16)+'Joint Aug Station Deliveries'!$AD17)*1.9835>'New Cache Credit'!$CH$35),0,'Joint Aug Station Deliveries'!AB17) -> 0 | FW17: =-(FV17*0.5/100*'Distances for Transit Losses'!$C$200) -> 0 | FX17: 0 | FY17: 0 | FZ17: 0.02776109711 | GA17: 1.489733426 | GB17: =-(IF(N17<99999.99999,INDEX('Hist RF to SPR'!$Q$6:$AB$30,MATCH($B$2,'Hist RF to SPR'!$P$6:$P$30,0),MATCH($A17,'Hist RF to SPR'!$Q$5:$AB$5,0))/RI17/1.9835,0)) -> 0 | GC17: =-(IF(OR($N17<99999.99999,E17="Lower Latham",I17="Lower Latham",E17="Highland",I17="Highland",E17="Plum",I17="Plum"),(INDEX('FIDCO Credit'!$Y$44:$AJ$70,MATCH($B$2,'FIDCO Credit'!$X$44:$X$70,0),MATCH($A17,'FIDCO Credit'!$Y$43:$AJ$43,0))/$RI17)/1.9835,0)) -> 0 | GD17: =-(IF(OR($N17<99999.99999,E17="Lower Latham",I17="Lower Latham",E17="Highland",I17="Highland",E17="Plum",I17="Plum"),(INDEX('Western Credit'!$W$76:$AH$102,MATCH($B$2,'Western Credit'!$V$76:$V$102,0),MATCH($A17,'Western Credit'!$W$75:$AH$75,0))/$RI17)/1.9835,0)) -> 0 | GE17: 0 | GF17: 0 | GG17: 0 | GH17: =IF(AND(GN17="no",GO17="no"),MIN(-(GC17-GF17-GG17)/(1-0.5/100*'Distances for Transit Losses'!$C$89),IL17),0) -> 0 | GI17: =-GH17*0.5/100*'Distances for Transit Losses'!$C$89 -> 0 | GJ17: =VLOOKUP($B17,'ECCV Haren Pond S.P. Acrtns'!$B$7:$G$306,6)/$RI17/1.9835 -> 1.36770332 | GK17: 0 | GL17: 0 | GM17: no | GN17: no | GO17: no | GP17: 0 | GQ17: 0 | GR17: 0 | GT17: 0 | GU17: 0 | GV17: 0 | GW17: =IF(AND(IT17-IU17>0,IO17="no"),MIN(-GV17/(1-0.5/100*'Distances for Transit Losses'!$C$105),IT17-IU17),0) -> 0 | GX17: =-GW17*0.5/100*'Distances for Transit Losses'!$C$105 -> 0 | GY17: =IF(AND(IX17+IY17-IZ17-JK17>0,IO17="no"),MIN((-GV17-(GW17+GX17))/(1-0.5/100*'Distances for Transit Losses'!$C$107),IX17+IY17-IZ17-JK17),0) -> 0 | GZ17: =-GY17*0.5/100*'Distances for Transit Losses'!$C$107 -> 0 | HA17: 0 | HB17: =IF(HA17>0,MIN(-(GV17+GW17+GX17+GY17+GZ17)/(1-0.5/100*'Distances for Transit Losses'!$C$109),HA17),0) -> 0 | HC17: =-HB17*0.5/100*'Distances for Transit Losses'!$C$109 -> 0 | HD17: 0 | HF17: 0 | HG17: ='Joint Aug Station Deliveries'!AQ17 -> 0 | HH17: =HG17*'Western Credit'!$Z$38 -> 0 | HI17: ='Joint Aug Station Deliveries'!AH17 -> 0 | HJ17: =IF(AND(HI17>0,SUM($HI$9:HI17,$HK$9:HK17,$IL$9:IL17)*1.9835<OFFSET('FIDCO Credit'!$X$35,0,MATCH($A17,'FIDCO Credit'!$Y$5:$AJ$5,0))),HI17-GF17,0) -> 0 | HK17: ='Joint Aug Station Deliveries'!AK17 -> 0 | HL17: =IF(AND(HK17>0,SUM($HI$9:HI17,$HK$9:HK17,$IL$9:IL17)*1.9835<OFFSET('FIDCO Credit'!$X$35,0,MATCH($A17,'FIDCO Credit'!$Y$5:$AJ$5,0))),HK17-GG17,0) -> 0 | HM17: =MAX(0,(KN17+KO17))/(1-0.5/100*'Distances for Transit Losses'!$C$77) -> 0 | HN17: =MAX(0,(KP17+KQ17)/(1-0.5/100*'Distances for Transit Losses'!$C$73)) -> 0 | HO17: 0 | HP17: =-HO17*0.5/100*'Distances for Transit Losses'!$C$79 -> 0 | HQ17: 0 | HR17: 0 | HS17: =-HR17*0.5/100*'Distances for Transit Losses'!$C$34 -> 0 | HT17: 0 | HU17: 0 | HV17: 0 | HW17: 0 | HX17: 0 | HY17: 0 | HZ17: 1.489733426 | IA17: 0 | IB17: 0.02776109711 | IC17: 0 | ID17: 0 | IE17: 0 | IF17: =-IE17*0.5/100*'Distances for Transit Losses'!$C$117 -> 0 | IG17: 0 | IH17: =GJ17-GK17-GL17+HH17+HJ17-SUM(HM17:HQ17)-HU17-HV17-HX17-HY17-(CA17/(1-0.5/100*'Distances for Transit Losses'!$C$99)) -> 1.36770332 | II17: 0.02776109711 | IJ17: 1.489733426 | IK17: =-(IF(F17<99999.99999,INDEX('Hist RF to SPR'!$B$6:$M$30,MATCH($B$2,'Hist RF to SPR'!$A$6:$A$30,0),MATCH($A17,'Hist RF to SPR'!$B$5:$M$5,0))/RI17/1.9835,0)) -> 0 | IL17: ='Joint Aug Station Deliveries'!AN17 -> 1 | IM17: =IF(AND(IL17>0,SUM($HI$9:HI17,$HK$9:HK17,$IL$9:IL17)*1.9835<OFFSET('FIDCO Credit'!$X$35,0,MATCH($A17,'FIDCO Credit'!$Y$5:$AJ$5,0))),IL17-GH17,0) -> 0 | IN17: 0 | IO17: no | IP17: 0 | IQ17: 0 | IR17: 0 | IS17: 0 | IT17: 0 | IU17: =IF(IT17>0,MIN(-IS17/(1-0.5/100*'Distances for Transit Losses'!$C$111),IT17),0) -> 0 | IV17: =-IU17*0.5/100*'Distances for Transit Losses'!$C$111 -> 0 | IW17: 0 | IX17: 0 | IY17: =-IX17*0.5/100*'Distances for Transit Losses'!$C$66 -> 0 | IZ17: =IF((IX17+IY17)>0,MIN((-IS17-(IU17-IV17)-IW17)/(1-0.5/100*'Distances for Transit Losses'!$C$113),(IX17+IY17)),0) -> 0 | JA17: =-IZ17*0.5/100*'Distances for Transit Losses'!$C$113 -> 0 | JB17: 0 | JD17: 0 | JE17: 1.489733426 | JF17: 0 | JG17: 0.02776109711 | JH17: 0 | JI17: 0 | JJ17: 0 | JK17: 0 | JL17: =-JK17*0.5/100*'Distances for Transit Losses'!$C$115 -> 0 | JM17: 0 | JN17: 0.02776109711 | JO17: 1.489733426 | JP17: =-(IF(N17<99999.99999,(VLOOKUP(B17,'ECCV Upper Dpln'!$B$7:$BD$306,55))/RI17/1.9835,0)) -> 0 | JQ17: =-(IF(N17<99999.99999,INDEX('Hist RF abv Milton'!$B$6:$M$30,MATCH($B$2,'Hist RF abv Milton'!$A$6:$A$30,0),MATCH($A17,'Hist RF abv Milton'!$B$5:$M$5,0))/RI17/1.9835,0)) -> 0 | JR17: 0 | JS17: =(VLOOKUP($B17,'ECCV Beebe Pond Acrtns'!$B$7:$BI$1206,41)+VLOOKUP($B17,'ECCV Canal Acrtns'!$B$7:$AL$1206,22)+VLOOKUP($B17,'2003 Beebe Pond Acrtns'!$B$7:$BI$1206,41)+VLOOKUP($B17,'2003 Canal Acrtns'!$B$7:$AL$1206,22))/$RI17/1.9835 -> 1.000835946 | JT17: 0 | JU17: 0 | JV17: 0 | JW17: 0 | JX17: 0 | JY17: no | JZ17: 0 | KA17: 0 | KB17: 0 | KC17: 0 | KD17: 0 | KE17: 0 | KF17: 0 | KG17: 0 | KH17: 0 | KI17: 0 | KJ17: =-(KI17*0.5/100*'Distances for Transit Losses'!$C$6) -> 0 | KK17: =-KH17 -> 0 | KL17: 0 | KM17: 0 | KN17: =IF(AND(E17<>"Lower Latham",I17<>"Lower Latham"),MIN(-(KH17+KK17),HJ17-HJ17*0.5/100*'Distances for Transit Losses'!$C$77),0) -> 0 | KO17: =IF(AND(E17<>"Lower Latham",I17<>"Lower Latham"),MAX(0,MIN(-(KG17+KI17+KJ17+KM17),HJ17-HJ17*0.5/100*'Distances for Transit Losses'!$C$77-KN17/(1-0.5/100*'Distances for Transit Losses'!$C$77))),0) -> 0 | KP17: =MIN(-(KH17+KN17),HH17-HH17*0.5/100*'Distances for Transit Losses'!$C$73) -> 0 | KQ17: =MAX(0,MIN(-(KG17+KI17+KJ17+KO17),HH17-HH17*0.5/100*'Distances for Transit Losses'!$C$73-KP17/(1-0.5/100*'Distances for Transit Losses'!$C$73))) -> 0 | KR17: =IF(EZ17="no",MIN(-(MIN(0,KG17+KI17+KJ17+KO17+KQ17)),(GJ17-GK17)-(GJ17-GK17)*0.5/100*'Distances for Transit Losses'!$C$73),0) -> 0 | KS17: =MAX(0,IF(AND(HA17-HB17-IW17-FK17>0,EZ17="no"),MIN(-(KG17+KI17+KJ17+KM17+KO17+KQ17+KR17)/(1-0.5/100*'Distances for Transit Losses'!$C$83),HA17-HB17-IW17-FK17),0)) -> 0 | KT17: =-KS17*0.5/100*'Distances for Transit Losses'!$C$83 -> 0 | KU17: 0 | KW17: 0 | KX17: 1.000835946 | KY17: 0 | KZ17: 0.02852709711 | LA17: 1.489733426 | LB17: =-(IF(N17<99999.99999,INDEX('Hist RF blw Milton'!$B$6:$M$30,MATCH($B$2,'Hist RF blw Milton'!$A$6:$A$30,0),MATCH($A17,'Hist RF blw Milton'!$B$5:$M$5,0))/RI17/1.9835,0)) -> 0 | LC17: no | LD17: 0 | LE17: 0 | LF17: 0 | LG17: 0 | LH17: 0 | LI17: 0 | LK17: 0.02852709711 | LL17: 1.489733426 | LM17: =-(IF(N17<99999.99999,INDEX('Hist RF to Box Elder'!$B$6:$M$30,MATCH($B$2,'Hist RF to Box Elder'!$A$6:$A$30,0),MATCH($A17,'Hist RF to Box Elder'!$B$5:$M$5,0))/RI17/1.9835,0)) -> 0 | LN17: =(VLOOKUP($B17,'ECCV Beebe Pond Acrtns'!$B$7:$BI$1206,54)+VLOOKUP($B17,'ECCV Canal Acrtns'!$B$7:$AL$1206,34)+VLOOKUP($B17,'2003 Beebe Pond Acrtns'!$B$7:$BI$1206,54)+VLOOKUP($B17,'2003 Canal Acrtns'!$B$7:$AL$1206,34)+VLOOKUP($B17,'84CW090 Beebe Pond Acrtns'!$B$7:$BI$1206,55)+VLOOKUP($B17,'84CW090 Canal Acrtns'!$B$7:$AL$1206,34))/$RI17/1.9835 -> 0.09630223027 | LO17: 0 | LP17: 0 | LQ17: 0 | LR17: 0 | LT17: -0.0009575 | LU17: 0 | LV17: 0 | LW17: 0 | LX17: 0 | LY17: 0 | LZ17: 0.000766 | MA17: 0 | MB17: 0 | MC17: 0 | MD17: 0.000766 | ME17: -0.0001915 | MF17: 1.000835946 | MG17: 0.02776109711 | MH17: 1.489733426 | MO17: 0 | MP17: 0 | MQ17: 0 | MS17: 0 | MT17: 0 | MU17: 0 | MV17: 0 | MW17: 0 | MX17: 0 | MY17: 0 | MZ17: 0 | NA17: 0 | NB17: 0 | NC17: 0 | ND17: 0 | NF17: 0 | NG17: 0 | NH17: 0 | NI17: 0 | NJ17: 0 | NK17: 0 | NL17: 0 | NM17: 0 | NN17: 0 | NO17: 0 | NP17: 0 | NR17: 1.517494523 | NS17: 0 | NT17: 0 | NU17: 0 | NV17: 0 | NW17: 0 | NX17: 0 | NY17: 0 | NZ17: 0 | OA17: 0 | OB17: 0 | OH17: 0 | OI17: 0 | OJ17: 0 | OK17: 0 | OL17: 0 | OM17: 0 | ON17: 0 | OO17: 0 | OP17: 0 | OR17: 0 | OS17: 0 | OT17: 0 | OU17: 0 | OV17: 0 | OW17: 0 | OX17: 0 | OY17: 0 | OZ17: 0 | PC17: 0 | PD17: 0 | PE17: 0 | PF17: 0 | PG17: 0 | PH17: 0 | PI17: 0 | PL17: 0 | PM17: 0 | PP17: 0 | PQ17: 0 | PR17: 0 | PU17: 0 | PV17: 0 | PW17: 0 | PX17: 0 | PY17: 0 | PZ17: 0 | QA17: 0 | QC17: 0 | QD17: 0 | QE17: 0 | QF17: 0 | QG17: 0 | QH17: 309.6 | QJ17: 1.000835946 | QK17: 0 | QL17: 0 | QM17: 0 | QN17: 0 | QO17: 0 | QP17: 0 | QQ17: 0 | QR17: 0 | QS17: 0 | QT17: 0 | QU17: 0 | QV17: 0 | QW17: 0 | QX17: 0 | QY17: 0 | QZ17: 0 | RA17: 0 | RB17: 0 | RC17: 0 | RD17: 1.000835946 | RF17: 0 | RG17: 0 | RI17: =VLOOKUP(A17,'Control Sheet'!$G$9:$H$20,2) -> 30
A18: Apr | B18: 2016-04-10 | C18: Free River | F18: 99999.99999 | K18: Free River | N18: 99999.99999 | S18: 1.517494523 | T18: 0 | U18: 0 | V18: 0 | X18: 0 | Y18: =('NFC Well Pumping'!$L16+'NFC Well Pumping'!$L53+'NFC Well Pumping'!$L89)/1.9835 -> 0 | Z18: ='88CW264(B) Pumping'!$E16/1.9835+'88CW264(B) Pumping'!$E52/1.9835+'88CW264(B) Pumping'!E92/1.9835+'88CW264(B) Pumping'!E128/1.9835+'88CW264(B) Pumping'!E168/1.9835+'88CW264(B) Pumping'!E204/1.9835 -> 0.01157311677 | AA18: 1.517494523 | AB18: =('United No. 2 Well Pumping'!G17+'United No. 2 Well Pumping'!G53+'United No. 2 Well Pumping'!G89)/1.9835 -> 0 | AC18: =('United No. 2 Well Pumping'!F17+'United No. 2 Well Pumping'!F53+'United No. 2 Well Pumping'!F89)/1.9835 -> 0 | AD18: 0 | AF18: 0.01157311677 | AG18: =U18+AC18+'United Res'!AA180+'United Res'!AQ180+'Milliken Res'!I168 -> 0 | AH18: 100 | AI18: =-(IF($N18=99999.99999,0,VLOOKUP($B18,'NFC Well Dplns-URF'!B$7:$AB$306,27))/$RI18/1.9835) -> 0 | AJ18: 0 | AL18: =(VLOOKUP($B18,'ECCV 70R Pond Acrtns'!$B$7:$AI$1206,34)+VLOOKUP($B18,'2003 70R Pond Acrtns'!$B$7:$AI$1206,34)+VLOOKUP($B18,'ECCV 70R Canal Acrtns'!$B$7:$AI$1206,27)+VLOOKUP($B18,'2003 70R Canal Acrtns'!$B$7:$AI$1206,27))/$RI18/1.9835 -> 0 | AM18: 0 | AN18: =-(IF($N18=99999.99999,0,VLOOKUP($B18,'NFC Well Dplns-SDF'!$B$7:$Z$306,25)+VLOOKUP($B18,'NFC Well Dplns-URF'!B$7:$AB$306,20))/$RI18/1.9835) -> 0 | AO18: 0 | AP18: 0 | AR18: =IF(N18<99999.99999,-((AV18+AW18)*'Weldon Credit'!$Z$38+(INDEX('Weldon Credit'!$V$75:$AH$102,MATCH($B$2,'Weldon Credit'!$V$75:$V$102,0),MATCH(A18,'Weldon Credit'!$V$75:$AH$75,0))/RI18)/1.9835),0) -> 0 | AS18: =0.4*(INDEX('Riverside Pond Accrtns'!$B$6:$M$36,MATCH($B$2,'Riverside Pond Accrtns'!$A$6:$A$36,0),MATCH('ECCV Daily Replacement Summary'!A18,'Riverside Pond Accrtns'!$B$5:$M$5,0))/RI18)/1.9835 -> 1.238887488 | AT18: =(44/640)*(INDEX('Weldon Valley Accrtns (02CW377)'!$B$6:$M$30,MATCH($B$2,'Weldon Valley Accrtns (02CW377)'!$A$6:$A$30,0),MATCH(A18,'Weldon Valley Accrtns (02CW377)'!$B$5:$M$5,0))/RI18)/1.9835 -> 0.2508459373 | AU18: =(VLOOKUP($B18,'ECCV 70R Pond Acrtns'!$B$7:$AI$1206,25)+VLOOKUP($B18,'ECCV 70R Canal Acrtns'!$B$7:$AI$1206,20)+VLOOKUP($B18,'2003 70R Pond Acrtns'!$B$7:$AI$1206,25)+VLOOKUP($B18,'2003 70R Canal Acrtns'!$B$7:$AI$1206,20))/$RI18/1.9835 -> 0 | AV18: ='Joint Aug Station Deliveries'!G18 -> 0 | AW18: ='Joint Aug Station Deliveries'!J18 -> 0 | AX18: 0 | AY18: 0 | AZ18: =MIN(-($AR18+AY18)/(1-0.5/100*'Distances for Transit Losses'!$C$71),AS18-AS18*0.5/100*'Distances for Transit Losses'!$C$71) -> 0 | BA18: 0 | BB18: =MAX(0,MIN(-($AR18+AY18+AZ18+BA18),AU18-AU18*0.5/100*'Distances for Transit Losses'!$C$71)) -> 0 | BC18: =-((AZ18+BB18)*(0.5/100*'Distances for Transit Losses'!$C$71)) -> 0 | BD18: =IF(AND(JF18-JG18-FQ18-DL18>0,IW18="no"),MIN(-(AR18+AY18+AZ18+BA18+BB18+BC18)/(1-0.5/100*'Distances for Transit Losses'!$C$93),JF18-JG18-FQ18-DL18),0) -> 0 | BE18: =--BD18*0.5/100*'Distances for Transit Losses'!C$93 -> 0 | BF18: =IF(AND(HA18-HB18-IW18-FK18-KS18-DF18>0,EZ18="no"),MIN(-(AR18+SUM(AY18:BE18))/(1-0.5/100*'Distances for Transit Losses'!$C$99),HA18-HB18-IW18-FK18-KS18-DF18),0) -> 0 | BG18: =--BF18*0.5/100*'Distances for Transit Losses'!$C$95 -> 0 | BH18: 0 | BJ18: no | BK18: no | BL18: 0 | BM18: 0 | BN18: 0 | BP18: =IF($BK18="No",MIN(-CW18,AS18-AZ18/(1-0.5/100*'Distances for Transit Losses'!$C$71)),0) -> 0 | BQ18: =IF($BK18="No",MIN(-CW18+BP18,AU18-BB18/(1-0.5/100*'Distances for Transit Losses'!$C$71)),0) -> 0 | BR18: 0 | BS18: 0 | BT18: 0 | BU18: 1.489733426 | BV18: 1.489733426 | BW18: =-(IF($N18=99999.99999,0,VLOOKUP($B18,'NFC Well Dplns-SDF'!$B$7:$Z$306,16)+VLOOKUP($B18,'NFC Well Dplns-URF'!$B$7:$AB$306,13))/$RI18/1.9835) -> 0 | BX18: =-(IF($N18>=99999,0,'88CW264(B) Pumping'!$E16/1.9835)+IF($N18>=99999,0,'88CW264(B) Pumping'!$E52/1.9835)+IF($N18>=99999,0,'88CW264(B) Pumping'!$E92/1.9835)+IF($N18>=99999,0,'88CW264(B) Pumping'!$E128/1.9835)+IF($N18>=51134.50919,0,'88CW264(B) Pumping'!$E168/1.9835)+IF($N18>=53406,0,'88CW264(B) Pumping'!$E204/1.9835)) -> 0 | BY18: 0 | BZ18: 0 | CA18: 0 | CC18: =-(IF($N18=99999.99999,0,VLOOKUP($B18,'United No. 2 Dplns'!$B$7:$X$676,13)/1.9835)) -> 0 | CD18: =CC18+(-(INDEX('Pre 1995 Net Accretions'!$B$6:$M$105,MATCH($B$2,'Pre 1995 Net Accretions'!$A$6:$A$105,0),MATCH($A18,'Pre 1995 Net Accretions'!$B$5:$M$5,0))/$RI18/1.9835)) -> 0.02852709711 | CE18: =-(IF(N18<99999.99999,(INDEX('70 Ranch RF Obligation'!$B$6:$M$30,MATCH($B$2,'70 Ranch RF Obligation'!$A$6:$A$30,0),MATCH('ECCV Daily Replacement Summary'!A18,'70 Ranch RF Obligation'!$B$5:$M$5,0))/RI18)/1.9835,0))-CH18*(1-'L. Latham Credit'!$E$37) -> 0 | CF18: 0 | CG18: =(VLOOKUP($B18,'ECCV 70R Pond Acrtns'!$B$7:$AI$1206,16)+VLOOKUP($B18,'ECCV 70R Canal Acrtns'!$B$7:$AI$1206,13)+VLOOKUP($B18,'2003 70R Pond Acrtns'!$B$7:$AI$1206,16)+VLOOKUP($B18,'2003 70R Canal Acrtns'!$B$7:$AI$1206,13))/$RI18/1.9835 -> 0 | CH18: 0 | CI18: 0 | CJ18: 0 | CK18: 0 | CL18: 0 | CM18: 0 | CN18: 0 | CP18: 0.02852709711 | CQ18: 0 | CR18: 0 | CS18: =-CR18*0.5/100*'Distances for Transit Losses'!$C$46 -> 0 | CT18: 0 | CU18: 0 | CV18: 0 | CW18: 0 | CX18: 0 | CY18: 0 | CZ18: 0 | DA18: =('NFC Well Pumping'!I16+'NFC Well Pumping'!I53+'NFC Well Pumping'!I89)/1.9835 -> 0 | DB18: =IF(AND(IT18-IU18-FG18>0,IO18="no"),MIN(-SUM(CW18:DA18)/(1-0.5/100*'Distances for Transit Losses'!$C$97),IT18-IU18-FG18),0) -> 0 | DC18: =-DB18*0.5/100*'Distances for Transit Losses'!C$97 -> 0 | DD18: 0 | DE18: =--DD18*0.5/100*'Distances for Transit Losses'!$C$121 -> 0 | DF18: =IF(AND(HA18-HB18-IW18-FK18-KS18>0,EZ18="no"),MIN(-SUM(CW18:DE18)/(1-0.5/100*'Distances for Transit Losses'!$C$99),HA18-HB18-IW18-FK18-KS18),0) -> 0 | DG18: =--DF18*0.5/100*'Distances for Transit Losses'!$C$99 -> 0 | DH18: 0.02852709711 | DI18: 0 | DJ18: ='Joint Aug Station Deliveries'!M18 -> 0 | DK18: =-(DJ18*0.5/100*'Distances for Transit Losses'!$C$206) -> 0 | DL18: 0 | DN18: no | DP18: 0 | DQ18: 0 | DR18: =-(DQ18*0.5/100*'Distances for Transit Losses'!$C$208) -> 0 | DS18: 0 | DT18: =-0.25*(INDEX('GIC Credit'!$B$77:$M$104,MATCH($B$2,'GIC Credit'!$A$77:$A$104,0),MATCH($A18,'GIC Credit'!$B$77:$M$77,0))/$RI18/1.9835+ET18*'GIC Credit'!$Z$35+EU18*'GIC Credit'!$AO$35) -> -0.0001915 | DU18: -0.0001915 | DV18: 0 | DW18: ='Joint Aug Station Deliveries'!BD18 -> 0 | DX18: =-(DW18*0.5/100*'Distances for Transit Losses'!$C$234) -> 0 | DY18: ='Joint Aug Station Deliveries'!BE18 -> 0 | DZ18: =-(DY18*0.5/100*'Distances for Transit Losses'!$C$236) -> 0 | EA18: 0 | EB18: =-(EA18*0.5/100*'Distances for Transit Losses'!$C$228) -> 0 | EC18: 0 | EE18: no | EF18: -0.0001915 | EG18: =-(IF($N18<99999.99999,(INDEX('New Cache Credit'!$W$74:$AH$99,MATCH($B$2,'New Cache Credit'!$V$74:$V$99,0),MATCH($A18,'New Cache Credit'!$W$74:$AH$74,0))/$RI18)/1.9835,0))-DI18-DS18 -> 0 | EH18: =-0.39*(INDEX('GIC Credit'!$B$77:$M$104,MATCH($B$2,'GIC Credit'!$A$77:$A$104,0),MATCH($A18,'GIC Credit'!$B$77:$M$77,0))/$RI18/1.9835+ET18*'GIC Credit'!$Z$35+EU18*'GIC Credit'!$AO$35) -> -0.00029874 | EI18: 0 | EJ18: =-(EI18*0.5/100*('Distances for Transit Losses'!$C$210+'Distances for Transit Losses'!$C$216)) -> 0 | EL18: =IF(EK18="yes",'Joint Aug Station Deliveries'!T18,0) -> 0 | EM18: =-(EL18*0.5/100*('Distances for Transit Losses'!$C$212+'Distances for Transit Losses'!$C$214+'Distances for Transit Losses'!$C$216)) -> 0 | EN18: =IF(EK18="Yes",'Joint Aug Station Deliveries'!W18,0) -> 0 | EO18: =-(EN18*0.5/100*('Distances for Transit Losses'!$C$214+'Distances for Transit Losses'!$C$216)) -> 0 | EP18: ='Joint Aug Station Deliveries'!BF18 -> 0 | EQ18: =-(EP18*0.5/100*'Distances for Transit Losses'!$C$220) -> 0 | ER18: -0.00049024 | ES18: 0 | ET18: ='Joint Aug Station Deliveries'!BH18 -> 0 | EU18: ='Joint Aug Station Deliveries'!BI18 -> 0 | EV18: =-(IF(N18<99999.99999,INDEX('Hist RF to SPR'!$AF$6:$AQ$30,MATCH($B$2,'Hist RF to SPR'!$AE$6:$AE$30,0),MATCH($A18,'Hist RF to SPR'!$AF$5:$AQ$5,0))/RI18/1.9835,0)) -> 0 | EW18: =-0.36*(INDEX('GIC Credit'!$B$77:$M$104,MATCH($B$2,'GIC Credit'!$A$77:$A$104,0),MATCH($A18,'GIC Credit'!$B$77:$M$77,0))/$RI18/1.9835+ET18*'GIC Credit'!$Z$35+EU18*'GIC Credit'!$AO$35) -> -0.00027576 | EX18: -0.00049024 | EY18: -0.000766 | EZ18: no | FA18: 0 | FB18: 0 | FC18: 0 | FE18: 0.000766 | FF18: 0 | FG18: =IF(AND(IT18-IU18-GW18>0,IO18="no"),MIN(-(EY18+FE18+FF18)/(1-0.5/100*'Distances for Transit Losses'!$C$101),IT18-IU18-GW18),0) -> 0 | FH18: =-FG18*0.5/100*'Distances for Transit Losses'!$C$101 -> 0 | FI18: 0 | FJ18: =-FI18*0.5/100*'Distances for Transit Losses'!$C$119 -> 0 | FK18: =IF(AND(HA18-HB18-IW18>0,GM18="no"),MIN(-(EY18+FE18+FF18+FG18+FH18+FI18+FJ18)/(1-0.5/100*'Distances for Transit Losses'!$C$103),HA18-HB18-IW18),0) -> 0 | FL18: =-FK18*0.5/100*'Distances for Transit Losses'!$C$109 -> 0 | FM18: =-(EY18+FE18+FF18+FG18-FH18+FK18-FL18) -> 0 | FO18: 0 | FQ18: =IF(AND(FP17="no",(SUM('Joint Aug Station Deliveries'!$AD$9:'Joint Aug Station Deliveries'!$AD17)+'Joint Aug Station Deliveries'!$AD18)*1.9835>'New Cache Credit'!$BY$35,(SUM('Joint Aug Station Deliveries'!$AD$9:'Joint Aug Station Deliveries'!$AD17)+'Joint Aug Station Deliveries'!$AD18)*1.9835>'New Cache Credit'!$CH$35),0,'Joint Aug Station Deliveries'!V18) -> 0 | FR18: =-(FQ18*0.5/100*'Distances for Transit Losses'!$C$202) -> 0 | FT18: =IF(AND(FS17="no",(SUM('Joint Aug Station Deliveries'!$AD$9:'Joint Aug Station Deliveries'!$AD17)+'Joint Aug Station Deliveries'!$AD18)*1.9835>'New Cache Credit'!$BY$35,(SUM('Joint Aug Station Deliveries'!$AD$9:'Joint Aug Station Deliveries'!$AD17)+'Joint Aug Station Deliveries'!$AD18)*1.9835>'New Cache Credit'!$CH$35),0,'Joint Aug Station Deliveries'!Y18) -> 0 | FU18: =-(FT18*0.5/100*'Distances for Transit Losses'!$C$194) -> 0 | FV18: =IF(AND(FS17="no",(SUM('Joint Aug Station Deliveries'!$AD$9:'Joint Aug Station Deliveries'!$AD17)+'Joint Aug Station Deliveries'!$AD18)*1.9835>'New Cache Credit'!$BY$35,(SUM('Joint Aug Station Deliveries'!$AD$9:'Joint Aug Station Deliveries'!$AD17)+'Joint Aug Station Deliveries'!$AD18)*1.9835>'New Cache Credit'!$CH$35),0,'Joint Aug Station Deliveries'!AB18) -> 0 | FW18: =-(FV18*0.5/100*'Distances for Transit Losses'!$C$200) -> 0 | FX18: 0 | FY18: 0 | FZ18: 0.02776109711 | GA18: 1.489733426 | GB18: =-(IF(N18<99999.99999,INDEX('Hist RF to SPR'!$Q$6:$AB$30,MATCH($B$2,'Hist RF to SPR'!$P$6:$P$30,0),MATCH($A18,'Hist RF to SPR'!$Q$5:$AB$5,0))/RI18/1.9835,0)) -> 0 | GC18: =-(IF(OR($N18<99999.99999,E18="Lower Latham",I18="Lower Latham",E18="Highland",I18="Highland",E18="Plum",I18="Plum"),(INDEX('FIDCO Credit'!$Y$44:$AJ$70,MATCH($B$2,'FIDCO Credit'!$X$44:$X$70,0),MATCH($A18,'FIDCO Credit'!$Y$43:$AJ$43,0))/$RI18)/1.9835,0)) -> 0 | GD18: =-(IF(OR($N18<99999.99999,E18="Lower Latham",I18="Lower Latham",E18="Highland",I18="Highland",E18="Plum",I18="Plum"),(INDEX('Western Credit'!$W$76:$AH$102,MATCH($B$2,'Western Credit'!$V$76:$V$102,0),MATCH($A18,'Western Credit'!$W$75:$AH$75,0))/$RI18)/1.9835,0)) -> 0 | GE18: 0 | GF18: 0 | GG18: 0 | GH18: =IF(AND(GN18="no",GO18="no"),MIN(-(GC18-GF18-GG18)/(1-0.5/100*'Distances for Transit Losses'!$C$89),IL18),0) -> 0 | GI18: =-GH18*0.5/100*'Distances for Transit Losses'!$C$89 -> 0 | GJ18: =VLOOKUP($B18,'ECCV Haren Pond S.P. Acrtns'!$B$7:$G$306,6)/$RI18/1.9835 -> 1.36770332 | GK18: 0 | GL18: 0 | GM18: no | GN18: no | GO18: no | GP18: 0 | GQ18: 0 | GR18: 0 | GT18: 0 | GU18: 0 | GV18: 0 | GW18: =IF(AND(IT18-IU18>0,IO18="no"),MIN(-GV18/(1-0.5/100*'Distances for Transit Losses'!$C$105),IT18-IU18),0) -> 0 | GX18: =-GW18*0.5/100*'Distances for Transit Losses'!$C$105 -> 0 | GY18: =IF(AND(IX18+IY18-IZ18-JK18>0,IO18="no"),MIN((-GV18-(GW18+GX18))/(1-0.5/100*'Distances for Transit Losses'!$C$107),IX18+IY18-IZ18-JK18),0) -> 0 | GZ18: =-GY18*0.5/100*'Distances for Transit Losses'!$C$107 -> 0 | HA18: 0 | HB18: =IF(HA18>0,MIN(-(GV18+GW18+GX18+GY18+GZ18)/(1-0.5/100*'Distances for Transit Losses'!$C$109),HA18),0) -> 0 | HC18: =-HB18*0.5/100*'Distances for Transit Losses'!$C$109 -> 0 | HD18: 0 | HF18: 0 | HG18: ='Joint Aug Station Deliveries'!AQ18 -> 0 | HH18: =HG18*'Western Credit'!$Z$38 -> 0 | HI18: ='Joint Aug Station Deliveries'!AH18 -> 0 | HJ18: =IF(AND(HI18>0,SUM($HI$9:HI18,$HK$9:HK18,$IL$9:IL18)*1.9835<OFFSET('FIDCO Credit'!$X$35,0,MATCH($A18,'FIDCO Credit'!$Y$5:$AJ$5,0))),HI18-GF18,0) -> 0 | HK18: ='Joint Aug Station Deliveries'!AK18 -> 0 | HL18: =IF(AND(HK18>0,SUM($HI$9:HI18,$HK$9:HK18,$IL$9:IL18)*1.9835<OFFSET('FIDCO Credit'!$X$35,0,MATCH($A18,'FIDCO Credit'!$Y$5:$AJ$5,0))),HK18-GG18,0) -> 0 | HM18: =MAX(0,(KN18+KO18))/(1-0.5/100*'Distances for Transit Losses'!$C$77) -> 0 | HN18: =MAX(0,(KP18+KQ18)/(1-0.5/100*'Distances for Transit Losses'!$C$73)) -> 0 | HO18: 0 | HP18: =-HO18*0.5/100*'Distances for Transit Losses'!$C$79 -> 0 | HQ18: 0 | HR18: 0 | HS18: =-HR18*0.5/100*'Distances for Transit Losses'!$C$34 -> 0 | HT18: 0 | HU18: 0 | HV18: 0 | HW18: 0 | HX18: 0 | HY18: 0 | HZ18: 1.489733426 | IA18: 0 | IB18: 0.02776109711 | IC18: 0 | ID18: 0 | IE18: 0 | IF18: =-IE18*0.5/100*'Distances for Transit Losses'!$C$117 -> 0 | IG18: 0 | IH18: =GJ18-GK18-GL18+HH18+HJ18-SUM(HM18:HQ18)-HU18-HV18-HX18-HY18-(CA18/(1-0.5/100*'Distances for Transit Losses'!$C$99)) -> 1.36770332 | II18: 0.02776109711 | IJ18: 1.489733426 | IK18: =-(IF(F18<99999.99999,INDEX('Hist RF to SPR'!$B$6:$M$30,MATCH($B$2,'Hist RF to SPR'!$A$6:$A$30,0),MATCH($A18,'Hist RF to SPR'!$B$5:$M$5,0))/RI18/1.9835,0)) -> 0 | IL18: ='Joint Aug Station Deliveries'!AN18 -> 1 | IM18: =IF(AND(IL18>0,SUM($HI$9:HI18,$HK$9:HK18,$IL$9:IL18)*1.9835<OFFSET('FIDCO Credit'!$X$35,0,MATCH($A18,'FIDCO Credit'!$Y$5:$AJ$5,0))),IL18-GH18,0) -> 0 | IN18: 0 | IO18: no | IP18: 0 | IQ18: 0 | IR18: 0 | IS18: 0 | IT18: 0 | IU18: =IF(IT18>0,MIN(-IS18/(1-0.5/100*'Distances for Transit Losses'!$C$111),IT18),0) -> 0 | IV18: =-IU18*0.5/100*'Distances for Transit Losses'!$C$111 -> 0 | IW18: 0 | IX18: 0 | IY18: =-IX18*0.5/100*'Distances for Transit Losses'!$C$66 -> 0 | IZ18: =IF((IX18+IY18)>0,MIN((-IS18-(IU18-IV18)-IW18)/(1-0.5/100*'Distances for Transit Losses'!$C$113),(IX18+IY18)),0) -> 0 | JA18: =-IZ18*0.5/100*'Distances for Transit Losses'!$C$113 -> 0 | JB18: 0 | JD18: 0 | JE18: 1.489733426 | JF18: 0 | JG18: 0.02776109711 | JH18: 0 | JI18: 0 | JJ18: 0 | JK18: 0 | JL18: =-JK18*0.5/100*'Distances for Transit Losses'!$C$115 -> 0 | JM18: 0 | JN18: 0.02776109711 | JO18: 1.489733426 | JP18: =-(IF(N18<99999.99999,(VLOOKUP(B18,'ECCV Upper Dpln'!$B$7:$BD$306,55))/RI18/1.9835,0)) -> 0 | JQ18: =-(IF(N18<99999.99999,INDEX('Hist RF abv Milton'!$B$6:$M$30,MATCH($B$2,'Hist RF abv Milton'!$A$6:$A$30,0),MATCH($A18,'Hist RF abv Milton'!$B$5:$M$5,0))/RI18/1.9835,0)) -> 0 | JR18: 0 | JS18: =(VLOOKUP($B18,'ECCV Beebe Pond Acrtns'!$B$7:$BI$1206,41)+VLOOKUP($B18,'ECCV Canal Acrtns'!$B$7:$AL$1206,22)+VLOOKUP($B18,'2003 Beebe Pond Acrtns'!$B$7:$BI$1206,41)+VLOOKUP($B18,'2003 Canal Acrtns'!$B$7:$AL$1206,22))/$RI18/1.9835 -> 1.000835946 | JT18: 0 | JU18: 0 | JV18: 0 | JW18: 0 | JX18: 0 | JY18: no | JZ18: 0 | KA18: 0 | KB18: 0 | KC18: 0 | KD18: 0 | KE18: 0 | KF18: 0 | KG18: 0 | KH18: 0 | KI18: 0 | KJ18: =-(KI18*0.5/100*'Distances for Transit Losses'!$C$6) -> 0 | KK18: =-KH18 -> 0 | KL18: 0 | KM18: 0 | KN18: =IF(AND(E18<>"Lower Latham",I18<>"Lower Latham"),MIN(-(KH18+KK18),HJ18-HJ18*0.5/100*'Distances for Transit Losses'!$C$77),0) -> 0 | KO18: =IF(AND(E18<>"Lower Latham",I18<>"Lower Latham"),MAX(0,MIN(-(KG18+KI18+KJ18+KM18),HJ18-HJ18*0.5/100*'Distances for Transit Losses'!$C$77-KN18/(1-0.5/100*'Distances for Transit Losses'!$C$77))),0) -> 0 | KP18: =MIN(-(KH18+KN18),HH18-HH18*0.5/100*'Distances for Transit Losses'!$C$73) -> 0 | KQ18: =MAX(0,MIN(-(KG18+KI18+KJ18+KO18),HH18-HH18*0.5/100*'Distances for Transit Losses'!$C$73-KP18/(1-0.5/100*'Distances for Transit Losses'!$C$73))) -> 0 | KR18: =IF(EZ18="no",MIN(-(MIN(0,KG18+KI18+KJ18+KO18+KQ18)),(GJ18-GK18)-(GJ18-GK18)*0.5/100*'Distances for Transit Losses'!$C$73),0) -> 0 | KS18: =MAX(0,IF(AND(HA18-HB18-IW18-FK18>0,EZ18="no"),MIN(-(KG18+KI18+KJ18+KM18+KO18+KQ18+KR18)/(1-0.5/100*'Distances for Transit Losses'!$C$83),HA18-HB18-IW18-FK18),0)) -> 0 | KT18: =-KS18*0.5/100*'Distances for Transit Losses'!$C$83 -> 0 | KU18: 0 | KW18: 0 | KX18: 1.000835946 | KY18: 0 | KZ18: 0.02852709711 | LA18: 1.489733426 | LB18: =-(IF(N18<99999.99999,INDEX('Hist RF blw Milton'!$B$6:$M$30,MATCH($B$2,'Hist RF blw Milton'!$A$6:$A$30,0),MATCH($A18,'Hist RF blw Milton'!$B$5:$M$5,0))/RI18/1.9835,0)) -> 0 | LC18: no | LD18: 0 | LE18: 0 | LF18: 0 | LG18: 0 | LH18: 0 | LI18: 0 | LK18: 0.02852709711 | LL18: 1.489733426 | LM18: =-(IF(N18<99999.99999,INDEX('Hist RF to Box Elder'!$B$6:$M$30,MATCH($B$2,'Hist RF to Box Elder'!$A$6:$A$30,0),MATCH($A18,'Hist RF to Box Elder'!$B$5:$M$5,0))/RI18/1.9835,0)) -> 0 | LN18: =(VLOOKUP($B18,'ECCV Beebe Pond Acrtns'!$B$7:$BI$1206,54)+VLOOKUP($B18,'ECCV Canal Acrtns'!$B$7:$AL$1206,34)+VLOOKUP($B18,'2003 Beebe Pond Acrtns'!$B$7:$BI$1206,54)+VLOOKUP($B18,'2003 Canal Acrtns'!$B$7:$AL$1206,34)+VLOOKUP($B18,'84CW090 Beebe Pond Acrtns'!$B$7:$BI$1206,55)+VLOOKUP($B18,'84CW090 Canal Acrtns'!$B$7:$AL$1206,34))/$RI18/1.9835 -> 0.09630223027 | LO18: 0 | LP18: 0 | LQ18: 0 | LR18: 0 | LT18: -0.0009575 | LU18: 0 | LV18: 0 | LW18: 0 | LX18: 0 | LY18: 0 | LZ18: 0.000766 | MA18: 0 | MB18: 0 | MC18: 0 | MD18: =SUM(LU18:MC18) -> 0.000766 | ME18: -0.0001915 | MF18: 1.000835946 | MG18: 0.02776109711 | MH18: 1.489733426 | MO18: 0 | MP18: 0 | MQ18: 0 | MS18: 0 | MT18: 0 | MU18: 0 | MV18: 0 | MW18: 0 | MX18: 0 | MY18: 0 | MZ18: 0 | NA18: 0 | NB18: 0 | NC18: 0 | ND18: 0 | NF18: 0 | NG18: 0 | NH18: 0 | NI18: 0 | NJ18: 0 | NK18: 0 | NL18: 0 | NM18: 0 | NN18: 0 | NO18: 0 | NP18: 0 | NR18: 1.517494523 | NS18: 0 | NT18: 0 | NU18: 0 | NV18: 0 | NW18: 0 | NX18: 0 | NY18: 0 | NZ18: 0 | OA18: 0 | OB18: 0 | OH18: 0 | OI18: 0 | OJ18: 0 | OK18: 0 | OL18: 0 | OM18: 0 | ON18: 0 | OO18: 0 | OP18: 0 | OR18: 0 | OS18: 0 | OT18: 0 | OU18: 0 | OV18: 0 | OW18: 0 | OX18: 0 | OY18: 0 | OZ18: 0 | PC18: 0 | PD18: 0 | PE18: 0 | PF18: 0 | PG18: 0 | PH18: 0 | PI18: 0 | PL18: 0 | PM18: 0 | PP18: 0 | PQ18: 0 | PR18: 0 | PU18: 0 | PV18: 0 | PW18: 0 | PX18: 0 | PY18: 0 | PZ18: 0 | QA18: 0 | QC18: 0 | QD18: 0 | QE18: 0 | QF18: 0 | QG18: 0 | QH18: 309.6 | QJ18: 1.000835946 | QK18: 0 | QL18: 0 | QM18: 0 | QN18: 0 | QO18: 0 | QP18: 0 | QQ18: 0 | QR18: 0 | QS18: 0 | QT18: 0 | QU18: 0 | QV18: 0 | QW18: 0 | QX18: 0 | QY18: 0 | QZ18: 0 | RA18: 0 | RB18: 0 | RC18: 0 | RD18: 1.000835946 | RF18: 0 | RG18: 0 | RI18: =VLOOKUP(A18,'Control Sheet'!$G$9:$H$20,2) -> 30
A19: Apr | B19: 2016-04-11 | C19: Free River | F19: 99999.99999 | K19: Free River | N19: 99999.99999 | S19: 1.517494523 | T19: 0 | U19: 0 | V19: 0 | X19: 0 | Y19: =('NFC Well Pumping'!$L17+'NFC Well Pumping'!$L54+'NFC Well Pumping'!$L90)/1.9835 -> 0 | Z19: ='88CW264(B) Pumping'!$E17/1.9835+'88CW264(B) Pumping'!$E53/1.9835+'88CW264(B) Pumping'!E93/1.9835+'88CW264(B) Pumping'!E129/1.9835+'88CW264(B) Pumping'!E169/1.9835+'88CW264(B) Pumping'!E205/1.9835 -> 0.01157311677 | AA19: 1.517494523 | AB19: =('United No. 2 Well Pumping'!G18+'United No. 2 Well Pumping'!G54+'United No. 2 Well Pumping'!G90)/1.9835 -> 0 | AC19: =('United No. 2 Well Pumping'!F18+'United No. 2 Well Pumping'!F54+'United No. 2 Well Pumping'!F90)/1.9835 -> 0 | AD19: 0 | AF19: 0.01157311677 | AG19: =U19+AC19+'United Res'!AA181+'United Res'!AQ181+'Milliken Res'!I169 -> 0 | AH19: 100 | AI19: =-(IF($N19=99999.99999,0,VLOOKUP($B19,'NFC Well Dplns-URF'!B$7:$AB$306,27))/$RI19/1.9835) -> 0 | AJ19: 0 | AL19: =(VLOOKUP($B19,'ECCV 70R Pond Acrtns'!$B$7:$AI$1206,34)+VLOOKUP($B19,'2003 70R Pond Acrtns'!$B$7:$AI$1206,34)+VLOOKUP($B19,'ECCV 70R Canal Acrtns'!$B$7:$AI$1206,27)+VLOOKUP($B19,'2003 70R Canal Acrtns'!$B$7:$AI$1206,27))/$RI19/1.9835 -> 0 | AM19: 0 | AN19: =-(IF($N19=99999.99999,0,VLOOKUP($B19,'NFC Well Dplns-SDF'!$B$7:$Z$306,25)+VLOOKUP($B19,'NFC Well Dplns-URF'!B$7:$AB$306,20))/$RI19/1.9835) -> 0 | AO19: 0 | AP19: 0 | AR19: =IF(N19<99999.99999,-((AV19+AW19)*'Weldon Credit'!$Z$38+(INDEX('Weldon Credit'!$V$75:$AH$102,MATCH($B$2,'Weldon Credit'!$V$75:$V$102,0),MATCH(A19,'Weldon Credit'!$V$75:$AH$75,0))/RI19)/1.9835),0) -> 0 | AS19: =0.4*(INDEX('Riverside Pond Accrtns'!$B$6:$M$36,MATCH($B$2,'Riverside Pond Accrtns'!$A$6:$A$36,0),MATCH('ECCV Daily Replacement Summary'!A19,'Riverside Pond Accrtns'!$B$5:$M$5,0))/RI19)/1.9835 -> 1.238887488 | AT19: =(44/640)*(INDEX('Weldon Valley Accrtns (02CW377)'!$B$6:$M$30,MATCH($B$2,'Weldon Valley Accrtns (02CW377)'!$A$6:$A$30,0),MATCH(A19,'Weldon Valley Accrtns (02CW377)'!$B$5:$M$5,0))/RI19)/1.9835 -> 0.2508459373 | AU19: =(VLOOKUP($B19,'ECCV 70R Pond Acrtns'!$B$7:$AI$1206,25)+VLOOKUP($B19,'ECCV 70R Canal Acrtns'!$B$7:$AI$1206,20)+VLOOKUP($B19,'2003 70R Pond Acrtns'!$B$7:$AI$1206,25)+VLOOKUP($B19,'2003 70R Canal Acrtns'!$B$7:$AI$1206,20))/$RI19/1.9835 -> 0 | AV19: ='Joint Aug Station Deliveries'!G19 -> 0 | AW19: ='Joint Aug Station Deliveries'!J19 -> 0 | AX19: 0 | AY19: 0 | AZ19: =MIN(-($AR19+AY19)/(1-0.5/100*'Distances for Transit Losses'!$C$71),AS19-AS19*0.5/100*'Distances for Transit Losses'!$C$71) -> 0 | BA19: 0 | BB19: =MAX(0,MIN(-($AR19+AY19+AZ19+BA19),AU19-AU19*0.5/100*'Distances for Transit Losses'!$C$71)) -> 0 | BC19: =-((AZ19+BB19)*(0.5/100*'Distances for Transit Losses'!$C$71)) -> 0 | BD19: =IF(AND(JF19-JG19-FQ19-DL19>0,IW19="no"),MIN(-(AR19+AY19+AZ19+BA19+BB19+BC19)/(1-0.5/100*'Distances for Transit Losses'!$C$93),JF19-JG19-FQ19-DL19),0) -> 0 | BE19: =--BD19*0.5/100*'Distances for Transit Losses'!C$93 -> 0 | BF19: =IF(AND(HA19-HB19-IW19-FK19-KS19-DF19>0,EZ19="no"),MIN(-(AR19+SUM(AY19:BE19))/(1-0.5/100*'Distances for Transit Losses'!$C$99),HA19-HB19-IW19-FK19-KS19-DF19),0) -> 0 | BG19: =--BF19*0.5/100*'Distances for Transit Losses'!$C$95 -> 0 | BH19: 0 | BJ19: no | BK19: no | BL19: 0 | BM19: 0 | BN19: 0 | BP19: =IF($BK19="No",MIN(-CW19,AS19-AZ19/(1-0.5/100*'Distances for Transit Losses'!$C$71)),0) -> 0 | BQ19: =IF($BK19="No",MIN(-CW19+BP19,AU19-BB19/(1-0.5/100*'Distances for Transit Losses'!$C$71)),0) -> 0 | BR19: 0 | BS19: 0 | BT19: 0 | BU19: 1.489733426 | BV19: 1.489733426 | BW19: =-(IF($N19=99999.99999,0,VLOOKUP($B19,'NFC Well Dplns-SDF'!$B$7:$Z$306,16)+VLOOKUP($B19,'NFC Well Dplns-URF'!$B$7:$AB$306,13))/$RI19/1.9835) -> 0 | BX19: =-(IF($N19>=99999,0,'88CW264(B) Pumping'!$E17/1.9835)+IF($N19>=99999,0,'88CW264(B) Pumping'!$E53/1.9835)+IF($N19>=99999,0,'88CW264(B) Pumping'!$E93/1.9835)+IF($N19>=99999,0,'88CW264(B) Pumping'!$E129/1.9835)+IF($N19>=51134.50919,0,'88CW264(B) Pumping'!$E169/1.9835)+IF($N19>=53406,0,'88CW264(B) Pumping'!$E205/1.9835)) -> 0 | BY19: 0 | BZ19: 0 | CA19: 0 | CC19: =-(IF($N19=99999.99999,0,VLOOKUP($B19,'United No. 2 Dplns'!$B$7:$X$676,13)/1.9835)) -> 0 | CD19: =CC19+(-(INDEX('Pre 1995 Net Accretions'!$B$6:$M$105,MATCH($B$2,'Pre 1995 Net Accretions'!$A$6:$A$105,0),MATCH($A19,'Pre 1995 Net Accretions'!$B$5:$M$5,0))/$RI19/1.9835)) -> 0.02852709711 | CE19: =-(IF(N19<99999.99999,(INDEX('70 Ranch RF Obligation'!$B$6:$M$30,MATCH($B$2,'70 Ranch RF Obligation'!$A$6:$A$30,0),MATCH('ECCV Daily Replacement Summary'!A19,'70 Ranch RF Obligation'!$B$5:$M$5,0))/RI19)/1.9835,0))-CH19*(1-'L. Latham Credit'!$E$37) -> 0 | CF19: 0 | CG19: =(VLOOKUP($B19,'ECCV 70R Pond Acrtns'!$B$7:$AI$1206,16)+VLOOKUP($B19,'ECCV 70R Canal Acrtns'!$B$7:$AI$1206,13)+VLOOKUP($B19,'2003 70R Pond Acrtns'!$B$7:$AI$1206,16)+VLOOKUP($B19,'2003 70R Canal Acrtns'!$B$7:$AI$1206,13))/$RI19/1.9835 -> 0 | CH19: 0 | CI19: 0 | CJ19: 0 | CK19: 0 | CL19: 0 | CM19: 0 | CN19: 0 | CP19: 0.02852709711 | CQ19: 0 | CR19: 0 | CS19: =-CR19*0.5/100*'Distances for Transit Losses'!$C$46 -> 0 | CT19: 0 | CU19: 0 | CV19: 0 | CW19: 0 | CX19: 0 | CY19: 0 | CZ19: 0 | DA19: =('NFC Well Pumping'!I17+'NFC Well Pumping'!I54+'NFC Well Pumping'!I90)/1.9835 -> 0 | DB19: =IF(AND(IT19-IU19-FG19>0,IO19="no"),MIN(-SUM(CW19:DA19)/(1-0.5/100*'Distances for Transit Losses'!$C$97),IT19-IU19-FG19),0) -> 0 | DC19: =-DB19*0.5/100*'Distances for Transit Losses'!C$97 -> 0 | DD19: 0 | DE19: =--DD19*0.5/100*'Distances for Transit Losses'!$C$121 -> 0 | DF19: =IF(AND(HA19-HB19-IW19-FK19-KS19>0,EZ19="no"),MIN(-SUM(CW19:DE19)/(1-0.5/100*'Distances for Transit Losses'!$C$99),HA19-HB19-IW19-FK19-KS19),0) -> 0 | DG19: =--DF19*0.5/100*'Distances for Transit Losses'!$C$99 -> 0 | DH19: 0.02852709711 | DI19: 0 | DJ19: ='Joint Aug Station Deliveries'!M19 -> 0 | DK19: =-(DJ19*0.5/100*'Distances for Transit Losses'!$C$206) -> 0 | DL19: 0 | DN19: no | DP19: 0 | DQ19: 0 | DR19: =-(DQ19*0.5/100*'Distances for Transit Losses'!$C$208) -> 0 | DS19: 0 | DT19: =-0.25*(INDEX('GIC Credit'!$B$77:$M$104,MATCH($B$2,'GIC Credit'!$A$77:$A$104,0),MATCH($A19,'GIC Credit'!$B$77:$M$77,0))/$RI19/1.9835+ET19*'GIC Credit'!$Z$35+EU19*'GIC Credit'!$AO$35) -> -0.0001915 | DU19: -0.0001915 | DV19: 0 | DW19: ='Joint Aug Station Deliveries'!BD19 -> 0 | DX19: =-(DW19*0.5/100*'Distances for Transit Losses'!$C$234) -> 0 | DY19: ='Joint Aug Station Deliveries'!BE19 -> 0 | DZ19: =-(DY19*0.5/100*'Distances for Transit Losses'!$C$236) -> 0 | EA19: 0 | EB19: =-(EA19*0.5/100*'Distances for Transit Losses'!$C$228) -> 0 | EC19: 0 | EE19: no | EF19: -0.0001915 | EG19: =-(IF($N19<99999.99999,(INDEX('New Cache Credit'!$W$74:$AH$99,MATCH($B$2,'New Cache Credit'!$V$74:$V$99,0),MATCH($A19,'New Cache Credit'!$W$74:$AH$74,0))/$RI19)/1.9835,0))-DI19-DS19 -> 0 | EH19: =-0.39*(INDEX('GIC Credit'!$B$77:$M$104,MATCH($B$2,'GIC Credit'!$A$77:$A$104,0),MATCH($A19,'GIC Credit'!$B$77:$M$77,0))/$RI19/1.9835+ET19*'GIC Credit'!$Z$35+EU19*'GIC Credit'!$AO$35) -> -0.00029874 | EI19: 0 | EJ19: =-(EI19*0.5/100*('Distances for Transit Losses'!$C$210+'Distances for Transit Losses'!$C$216)) -> 0 | EL19: =IF(EK19="yes",'Joint Aug Station Deliveries'!T19,0) -> 0 | EM19: =-(EL19*0.5/100*('Distances for Transit Losses'!$C$212+'Distances for Transit Losses'!$C$214+'Distances for Transit Losses'!$C$216)) -> 0 | EN19: =IF(EK19="Yes",'Joint Aug Station Deliveries'!W19,0) -> 0 | EO19: =-(EN19*0.5/100*('Distances for Transit Losses'!$C$214+'Distances for Transit Losses'!$C$216)) -> 0 | EP19: ='Joint Aug Station Deliveries'!BF19 -> 0 | EQ19: =-(EP19*0.5/100*'Distances for Transit Losses'!$C$220) -> 0 | ER19: -0.00049024 | ES19: 0 | ET19: ='Joint Aug Station Deliveries'!BH19 -> 0 | EU19: ='Joint Aug Station Deliveries'!BI19 -> 0 | EV19: =-(IF(N19<99999.99999,INDEX('Hist RF to SPR'!$AF$6:$AQ$30,MATCH($B$2,'Hist RF to SPR'!$AE$6:$AE$30,0),MATCH($A19,'Hist RF to SPR'!$AF$5:$AQ$5,0))/RI19/1.9835,0)) -> 0 | EW19: =-0.36*(INDEX('GIC Credit'!$B$77:$M$104,MATCH($B$2,'GIC Credit'!$A$77:$A$104,0),MATCH($A19,'GIC Credit'!$B$77:$M$77,0))/$RI19/1.9835+ET19*'GIC Credit'!$Z$35+EU19*'GIC Credit'!$AO$35) -> -0.00027576 | EX19: -0.00049024 | EY19: -0.000766 | EZ19: no | FA19: 0 | FB19: 0 | FC19: 0 | FE19: 0.000766 | FF19: 0 | FG19: =IF(AND(IT19-IU19-GW19>0,IO19="no"),MIN(-(EY19+FE19+FF19)/(1-0.5/100*'Distances for Transit Losses'!$C$101),IT19-IU19-GW19),0) -> 0 | FH19: =-FG19*0.5/100*'Distances for Transit Losses'!$C$101 -> 0 | FI19: 0 | FJ19: =-FI19*0.5/100*'Distances for Transit Losses'!$C$119 -> 0 | FK19: =IF(AND(HA19-HB19-IW19>0,GM19="no"),MIN(-(EY19+FE19+FF19+FG19+FH19+FI19+FJ19)/(1-0.5/100*'Distances for Transit Losses'!$C$103),HA19-HB19-IW19),0) -> 0 | FL19: =-FK19*0.5/100*'Distances for Transit Losses'!$C$109 -> 0 | FM19: 0 | FO19: 0 | FQ19: =IF(AND(FP18="no",(SUM('Joint Aug Station Deliveries'!$AD$9:'Joint Aug Station Deliveries'!$AD18)+'Joint Aug Station Deliveries'!$AD19)*1.9835>'New Cache Credit'!$BY$35,(SUM('Joint Aug Station Deliveries'!$AD$9:'Joint Aug Station Deliveries'!$AD18)+'Joint Aug Station Deliveries'!$AD19)*1.9835>'New Cache Credit'!$CH$35),0,'Joint Aug Station Deliveries'!V19) -> 0 | FR19: =-(FQ19*0.5/100*'Distances for Transit Losses'!$C$202) -> 0 | FT19: =IF(AND(FS18="no",(SUM('Joint Aug Station Deliveries'!$AD$9:'Joint Aug Station Deliveries'!$AD18)+'Joint Aug Station Deliveries'!$AD19)*1.9835>'New Cache Credit'!$BY$35,(SUM('Joint Aug Station Deliveries'!$AD$9:'Joint Aug Station Deliveries'!$AD18)+'Joint Aug Station Deliveries'!$AD19)*1.9835>'New Cache Credit'!$CH$35),0,'Joint Aug Station Deliveries'!Y19) -> 0 | FU19: =-(FT19*0.5/100*'Distances for Transit Losses'!$C$194) -> 0 | FV19: =IF(AND(FS18="no",(SUM('Joint Aug Station Deliveries'!$AD$9:'Joint Aug Station Deliveries'!$AD18)+'Joint Aug Station Deliveries'!$AD19)*1.9835>'New Cache Credit'!$BY$35,(SUM('Joint Aug Station Deliveries'!$AD$9:'Joint Aug Station Deliveries'!$AD18)+'Joint Aug Station Deliveries'!$AD19)*1.9835>'New Cache Credit'!$CH$35),0,'Joint Aug Station Deliveries'!AB19) -> 0 | FW19: =-(FV19*0.5/100*'Distances for Transit Losses'!$C$200) -> 0 | FX19: 0 | FY19: 0 | FZ19: 0.02776109711 | GA19: 1.489733426 | GB19: =-(IF(N19<99999.99999,INDEX('Hist RF to SPR'!$Q$6:$AB$30,MATCH($B$2,'Hist RF to SPR'!$P$6:$P$30,0),MATCH($A19,'Hist RF to SPR'!$Q$5:$AB$5,0))/RI19/1.9835,0)) -> 0 | GC19: =-(IF(OR($N19<99999.99999,E19="Lower Latham",I19="Lower Latham",E19="Highland",I19="Highland",E19="Plum",I19="Plum"),(INDEX('FIDCO Credit'!$Y$44:$AJ$70,MATCH($B$2,'FIDCO Credit'!$X$44:$X$70,0),MATCH($A19,'FIDCO Credit'!$Y$43:$AJ$43,0))/$RI19)/1.9835,0)) -> 0 | GD19: =-(IF(OR($N19<99999.99999,E19="Lower Latham",I19="Lower Latham",E19="Highland",I19="Highland",E19="Plum",I19="Plum"),(INDEX('Western Credit'!$W$76:$AH$102,MATCH($B$2,'Western Credit'!$V$76:$V$102,0),MATCH($A19,'Western Credit'!$W$75:$AH$75,0))/$RI19)/1.9835,0)) -> 0 | GE19: 0 | GF19: 0 | GG19: 0 | GH19: =IF(AND(GN19="no",GO19="no"),MIN(-(GC19-GF19-GG19)/(1-0.5/100*'Distances for Transit Losses'!$C$89),IL19),0) -> 0 | GI19: =-GH19*0.5/100*'Distances for Transit Losses'!$C$89 -> 0 | GJ19: =VLOOKUP($B19,'ECCV Haren Pond S.P. Acrtns'!$B$7:$G$306,6)/$RI19/1.9835 -> 1.36770332 | GK19: 0 | GL19: 0 | GM19: no | GN19: no | GO19: no | GP19: 0 | GQ19: 0 | GR19: 0 | GT19: 0 | GU19: 0 | GV19: 0 | GW19: =IF(AND(IT19-IU19>0,IO19="no"),MIN(-GV19/(1-0.5/100*'Distances for Transit Losses'!$C$105),IT19-IU19),0) -> 0 | GX19: =-GW19*0.5/100*'Distances for Transit Losses'!$C$105 -> 0 | GY19: =IF(AND(IX19+IY19-IZ19-JK19>0,IO19="no"),MIN((-GV19-(GW19+GX19))/(1-0.5/100*'Distances for Transit Losses'!$C$107),IX19+IY19-IZ19-JK19),0) -> 0 | GZ19: =-GY19*0.5/100*'Distances for Transit Losses'!$C$107 -> 0 | HA19: 0 | HB19: =IF(HA19>0,MIN(-(GV19+GW19+GX19+GY19+GZ19)/(1-0.5/100*'Distances for Transit Losses'!$C$109),HA19),0) -> 0 | HC19: =-HB19*0.5/100*'Distances for Transit Losses'!$C$109 -> 0 | HD19: 0 | HF19: 0 | HG19: ='Joint Aug Station Deliveries'!AQ19 -> 0 | HH19: =HG19*'Western Credit'!$Z$38 -> 0 | HI19: ='Joint Aug Station Deliveries'!AH19 -> 0 | HJ19: =IF(AND(HI19>0,SUM($HI$9:HI19,$HK$9:HK19,$IL$9:IL19)*1.9835<OFFSET('FIDCO Credit'!$X$35,0,MATCH($A19,'FIDCO Credit'!$Y$5:$AJ$5,0))),HI19-GF19,0) -> 0 | HK19: ='Joint Aug Station Deliveries'!AK19 -> 0 | HL19: =IF(AND(HK19>0,SUM($HI$9:HI19,$HK$9:HK19,$IL$9:IL19)*1.9835<OFFSET('FIDCO Credit'!$X$35,0,MATCH($A19,'FIDCO Credit'!$Y$5:$AJ$5,0))),HK19-GG19,0) -> 0 | HM19: =MAX(0,(KN19+KO19))/(1-0.5/100*'Distances for Transit Losses'!$C$77) -> 0 | HN19: =MAX(0,(KP19+KQ19)/(1-0.5/100*'Distances for Transit Losses'!$C$73)) -> 0 | HO19: 0 | HP19: =-HO19*0.5/100*'Distances for Transit Losses'!$C$79 -> 0 | HQ19: 0 | HR19: 0 | HS19: =-HR19*0.5/100*'Distances for Transit Losses'!$C$34 -> 0 | HT19: 0 | HU19: 0 | HV19: 0 | HW19: 0 | HX19: 0 | HY19: 0 | HZ19: 1.489733426 | IA19: 0 | IB19: 0.02776109711 | IC19: 0 | ID19: 0 | IE19: 0 | IF19: =-IE19*0.5/100*'Distances for Transit Losses'!$C$117 -> 0 | IG19: 0 | IH19: =GJ19-GK19-GL19+HH19+HJ19-SUM(HM19:HQ19)-HU19-HV19-HX19-HY19-(CA19/(1-0.5/100*'Distances for Transit Losses'!$C$99)) -> 1.36770332 | II19: 0.02776109711 | IJ19: 1.489733426 | IK19: =-(IF(F19<99999.99999,INDEX('Hist RF to SPR'!$B$6:$M$30,MATCH($B$2,'Hist RF to SPR'!$A$6:$A$30,0),MATCH($A19,'Hist RF to SPR'!$B$5:$M$5,0))/RI19/1.9835,0)) -> 0 | IL19: ='Joint Aug Station Deliveries'!AN19 -> 1 | IM19: =IF(AND(IL19>0,SUM($HI$9:HI19,$HK$9:HK19,$IL$9:IL19)*1.9835<OFFSET('FIDCO Credit'!$X$35,0,MATCH($A19,'FIDCO Credit'!$Y$5:$AJ$5,0))),IL19-GH19,0) -> 0 | IN19: 0 | IO19: no | IP19: 0 | IQ19: 0 | IR19: 0 | IS19: 0 | IT19: 0 | IU19: =IF(IT19>0,MIN(-IS19/(1-0.5/100*'Distances for Transit Losses'!$C$111),IT19),0) -> 0 | IV19: =-IU19*0.5/100*'Distances for Transit Losses'!$C$111 -> 0 | IW19: 0 | IX19: 0 | IY19: =-IX19*0.5/100*'Distances for Transit Losses'!$C$66 -> 0 | IZ19: =IF((IX19+IY19)>0,MIN((-IS19-(IU19-IV19)-IW19)/(1-0.5/100*'Distances for Transit Losses'!$C$113),(IX19+IY19)),0) -> 0 | JA19: =-IZ19*0.5/100*'Distances for Transit Losses'!$C$113 -> 0 | JB19: 0 | JD19: 0 | JE19: 1.489733426 | JF19: 0 | JG19: 0.02776109711 | JH19: 0 | JI19: 0 | JJ19: 0 | JK19: 0 | JL19: =-JK19*0.5/100*'Distances for Transit Losses'!$C$115 -> 0 | JM19: 0 | JN19: 0.02776109711 | JO19: 1.489733426 | JP19: =-(IF(N19<99999.99999,(VLOOKUP(B19,'ECCV Upper Dpln'!$B$7:$BD$306,55))/RI19/1.9835,0)) -> 0 | JQ19: =-(IF(N19<99999.99999,INDEX('Hist RF abv Milton'!$B$6:$M$30,MATCH($B$2,'Hist RF abv Milton'!$A$6:$A$30,0),MATCH($A19,'Hist RF abv Milton'!$B$5:$M$5,0))/RI19/1.9835,0)) -> 0 | JR19: 0 | JS19: =(VLOOKUP($B19,'ECCV Beebe Pond Acrtns'!$B$7:$BI$1206,41)+VLOOKUP($B19,'ECCV Canal Acrtns'!$B$7:$AL$1206,22)+VLOOKUP($B19,'2003 Beebe Pond Acrtns'!$B$7:$BI$1206,41)+VLOOKUP($B19,'2003 Canal Acrtns'!$B$7:$AL$1206,22))/$RI19/1.9835 -> 1.000835946 | JT19: 0 | JU19: 0 | JV19: 0 | JW19: 0 | JX19: 0 | JY19: no | JZ19: 0 | KA19: 0 | KB19: 0 | KC19: 0 | KD19: 0 | KE19: 0 | KF19: 0 | KG19: 0 | KH19: 0 | KI19: 0 | KJ19: =-(KI19*0.5/100*'Distances for Transit Losses'!$C$6) -> 0 | KK19: =-KH19 -> 0 | KL19: 0 | KM19: 0 | KN19: =IF(AND(E19<>"Lower Latham",I19<>"Lower Latham"),MIN(-(KH19+KK19),HJ19-HJ19*0.5/100*'Distances for Transit Losses'!$C$77),0) -> 0 | KO19: =IF(AND(E19<>"Lower Latham",I19<>"Lower Latham"),MAX(0,MIN(-(KG19+KI19+KJ19+KM19),HJ19-HJ19*0.5/100*'Distances for Transit Losses'!$C$77-KN19/(1-0.5/100*'Distances for Transit Losses'!$C$77))),0) -> 0 | KP19: =MIN(-(KH19+KN19),HH19-HH19*0.5/100*'Distances for Transit Losses'!$C$73) -> 0 | KQ19: =MAX(0,MIN(-(KG19+KI19+KJ19+KO19),HH19-HH19*0.5/100*'Distances for Transit Losses'!$C$73-KP19/(1-0.5/100*'Distances for Transit Losses'!$C$73))) -> 0 | KR19: =IF(EZ19="no",MIN(-(MIN(0,KG19+KI19+KJ19+KO19+KQ19)),(GJ19-GK19)-(GJ19-GK19)*0.5/100*'Distances for Transit Losses'!$C$73),0) -> 0 | KS19: =MAX(0,IF(AND(HA19-HB19-IW19-FK19>0,EZ19="no"),MIN(-(KG19+KI19+KJ19+KM19+KO19+KQ19+KR19)/(1-0.5/100*'Distances for Transit Losses'!$C$83),HA19-HB19-IW19-FK19),0)) -> 0 | KT19: =-KS19*0.5/100*'Distances for Transit Losses'!$C$83 -> 0 | KU19: 0 | KW19: 0 | KX19: 1.000835946 | KY19: 0 | KZ19: 0.02852709711 | LA19: 1.489733426 | LB19: =-(IF(N19<99999.99999,INDEX('Hist RF blw Milton'!$B$6:$M$30,MATCH($B$2,'Hist RF blw Milton'!$A$6:$A$30,0),MATCH($A19,'Hist RF blw Milton'!$B$5:$M$5,0))/RI19/1.9835,0)) -> 0 | LC19: no | LD19: 0 | LE19: 0 | LF19: 0 | LG19: 0 | LH19: 0 | LI19: 0 | LK19: 0.02852709711 | LL19: 1.489733426 | LM19: =-(IF(N19<99999.99999,INDEX('Hist RF to Box Elder'!$B$6:$M$30,MATCH($B$2,'Hist RF to Box Elder'!$A$6:$A$30,0),MATCH($A19,'Hist RF to Box Elder'!$B$5:$M$5,0))/RI19/1.9835,0)) -> 0 | LN19: =(VLOOKUP($B19,'ECCV Beebe Pond Acrtns'!$B$7:$BI$1206,54)+VLOOKUP($B19,'ECCV Canal Acrtns'!$B$7:$AL$1206,34)+VLOOKUP($B19,'2003 Beebe Pond Acrtns'!$B$7:$BI$1206,54)+VLOOKUP($B19,'2003 Canal Acrtns'!$B$7:$AL$1206,34)+VLOOKUP($B19,'84CW090 Beebe Pond Acrtns'!$B$7:$BI$1206,55)+VLOOKUP($B19,'84CW090 Canal Acrtns'!$B$7:$AL$1206,34))/$RI19/1.9835 -> 0.09630223027 | LO19: 0 | LP19: 0 | LQ19: 0 | LR19: 0 | LT19: -0.0009575 | LU19: 0 | LV19: 0 | LW19: 0 | LX19: 0 | LY19: 0 | LZ19: 0.000766 | MA19: 0 | MB19: 0 | MC19: 0 | MD19: 0.000766 | ME19: -0.0001915 | MF19: 1.000835946 | MG19: 0.02776109711 | MH19: 1.489733426 | MO19: 0 | MP19: 0 | MQ19: 0 | MS19: 0 | MT19: 0 | MU19: 0 | MV19: 0 | MW19: 0 | MX19: 0 | MY19: 0 | MZ19: 0 | NA19: 0 | NB19: 0 | NC19: 0 | ND19: 0 | NF19: 0 | NG19: 0 | NH19: 0 | NI19: 0 | NJ19: 0 | NK19: 0 | NL19: 0 | NM19: 0 | NN19: 0 | NO19: 0 | NP19: 0 | NR19: 1.517494523 | NS19: 0 | NT19: 0 | NU19: 0 | NV19: 0 | NW19: 0 | NX19: 0 | NY19: 0 | NZ19: 0 | OA19: 0 | OB19: 0 | OH19: 0 | OI19: 0 | OJ19: 0 | OK19: 0 | OL19: 0 | OM19: 0 | ON19: 0 | OO19: 0 | OP19: 0 | OR19: 0 | OS19: 0 | OT19: 0 | OU19: 0 | OV19: 0 | OW19: 0 | OX19: 0 | OY19: 0 | OZ19: 0 | PC19: 0 | PD19: 0 | PE19: 0 | PF19: 0 | PG19: 0 | PH19: 0 | PI19: 0 | PL19: 0 | PM19: 0 | PP19: 0 | PQ19: 0 | PR19: 0 | PU19: 0 | PV19: 0 | PW19: 0 | PX19: 0 | PY19: 0 | PZ19: 0 | QA19: 0 | QC19: 0 | QD19: 0 | QE19: 0 | QF19: 0 | QG19: 0 | QH19: 309.6 | QJ19: 1.000835946 | QK19: 0 | QL19: 0 | QM19: 0 | QN19: 0 | QO19: 0 | QP19: 0 | QQ19: 0 | QR19: 0 | QS19: 0 | QT19: 0 | QU19: 0 | QV19: 0 | QW19: 0 | QX19: 0 | QY19: 0 | QZ19: 0 | RA19: 0 | RB19: 0 | RC19: 0 | RD19: 1.000835946 | RF19: 0 | RG19: 0 | RI19: =VLOOKUP(A19,'Control Sheet'!$G$9:$H$20,2) -> 30
A20: Apr | B20: 2016-04-12 | C20: Free River | F20: 99999.99999 | K20: Free River | N20: 99999.99999 | S20: 1.517494523 | T20: 0 | U20: 0 | V20: 0 | X20: 0 | Y20: =('NFC Well Pumping'!$L18+'NFC Well Pumping'!$L55+'NFC Well Pumping'!$L91)/1.9835 -> 0 | Z20: ='88CW264(B) Pumping'!$E18/1.9835+'88CW264(B) Pumping'!$E54/1.9835+'88CW264(B) Pumping'!E94/1.9835+'88CW264(B) Pumping'!E130/1.9835+'88CW264(B) Pumping'!E170/1.9835+'88CW264(B) Pumping'!E206/1.9835 -> 0.01157311677 | AA20: 1.517494523 | AB20: =('United No. 2 Well Pumping'!G19+'United No. 2 Well Pumping'!G55+'United No. 2 Well Pumping'!G91)/1.9835 -> 0 | AC20: =('United No. 2 Well Pumping'!F19+'United No. 2 Well Pumping'!F55+'United No. 2 Well Pumping'!F91)/1.9835 -> 0 | AD20: 0 | AF20: 0.01157311677 | AG20: =U20+AC20+'United Res'!AA182+'United Res'!AQ182+'Milliken Res'!I170 -> 0 | AH20: 100 | AI20: =-(IF($N20=99999.99999,0,VLOOKUP($B20,'NFC Well Dplns-URF'!B$7:$AB$306,27))/$RI20/1.9835) -> 0 | AJ20: 0 | AL20: =(VLOOKUP($B20,'ECCV 70R Pond Acrtns'!$B$7:$AI$1206,34)+VLOOKUP($B20,'2003 70R Pond Acrtns'!$B$7:$AI$1206,34)+VLOOKUP($B20,'ECCV 70R Canal Acrtns'!$B$7:$AI$1206,27)+VLOOKUP($B20,'2003 70R Canal Acrtns'!$B$7:$AI$1206,27))/$RI20/1.9835 -> 0 | AM20: 0 | AN20: =-(IF($N20=99999.99999,0,VLOOKUP($B20,'NFC Well Dplns-SDF'!$B$7:$Z$306,25)+VLOOKUP($B20,'NFC Well Dplns-URF'!B$7:$AB$306,20))/$RI20/1.9835) -> 0 | AO20: 0 | AP20: 0 | AR20: =IF(N20<99999.99999,-((AV20+AW20)*'Weldon Credit'!$Z$38+(INDEX('Weldon Credit'!$V$75:$AH$102,MATCH($B$2,'Weldon Credit'!$V$75:$V$102,0),MATCH(A20,'Weldon Credit'!$V$75:$AH$75,0))/RI20)/1.9835),0) -> 0 | AS20: =0.4*(INDEX('Riverside Pond Accrtns'!$B$6:$M$36,MATCH($B$2,'Riverside Pond Accrtns'!$A$6:$A$36,0),MATCH('ECCV Daily Replacement Summary'!A20,'Riverside Pond Accrtns'!$B$5:$M$5,0))/RI20)/1.9835 -> 1.238887488 | AT20: =(44/640)*(INDEX('Weldon Valley Accrtns (02CW377)'!$B$6:$M$30,MATCH($B$2,'Weldon Valley Accrtns (02CW377)'!$A$6:$A$30,0),MATCH(A20,'Weldon Valley Accrtns (02CW377)'!$B$5:$M$5,0))/RI20)/1.9835 -> 0.2508459373 | AU20: =(VLOOKUP($B20,'ECCV 70R Pond Acrtns'!$B$7:$AI$1206,25)+VLOOKUP($B20,'ECCV 70R Canal Acrtns'!$B$7:$AI$1206,20)+VLOOKUP($B20,'2003 70R Pond Acrtns'!$B$7:$AI$1206,25)+VLOOKUP($B20,'2003 70R Canal Acrtns'!$B$7:$AI$1206,20))/$RI20/1.9835 -> 0 | AV20: ='Joint Aug Station Deliveries'!G20 -> 0 | AW20: ='Joint Aug Station Deliveries'!J20 -> 0 | AX20: 0 | AY20: 0 | AZ20: =MIN(-($AR20+AY20)/(1-0.5/100*'Distances for Transit Losses'!$C$71),AS20-AS20*0.5/100*'Distances for Transit Losses'!$C$71) -> 0 | BA20: 0 | BB20: =MAX(0,MIN(-($AR20+AY20+AZ20+BA20),AU20-AU20*0.5/100*'Distances for Transit Losses'!$C$71)) -> 0 | BC20: =-((AZ20+BB20)*(0.5/100*'Distances for Transit Losses'!$C$71)) -> 0 | BD20: =IF(AND(JF20-JG20-FQ20-DL20>0,IW20="no"),MIN(-(AR20+AY20+AZ20+BA20+BB20+BC20)/(1-0.5/100*'Distances for Transit Losses'!$C$93),JF20-JG20-FQ20-DL20),0) -> 0 | BE20: =--BD20*0.5/100*'Distances for Transit Losses'!C$93 -> 0 | BF20: =IF(AND(HA20-HB20-IW20-FK20-KS20-DF20>0,EZ20="no"),MIN(-(AR20+SUM(AY20:BE20))/(1-0.5/100*'Distances for Transit Losses'!$C$99),HA20-HB20-IW20-FK20-KS20-DF20),0) -> 0 | BG20: =--BF20*0.5/100*'Distances for Transit Losses'!$C$95 -> 0 | BH20: 0 | BJ20: no | BK20: no | BL20: 0 | BM20: 0 | BN20: 0 | BP20: =IF($BK20="No",MIN(-CW20,AS20-AZ20/(1-0.5/100*'Distances for Transit Losses'!$C$71)),0) -> 0 | BQ20: =IF($BK20="No",MIN(-CW20+BP20,AU20-BB20/(1-0.5/100*'Distances for Transit Losses'!$C$71)),0) -> 0 | BR20: 0 | BS20: 0 | BT20: 0 | BU20: 1.489733426 | BV20: 1.489733426 | BW20: =-(IF($N20=99999.99999,0,VLOOKUP($B20,'NFC Well Dplns-SDF'!$B$7:$Z$306,16)+VLOOKUP($B20,'NFC Well Dplns-URF'!$B$7:$AB$306,13))/$RI20/1.9835) -> 0 | BX20: =-(IF($N20>=99999,0,'88CW264(B) Pumping'!$E18/1.9835)+IF($N20>=99999,0,'88CW264(B) Pumping'!$E54/1.9835)+IF($N20>=99999,0,'88CW264(B) Pumping'!$E94/1.9835)+IF($N20>=99999,0,'88CW264(B) Pumping'!$E130/1.9835)+IF($N20>=51134.50919,0,'88CW264(B) Pumping'!$E170/1.9835)+IF($N20>=53406,0,'88CW264(B) Pumping'!$E206/1.9835)) -> 0 | BY20: 0 | BZ20: 0 | CA20: 0 | CC20: =-(IF($N20=99999.99999,0,VLOOKUP($B20,'United No. 2 Dplns'!$B$7:$X$676,13)/1.9835)) -> 0 | CD20: =CC20+(-(INDEX('Pre 1995 Net Accretions'!$B$6:$M$105,MATCH($B$2,'Pre 1995 Net Accretions'!$A$6:$A$105,0),MATCH($A20,'Pre 1995 Net Accretions'!$B$5:$M$5,0))/$RI20/1.9835)) -> 0.02852709711 | CE20: =-(IF(N20<99999.99999,(INDEX('70 Ranch RF Obligation'!$B$6:$M$30,MATCH($B$2,'70 Ranch RF Obligation'!$A$6:$A$30,0),MATCH('ECCV Daily Replacement Summary'!A20,'70 Ranch RF Obligation'!$B$5:$M$5,0))/RI20)/1.9835,0))-CH20*(1-'L. Latham Credit'!$E$37) -> 0 | CF20: 0 | CG20: =(VLOOKUP($B20,'ECCV 70R Pond Acrtns'!$B$7:$AI$1206,16)+VLOOKUP($B20,'ECCV 70R Canal Acrtns'!$B$7:$AI$1206,13)+VLOOKUP($B20,'2003 70R Pond Acrtns'!$B$7:$AI$1206,16)+VLOOKUP($B20,'2003 70R Canal Acrtns'!$B$7:$AI$1206,13))/$RI20/1.9835 -> 0 | CH20: 0 | CI20: 0 | CJ20: 0 | CK20: 0 | CL20: 0 | CM20: 0 | CN20: 0 | CP20: 0.02852709711 | CQ20: 0 | CR20: 0 | CS20: =-CR20*0.5/100*'Distances for Transit Losses'!$C$46 -> 0 | CT20: 0 | CU20: 0 | CV20: 0 | CW20: 0 | CX20: 0 | CY20: 0 | CZ20: 0 | DA20: =('NFC Well Pumping'!I18+'NFC Well Pumping'!I55+'NFC Well Pumping'!I91)/1.9835 -> 0 | DB20: =IF(AND(IT20-IU20-FG20>0,IO20="no"),MIN(-SUM(CW20:DA20)/(1-0.5/100*'Distances for Transit Losses'!$C$97),IT20-IU20-FG20),0) -> 0 | DC20: =-DB20*0.5/100*'Distances for Transit Losses'!C$97 -> 0 | DD20: 0 | DE20: =--DD20*0.5/100*'Distances for Transit Losses'!$C$121 -> 0 | DF20: =IF(AND(HA20-HB20-IW20-FK20-KS20>0,EZ20="no"),MIN(-SUM(CW20:DE20)/(1-0.5/100*'Distances for Transit Losses'!$C$99),HA20-HB20-IW20-FK20-KS20),0) -> 0 | DG20: =--DF20*0.5/100*'Distances for Transit Losses'!$C$99 -> 0 | DH20: 0.02852709711 | DI20: 0 | DJ20: ='Joint Aug Station Deliveries'!M20 -> 0 | DK20: =-(DJ20*0.5/100*'Distances for Transit Losses'!$C$206) -> 0 | DL20: 0 | DN20: no | DP20: 0 | DQ20: 0 | DR20: =-(DQ20*0.5/100*'Distances for Transit Losses'!$C$208) -> 0 | DS20: 0 | DT20: =-0.25*(INDEX('GIC Credit'!$B$77:$M$104,MATCH($B$2,'GIC Credit'!$A$77:$A$104,0),MATCH($A20,'GIC Credit'!$B$77:$M$77,0))/$RI20/1.9835+ET20*'GIC Credit'!$Z$35+EU20*'GIC Credit'!$AO$35) -> -0.0001915 | DU20: -0.0001915 | DV20: 0 | DW20: ='Joint Aug Station Deliveries'!BD20 -> 0 | DX20: =-(DW20*0.5/100*'Distances for Transit Losses'!$C$234) -> 0 | DY20: ='Joint Aug Station Deliveries'!BE20 -> 0 | DZ20: =-(DY20*0.5/100*'Distances for Transit Losses'!$C$236) -> 0 | EA20: 0 | EB20: =-(EA20*0.5/100*'Distances for Transit Losses'!$C$228) -> 0 | EC20: 0 | EE20: no | EF20: -0.0001915 | EG20: =-(IF($N20<99999.99999,(INDEX('New Cache Credit'!$W$74:$AH$99,MATCH($B$2,'New Cache Credit'!$V$74:$V$99,0),MATCH($A20,'New Cache Credit'!$W$74:$AH$74,0))/$RI20)/1.9835,0))-DI20-DS20 -> 0 | EH20: =-0.39*(INDEX('GIC Credit'!$B$77:$M$104,MATCH($B$2,'GIC Credit'!$A$77:$A$104,0),MATCH($A20,'GIC Credit'!$B$77:$M$77,0))/$RI20/1.9835+ET20*'GIC Credit'!$Z$35+EU20*'GIC Credit'!$AO$35) -> -0.00029874 | EI20: 0 | EJ20: =-(EI20*0.5/100*('Distances for Transit Losses'!$C$210+'Distances for Transit Losses'!$C$216)) -> 0 | EL20: =IF(EK20="yes",'Joint Aug Station Deliveries'!T20,0) -> 0 | EM20: =-(EL20*0.5/100*('Distances for Transit Losses'!$C$212+'Distances for Transit Losses'!$C$214+'Distances for Transit Losses'!$C$216)) -> 0 | EN20: =IF(EK20="Yes",'Joint Aug Station Deliveries'!W20,0) -> 0 | EO20: =-(EN20*0.5/100*('Distances for Transit Losses'!$C$214+'Distances for Transit Losses'!$C$216)) -> 0 | EP20: ='Joint Aug Station Deliveries'!BF20 -> 0 | EQ20: =-(EP20*0.5/100*'Distances for Transit Losses'!$C$220) -> 0 | ER20: -0.00049024 | ES20: 0 | ET20: ='Joint Aug Station Deliveries'!BH20 -> 0 | EU20: ='Joint Aug Station Deliveries'!BI20 -> 0 | EV20: =-(IF(N20<99999.99999,INDEX('Hist RF to SPR'!$AF$6:$AQ$30,MATCH($B$2,'Hist RF to SPR'!$AE$6:$AE$30,0),MATCH($A20,'Hist RF to SPR'!$AF$5:$AQ$5,0))/RI20/1.9835,0)) -> 0 | EW20: =-0.36*(INDEX('GIC Credit'!$B$77:$M$104,MATCH($B$2,'GIC Credit'!$A$77:$A$104,0),MATCH($A20,'GIC Credit'!$B$77:$M$77,0))/$RI20/1.9835+ET20*'GIC Credit'!$Z$35+EU20*'GIC Credit'!$AO$35) -> -0.00027576 | EX20: -0.00049024 | EY20: -0.000766 | EZ20: no | FA20: 0 | FB20: 0 | FC20: 0 | FE20: 0.000766 | FF20: 0 | FG20: =IF(AND(IT20-IU20-GW20>0,IO20="no"),MIN(-(EY20+FE20+FF20)/(1-0.5/100*'Distances for Transit Losses'!$C$101),IT20-IU20-GW20),0) -> 0 | FH20: =-FG20*0.5/100*'Distances for Transit Losses'!$C$101 -> 0 | FI20: 0 | FJ20: =-FI20*0.5/100*'Distances for Transit Losses'!$C$119 -> 0 | FK20: =IF(AND(HA20-HB20-IW20>0,GM20="no"),MIN(-(EY20+FE20+FF20+FG20+FH20+FI20+FJ20)/(1-0.5/100*'Distances for Transit Losses'!$C$103),HA20-HB20-IW20),0) -> 0 | FL20: =-FK20*0.5/100*'Distances for Transit Losses'!$C$109 -> 0 | FM20: 0 | FO20: 0 | FQ20: =IF(AND(FP19="no",(SUM('Joint Aug Station Deliveries'!$AD$9:'Joint Aug Station Deliveries'!$AD19)+'Joint Aug Station Deliveries'!$AD20)*1.9835>'New Cache Credit'!$BY$35,(SUM('Joint Aug Station Deliveries'!$AD$9:'Joint Aug Station Deliveries'!$AD19)+'Joint Aug Station Deliveries'!$AD20)*1.9835>'New Cache Credit'!$CH$35),0,'Joint Aug Station Deliveries'!V20) -> 0 | FR20: =-(FQ20*0.5/100*'Distances for Transit Losses'!$C$202) -> 0 | FT20: =IF(AND(FS19="no",(SUM('Joint Aug Station Deliveries'!$AD$9:'Joint Aug Station Deliveries'!$AD19)+'Joint Aug Station Deliveries'!$AD20)*1.9835>'New Cache Credit'!$BY$35,(SUM('Joint Aug Station Deliveries'!$AD$9:'Joint Aug Station Deliveries'!$AD19)+'Joint Aug Station Deliveries'!$AD20)*1.9835>'New Cache Credit'!$CH$35),0,'Joint Aug Station Deliveries'!Y20) -> 0 | FU20: =-(FT20*0.5/100*'Distances for Transit Losses'!$C$194) -> 0 | FV20: =IF(AND(FS19="no",(SUM('Joint Aug Station Deliveries'!$AD$9:'Joint Aug Station Deliveries'!$AD19)+'Joint Aug Station Deliveries'!$AD20)*1.9835>'New Cache Credit'!$BY$35,(SUM('Joint Aug Station Deliveries'!$AD$9:'Joint Aug Station Deliveries'!$AD19)+'Joint Aug Station Deliveries'!$AD20)*1.9835>'New Cache Credit'!$CH$35),0,'Joint Aug Station Deliveries'!AB20) -> 0 | FW20: =-(FV20*0.5/100*'Distances for Transit Losses'!$C$200) -> 0 | FX20: 0 | FY20: 0 | FZ20: 0.02776109711 | GA20: 1.489733426 | GB20: =-(IF(N20<99999.99999,INDEX('Hist RF to SPR'!$Q$6:$AB$30,MATCH($B$2,'Hist RF to SPR'!$P$6:$P$30,0),MATCH($A20,'Hist RF to SPR'!$Q$5:$AB$5,0))/RI20/1.9835,0)) -> 0 | GC20: =-(IF(OR($N20<99999.99999,E20="Lower Latham",I20="Lower Latham",E20="Highland",I20="Highland",E20="Plum",I20="Plum"),(INDEX('FIDCO Credit'!$Y$44:$AJ$70,MATCH($B$2,'FIDCO Credit'!$X$44:$X$70,0),MATCH($A20,'FIDCO Credit'!$Y$43:$AJ$43,0))/$RI20)/1.9835,0)) -> 0 | GD20: =-(IF(OR($N20<99999.99999,E20="Lower Latham",I20="Lower Latham",E20="Highland",I20="Highland",E20="Plum",I20="Plum"),(INDEX('Western Credit'!$W$76:$AH$102,MATCH($B$2,'Western Credit'!$V$76:$V$102,0),MATCH($A20,'Western Credit'!$W$75:$AH$75,0))/$RI20)/1.9835,0)) -> 0 | GE20: 0 | GF20: 0 | GG20: 0 | GH20: =IF(AND(GN20="no",GO20="no"),MIN(-(GC20-GF20-GG20)/(1-0.5/100*'Distances for Transit Losses'!$C$89),IL20),0) -> 0 | GI20: =-GH20*0.5/100*'Distances for Transit Losses'!$C$89 -> 0 | GJ20: =VLOOKUP($B20,'ECCV Haren Pond S.P. Acrtns'!$B$7:$G$306,6)/$RI20/1.9835 -> 1.36770332 | GK20: 0 | GL20: 0 | GM20: no | GN20: no | GO20: no | GP20: 0 | GQ20: 0 | GR20: 0 | GT20: 0 | GU20: 0 | GV20: 0 | GW20: =IF(AND(IT20-IU20>0,IO20="no"),MIN(-GV20/(1-0.5/100*'Distances for Transit Losses'!$C$105),IT20-IU20),0) -> 0 | GX20: =-GW20*0.5/100*'Distances for Transit Losses'!$C$105 -> 0 | GY20: =IF(AND(IX20+IY20-IZ20-JK20>0,IO20="no"),MIN((-GV20-(GW20+GX20))/(1-0.5/100*'Distances for Transit Losses'!$C$107),IX20+IY20-IZ20-JK20),0) -> 0 | GZ20: =-GY20*0.5/100*'Distances for Transit Losses'!$C$107 -> 0 | HA20: 0 | HB20: =IF(HA20>0,MIN(-(GV20+GW20+GX20+GY20+GZ20)/(1-0.5/100*'Distances for Transit Losses'!$C$109),HA20),0) -> 0 | HC20: =-HB20*0.5/100*'Distances for Transit Losses'!$C$109 -> 0 | HD20: 0 | HF20: 0 | HG20: ='Joint Aug Station Deliveries'!AQ20 -> 0 | HH20: =HG20*'Western Credit'!$Z$38 -> 0 | HI20: ='Joint Aug Station Deliveries'!AH20 -> 0 | HJ20: =IF(AND(HI20>0,SUM($HI$9:HI20,$HK$9:HK20,$IL$9:IL20)*1.9835<OFFSET('FIDCO Credit'!$X$35,0,MATCH($A20,'FIDCO Credit'!$Y$5:$AJ$5,0))),HI20-GF20,0) -> 0 | HK20: ='Joint Aug Station Deliveries'!AK20 -> 0 | HL20: =IF(AND(HK20>0,SUM($HI$9:HI20,$HK$9:HK20,$IL$9:IL20)*1.9835<OFFSET('FIDCO Credit'!$X$35,0,MATCH($A20,'FIDCO Credit'!$Y$5:$AJ$5,0))),HK20-GG20,0) -> 0 | HM20: =MAX(0,(KN20+KO20))/(1-0.5/100*'Distances for Transit Losses'!$C$77) -> 0 | HN20: =MAX(0,(KP20+KQ20)/(1-0.5/100*'Distances for Transit Losses'!$C$73)) -> 0 | HO20: 0 | HP20: =-HO20*0.5/100*'Distances for Transit Losses'!$C$79 -> 0 | HQ20: 0 | HR20: 0 | HS20: =-HR20*0.5/100*'Distances for Transit Losses'!$C$34 -> 0 | HT20: 0 | HU20: 0 | HV20: 0 | HW20: 0 | HX20: 0 | HY20: 0 | HZ20: 1.489733426 | IA20: 0 | IB20: 0.02776109711 | IC20: 0 | ID20: 0 | IE20: 0 | IF20: =-IE20*0.5/100*'Distances for Transit Losses'!$C$117 -> 0 | IG20: 0 | IH20: =GJ20-GK20-GL20+HH20+HJ20-SUM(HM20:HQ20)-HU20-HV20-HX20-HY20-(CA20/(1-0.5/100*'Distances for Transit Losses'!$C$99)) -> 1.36770332 | II20: 0.02776109711 | IJ20: 1.489733426 | IK20: =-(IF(F20<99999.99999,INDEX('Hist RF to SPR'!$B$6:$M$30,MATCH($B$2,'Hist RF to SPR'!$A$6:$A$30,0),MATCH($A20,'Hist RF to SPR'!$B$5:$M$5,0))/RI20/1.9835,0)) -> 0 | IL20: ='Joint Aug Station Deliveries'!AN20 -> 1 | IM20: =IF(AND(IL20>0,SUM($HI$9:HI20,$HK$9:HK20,$IL$9:IL20)*1.9835<OFFSET('FIDCO Credit'!$X$35,0,MATCH($A20,'FIDCO Credit'!$Y$5:$AJ$5,0))),IL20-GH20,0) -> 0 | IN20: 0 | IO20: no | IP20: 0 | IQ20: 0 | IR20: 0 | IS20: 0 | IT20: 0 | IU20: =IF(IT20>0,MIN(-IS20/(1-0.5/100*'Distances for Transit Losses'!$C$111),IT20),0) -> 0 | IV20: =-IU20*0.5/100*'Distances for Transit Losses'!$C$111 -> 0 | IW20: 0 | IX20: 0 | IY20: =-IX20*0.5/100*'Distances for Transit Losses'!$C$66 -> 0 | IZ20: =IF((IX20+IY20)>0,MIN((-IS20-(IU20-IV20)-IW20)/(1-0.5/100*'Distances for Transit Losses'!$C$113),(IX20+IY20)),0) -> 0 | JA20: =-IZ20*0.5/100*'Distances for Transit Losses'!$C$113 -> 0 | JB20: 0 | JD20: 0 | JE20: 1.489733426 | JF20: 0 | JG20: 0.02776109711 | JH20: 0 | JI20: 0 | JJ20: 0 | JK20: 0 | JL20: =-JK20*0.5/100*'Distances for Transit Losses'!$C$115 -> 0 | JM20: 0 | JN20: 0.02776109711 | JO20: 1.489733426 | JP20: =-(IF(N20<99999.99999,(VLOOKUP(B20,'ECCV Upper Dpln'!$B$7:$BD$306,55))/RI20/1.9835,0)) -> 0 | JQ20: =-(IF(N20<99999.99999,INDEX('Hist RF abv Milton'!$B$6:$M$30,MATCH($B$2,'Hist RF abv Milton'!$A$6:$A$30,0),MATCH($A20,'Hist RF abv Milton'!$B$5:$M$5,0))/RI20/1.9835,0)) -> 0 | JR20: 0 | JS20: =(VLOOKUP($B20,'ECCV Beebe Pond Acrtns'!$B$7:$BI$1206,41)+VLOOKUP($B20,'ECCV Canal Acrtns'!$B$7:$AL$1206,22)+VLOOKUP($B20,'2003 Beebe Pond Acrtns'!$B$7:$BI$1206,41)+VLOOKUP($B20,'2003 Canal Acrtns'!$B$7:$AL$1206,22))/$RI20/1.9835 -> 1.000835946 | JT20: 0 | JU20: 0 | JV20: 0 | JW20: 0 | JX20: 0 | JY20: no | JZ20: 0 | KA20: 0 | KB20: 0 | KC20: 0 | KD20: 0 | KE20: 0 | KF20: 0 | KG20: 0 | KH20: 0 | KI20: 0 | KJ20: =-(KI20*0.5/100*'Distances for Transit Losses'!$C$6) -> 0 | KK20: =-KH20 -> 0 | KL20: 0 | KM20: 0 | KN20: =IF(AND(E20<>"Lower Latham",I20<>"Lower Latham"),MIN(-(KH20+KK20),HJ20-HJ20*0.5/100*'Distances for Transit Losses'!$C$77),0) -> 0 | KO20: =IF(AND(E20<>"Lower Latham",I20<>"Lower Latham"),MAX(0,MIN(-(KG20+KI20+KJ20+KM20),HJ20-HJ20*0.5/100*'Distances for Transit Losses'!$C$77-KN20/(1-0.5/100*'Distances for Transit Losses'!$C$77))),0) -> 0 | KP20: =MIN(-(KH20+KN20),HH20-HH20*0.5/100*'Distances for Transit Losses'!$C$73) -> 0 | KQ20: =MAX(0,MIN(-(KG20+KI20+KJ20+KO20),HH20-HH20*0.5/100*'Distances for Transit Losses'!$C$73-KP20/(1-0.5/100*'Distances for Transit Losses'!$C$73))) -> 0 | KR20: =IF(EZ20="no",MIN(-(MIN(0,KG20+KI20+KJ20+KO20+KQ20)),(GJ20-GK20)-(GJ20-GK20)*0.5/100*'Distances for Transit Losses'!$C$73),0) -> 0 | KS20: =MAX(0,IF(AND(HA20-HB20-IW20-FK20>0,EZ20="no"),MIN(-(KG20+KI20+KJ20+KM20+KO20+KQ20+KR20)/(1-0.5/100*'Distances for Transit Losses'!$C$83),HA20-HB20-IW20-FK20),0)) -> 0 | KT20: =-KS20*0.5/100*'Distances for Transit Losses'!$C$83 -> 0 | KU20: 0 | KW20: 0 | KX20: 1.000835946 | KY20: 0 | KZ20: 0.02852709711 | LA20: 1.489733426 | LB20: =-(IF(N20<99999.99999,INDEX('Hist RF blw Milton'!$B$6:$M$30,MATCH($B$2,'Hist RF blw Milton'!$A$6:$A$30,0),MATCH($A20,'Hist RF blw Milton'!$B$5:$M$5,0))/RI20/1.9835,0)) -> 0 | LC20: no | LD20: 0 | LE20: 0 | LF20: 0 | LG20: 0 | LH20: 0 | LI20: 0 | LK20: 0.02852709711 | LL20: 1.489733426 | LM20: =-(IF(N20<99999.99999,INDEX('Hist RF to Box Elder'!$B$6:$M$30,MATCH($B$2,'Hist RF to Box Elder'!$A$6:$A$30,0),MATCH($A20,'Hist RF to Box Elder'!$B$5:$M$5,0))/RI20/1.9835,0)) -> 0 | LN20: =(VLOOKUP($B20,'ECCV Beebe Pond Acrtns'!$B$7:$BI$1206,54)+VLOOKUP($B20,'ECCV Canal Acrtns'!$B$7:$AL$1206,34)+VLOOKUP($B20,'2003 Beebe Pond Acrtns'!$B$7:$BI$1206,54)+VLOOKUP($B20,'2003 Canal Acrtns'!$B$7:$AL$1206,34)+VLOOKUP($B20,'84CW090 Beebe Pond Acrtns'!$B$7:$BI$1206,55)+VLOOKUP($B20,'84CW090 Canal Acrtns'!$B$7:$AL$1206,34))/$RI20/1.9835 -> 0.09630223027 | LO20: 0 | LP20: 0 | LQ20: 0 | LR20: 0 | LT20: -0.0009575 | LU20: 0 | LV20: 0 | LW20: 0 | LX20: 0 | LY20: 0 | LZ20: 0.000766 | MA20: 0 | MB20: 0 | MC20: 0 | MD20: 0.000766 | ME20: -0.0001915 | MF20: 1.000835946 | MG20: 0.02776109711 | MH20: 1.489733426 | MO20: 0 | MP20: 0 | MQ20: 0 | MS20: 0 | MT20: 0 | MU20: 0 | MV20: 0 | MW20: 0 | MX20: 0 | MY20: 0 | MZ20: 0 | NA20: 0 | NB20: 0 | NC20: 0 | ND20: 0 | NF20: 0 | NG20: 0 | NH20: 0 | NI20: 0 | NJ20: 0 | NK20: 0 | NL20: 0 | NM20: 0 | NN20: 0 | NO20: 0 | NP20: 0 | NR20: 1.517494523 | NS20: 0 | NT20: 0 | NU20: 0 | NV20: 0 | NW20: 0 | NX20: 0 | NY20: 0 | NZ20: 0 | OA20: 0 | OB20: 0 | OH20: 0 | OI20: 0 | OJ20: 0 | OK20: 0 | OL20: 0 | OM20: 0 | ON20: 0 | OO20: 0 | OP20: 0 | OR20: 0 | OS20: 0 | OT20: 0 | OU20: 0 | OV20: 0 | OW20: 0 | OX20: 0 | OY20: 0 | OZ20: 0 | PC20: 0 | PD20: 0 | PE20: 0 | PF20: 0 | PG20: 0 | PH20: 0 | PI20: 0 | PL20: 0 | PM20: 0 | PP20: 0 | PQ20: 0 | PR20: 0 | PU20: 0 | PV20: 0 | PW20: 0 | PX20: 0 | PY20: 0 | PZ20: 0 | QA20: 0 | QC20: 0 | QD20: 0 | QE20: 0 | QF20: 0 | QG20: 0 | QH20: 309.6 | QJ20: 1.000835946 | QK20: 0 | QL20: 0 | QM20: 0 | QN20: 0 | QO20: 0 | QP20: 0 | QQ20: 0 | QR20: 0 | QS20: 0 | QT20: 0 | QU20: 0 | QV20: 0 | QW20: 0 | QX20: 0 | QY20: 0 | QZ20: 0 | RA20: 0 | RB20: 0 | RC20: 0 | RD20: 1.000835946 | RF20: 0 | RG20: 0 | RI20: =VLOOKUP(A20,'Control Sheet'!$G$9:$H$20,2) -> 30
A21: Apr | B21: 2016-04-13 | C21: Free River | F21: 99999.99999 | K21: Free River | N21: 99999.99999 | S21: 1.517494523 | T21: 0 | U21: 0 | V21: 0 | X21: 0 | Y21: =('NFC Well Pumping'!$L19+'NFC Well Pumping'!$L56+'NFC Well Pumping'!$L92)/1.9835 -> 0 | Z21: ='88CW264(B) Pumping'!$E19/1.9835+'88CW264(B) Pumping'!$E55/1.9835+'88CW264(B) Pumping'!E95/1.9835+'88CW264(B) Pumping'!E131/1.9835+'88CW264(B) Pumping'!E171/1.9835+'88CW264(B) Pumping'!E207/1.9835 -> 0.01157311677 | AA21: 1.517494523 | AB21: =('United No. 2 Well Pumping'!G20+'United No. 2 Well Pumping'!G56+'United No. 2 Well Pumping'!G92)/1.9835 -> 0 | AC21: =('United No. 2 Well Pumping'!F20+'United No. 2 Well Pumping'!F56+'United No. 2 Well Pumping'!F92)/1.9835 -> 0 | AD21: 0 | AF21: 0.01157311677 | AG21: =U21+AC21+'United Res'!AA183+'United Res'!AQ183+'Milliken Res'!I171 -> 0 | AH21: 100 | AI21: =-(IF($N21=99999.99999,0,VLOOKUP($B21,'NFC Well Dplns-URF'!B$7:$AB$306,27))/$RI21/1.9835) -> 0 | AJ21: 0 | AL21: =(VLOOKUP($B21,'ECCV 70R Pond Acrtns'!$B$7:$AI$1206,34)+VLOOKUP($B21,'2003 70R Pond Acrtns'!$B$7:$AI$1206,34)+VLOOKUP($B21,'ECCV 70R Canal Acrtns'!$B$7:$AI$1206,27)+VLOOKUP($B21,'2003 70R Canal Acrtns'!$B$7:$AI$1206,27))/$RI21/1.9835 -> 0 | AM21: 0 | AN21: =-(IF($N21=99999.99999,0,VLOOKUP($B21,'NFC Well Dplns-SDF'!$B$7:$Z$306,25)+VLOOKUP($B21,'NFC Well Dplns-URF'!B$7:$AB$306,20))/$RI21/1.9835) -> 0 | AO21: 0 | AP21: 0 | AR21: =IF(N21<99999.99999,-((AV21+AW21)*'Weldon Credit'!$Z$38+(INDEX('Weldon Credit'!$V$75:$AH$102,MATCH($B$2,'Weldon Credit'!$V$75:$V$102,0),MATCH(A21,'Weldon Credit'!$V$75:$AH$75,0))/RI21)/1.9835),0) -> 0 | AS21: =0.4*(INDEX('Riverside Pond Accrtns'!$B$6:$M$36,MATCH($B$2,'Riverside Pond Accrtns'!$A$6:$A$36,0),MATCH('ECCV Daily Replacement Summary'!A21,'Riverside Pond Accrtns'!$B$5:$M$5,0))/RI21)/1.9835 -> 1.238887488 | AT21: =(44/640)*(INDEX('Weldon Valley Accrtns (02CW377)'!$B$6:$M$30,MATCH($B$2,'Weldon Valley Accrtns (02CW377)'!$A$6:$A$30,0),MATCH(A21,'Weldon Valley Accrtns (02CW377)'!$B$5:$M$5,0))/RI21)/1.9835 -> 0.2508459373 | AU21: =(VLOOKUP($B21,'ECCV 70R Pond Acrtns'!$B$7:$AI$1206,25)+VLOOKUP($B21,'ECCV 70R Canal Acrtns'!$B$7:$AI$1206,20)+VLOOKUP($B21,'2003 70R Pond Acrtns'!$B$7:$AI$1206,25)+VLOOKUP($B21,'2003 70R Canal Acrtns'!$B$7:$AI$1206,20))/$RI21/1.9835 -> 0 | AV21: ='Joint Aug Station Deliveries'!G21 -> 0 | AW21: ='Joint Aug Station Deliveries'!J21 -> 0 | AX21: 0 | AY21: 0 | AZ21: =MIN(-($AR21+AY21)/(1-0.5/100*'Distances for Transit Losses'!$C$71),AS21-AS21*0.5/100*'Distances for Transit Losses'!$C$71) -> 0 | BA21: 0 | BB21: =MAX(0,MIN(-($AR21+AY21+AZ21+BA21),AU21-AU21*0.5/100*'Distances for Transit Losses'!$C$71)) -> 0 | BC21: =-((AZ21+BB21)*(0.5/100*'Distances for Transit Losses'!$C$71)) -> 0 | BD21: =IF(AND(JF21-JG21-FQ21-DL21>0,IW21="no"),MIN(-(AR21+AY21+AZ21+BA21+BB21+BC21)/(1-0.5/100*'Distances for Transit Losses'!$C$93),JF21-JG21-FQ21-DL21),0) -> 0 | BE21: =--BD21*0.5/100*'Distances for Transit Losses'!C$93 -> 0 | BF21: =IF(AND(HA21-HB21-IW21-FK21-KS21-DF21>0,EZ21="no"),MIN(-(AR21+SUM(AY21:BE21))/(1-0.5/100*'Distances for Transit Losses'!$C$99),HA21-HB21-IW21-FK21-KS21-DF21),0) -> 0 | BG21: =--BF21*0.5/100*'Distances for Transit Losses'!$C$95 -> 0 | BH21: 0 | BJ21: no | BK21: no | BL21: 0 | BM21: 0 | BN21: 0 | BP21: =IF($BK21="No",MIN(-CW21,AS21-AZ21/(1-0.5/100*'Distances for Transit Losses'!$C$71)),0) -> 0 | BQ21: =IF($BK21="No",MIN(-CW21+BP21,AU21-BB21/(1-0.5/100*'Distances for Transit Losses'!$C$71)),0) -> 0 | BR21: 0 | BS21: 0 | BT21: 0 | BU21: 1.489733426 | BV21: 1.489733426 | BW21: =-(IF($N21=99999.99999,0,VLOOKUP($B21,'NFC Well Dplns-SDF'!$B$7:$Z$306,16)+VLOOKUP($B21,'NFC Well Dplns-URF'!$B$7:$AB$306,13))/$RI21/1.9835) -> 0 | BX21: =-(IF($N21>=99999,0,'88CW264(B) Pumping'!$E19/1.9835)+IF($N21>=99999,0,'88CW264(B) Pumping'!$E55/1.9835)+IF($N21>=99999,0,'88CW264(B) Pumping'!$E95/1.9835)+IF($N21>=99999,0,'88CW264(B) Pumping'!$E131/1.9835)+IF($N21>=51134.50919,0,'88CW264(B) Pumping'!$E171/1.9835)+IF($N21>=53406,0,'88CW264(B) Pumping'!$E207/1.9835)) -> 0 | BY21: 0 | BZ21: 0 | CA21: 0 | CC21: =-(IF($N21=99999.99999,0,VLOOKUP($B21,'United No. 2 Dplns'!$B$7:$X$676,13)/1.9835)) -> 0 | CD21: =CC21+(-(INDEX('Pre 1995 Net Accretions'!$B$6:$M$105,MATCH($B$2,'Pre 1995 Net Accretions'!$A$6:$A$105,0),MATCH($A21,'Pre 1995 Net Accretions'!$B$5:$M$5,0))/$RI21/1.9835)) -> 0.02852709711 | CE21: =-(IF(N21<99999.99999,(INDEX('70 Ranch RF Obligation'!$B$6:$M$30,MATCH($B$2,'70 Ranch RF Obligation'!$A$6:$A$30,0),MATCH('ECCV Daily Replacement Summary'!A21,'70 Ranch RF Obligation'!$B$5:$M$5,0))/RI21)/1.9835,0))-CH21*(1-'L. Latham Credit'!$E$37) -> 0 | CF21: 0 | CG21: =(VLOOKUP($B21,'ECCV 70R Pond Acrtns'!$B$7:$AI$1206,16)+VLOOKUP($B21,'ECCV 70R Canal Acrtns'!$B$7:$AI$1206,13)+VLOOKUP($B21,'2003 70R Pond Acrtns'!$B$7:$AI$1206,16)+VLOOKUP($B21,'2003 70R Canal Acrtns'!$B$7:$AI$1206,13))/$RI21/1.9835 -> 0 | CH21: 0 | CI21: 0 | CJ21: 0 | CK21: 0 | CL21: 0 | CM21: 0 | CN21: 0 | CP21: 0.02852709711 | CQ21: 0 | CR21: 0 | CS21: =-CR21*0.5/100*'Distances for Transit Losses'!$C$46 -> 0 | CT21: 0 | CU21: 0 | CV21: 0 | CW21: 0 | CX21: 0 | CY21: 0 | CZ21: 0 | DA21: =('NFC Well Pumping'!I19+'NFC Well Pumping'!I56+'NFC Well Pumping'!I92)/1.9835 -> 0 | DB21: =IF(AND(IT21-IU21-FG21>0,IO21="no"),MIN(-SUM(CW21:DA21)/(1-0.5/100*'Distances for Transit Losses'!$C$97),IT21-IU21-FG21),0) -> 0 | DC21: =-DB21*0.5/100*'Distances for Transit Losses'!C$97 -> 0 | DD21: 0 | DE21: =--DD21*0.5/100*'Distances for Transit Losses'!$C$121 -> 0 | DF21: =IF(AND(HA21-HB21-IW21-FK21-KS21>0,EZ21="no"),MIN(-SUM(CW21:DE21)/(1-0.5/100*'Distances for Transit Losses'!$C$99),HA21-HB21-IW21-FK21-KS21),0) -> 0 | DG21: =--DF21*0.5/100*'Distances for Transit Losses'!$C$99 -> 0 | DH21: 0.02852709711 | DI21: 0 | DJ21: ='Joint Aug Station Deliveries'!M21 -> 0 | DK21: =-(DJ21*0.5/100*'Distances for Transit Losses'!$C$206) -> 0 | DL21: 0 | DN21: no | DP21: 0 | DQ21: 0 | DR21: =-(DQ21*0.5/100*'Distances for Transit Losses'!$C$208) -> 0 | DS21: 0 | DT21: =-0.25*(INDEX('GIC Credit'!$B$77:$M$104,MATCH($B$2,'GIC Credit'!$A$77:$A$104,0),MATCH($A21,'GIC Credit'!$B$77:$M$77,0))/$RI21/1.9835+ET21*'GIC Credit'!$Z$35+EU21*'GIC Credit'!$AO$35) -> -0.0001915 | DU21: -0.0001915 | DV21: 0 | DW21: ='Joint Aug Station Deliveries'!BD21 -> 0 | DX21: =-(DW21*0.5/100*'Distances for Transit Losses'!$C$234) -> 0 | DY21: ='Joint Aug Station Deliveries'!BE21 -> 0 | DZ21: =-(DY21*0.5/100*'Distances for Transit Losses'!$C$236) -> 0 | EA21: 0 | EB21: =-(EA21*0.5/100*'Distances for Transit Losses'!$C$228) -> 0 | EC21: 0 | EE21: no | EF21: -0.0001915 | EG21: =-(IF($N21<99999.99999,(INDEX('New Cache Credit'!$W$74:$AH$99,MATCH($B$2,'New Cache Credit'!$V$74:$V$99,0),MATCH($A21,'New Cache Credit'!$W$74:$AH$74,0))/$RI21)/1.9835,0))-DI21-DS21 -> 0 | EH21: =-0.39*(INDEX('GIC Credit'!$B$77:$M$104,MATCH($B$2,'GIC Credit'!$A$77:$A$104,0),MATCH($A21,'GIC Credit'!$B$77:$M$77,0))/$RI21/1.9835+ET21*'GIC Credit'!$Z$35+EU21*'GIC Credit'!$AO$35) -> -0.00029874 | EI21: 0 | EJ21: =-(EI21*0.5/100*('Distances for Transit Losses'!$C$210+'Distances for Transit Losses'!$C$216)) -> 0 | EL21: =IF(EK21="yes",'Joint Aug Station Deliveries'!T21,0) -> 0 | EM21: =-(EL21*0.5/100*('Distances for Transit Losses'!$C$212+'Distances for Transit Losses'!$C$214+'Distances for Transit Losses'!$C$216)) -> 0 | EN21: =IF(EK21="Yes",'Joint Aug Station Deliveries'!W21,0) -> 0 | EO21: =-(EN21*0.5/100*('Distances for Transit Losses'!$C$214+'Distances for Transit Losses'!$C$216)) -> 0 | EP21: ='Joint Aug Station Deliveries'!BF21 -> 0 | EQ21: =-(EP21*0.5/100*'Distances for Transit Losses'!$C$220) -> 0 | ER21: -0.00049024 | ES21: 0 | ET21: ='Joint Aug Station Deliveries'!BH21 -> 0 | EU21: ='Joint Aug Station Deliveries'!BI21 -> 0 | EV21: =-(IF(N21<99999.99999,INDEX('Hist RF to SPR'!$AF$6:$AQ$30,MATCH($B$2,'Hist RF to SPR'!$AE$6:$AE$30,0),MATCH($A21,'Hist RF to SPR'!$AF$5:$AQ$5,0))/RI21/1.9835,0)) -> 0 | EW21: =-0.36*(INDEX('GIC Credit'!$B$77:$M$104,MATCH($B$2,'GIC Credit'!$A$77:$A$104,0),MATCH($A21,'GIC Credit'!$B$77:$M$77,0))/$RI21/1.9835+ET21*'GIC Credit'!$Z$35+EU21*'GIC Credit'!$AO$35) -> -0.00027576 | EX21: -0.00049024 | EY21: -0.000766 | EZ21: no | FA21: 0 | FB21: 0 | FC21: 0 | FE21: 0.000766 | FF21: 0 | FG21: =IF(AND(IT21-IU21-GW21>0,IO21="no"),MIN(-(EY21+FE21+FF21)/(1-0.5/100*'Distances for Transit Losses'!$C$101),IT21-IU21-GW21),0) -> 0 | FH21: =-FG21*0.5/100*'Distances for Transit Losses'!$C$101 -> 0 | FI21: 0 | FJ21: =-FI21*0.5/100*'Distances for Transit Losses'!$C$119 -> 0 | FK21: =IF(AND(HA21-HB21-IW21>0,GM21="no"),MIN(-(EY21+FE21+FF21+FG21+FH21+FI21+FJ21)/(1-0.5/100*'Distances for Transit Losses'!$C$103),HA21-HB21-IW21),0) -> 0 | FL21: =-FK21*0.5/100*'Distances for Transit Losses'!$C$109 -> 0 | FM21: 0 | FO21: 0 | FQ21: =IF(AND(FP20="no",(SUM('Joint Aug Station Deliveries'!$AD$9:'Joint Aug Station Deliveries'!$AD20)+'Joint Aug Station Deliveries'!$AD21)*1.9835>'New Cache Credit'!$BY$35,(SUM('Joint Aug Station Deliveries'!$AD$9:'Joint Aug Station Deliveries'!$AD20)+'Joint Aug Station Deliveries'!$AD21)*1.9835>'New Cache Credit'!$CH$35),0,'Joint Aug Station Deliveries'!V21) -> 0 | FR21: =-(FQ21*0.5/100*'Distances for Transit Losses'!$C$202) -> 0 | FT21: =IF(AND(FS20="no",(SUM('Joint Aug Station Deliveries'!$AD$9:'Joint Aug Station Deliveries'!$AD20)+'Joint Aug Station Deliveries'!$AD21)*1.9835>'New Cache Credit'!$BY$35,(SUM('Joint Aug Station Deliveries'!$AD$9:'Joint Aug Station Deliveries'!$AD20)+'Joint Aug Station Deliveries'!$AD21)*1.9835>'New Cache Credit'!$CH$35),0,'Joint Aug Station Deliveries'!Y21) -> 0 | FU21: =-(FT21*0.5/100*'Distances for Transit Losses'!$C$194) -> 0 | FV21: =IF(AND(FS20="no",(SUM('Joint Aug Station Deliveries'!$AD$9:'Joint Aug Station Deliveries'!$AD20)+'Joint Aug Station Deliveries'!$AD21)*1.9835>'New Cache Credit'!$BY$35,(SUM('Joint Aug Station Deliveries'!$AD$9:'Joint Aug Station Deliveries'!$AD20)+'Joint Aug Station Deliveries'!$AD21)*1.9835>'New Cache Credit'!$CH$35),0,'Joint Aug Station Deliveries'!AB21) -> 0 | FW21: =-(FV21*0.5/100*'Distances for Transit Losses'!$C$200) -> 0 | FX21: 0 | FY21: 0 | FZ21: 0.02776109711 | GA21: 1.489733426 | GB21: =-(IF(N21<99999.99999,INDEX('Hist RF to SPR'!$Q$6:$AB$30,MATCH($B$2,'Hist RF to SPR'!$P$6:$P$30,0),MATCH($A21,'Hist RF to SPR'!$Q$5:$AB$5,0))/RI21/1.9835,0)) -> 0 | GC21: =-(IF(OR($N21<99999.99999,E21="Lower Latham",I21="Lower Latham",E21="Highland",I21="Highland",E21="Plum",I21="Plum"),(INDEX('FIDCO Credit'!$Y$44:$AJ$70,MATCH($B$2,'FIDCO Credit'!$X$44:$X$70,0),MATCH($A21,'FIDCO Credit'!$Y$43:$AJ$43,0))/$RI21)/1.9835,0)) -> 0 | GD21: =-(IF(OR($N21<99999.99999,E21="Lower Latham",I21="Lower Latham",E21="Highland",I21="Highland",E21="Plum",I21="Plum"),(INDEX('Western Credit'!$W$76:$AH$102,MATCH($B$2,'Western Credit'!$V$76:$V$102,0),MATCH($A21,'Western Credit'!$W$75:$AH$75,0))/$RI21)/1.9835,0)) -> 0 | GE21: 0 | GF21: 0 | GG21: 0 | GH21: =IF(AND(GN21="no",GO21="no"),MIN(-(GC21-GF21-GG21)/(1-0.5/100*'Distances for Transit Losses'!$C$89),IL21),0) -> 0 | GI21: =-GH21*0.5/100*'Distances for Transit Losses'!$C$89 -> 0 | GJ21: =VLOOKUP($B21,'ECCV Haren Pond S.P. Acrtns'!$B$7:$G$306,6)/$RI21/1.9835 -> 1.36770332 | GK21: 0 | GL21: 0 | GM21: no | GN21: no | GO21: no | GP21: 0 | GQ21: 0 | GR21: 0 | GT21: 0 | GU21: 0 | GV21: 0 | GW21: =IF(AND(IT21-IU21>0,IO21="no"),MIN(-GV21/(1-0.5/100*'Distances for Transit Losses'!$C$105),IT21-IU21),0) -> 0 | GX21: =-GW21*0.5/100*'Distances for Transit Losses'!$C$105 -> 0 | GY21: =IF(AND(IX21+IY21-IZ21-JK21>0,IO21="no"),MIN((-GV21-(GW21+GX21))/(1-0.5/100*'Distances for Transit Losses'!$C$107),IX21+IY21-IZ21-JK21),0) -> 0 | GZ21: =-GY21*0.5/100*'Distances for Transit Losses'!$C$107 -> 0 | HA21: 0 | HB21: =IF(HA21>0,MIN(-(GV21+GW21+GX21+GY21+GZ21)/(1-0.5/100*'Distances for Transit Losses'!$C$109),HA21),0) -> 0 | HC21: =-HB21*0.5/100*'Distances for Transit Losses'!$C$109 -> 0 | HD21: 0 | HF21: 0 | HG21: ='Joint Aug Station Deliveries'!AQ21 -> 0 | HH21: =HG21*'Western Credit'!$Z$38 -> 0 | HI21: ='Joint Aug Station Deliveries'!AH21 -> 0 | HJ21: =IF(AND(HI21>0,SUM($HI$9:HI21,$HK$9:HK21,$IL$9:IL21)*1.9835<OFFSET('FIDCO Credit'!$X$35,0,MATCH($A21,'FIDCO Credit'!$Y$5:$AJ$5,0))),HI21-GF21,0) -> 0 | HK21: ='Joint Aug Station Deliveries'!AK21 -> 0 | HL21: =IF(AND(HK21>0,SUM($HI$9:HI21,$HK$9:HK21,$IL$9:IL21)*1.9835<OFFSET('FIDCO Credit'!$X$35,0,MATCH($A21,'FIDCO Credit'!$Y$5:$AJ$5,0))),HK21-GG21,0) -> 0 | HM21: =MAX(0,(KN21+KO21))/(1-0.5/100*'Distances for Transit Losses'!$C$77) -> 0 | HN21: =MAX(0,(KP21+KQ21)/(1-0.5/100*'Distances for Transit Losses'!$C$73)) -> 0 | HO21: 0 | HP21: =-HO21*0.5/100*'Distances for Transit Losses'!$C$79 -> 0 | HQ21: 0 | HR21: 0 | HS21: =-HR21*0.5/100*'Distances for Transit Losses'!$C$34 -> 0 | HT21: 0 | HU21: 0 | HV21: 0 | HW21: 0 | HX21: 0 | HY21: 0 | HZ21: 1.489733426 | IA21: 0 | IB21: 0.02776109711 | IC21: 0 | ID21: 0 | IE21: 0 | IF21: =-IE21*0.5/100*'Distances for Transit Losses'!$C$117 -> 0 | IG21: 0 | IH21: =GJ21-GK21-GL21+HH21+HJ21-SUM(HM21:HQ21)-HU21-HV21-HX21-HY21-(CA21/(1-0.5/100*'Distances for Transit Losses'!$C$99)) -> 1.36770332 | II21: 0.02776109711 | IJ21: 1.489733426 | IK21: =-(IF(F21<99999.99999,INDEX('Hist RF to SPR'!$B$6:$M$30,MATCH($B$2,'Hist RF to SPR'!$A$6:$A$30,0),MATCH($A21,'Hist RF to SPR'!$B$5:$M$5,0))/RI21/1.9835,0)) -> 0 | IL21: ='Joint Aug Station Deliveries'!AN21 -> 1 | IM21: =IF(AND(IL21>0,SUM($HI$9:HI21,$HK$9:HK21,$IL$9:IL21)*1.9835<OFFSET('FIDCO Credit'!$X$35,0,MATCH($A21,'FIDCO Credit'!$Y$5:$AJ$5,0))),IL21-GH21,0) -> 0 | IN21: 0 | IO21: no | IP21: 0 | IQ21: 0 | IR21: 0 | IS21: 0 | IT21: 0 | IU21: =IF(IT21>0,MIN(-IS21/(1-0.5/100*'Distances for Transit Losses'!$C$111),IT21),0) -> 0 | IV21: =-IU21*0.5/100*'Distances for Transit Losses'!$C$111 -> 0 | IW21: 0 | IX21: 0 | IY21: =-IX21*0.5/100*'Distances for Transit Losses'!$C$66 -> 0 | IZ21: =IF((IX21+IY21)>0,MIN((-IS21-(IU21-IV21)-IW21)/(1-0.5/100*'Distances for Transit Losses'!$C$113),(IX21+IY21)),0) -> 0 | JA21: =-IZ21*0.5/100*'Distances for Transit Losses'!$C$113 -> 0 | JB21: 0 | JD21: 0 | JE21: 1.489733426 | JF21: 0 | JG21: 0.02776109711 | JH21: 0 | JI21: 0 | JJ21: 0 | JK21: 0 | JL21: =-JK21*0.5/100*'Distances for Transit Losses'!$C$115 -> 0 | JM21: 0 | JN21: 0.02776109711 | JO21: 1.489733426 | JP21: =-(IF(N21<99999.99999,(VLOOKUP(B21,'ECCV Upper Dpln'!$B$7:$BD$306,55))/RI21/1.9835,0)) -> 0 | JQ21: =-(IF(N21<99999.99999,INDEX('Hist RF abv Milton'!$B$6:$M$30,MATCH($B$2,'Hist RF abv Milton'!$A$6:$A$30,0),MATCH($A21,'Hist RF abv Milton'!$B$5:$M$5,0))/RI21/1.9835,0)) -> 0 | JR21: 0 | JS21: =(VLOOKUP($B21,'ECCV Beebe Pond Acrtns'!$B$7:$BI$1206,41)+VLOOKUP($B21,'ECCV Canal Acrtns'!$B$7:$AL$1206,22)+VLOOKUP($B21,'2003 Beebe Pond Acrtns'!$B$7:$BI$1206,41)+VLOOKUP($B21,'2003 Canal Acrtns'!$B$7:$AL$1206,22))/$RI21/1.9835 -> 1.000835946 | JT21: 0 | JU21: 0 | JV21: 0 | JW21: 0 | JX21: 0 | JY21: no | JZ21: 0 | KA21: 0 | KB21: 0 | KC21: 0 | KD21: 0 | KE21: 0 | KF21: 0 | KG21: 0 | KH21: 0 | KI21: 0 | KJ21: =-(KI21*0.5/100*'Distances for Transit Losses'!$C$6) -> 0 | KK21: 0 | KL21: 0 | KM21: 0 | KN21: =IF(AND(E21<>"Lower Latham",I21<>"Lower Latham"),MIN(-(KH21+KK21),HJ21-HJ21*0.5/100*'Distances for Transit Losses'!$C$77),0) -> 0 | KO21: =IF(AND(E21<>"Lower Latham",I21<>"Lower Latham"),MAX(0,MIN(-(KG21+KI21+KJ21+KM21),HJ21-HJ21*0.5/100*'Distances for Transit Losses'!$C$77-KN21/(1-0.5/100*'Distances for Transit Losses'!$C$77))),0) -> 0 | KP21: =MIN(-(KH21+KN21),HH21-HH21*0.5/100*'Distances for Transit Losses'!$C$73) -> 0 | KQ21: =MAX(0,MIN(-(KG21+KI21+KJ21+KO21),HH21-HH21*0.5/100*'Distances for Transit Losses'!$C$73-KP21/(1-0.5/100*'Distances for Transit Losses'!$C$73))) -> 0 | KR21: =IF(EZ21="no",MIN(-(MIN(0,KG21+KI21+KJ21+KO21+KQ21)),(GJ21-GK21)-(GJ21-GK21)*0.5/100*'Distances for Transit Losses'!$C$73),0) -> 0 | KS21: =MAX(0,IF(AND(HA21-HB21-IW21-FK21>0,EZ21="no"),MIN(-(KG21+KI21+KJ21+KM21+KO21+KQ21+KR21)/(1-0.5/100*'Distances for Transit Losses'!$C$83),HA21-HB21-IW21-FK21),0)) -> 0 | KT21: =-KS21*0.5/100*'Distances for Transit Losses'!$C$83 -> 0 | KU21: 0 | KW21: 0 | KX21: 1.000835946 | KY21: 0 | KZ21: 0.02852709711 | LA21: 1.489733426 | LB21: =-(IF(N21<99999.99999,INDEX('Hist RF blw Milton'!$B$6:$M$30,MATCH($B$2,'Hist RF blw Milton'!$A$6:$A$30,0),MATCH($A21,'Hist RF blw Milton'!$B$5:$M$5,0))/RI21/1.9835,0)) -> 0 | LC21: no | LD21: 0 | LE21: 0 | LF21: 0 | LG21: 0 | LH21: 0 | LI21: 0 | LK21: 0.02852709711 | LL21: 1.489733426 | LM21: =-(IF(N21<99999.99999,INDEX('Hist RF to Box Elder'!$B$6:$M$30,MATCH($B$2,'Hist RF to Box Elder'!$A$6:$A$30,0),MATCH($A21,'Hist RF to Box Elder'!$B$5:$M$5,0))/RI21/1.9835,0)) -> 0 | LN21: =(VLOOKUP($B21,'ECCV Beebe Pond Acrtns'!$B$7:$BI$1206,54)+VLOOKUP($B21,'ECCV Canal Acrtns'!$B$7:$AL$1206,34)+VLOOKUP($B21,'2003 Beebe Pond Acrtns'!$B$7:$BI$1206,54)+VLOOKUP($B21,'2003 Canal Acrtns'!$B$7:$AL$1206,34)+VLOOKUP($B21,'84CW090 Beebe Pond Acrtns'!$B$7:$BI$1206,55)+VLOOKUP($B21,'84CW090 Canal Acrtns'!$B$7:$AL$1206,34))/$RI21/1.9835 -> 0.09630223027 | LO21: 0 | LP21: 0 | LQ21: 0 | LR21: 0 | LT21: -0.0009575 | LU21: 0 | LV21: 0 | LW21: 0 | LX21: 0 | LY21: 0 | LZ21: 0.000766 | MA21: 0 | MB21: 0 | MC21: 0 | MD21: 0.000766 | ME21: -0.0001915 | MF21: 1.000835946 | MG21: 0.02776109711 | MH21: 1.489733426 | MO21: 0 | MP21: 0 | MQ21: 0 | MS21: 0 | MT21: 0 | MU21: 0 | MV21: 0 | MW21: 0 | MX21: 0 | MY21: 0 | MZ21: 0 | NA21: 0 | NB21: 0 | NC21: 0 | ND21: 0 | NF21: 0 | NG21: 0 | NH21: 0 | NI21: 0 | NJ21: 0 | NK21: 0 | NL21: 0 | NM21: 0 | NN21: 0 | NO21: 0 | NP21: 0 | NR21: 1.517494523 | NS21: 0 | NT21: 0 | NU21: 0 | NV21: 0 | NW21: 0 | NX21: 0 | NY21: 0 | NZ21: 0 | OA21: 0 | OB21: 0 | OH21: 0 | OI21: 0 | OJ21: 0 | OK21: 0 | OL21: 0 | OM21: 0 | ON21: 0 | OO21: 0 | OP21: 0 | OR21: 0 | OS21: 0 | OT21: 0 | OU21: 0 | OV21: 0 | OW21: 0 | OX21: 0 | OY21: 0 | OZ21: 0 | PC21: 0 | PD21: 0 | PE21: 0 | PF21: 0 | PG21: 0 | PH21: 0 | PI21: 0 | PL21: 0 | PM21: 0 | PP21: 0 | PQ21: 0 | PR21: 0 | PU21: 0 | PV21: 0 | PW21: 0 | PX21: 0 | PY21: 0 | PZ21: 0 | QA21: 0 | QC21: 0 | QD21: 0 | QE21: 0 | QF21: 0 | QG21: 0 | QH21: 309.6 | QJ21: 1.000835946 | QK21: 0 | QL21: 0 | QM21: 0 | QN21: 0 | QO21: 0 | QP21: 0 | QQ21: 0 | QR21: 0 | QS21: 0 | QT21: 0 | QU21: 0 | QV21: 0 | QW21: 0 | QX21: 0 | QY21: 0 | QZ21: 0 | RA21: 0 | RB21: 0 | RC21: 0 | RD21: 1.000835946 | RF21: 0 | RG21: 0 | RI21: =VLOOKUP(A21,'Control Sheet'!$G$9:$H$20,2) -> 30
